Workbook

Sheet Title
B2: Central Hydrogen Production - Project Information
B5: Title: | C5: Current (2015) Hydrogen Production from Distributed Grid PEM Electrolysis
B6: Authors: | C6: D. DeSantis, B.James, G. Saur
B7: Contact: | C7: D. DeSantis
B8: Contact phone: | C8: 703-797-4594
B9: Contact e-mail: | C9: ddesantis@sainc.com
B10: Organization: | C10: Strategic Analysis
B11: Date: | C11: 2019-03-07
B12: Web Site:
B14: Plant Design Capacity (kg/day): | C14: 1500
B15: Start-up Year: | C15: 2015
B16: Primary Product Feedstock Source:
B17: Secondary Feedstock Source:
B18: Process Energy Source: | C18: Grid Electricity (industrial)
B19: Conversion Technology: | C19: PEM Electrolysis
B20: Primary By-Product: | C20: none
B21: Secondary By-Product: | C21: none
B22: Based on Number of Plants Installed per Year (per manufacturer):
B23: H2 Onsite Storage Type | C23: none
B24: Assumed plant location: | C24: USA
B26: Reporting Spreadsheet Change History:
B27: Date spreadsheet created / modified | C27: Name | D27: Comments
B28: 2022-04-28 | C28: M. Penev | D28: Removed hydrogen fueling tab. Fueling will be added in the future in context of heavy duty vehicle refueling and at larger scale.
B30: 2020-10-27 | C30: M. Penev | D30: Made compatible with Excel for Mac
B32: 2019-09-30 | C32: Daniel DeSantis | D32: Created
B34: 2015-03-17T08:56:53.800 | C34: Michael Penev, NREL | D34: replaced model buttons
B35: 2015-03-17T08:56:53.800 | C35: Michael Penev, NREL | D35: Implemented closed-form cash flow calculations
B36: 2015-03-17T08:56:53.800 | C36: Michael Penev, NREL | D36: Implemented new tornado plots generator
B37: 2015-03-17T08:56:53.800 | C37: Michael Penev, NREL | D37: Implemented waterfall plots generator
B38: 2015-03-17T08:56:53.800 | C38: Michael Penev, NREL | D38: Added instant results display in the Input_Sheet_Template
B39: 2015-03-17T08:56:53.800 | C39: Michael Penev, NREL | D39: Fixed depreciation routine
B41: H2A Version 3
B42: 2012-02-27 | C42: Darlene Steward, NREL | D42: version 3 template, standard calculation of capacity
B43: H2A Version 2
B44: 2009-11-23 | C44: Darlene M. Steward | D44: Refueling station calculation correction, tornado chart update
B45: 2008-09-23 | C45: Darlene Steward, NREL | D45: H2A Version 2.1 updates
B46: 2008-05-23 | C46: Todd Ramsden | D46: Tornado Charts added
B47: 2008-02-19 | C47: Brian D. James | D47: Based on Distributed Production H2A Spreadsheet v26 by Darlene Steward/Todd Ramsden

Sheet Description
B2: Central Hydrogen Production - Description
B6: Purpose:
B7: The purpose of this analysis is to provide a cost of production for hydrogen from PEM electrolysis through a techno-economic analysis of the current industrial market.
B10: System Description:
B11: The modeled system is a standalone grid powered PEM electrolyzer system and hydrogen regueling station with a total hydrogen production capacity of 1,500 kg/day. The production system is based on a generic system using input from several key industry collaborators (KIC) with commercial experience in PEM electrolysis and brief system and subsystem technoeconomic models conducted by the authors, the electrolyzer units use process water, passed through deionizing beds, and grid electricity for electrolysis
B14: Analysis Methodology Summary:
B15: Energy balances done manually from generic system estimates, equipment costing and performance from input from key industry collaborators (KIC). The delivered cost of hydrogen was determined using a discounted cash flow analysis on the total capital investment and the periodic expenditures for repair, maintenance, and replacement. A tornado plot was developed to show the sensitivity of the delivered hydrogen cost to several important variables.
B16: .
B18: Plant Ownership and Entity Type Assumptions:
B19: Owner operated large for-profit business.
B21: References:

Sheet ProcessFlow
B2: Central Hydrogen Production - Process Flow Diagram
C5: Average Production Rate | D5: kg H2/day | E5: =1500*sensitivity_02 -> 1500
B6: Process Flow Diagram | C6: Current Density | D6: A/cm2 | E6: 2
C7: Voltage | D7: V/cell | E7: 1.9
C8: Toperating | D8: °C | E8: 80
C9: H2 Outlet Pressure | D9: psi | E9: 450
C10: Cell Active Area | D10: cm2 | E10: 450
C11: Cell/stack | D11: # | E11: 150
C12: Degradation Rate | D12: mV/1000 hrs | E12: 1.5
C13: Stack Life | D13: years | E13: 7
C14: Hours per stack life | D14: hrs/life | E14: =E13*8760*cap_factor -> 52735.2
C15: Degradation Rate | D15: V/life | E15: =E12*E14/1000 -> 79.1028
C16: Stack oversize due to degradation | D16: % | E16: 0.13
C17: Peak Production Rate | D17: kg H2/day | E17: =E5*(1+E16) -> 1695
C19: Total Active Area | D19: m2 | E19: =ROUNDUP((E5/2.02*1000/24/3600)*2*96485/E6/(100)^2,0) -> 83
C20: Total Active Area (With degradation) | D20: m2 | E20: =ROUNDUP((E17/2.02*1000/24/3600)*2*96485/E6/(100)^2,0) -> 94
C22: Total System Electrical Usage | D22: kWh/kg H2 | E22: =SUM(E23:E24) -> 55.84
C23: Stack Electrical Usage | D23: kWh/kg H2 | E23: 50.44
C24: BoP Electrical Usage | D24: kWh/kg H2 | E24: 5.4
C26: Total System Input Power (Peak) | D26: MW | E26: =E22/24*E17/1000 -> 3.9437
C27: Stack Input Power (peak) | D27: MW | E27: =E23/24*E17/1000 -> 3.562325
C29: Process Water Flow Rate | D29: gal/kg H2 | E29: 3.5
F30: $/kW
C31: Total System Cost | D31: $/kW | E31: =F31 -> 599.1877374 | F31: =SUM(F32:F34) -> 599.1877374
C32: Stack System Cost | D32: $/cm2 | E32: 1.3 | F32: =E32/(E6*E7)*1000 -> 342.1052632
C33: Mechanical BoP | D33: $/(kg H2/day) | E33: 286 | F33: =E33*E17/E27/1000 -> 136.0824742 | G33: =F33+F34 -> 257.0824742
C34: Electrical BoP | D34: $/kW | E34: 121 | F34: =E34 -> 121
C36: Total System Cost from above | D36: $ | E36: =E31*E27*1000 -> 2134501.457
B45: Stream Summaries

Sheet Input_Sheet_Template
B2: H2A Hydrogen Production Cash Flow Analysis Tool v3.2018
A3: title | B3: Distributed Hydrogen Production from PEM Electrolysis - Current Timeframe
B5: Table of Contents
B6: View and edit project information
B8: H2A cell color coding
B10: Use H2A default values
B14: Technical Operating Parameters and Specifications
B15: Financial Input Values
B16: Energy Feedstocks, Utilities and Byproducts | H16: Cash Flow NPV (Error if not 0)
B17: Capital Cost | H17: =+NPV -> 5.923797861e-09
B18: Fixed Operating Costs
B19: Variable Operating Costs - Other Materials and Byproducts
B20: Variable Operating Costs - Other Variable Operating Costs
B24: Technical Operating Parameters and Specifications | E24: Notes
A25: cap_factor | B25: Operating Capacity Factor (%) | C25: =0.86*sensitivity_01 -> 0.86
A26: design_cap | B26: Plant Design Capacity (kg of H2/day) | C26: =ProcessFlow!E17*sensitivity_02 -> 1695 | E26: Value is raised above std H2A 1.5 tpd but will average out to 1.5tpd when degradation of the stack is considered
B27: Plant Output (kg/day) | C27: =design_cap*cap_factor -> 1457.7
A28: Soutput_kgyear | B28: Plant Output (kg/year) | C28: =output_kgpday*365 -> 532060.5
B29: Financial Input Values | E29: Notes
A30: ref_year | B30: Reference year | C30: 2016
A31: startup_year | B31: Assumed start-up year | C31: 2015
B32: Basis year | C32: 2016 | D32: Costs must be entered in basis year dollars
A33: construct | B33: Length of Construction Period (years) | C33: 1
A34: percent_cap1 | B34: % of Capital Spent in 1st Year of Construction | C34: 1
A35: percent_cap2 | B35: % of Capital Spent in 2nd Year of Construction | C35: 0
A36: percent_cap3 | B36: % of Capital Spent in 3rd Year of Construction | C36: 0
A37: percent_cap4 | B37: % of Capital Spent in 4th Year of Construction
A38: start_time | B38: Start-up Time (years) | C38: 0.5
A39: plant_life | B39: Plant life (years) | C39: 20
A40: anal_period | B40: Analysis period (years) | C40: 20
A41: depr_length | B41: Depreciation Schedule Length (years) | C41: 7
A42: depr_type | B42: Depreciation Type | C42: MACRS
A43: equity | B43: % Equity Financing | C43: 0.4
A44: debt_interest | B44: Interest rate on debt, if applicable (%) | C44: 0.037
A45: debt_period | B45: Debt period (years) | C45: 0 | E45: Enter 0 to enable constant outstanding debt.
A46: percnt_fixed | B46: % of Fixed Operating Costs During Start-up (%) | C46: 0.75
A47: percnt_revs | B47: % of Revenues During Start-up (%) | C47: 0.5
A48: percnt_var | B48: % of Variable Operating Costs During Start-up (%) | C48: 0.5
A49: decom_percent | B49: Decommissioning costs (% of depreciable capital investment) | C49: 0.1
A50: salvage_perct | B50: Salvage value (% of total capital investment) | C50: 0.1
A51: inflation_rate | B51: Inflation rate (%) | C51: 0.019
A52: real_irr | B52: After-tax Real IRR (%) | C52: =0.08*sensitivity_03 -> 0.08
A53: state_tax_rate | B53: State Taxes (%) | C53: 0.06
A54: fed_tax_rate | B54: Federal Taxes (%) | C54: 0.21
A55: Stotal_tax_rate | B55: Total Tax Rate (%) | C55: =fed_tax_rate+state_tax_rate*(1-fed_tax_rate) -> 0.2574
A56: WorkingCap | B56: WORKING CAPITAL (% of yearly change in operating costs) | C56: 0.15
B57: Energy Feedstocks, Utilities, and Byproducts
B58: Select the Price Table to Use
B59: AEO_2017_Reference_Case | F59: To use a new feedstock, utility or byproduct, select the price table and product from the dropdown lists and enter the usage (or byproduct) amount. Click the "Add" button to add the product to the "In Use" list. Important; only materials on the "In Use" list will be used in H2A calculations. To delete materials from the list, click the "Delete" button below
B60: Select the Use
B61: feedstock | C61: =IF(OR(TMP_FeedType="Feedstock",TMP_FeedType = "Utility")," Enter usage in","Enter production in") -> Enter usage in | D61: =VLOOKUP(TMP_FeedName,INDIRECT(TMP_PriceTable),4,FALSE) -> kWh
B62: Select the Feed Type
B63: Industrial Electricity
B65: =SELECTED_FEED -> feedstock | C65: =TMP_FeedName -> Industrial Electricity
B66: ="Price Conversion Factor (GJ/"&TMP_Units&")" -> Price Conversion Factor (GJ/kWh) | C66: =VLOOKUP(TMP_FeedName,MASTER_PROPERTY_TABLE,9,FALSE) -> 0.0036
B67: ="Price in Startup Year ($" & ref_year & ")/" & TMP_Units -> Price in Startup Year ($2016)/kWh | C67: =HLOOKUP(startup_year,INDIRECT(TMP_PriceTable),MATCH(TMP_FeedName,INDIRECT(Energy_Feed_List),0),FALSE)*TMP_Conversion -> 0.06998061126
B68: =IF(OR(TMP_FeedType="Feedstock",TMP_FeedType = "Utility"),"Usage ("&TMP_Units&"/kg H2)","Production ("&TMP_Units&"/kg H2)") -> Usage (kWh/kg H2) | C68: 51.4
B69: =IF(OR(TMP_FeedType = "Feedstock",TMP_FeedType = "Utility"), "Cost in Startup Year","Income in Startup Year") -> Cost in Startup Year | C69: =design_cap*365*cap_factor*TMP_Usage*TMP_StartPrice -> 1913823.437
B70: Lookup Prices | C70: yes
B72: Energy feedstocks, utilities, and byproducts currently in use
A73: START_TOP
B74: feedstock | C74: Price Conversion Factor (GJ/kWh) | D74: Price in Startup Year ($2016)/kWh | E74: Usage (kWh/kg H2) | F74: Cost in Startup Year | G74: Lookup Prices
B75: Industrial Electricity | C75: 0.0036 | D75: 0.07759697608 | E75: =55.8*sensitivity_04 -> 55.8 | F75: 2221647.927 | G75: yes
A76: START_TOP
A77: START_UTILITY
A78: START_BYPROD
F79: Total
A80: Total_Energy_Feed_Cost | B80: Total Energy Feedstock Cost ($/year) | F80: =SUM(Dynamic_Feed_Total) -> 2221647.927
A81: Total_Energy_Utilities_Cost | B81: Total Energy Utilities Cost ($/year) | F81: =SUM(Dynamic_Utilities_Total) -> 0
A82: Total_Energy_Byproduct_Credit | B82: Total Energy Byproduct Credit ($/year) | F82: =SUM(Dynamic_Byproduct_Total) -> 0
D83: Notes:
B85: Capital Costs | E85: Notes
A86: direct_cap | B86: H2A Total Direct Capital Cost | C86: =Det_scaled_cap -> 2280406.284 | E86: Click to enter details on the Cost Detail Sheet
B87: H2A Carbon Sequestration Total Direct Capital Cost | E87: Click to enter details on the Carbon Sequestration calculation sheet.
B89: Indirect Depreciable Capital Costs | C89: ="Enter values in basis year (" & BasisYear & ") dollars" -> Enter values in basis year (2016) dollars | D89: Combined Plant Scaling and Escalation Factor | E89: ="Reference Year ("& ref_year & ") Dollars" -> Reference Year (2016) Dollars
A90: Site_prep | B90: Site Preparation ($) (may change to construction costs) | C90: =0.1885*direct_cap/(CPIinflator*CEPCIinflator) -> 429856.5845 | D90: =CEPCIinflator*CPIinflator -> 1 | E90: =C90*D90 -> 429856.5845 | F90: H2A Default for 1500kg/day. Site Prep Using AACE* cost categories for a “>150psi, >400F Gas Process”: Foundation: (% of process cost); Materials: 5% Labor: 6.65%. Miscellaneous (% of process cost); Materials: 4% Labor: 3.2%
A91: Engin | B91: Engineering & design ($) | C91: =50000 -> 50000 | D91: 1 | E91: =C91*D91 -> 50000
A92: Process_cont | B92: Process contingency ($) | C92: 0 | D92: 1 | E92: 0
A93: Project_cont | B93: Project contingency ($) | C93: =0.15*(direct_cap)/(CEPCIinflator*CPIinflator) -> 342060.9426 | D93: 1 | E93: 342060.9426
A94: Other_indirect | B94: Other (Depreciable) capital ($) | C94: 0 | D94: 1 | E94: 0
A95: Fees | B95: One-time Licensing Fees ($) | D95: 1 | E95: 0
A96: Permitting | B96: Up-Front Permitting Costs ($) (legal and contractors fees included here) | C96: 30000 | D96: 1 | E96: 30000 | F96: H2A Default for 1500kg/day FC Prod.: $30,000. Includes multiple visits to multiple agencies and a public review/ comment process.
A97: Sdepr_cap | B97: Total Depreciable Capital Costs | E97: =direct_cap+CO2_seq+SUM($E$90:$E$96) -> 3132323.811
D98: Combined Plant Scaling and Escalation Factor
B99: Non-Depreciable Capital Costs | C99: ="Enter values in basis year (" & BasisYear & ") dollars" -> Enter values in basis year (2016) dollars | E99: ="Reference Year ("& ref_year & ") Dollars" -> Reference Year (2016) Dollars
A100: acre_cost | B100: Cost of land ($/acre) | C100: 0 | D100: =CPIinflator -> 1 | E100: =C100*D100 -> 0
A101: acres | B101: Land required (acres) | C101: 0 | D101: =Scale_Factor *1 -> 1 | E101: =C101*D101 -> 0 | F101: Estimated based on site total cost in NETL report.
A102: Sland_cost | B102: Land Cost ($) | E102: =acre_cost*acres -> 0
B103: Other non depreciable capital costs | D103: =CPIinflator -> 1 | E103: =C103*D103 -> 0
A104: Snon_dep_cap | B104: Total Non-Depreciable Capital Costs | E104: =land_cost+$E$103 -> 0
A106: Stotal_cap | B106: Total Capital Costs | C106: =(depr_cap+non_dep_cap)*sensitivity_06 -> 3132323.811
B108: Fixed Operating Costs | C108: ="Enter values in basis year (" & BasisYear & ") dollars" -> Enter values in basis year (2016) dollars | D108: Combined Plant Scaling and Escalation Factor | E108: ="Reference Year ("& ref_year & ") Dollars" -> Reference Year (2016) Dollars
A109: FTEs | B109: Total plant staff (number of FTEs employed by plant) | C109: 0 | D109: =Scale_Ratio^0.25 -> 1 | E109: =C109*D109 -> 0
A110: FTE_cost | B110: Burdened labor cost, including overhead ($/man-hr) | C110: 50 | D110: =VLOOKUP(ref_year,Tbl_labor_indexes,2,FALSE)/VLOOKUP(BasisYear,Tbl_labor_indexes,2,FALSE) -> 1 | E110: =C110*D110 -> 50 | F110: Using H2A default
A111: Slabor_cost | B111: Labor cost, $/year | E111: =FTEs*2080*FTE_cost -> 0
A112: overhead_rate | B112: G&A rate (% of labor cost) | C112: 0.2 | F112: Using H2A default
A113: Soverhead_GA | B113: G&A ($/year) | E113: =labor_cost*overhead_rate -> 0
A114: licensing | B114: Licensing, Permits and Fees ($/year) | C114: 1000 | D114: =Scale_Factor *CEPCIinflator*CPIinflator -> 1 | E114: =C114*D114 -> 1000
A115: tax_ins_rate | B115: Property tax and insurance rate (% of total capital investment per year) | C115: 0.02
A116: Stax_insurance | B116: Property taxes and insurance ($/year) | E116: =tax_ins_rate*total_cap -> 62646.47622
A117: rent | B117: Rent ($/year) | C117: 3370 | D117: =Scale_Factor *CPIinflator -> 1 | E117: =C117*D117 -> 3370 | F117: Based on $3.23/m2/month and 936 ft2 dedicated for SMR H2 production. (Square footage and rent for H2 dispensing operations are calculated on the Refueling tab.)
A118: material | B118: Material costs for maintenance and repairs ($/year) | C118: 0 | D118: =Scale_Factor *CEPCIinflator*CPIinflator -> 1 | E118: =C118*D118 -> 0
A119: prod_maint | B119: Production Maintenance and Repairs ($/year) | C119: =0.05*direct_cap/(CPIinflator*CEPCIinflator) -> 114020.3142 | D119: =Scale_Factor *CEPCIinflator*CPIinflator -> 1 | E119: =C119*D119 -> 114020.3142 | F119: Maintenance labor
A120: other_fees | B120: Other Fees ($/year) | D120: =Scale_Ratio * CEPCIinflator*CPIinflator -> 1 | E120: =C120*D120 -> 0 | F120: Administrative & support labor
A121: other_fixed | B121: Other Fixed O&M Costs ($/year) | D121: =Scale_Factor *CEPCIinflator*CPIinflator -> 1 | E121: =C121*D121 -> 0
A122: Sfixed | B122: Total Fixed Operating Costs | E122: =(labor_cost+overhead_GA+tax_insurance+licensing+SUM(E117:E121))*sensitivity_07 -> 181036.7904
B124: Variable Operating Costs
B125: Other Materials and Byproducts
B127: Select the Material
B128: Process Water
B129: Feed or utility | C129: =B128 -> Process Water
B130: ="$(" & ref_year & ")/ " & VLOOKUP(TMP_NonE_Feed,Tbl_Other_Inputs_and_Byproducts,2,FALSE) -> $(2016)/ gal | C130: =HLOOKUP(startup_year,Tbl_Other_Inputs_and_Byproducts,MATCH(TMP_NonE_Feed,Other_Inputs_List,0),FALSE) -> 0.002374951095
B131: =IF(TMP_NonE_Type="Feed or utility","Usage per kg H2","Production per kg H2") -> Usage per kg H2
B132: =IF(TMP_NonE_Type = "Feed or utility", "Cost in Startup Year","Income in Startup Year") -> Cost in Startup Year | C132: =design_cap*365*cap_factor*TMP_NonE_Usage*TMP_NonE_StartPrice -> 0
B133: Lookup Prices | C133: Yes
A134: START_NONE_TOP
B135: Feed or utility | C135: $(2016)/ gal | D135: Usage per kg H2 | E135: Cost in Startup Year | F135: Lookup Prices
B136: Process Water | C136: 0.002374951095 | D136: 3.78 | E136: =+D136*output_kgyear*C136 -> 4776.474781 | F136: Yes
A137: START_NONE_FEED
A138: START_NONE_BYPROD
B139: Total Non Energy Utility and Material Costs ($/year) | C139: =SUM(Dynamic_NonE_Feed_Total) -> 4776.474781
A140: total_non_energy_byproduct_credit | B140: Total Non Energy Byproduct Credits ($/year) | C140: =SUM(Dynamic_NonE_Byprod_Total) -> 0
A142: Stotal_feedstock | B142: Total Feedstock Costs ($/year) | C142: =Total_Energy_Feed_Cost -> 2221647.927
A143: Stotal_utilities | B143: Total Utility Costs ($/year) | C143: =Total_Energy_Utilities_Cost+Total_Non_Energy_Feed_Cost -> 4776.474781
A144: Stotal_byproducts | B144: Total Byproduct Credits ($/year) | C144: =Total_Energy_Byproduct_Credit+total_non_energy_byproduct_credit -> 0
B145: Other Variable operating costs (for the first year) | C145: ="Enter values in basis year (" & BasisYear & ") dollars" -> Enter values in basis year (2016) dollars | D145: Combined Plant Scaling and Escalation Factor | E145: ="Reference Year ("& ref_year & ") Dollars" -> Reference Year (2016) Dollars
A146: var_misc | B146: Other variable operating costs (e.g. environmental surcharges) ($/year) | C146: 1800 | D146: =Scale_Ratio * VLOOKUP(ref_year,Chemical_price_indexes,2,FALSE)/VLOOKUP(BasisYear,Chemical_price_indexes,2,FALSE) -> 1 | E146: =C146*D146 -> 1800 | F146: This covers waste disposal costs, non-feedstock fuels, environmental surcharges, etc. and is estimated at $800/month with 50% being attributed to refueling operations (the other 50% goes to convenience store operations) and is further pro-rata for the fraction of hydrogen dispensers out of total dispensers (3 out of 8 for large stations). Thus for a large station, annual “Other Variable Costs” are $800/month * 12 months/year * 50% fueling fraction * (3 H2 dispensers/8 total dispensers) = $1,800/year.
A147: total_other_raw | B147: Other Material Costs ($/year) | D147: =Scale_Ratio * VLOOKUP(ref_year,Chemical_price_indexes,2,FALSE)/VLOOKUP(BasisYear,Chemical_price_indexes,2,FALSE) -> 1 | E147: =C147*D147 -> 0
A148: waste_treat | B148: Waste treatment costs ($/year) | D148: =Scale_Ratio * VLOOKUP(ref_year,Chemical_price_indexes,2,FALSE)/VLOOKUP(BasisYear,Chemical_price_indexes,2,FALSE) -> 1 | E148: =C148*D148 -> 0
A149: solidwaste_treat | B149: Solid waste disposal costs ($/year) | D149: =Scale_Ratio * VLOOKUP(ref_year,Chemical_price_indexes,2,FALSE)/VLOOKUP(BasisYear,Chemical_price_indexes,2,FALSE) -> 1 | E149: =C149*D149 -> 0
A150: replace_factor | B150: Total Unplanned Replacement Capital Cost Factor (% of total direct depreciable costs/year) | C150: 0.005
A151: royalties | B151: Royalties ($/year) | C151: 0 | D151: =Scale_Ratio * CPIinflator -> 1 | E151: 0
A152: operator_profit | B152: Operator Profit ($/year) | C152: 0 | D152: =Scale_Ratio * CPIinflator -> 1 | E152: 0
A153: tax_credit | B153: Subsidies, Tax Incentives ($/year) | C153: 0 | D153: =Scale_Ratio * CPIinflator -> 1 | E153: 0
A154: CO2_seq | B154: CO2 sequestration O&M costs and credits ($/year)
B155: Process Carbon Tax ($/metric ton carbon produced as CO2) | C155: 0 | D155: =CPIinflator -> 1 | E155: 0
B156: Process Carbon Tax ($/year) | E156: =ROUND(Proc_CO2_tax*12/44*Proc_CO2_MTpY,-2) -> 0
B157: Upstream Carbon Tax ($/metric ton upstream GHG CO2 eq) | C157: 0 | D157: =CPIinflator -> 1 | E157: 0
B158: Upstream Carbon Tax ($/year) | E158: =ROUND(Upstream_CO2_tax/1000*Upstream_GHG_total*output_kgyear,2) -> 0
A159: Stotal_var | B159: Total Variable Operating Costs ($/year) | E159: =ROUND(total_feedstock+total_utilities+total_other_raw-total_byproducts+var_misc+waste_treat+solidwaste_treat+royalties+operator_profit-tax_credit+CO2_OandMcost+Proc_CO2_taxpYear + Upstream_CO2_taxpYear,-2) -> 2228200

Sheet Replacement Costs
A2: Replacement Costs
C5: Color Key
A9: ="NOTE: Enter costs in year "&TEXT(BasisYear,"0")&" $ - Do not inflate" -> NOTE: Enter costs in year 2016 $ - Do not inflate
A10: NOTE: All replacement costs are assumed to be equity financed.
A13: Unplanned Yearly Replacement Capital (Depreciable)
C14: Comments | F14: Source | G14: Information
A15: Total Unplanned Replacement Capital Cost Factor (% of total depreciable capital costs/year) | B15: =replace_factor -> 0.005 | G15: Enter a fixed percentage. This input is meant to include, in the Cash Flow Analysis, a factor for unplanned capital expenditures.
A16: Actual Year | B16: Analysis Year | C16: Operations Year | D16: Specified Yearly Replacement Costs | E16: Carbon Sequestration Related Replacement Costs | F16: Specified Yearly Replacement Costs | G16: Unplanned Replacement Costs | H16: Total Yearly Replacement Costs | I16: Uninstalled costs | J16: Installation factor | K16: Comments: | L16: Data source:
D17: ="Year "&TEXT(BasisYear,"0")&" $" -> Year 2016 $ | E17: ="Year "&TEXT(ref_year,"0")&" $" -> Year 2016 $ | F17: ="Year "&TEXT(ref_year,"0")&" $" -> Year 2016 $ | G17: ="Year "&TEXT(ref_year,"0")&" $" -> Year 2016 $ | H17: Inflated to Start-up Year
A18: =IF(C18<>"",'Cash Flow Analysis'!A65,"") -> 2014 | B18: =construct+1 -> 2 | C18: 1 | D18: 0 | E18: =direct_cap*D18 -> 0 | F18: =(D18)*CPIinflator*CEPCIinflator+E18 -> 0 | G18: =IF(C18>anal_period,0,IF(replace_factor<>"",replace_factor*depr_cap,0)) -> 15661.61906 | H18: =(F18+G18)*((1+inflation_rate)^(startup_year-ref_year)) -> 15369.59672
A19: =IF(C19<>"",'Cash Flow Analysis'!A66,"") -> 2015 | B19: =IF(B18<anal_period+construct,B18+1,"") -> 3 | C19: =IF(B19="","",C18+1) -> 2 | D19: 0 | E19: 0 | F19: 0 | G19: =IF(C19>anal_period,0,IF(replace_factor<>"",replace_factor*depr_cap,0)) -> 15661.61906 | H19: =(F19+G19)*((1+inflation_rate)^(startup_year-ref_year)) -> 15369.59672
A20: =IF(C20<>"",'Cash Flow Analysis'!A67,"") -> 2016 | B20: 4 | C20: 3 | D20: 0 | E20: 0 | F20: 0 | G20: 15661.61906 | H20: 15369.59672
A21: =IF(C21<>"",'Cash Flow Analysis'!A68,"") -> 2017 | B21: 5 | C21: 4 | D21: 0 | E21: 0 | F21: 0 | G21: 15661.61906 | H21: 15369.59672
A22: =IF(C22<>"",'Cash Flow Analysis'!A69,"") -> 2018 | B22: 6 | C22: 5 | D22: 0 | E22: 0 | F22: 0 | G22: 15661.61906 | H22: 15369.59672
A23: =IF(C23<>"",'Cash Flow Analysis'!A70,"") -> 2019 | B23: 7 | C23: 6 | D23: 0 | E23: 0 | F23: 0 | G23: 15661.61906 | H23: 15369.59672
A24: =IF(C24<>"",'Cash Flow Analysis'!A71,"") -> 2020 | B24: 8 | C24: 7 | D24: 0.15 | E24: 342060.9426 | F24: 342061.0926 | G24: 15661.61906 | H24: 351052.7102 | K24: 15% of direct capital cost based on industry input. 15% is less than the full replacement cost of stack or stack refurbishment. Lower replacement cost given a seven year design advancement.
A25: =IF(C25<>"",'Cash Flow Analysis'!A72,"") -> 2021 | B25: 9 | C25: 8 | D25: 0 | E25: 0 | F25: 0 | G25: 15661.61906 | H25: 15369.59672
A26: =IF(C26<>"",'Cash Flow Analysis'!A73,"") -> 2022 | B26: 10 | C26: 9 | D26: 0 | E26: 0 | F26: 0 | G26: 15661.61906 | H26: 15369.59672
A27: =IF(C27<>"",'Cash Flow Analysis'!A74,"") -> 2023 | B27: 11 | C27: 10 | D27: 0 | E27: 0 | F27: 0 | G27: 15661.61906 | H27: 15369.59672
A28: =IF(C28<>"",'Cash Flow Analysis'!A75,"") -> 2024 | B28: 12 | C28: 11 | D28: 0 | E28: 0 | F28: 0 | G28: 15661.61906 | H28: 15369.59672
A29: =IF(C29<>"",'Cash Flow Analysis'!A76,"") -> 2025 | B29: 13 | C29: 12 | D29: 0 | E29: 0 | F29: 0 | G29: 15661.61906 | H29: 15369.59672
A30: =IF(C30<>"",'Cash Flow Analysis'!A77,"") -> 2026 | B30: 14 | C30: 13 | D30: 0 | E30: 0 | F30: 0 | G30: 15661.61906 | H30: 15369.59672
A31: =IF(C31<>"",'Cash Flow Analysis'!A78,"") -> 2027 | B31: 15 | C31: 14 | D31: 0.15 | E31: 342060.9426 | F31: 342061.0926 | G31: 15661.61906 | H31: 351052.7102 | K31: 15% of direct capital cost based on industry input. 15% is less than the full replacement cost of stack or stack refurbishment. Lower replacement cost given a seven year design advancement.
A32: =IF(C32<>"",'Cash Flow Analysis'!A79,"") -> 2028 | B32: 16 | C32: 15 | D32: 0 | E32: 0 | F32: 0 | G32: 15661.61906 | H32: 15369.59672
A33: =IF(C33<>"",'Cash Flow Analysis'!A80,"") -> 2029 | B33: 17 | C33: 16 | D33: 0 | E33: 0 | F33: 0 | G33: 15661.61906 | H33: 15369.59672
A34: =IF(C34<>"",'Cash Flow Analysis'!A81,"") -> 2030 | B34: 18 | C34: 17 | D34: 0 | E34: 0 | F34: 0 | G34: 15661.61906 | H34: 15369.59672
A35: =IF(C35<>"",'Cash Flow Analysis'!A82,"") -> 2031 | B35: 19 | C35: 18 | D35: 0 | E35: 0 | F35: 0 | G35: 15661.61906 | H35: 15369.59672
A36: =IF(C36<>"",'Cash Flow Analysis'!A83,"") -> 2032 | B36: 20 | C36: 19 | D36: 0 | E36: 0 | F36: 0 | G36: 15661.61906 | H36: 15369.59672
A37: =IF(C37<>"",'Cash Flow Analysis'!A84,"") -> 2033 | B37: 21 | C37: 20 | D37: 0 | E37: 0 | F37: 0 | G37: 15661.61906 | H37: 15369.59672
A38: =IF(C38<>"",'Cash Flow Analysis'!A85,"") ->  | E38: 0 | F38: 0 | G38: 0 | H38: 0
A39: =IF(C39<>"",'Cash Flow Analysis'!A86,"") ->  | E39: 0 | F39: 0 | G39: 0 | H39: 0
A40: =IF(C40<>"",'Cash Flow Analysis'!A87,"") ->  | E40: 0 | F40: 0 | G40: 0 | H40: 0
A41: =IF(C41<>"",'Cash Flow Analysis'!A88,"") ->  | E41: 0 | F41: 0 | G41: 0 | H41: 0
A42: =IF(C42<>"",'Cash Flow Analysis'!A89,"") ->  | E42: 0 | F42: 0 | G42: 0 | H42: 0
A43: =IF(C43<>"",'Cash Flow Analysis'!A90,"") ->  | E43: 0 | F43: 0 | G43: 0 | H43: 0
A44: =IF(C44<>"",'Cash Flow Analysis'!A91,"") ->  | E44: 0 | F44: 0 | G44: 0 | H44: 0
A45: =IF(C45<>"",'Cash Flow Analysis'!A92,"") ->  | E45: 0 | F45: 0 | G45: 0 | H45: 0
A46: =IF(C46<>"",'Cash Flow Analysis'!A93,"") ->  | E46: 0 | F46: 0 | G46: 0 | H46: 0
A47: =IF(C47<>"",'Cash Flow Analysis'!A94,"") ->  | E47: 0 | F47: 0 | G47: 0 | H47: 0
A48: =IF(C48<>"",'Cash Flow Analysis'!A95,"") ->  | E48: 0 | F48: 0 | G48: 0 | H48: 0
A49: =IF(C49<>"",'Cash Flow Analysis'!A96,"") ->  | E49: 0 | F49: 0 | G49: 0 | H49: 0
A50: =IF(C50<>"",'Cash Flow Analysis'!A97,"") ->  | E50: 0 | F50: 0 | G50: 0 | H50: 0
A51: =IF(C51<>"",'Cash Flow Analysis'!A98,"") ->  | E51: 0 | F51: 0 | G51: 0 | H51: 0
A52: =IF(C52<>"",'Cash Flow Analysis'!A99,"") ->  | E52: 0 | F52: 0 | G52: 0 | H52: 0
A53: =IF(C53<>"",'Cash Flow Analysis'!A100,"") ->  | E53: 0 | F53: 0 | G53: 0 | H53: 0
A54: =IF(C54<>"",'Cash Flow Analysis'!A101,"") ->  | E54: 0 | F54: 0 | G54: 0 | H54: 0
A55: =IF(C55<>"",'Cash Flow Analysis'!A102,"") ->  | E55: 0 | F55: 0 | G55: 0 | H55: 0
A56: =IF(C56<>"",'Cash Flow Analysis'!A103,"") ->  | E56: 0 | F56: 0 | G56: 0 | H56: 0
A57: =IF(C57<>"",'Cash Flow Analysis'!A104,"") ->  | E57: 0 | F57: 0 | G57: 0 | H57: 0

Sheet Capital Costs
B2: Capital Costs
C4: Color Key
B7: Design Plant Hydrogen Production (kg/day) | C7: 1695 | D7: Capital costs for the design plant (baseline) are entered on this sheet. Use the Plant Scaling sheet to set scaling parameters for scaling up or down in size from the baseline plant. Enter the output kg/day for the plant you wish to analyze on the Input Sheet
D8: Comments
B9: Basis year for capital costs | C9: =BasisYear -> 2016
B10: Enter current year for capital costs | C10: 2016
B11: ="CEPCI Inflator ("&BasisYear&" to "&CurrentYear&")" -> CEPCI Inflator (2016 to 2016) | C11: =VLOOKUP(CurrentYear,Tbl_PlantCostIndexes,2,FALSE)/VLOOKUP(BasisYear,Tbl_PlantCostIndexes,2,FALSE) -> 1 | D11: The Chemical Engineering Plant Cost Index (CEPCI) is used to adjust the capital cost of the H2 Production facility from the basis year to the current year.
B12: ="Consumer Price Inflator ("&CurrentYear&" to "&ref_year&")" -> Consumer Price Inflator (2016 to 2016) | C12: =VLOOKUP(ref_year,DeflatorTable,2,FALSE)/VLOOKUP(CurrentYear,DeflatorTable,2,FALSE) -> 1 | D12: The Consumer Price Inflator (CPI) is used to deflate all dollars from the current year to the Reference Year.
B14: ="CAPITAL INVESTMENT (Inputs REQUIRED in Basis Year, (" & BasisYear & ") $)" -> CAPITAL INVESTMENT (Inputs REQUIRED in Basis Year, (2016) $)
B15: Major pieces/systems of equipment | C15: ="Baseline Uninstalled Costs $"&BasisYear&" Dollars" -> Baseline Uninstalled Costs $2016 Dollars | D15: ="Baseline Uninstalled Costs $"&ref_year&" Dollars" -> Baseline Uninstalled Costs $2016 Dollars | E15: Installation Cost Factor | F15: Baseline Installed Costs | G15: Comments | H15: Data Source
B16: Stack Capital Cost | C16: =ProcessFlow!E20*100^2*ProcessFlow!E32 -> 1222000 | D16: =C16*CEPCIinflator*CPIinflator -> 1222000 | E16: 1.12 | F16: =D16*E16 -> 1368640 | H16: Using AACE* cost categories for a “>150psi, >400F Gas Process”: Installation Costs (% of total direct uninstalled capital) Sales tax: 5% Typical state sales tax Shipping: 1% Based on actual low-rider coast-to-coast transport of single large load Insurance: 1% Shipping insurance estimate Setting: 10% One half of AACE generic recommended value due to Nth plant considerations. Total Installation: 17% of total direct uninstalled capital
B17: Mechanical BoP Capital Cost | C17: =ProcessFlow!E33*ProcessFlow!E5 -> 429000 | D17: =C17*CEPCIinflator*CPIinflator -> 429000 | E17: 1 | F17: =D17*E17 -> 429000
B18: Electrical BoP Capital Cost | C18: =ProcessFlow!E27*1000*ProcessFlow!E34 -> 431041.325 | D18: 431041.325 | E18: 1.12 | F18: 482766.284
D19: 0 | F19: 0
D20: 0 | F20: 0
D21: 0 | F21: 0
D22: 0 | F22: 0
D23: 0 | F23: 0
D24: 0 | F24: 0
D25: 0 | F25: 0
D26: 0 | F26: 0
D27: 0 | F27: 0
D28: 0 | F28: 0
D29: 0 | F29: 0
D30: 0 | F30: 0
D31: 0 | F31: 0
D32: 0 | F32: 0
D33: 0 | F33: 0
D34: 0 | F34: 0
D35: 0 | F35: 0
D36: 0 | F36: 0
D37: 0 | F37: 0
C38: =SUM(C16:C37) -> 2082041.325 | D38: =SUM(D16:D37) -> 2082041.325 | F38: =SUM(F16:F37) -> 2280406.284
B58: X = design capacity/115 (kg/day) | C58: =design_cap/115 -> 14.73913043
B59: N (see above) = | C59: 6.644
B60: PSA uninstalled cost (Q100) = | C60: =2*20212*C58^0.4569*0.96^C59+2*1813*C58*0.92^C59+2*14000*C58^0.4*0.96^C59+2*12000*C58^0.4*0.96^C59 -> 252389.6016
B61: bed volume (L) | C61: =C58*623 -> 9182.478261

Sheet Plant Scaling
B1: leave this sheet as is for scaled costs
B2: Plant Scaling Factors
B3: Baseline Design Capacity (kg H2/day) | C3: =Baseline_Design_Capacity -> 1695 | D3: Design capacity for original H2A case. Imported from capital cost sheet
B4: Scale Ratio | C4: =design_cap/Baseline_Design_Capacity -> 1 | D4: Ratio of new design capacity (enter on Input Sheet) to the Baseline Design Capacity. Used for linear scaling
B5: Scale Factor | C5: =$G$35/Det_direct_cap -> 1 | D5: Ratio of total scaled installed capital capital cost to total baseline installed capital costs. Used for exponential scaling.
B6: Default Scaling Factor Exponent | C6: 0.6 | D6: Scaling factor exponent used for scaling all capital equipment where an individual factor has not been entered below.
B7: Lower Limit for Scaling Capacity (kg H2/day) | C7: 500 | D7: http://www.chemicals-technology.com/projects/air-products-plant/
B8: Upper Limit for Scaling Capacity (kg H2/day) | C8: 6000 | D8: http://hydrogen.pnl.gov/filedownloads/hydrogen/datasheets/hydrogen_production_capacity_by_state.xls
B11: ="CAPITAL INVESTMENT (Inputs REQUIRED in Reference Year, (" & ref_year & ") $)" -> CAPITAL INVESTMENT (Inputs REQUIRED in Reference Year, (2016) $)
B12: Major pieces/systems of equipment | C12: Baseline Uninstalled Costs | D12: Scaling Factor Exponent | E12: Scaled Uninstalled Costs | F12: Installation Cost Factor | G12: Installed Cost (scaled) | H12: Installed Cost (baseline) | I12: Comments | J12: Data Source
B13: ='Capital Costs'!B16 -> Stack Capital Cost | C13: ='Capital Costs'!D16 -> 1222000 | E13: =IF($D13="",$C13*Scale_Ratio^Scaling_Factor_Exponent,$C13*Scale_Ratio^$D13) -> 1222000 | F13: ='Capital Costs'!E16 -> 1.12 | G13: =$E13*$F13 -> 1368640 | H13: =C13*F13 -> 1368640 | I13: Weighted average by sub-component list | J13: https://netl.doe.gov/projects/files/QualityGuidelinesforEnergySystemStudiesCapitalCostScalingMethodologyRevision4Report_110719.pdf
B14: ='Capital Costs'!B17 -> Mechanical BoP Capital Cost | C14: ='Capital Costs'!D17 -> 429000 | E14: =IF($D14="",$C14*Scale_Ratio^Scaling_Factor_Exponent,$C14*Scale_Ratio^$D14) -> 429000 | F14: ='Capital Costs'!E17 -> 1 | G14: =$E14*$F14 -> 429000 | H14: =C14*F14 -> 429000 | J14: https://netl.doe.gov/projects/files/QualityGuidelinesforEnergySystemStudiesCapitalCostScalingMethodologyRevision4Report_110719.pdf
B15: ='Capital Costs'!B18 -> Electrical BoP Capital Cost | C15: ='Capital Costs'!D18 -> 431041.325 | E15: 431041.325 | F15: ='Capital Costs'!E18 -> 1.12 | G15: 482766.284 | H15: 482766.284 | J15: https://netl.doe.gov/projects/files/QualityGuidelinesforEnergySystemStudiesCapitalCostScalingMethodologyRevision4Report_110719.pdf
B16: ='Capital Costs'!B19 -> 0 | C16: ='Capital Costs'!D19 -> 0 | E16: 0 | F16: ='Capital Costs'!E19 -> 0 | G16: 0 | H16: 0 | J16: https://netl.doe.gov/projects/files/QualityGuidelinesforEnergySystemStudiesCapitalCostScalingMethodologyRevision4Report_110719.pdf
B17: ='Capital Costs'!B20 -> 0 | C17: ='Capital Costs'!D20 -> 0 | E17: 0 | F17: ='Capital Costs'!E20 -> 0 | G17: 0 | H17: 0 | J17: https://netl.doe.gov/projects/files/QualityGuidelinesforEnergySystemStudiesCapitalCostScalingMethodologyRevision4Report_110719.pdf
B18: ='Capital Costs'!B21 -> 0 | C18: ='Capital Costs'!D21 -> 0 | E18: 0 | F18: ='Capital Costs'!E21 -> 0 | G18: 0 | H18: 0 | J18: https://netl.doe.gov/projects/files/QualityGuidelinesforEnergySystemStudiesCapitalCostScalingMethodologyRevision4Report_110719.pdf
B19: ='Capital Costs'!B22 -> 0 | C19: ='Capital Costs'!D22 -> 0 | E19: 0 | F19: ='Capital Costs'!E22 -> 0 | G19: 0 | H19: 0 | J19: https://netl.doe.gov/projects/files/QualityGuidelinesforEnergySystemStudiesCapitalCostScalingMethodologyRevision4Report_110719.pdf
B20: ='Capital Costs'!B23 -> 0 | C20: ='Capital Costs'!D23 -> 0 | E20: 0 | F20: ='Capital Costs'!E23 -> 0 | G20: 0 | H20: 0 | J20: https://netl.doe.gov/projects/files/QualityGuidelinesforEnergySystemStudiesCapitalCostScalingMethodologyRevision4Report_110719.pdf
B21: ='Capital Costs'!B24 -> 0 | C21: ='Capital Costs'!D24 -> 0 | E21: 0 | F21: ='Capital Costs'!E24 -> 0 | G21: 0 | H21: 0 | J21: https://netl.doe.gov/projects/files/QualityGuidelinesforEnergySystemStudiesCapitalCostScalingMethodologyRevision4Report_110719.pdf
B22: ='Capital Costs'!B25 -> 0 | C22: ='Capital Costs'!D25 -> 0 | E22: 0 | F22: ='Capital Costs'!E25 -> 0 | G22: 0 | H22: 0 | J22: https://netl.doe.gov/projects/files/QualityGuidelinesforEnergySystemStudiesCapitalCostScalingMethodologyRevision4Report_110719.pdf
B23: ='Capital Costs'!B26 -> 0 | C23: ='Capital Costs'!D26 -> 0 | E23: 0 | F23: ='Capital Costs'!E26 -> 0 | G23: 0 | H23: 0
B24: ='Capital Costs'!B27 -> 0 | C24: ='Capital Costs'!D27 -> 0 | E24: 0 | F24: ='Capital Costs'!E27 -> 0 | G24: 0 | H24: =C24*F24 -> 0
B25: ='Capital Costs'!B28 -> 0 | C25: ='Capital Costs'!D28 -> 0 | E25: 0 | F25: ='Capital Costs'!E28 -> 0 | G25: 0 | H25: 0
B26: ='Capital Costs'!B29 -> 0 | C26: ='Capital Costs'!D29 -> 0 | E26: 0 | F26: ='Capital Costs'!E29 -> 0 | G26: 0 | H26: 0
B27: ='Capital Costs'!B30 -> 0 | C27: ='Capital Costs'!D30 -> 0 | E27: 0 | F27: ='Capital Costs'!E30 -> 0 | G27: 0 | H27: 0
B28: ='Capital Costs'!B31 -> 0 | C28: ='Capital Costs'!D31 -> 0 | E28: 0 | F28: ='Capital Costs'!E31 -> 0 | G28: 0 | H28: 0
B29: ='Capital Costs'!B32 -> 0 | C29: ='Capital Costs'!D32 -> 0 | E29: 0 | F29: ='Capital Costs'!E32 -> 0 | G29: 0 | H29: 0
B30: ='Capital Costs'!B33 -> 0 | C30: ='Capital Costs'!D33 -> 0 | E30: 0 | F30: ='Capital Costs'!E33 -> 0 | G30: 0 | H30: 0
B31: ='Capital Costs'!B34 -> 0 | C31: ='Capital Costs'!D34 -> 0 | E31: 0 | F31: ='Capital Costs'!E34 -> 0 | G31: 0 | H31: 0
B32: ='Capital Costs'!B35 -> 0 | C32: ='Capital Costs'!D35 -> 0 | E32: 0 | F32: ='Capital Costs'!E35 -> 0 | G32: 0 | H32: 0
B33: ='Capital Costs'!B36 -> 0 | C33: ='Capital Costs'!D36 -> 0 | E33: 0 | F33: ='Capital Costs'!E36 -> 0 | G33: 0 | H33: 0
E34: 0 | G34: 0 | H34: 0
B35: TOTALS (including scaling) | C35: =SUM(C13:C34) -> 2082041.325 | E35: =SUM(E13:E34) -> 2082041.325 | G35: =SUM(G13:G34) -> 2280406.284 | H35: =SUM(H13:H34) -> 2280406.284

Sheet Carbon Sequestration
B2: To Use Carbon Sequestration Click 'Link to Detail Sheet' in the Input Sheet Capital Cost Section
B4: Carbon Sequestration Calculation Information
B5: Costs for carbon (CO₂) transport to the sequestration site and injection are calculated in this section. Capital and operating costs for carbon capture and compression to 2,200psia are assumed to be included in the capital and operating costs for the production facility and are not included here. For H2A analysis of hydrogen production processes, it is assumed that only carbon contained in the process feedstock can be captured. CO₂ transport and sequestration is based on NETL's 2018 CO₂ transport model. CO₂ injection into geologic formation is based on NETL's 2017 CO₂ OnShore Saline Storage Cost Model.
B7: Table of Contents
B8: Color Key
B11: Use default values (checkboxes)
B15: Carbon Sequestration Input Values
B16: Summary of Output Values
B17: Carbon Sequestration Calculations
B20: Carbon Sequestration Information | H20: Summary of Output Values (CO2 Seq. costs are reported on Results Tab as part of total H2 Production cost)
B21: CO₂ Produced from Feedstock (metric tonnes CO₂/year) | C21: =Feed_CO2_MTpY -> 0 | D21: CO2 emissions are based on the carbon content of the feed. See the Physical Properties Table for specific values | H21: Capital Costs
B22: CO₂ Produced from Feedstock (kg CO₂/kg H2) | C22: =Feed_CO2_kgpkgH2 -> 0 | H22: CO₂ Pipeline | J22: =IF(CO2_Capture_Efficiency,SUM(D36,D37,D38),0) -> 0
B23: CO₂ Mass Flowrate (metric tonnes/day) | C23: =Feed_CO2_MTpY/365*CO2_Capture_Efficiency -> 0 | H23: CO₂ Pumps | J23: =IF(CO2_Capture_Efficiency,D42,0) -> 0
B24: CO₂ Mass Flowrate (million metric tonnes/year) | C24: =CO2_flowrate*365/1000000 -> 0 | H24: CO₂ Other equipment | J24: =IF(CO2_Capture_Efficiency,SUM(D39,D41),0) -> 0
B25: Electricity Cost ($/kWh) | C25: =HLOOKUP(startup_year,INDIRECT(TMP_PriceTable),MATCH("Industrial Electricity",INDIRECT(Energy_Feed_List),0),FALSE)*VLOOKUP("kWh",CC_feedconversion,2,FALSE) -> 0.06998061126 | D25: Price for industrial electricity in the startup year | H25: CO₂ Surge tanks | J25: =+D40 -> 0
B26: Carbon Sequestration Electricity Usage (kWh/kg H₂) | C26: =IF(CO2_Capture_Efficiency,IF(C21=0,0,C58),0) -> 0 | H26: CO₂ Injection | J26: =+D43 -> 0
H27: CO₂ Post-Injection | J27: =+D44 -> 0
B28: Carbon Sequestration Input Values | H28: CapEx without contingency | J28: =IF(CO2_Capture_Efficiency,SUM(J22:J27),0) -> 0 | K28: ="Total ("&ref_year&"$)" -> Total (2016$)
B29: Process Design Parameters
B30: Carbon Capture Efficiency (%) | C30: 0 | E30: Set to 0 to turn off CCS | H30: Electrical Costs (annual cost)
B31: Pipeline Length (miles) | C31: 100 | H31: CO₂ Booster pumps | J31: =IF(CO2_Capture_Efficiency,CO2_flowrate_GTpY*1000000*C57*feedstockIndustrial_Electricity_Price,0) -> 0
B32: CO₂ capture credit ($/metric ton CO₂ captured) | C32: 0 | J32: =IF(CO2_Capture_Efficiency,SUM(J31:J31),0) -> 0 | K32: ="Total ("&ref_year&"$)" -> Total (2016$)
B33: Approx Capital Charge Rate | C33: =+'Cash Flow Analysis'!E22 -> 0.1018522088
H34: O&M (annual cost)
B35: Major cost depreciable capital components | C35: ="Cost in $"&2011&" Dollars" -> Cost in $2011 Dollars | D35: ="Cost in $"&ref_year&" Dollars" -> Cost in $2016 Dollars | H35: CO₂ Capture Credit | J35: =-Feed_CO2_MTpY*CO2_Capture_Efficiency*CO2_credit -> 0
B36: Material costs | C36: =IF(CO2_Capture_Efficiency>0,AB73*C54,0) -> 0 | D36: =+C36*$C$51*$C$52 -> 0 | H36: CO₂ Pipeline & pumps | J36: =IF(CO2_Capture_Efficiency,C64*$C$51*$C$52,0) -> 0
B37: Labor expense | C37: =IF(CO2_Capture_Efficiency>0,AB97*C54,0) -> 0 | D37: 0 | H37: CO₂ Injection | J37: =IF(CO2_Capture_Efficiency>0,J26*E270,0) -> 0
B38: Right of way | C38: =IF(CO2_Capture_Efficiency>0,AB121*C54,0) -> 0 | D38: 0 | H38: CO₂ Post-Injection | J38: =IF(CO2_Capture_Efficiency>0,F270*J27,0) -> 0
B39: Miscellaneous | C39: =IF(CO2_Capture_Efficiency>0,AB193*C54*C55,0) -> 0 | D39: 0 | J39: =IF(CO2_Capture_Efficiency>0,SUM(J35:J38),0) -> 0 | K39: ="Total ("&ref_year&"$)" -> Total (2016$)
B40: Surge tank | C40: =IF(CO2_Capture_Efficiency>0,1244743.65893146,0) -> 0 | D40: 0
B41: Pipeline controls | C41: =IF(CO2_Capture_Efficiency>0,111907.191316147,0) -> 0 | D41: 0 | H41: Property tax and insurance | J41: =Det_CO2_seq*tax_ins_rate -> 0 | K41: =+K39 -> Total (2016$)
B42: Pump | C42: =IF(CO2_Capture_Efficiency>0,AB145*C54*C55,0) -> 0 | D42: 0
B43: Injection | C43: =IF(CO2_Capture_Efficiency>0,C275,0) -> 0 | D43: 0 | H43: Carbon Sequestration Energy Charge ($/tonne CO₂) | K43: =IF(CO2_Capture_Efficiency,ROUND(CO2_eCostpY/(Feed_CO2_MTpY*CO2_Capture_Efficiency),1),0) -> 0
B44: Post-Injection (NPV) | C44: =IF(CO2_Capture_Efficiency>0,D275,0) -> 0 | D44: 0 | H44: Carbon Sequestration O&M Charge ($/tonne CO₂) | K44: =IF(CO2_Capture_Efficiency,ROUND((Det_CO2_OandMcost+ CCS_tax_insurance)/(Feed_CO2_MTpY*CO2_Capture_Efficiency),1),0) -> 0
B45: Contingency | C45: =+SUM(C36:C42)*C56 -> 0 | D45: 0 | E45: Contingency is 15% of transport costs | H45: Approx Carbon Seq. Cap. Charge ($/tonne CO₂) | K45: =IF(CO2_Capture_Efficiency,ROUND((Det_CO2_seq)*CO2_cap_charge_rate/(Feed_CO2_MTpY*CO2_Capture_Efficiency),1),0) -> 0
B46: Total | D46: =+SUM(D36:D45) -> 0 | H46: Total transportation and storage cost (w/o capture) | K46: =SUM(K43:K45) -> 0
B47: Total without contingency | D47: =+D46-D45 -> 0
B48: Total uninstalled cost | D48: =IF(CO2_Capture_Efficiency,D46-D45-D37,0) -> 0
B50: CO₂ Transport cost estimate dollar basis | C50: 2011
B51: CEPCI inflator | C51: =VLOOKUP(C50,Tbl_PlantCostIndexes,2,FALSE)/VLOOKUP(BasisYear,Tbl_PlantCostIndexes,2,FALSE) -> 1.081225771
B52: CPI inflator | C52: =VLOOKUP(ref_year,DeflatorTable,2,FALSE)/VLOOKUP(C50,DeflatorTable,2,FALSE) -> 1.077176781
B54: Transport distance to sequestration site (km) | C54: =+CO2_PipeLength*1.609344 -> 160.9344
B55: Transport nameplate capacity (million metric tonnes/year) | C55: =+C21*CO2_Capture_Efficiency/1000000 -> 0
B56: Contingency factor | C56: 0.15
B57: Electricity use for booster pump (kWh/ metric tonne CO₂ sequestered) | C57: =+AB169*C54 -> 
B58: Electricity use for booster pump (kWh/kg H₂) | C58: =+C57*CO2_flowrate_GTpY*1000000/output_kgyear -> 
B59: Electricity use (kWh/y) | C59: =+C57*CO2_flowrate_GTpY*1000000 -> 
B61: % of capital sppent in 1st year | C61: 0.12
B62: % of capital sppent in 2nd year | C62: 0.38
B63: % of capital sppent in 3rd year | C63: 0.5
B64: Pipeline & pumps O&M (2011$/year) | C64: =+AB217*C54 -> 
B65: Operational life (years) | C65: 30
B69: Below are lookup tables derived from NETL's CO₂ transport and storage cost models
B71: Materials cost (2011$/km) | C71: Transport distance (km) to injection site →
B72: Capacity (million metric tonnes/year) ↓ | C72: 50 | D72: 57 | E72: 66 | F72: 75 | G72: 86 | H72: 99 | I72: 113 | J72: 130 | K72: 149 | L72: 170 | M72: 195 | N72: 224 | O72: 256 | P72: 294 | Q72: 336 | R72: 386 | S72: 442 | T72: 506 | U72: 580 | V72: 665 | W72: 762 | X72: 873 | Y72: 1000 | AA72: ="Values at "&ROUND(C54,0)&" km distance" -> Values at 161 km distance | AB72: ="Value at "&ROUND($C$55,2)&" million metric tonnes/y" -> Value at 0 million metric tonnes/y
B73: 0.5 | C73: 55128.08599 | D73: 54955.16806 | E73: 54786.74151 | F73: 54658.73733 | G73: 54538.67139 | H73: 54431.17434 | I73: 54343.0692 | J73: 54261.59615 | K73: 54192.53866 | L73: 54134.17118 | M73: 54081.07744 | N73: 54034.33599 | O73: 53995.04899 | P73: 53959.50361 | Q73: 53929.57066 | R73: 53902.42938 | S73: 53879.32123 | T73: 53859.17499 | U73: 53841.42328 | V73: 53825.90813 | W73: 53812.43148 | X73: 53800.68411 | Y73: 53790.44231 | AA73: =FORECAST($C$54,OFFSET(G73:Y73,0,MATCH($C$54,$G$72:$Y$72,1)-1,1,2), OFFSET($G$72:$Y$72,0,MATCH($C$54,$G$72:$Y$72,1)-1,1,2)) -> 54159.36814 | AB73: =FORECAST($C$55,OFFSET(AA73:AA95,MATCH($C$55,$B$73:$B$95,1)-1,0,2), OFFSET($B$73:$B$95,MATCH($C$55,$B$73:$B$95,1)-1,0,2)) -> 
B74: 0.57 | C74: 55128.08599 | D74: 54955.16806 | E74: 54786.74151 | F74: 54658.73733 | G74: 54538.67139 | H74: 54431.17434 | I74: 54343.0692 | J74: 54261.59615 | K74: 54192.53866 | L74: 54134.17118 | M74: 54081.07744 | N74: 54034.33599 | O74: 53995.04899 | P74: 53959.50361 | Q74: 53929.57066 | R74: 53902.42938 | S74: 53879.32123 | T74: 53859.17499 | U74: 53841.42328 | V74: 53825.90813 | W74: 53812.43148 | X74: 53800.68411 | Y74: 53790.44231 | AA74: 54159.36814
B75: 0.65 | C75: 55128.08599 | D75: 54955.16806 | E75: 54786.74151 | F75: 54658.73733 | G75: 54538.67139 | H75: 54431.17434 | I75: 54343.0692 | J75: 54261.59615 | K75: 54192.53866 | L75: 54134.17118 | M75: 54081.07744 | N75: 54034.33599 | O75: 53995.04899 | P75: 53959.50361 | Q75: 53929.57066 | R75: 53902.42938 | S75: 53879.32123 | T75: 53859.17499 | U75: 53841.42328 | V75: 53825.90813 | W75: 53812.43148 | X75: 53800.68411 | Y75: 53790.44231 | AA75: 54159.36814
B76: 0.74 | C76: 55128.08599 | D76: 54955.16806 | E76: 54786.74151 | F76: 54658.73733 | G76: 54538.67139 | H76: 54431.17434 | I76: 54343.0692 | J76: 54261.59615 | K76: 54192.53866 | L76: 54134.17118 | M76: 54081.07744 | N76: 54034.33599 | O76: 53995.04899 | P76: 53959.50361 | Q76: 53929.57066 | R76: 53902.42938 | S76: 53879.32123 | T76: 53859.17499 | U76: 53841.42328 | V76: 53825.90813 | W76: 53812.43148 | X76: 53800.68411 | Y76: 53790.44231 | AA76: 54159.36814
B77: 0.85 | C77: 55128.08599 | D77: 54955.16806 | E77: 68070.51501 | F77: 67942.51083 | G77: 54538.67139 | H77: 54431.17434 | I77: 54343.0692 | J77: 67545.36966 | K77: 54192.53866 | L77: 54134.17118 | M77: 67364.85094 | N77: 54034.33599 | O77: 53995.04899 | P77: 67243.27712 | Q77: 53929.57066 | R77: 53902.42938 | S77: 67163.09473 | T77: 67142.94849 | U77: 67125.19679 | V77: 53825.90813 | W77: 53812.43148 | X77: 67084.45761 | Y77: 67074.21581 | AA77: 54159.36814
B78: 0.96 | C78: 68411.85949 | D78: 68238.94156 | E78: 68070.51501 | F78: 67942.51083 | G78: 54538.67139 | H78: 67714.94785 | I78: 67626.84271 | J78: 67545.36966 | K78: 67476.31216 | L78: 67417.94468 | M78: 67364.85094 | N78: 67318.10949 | O78: 67278.82249 | P78: 67243.27712 | Q78: 67213.34416 | R78: 67186.20289 | S78: 67163.09473 | T78: 67142.94849 | U78: 67125.19679 | V78: 67109.68163 | W78: 67096.20498 | X78: 67084.45761 | Y78: 67074.21581 | AA78: 67443.14165
B79: 1.1 | C79: 68411.85949 | D79: 68238.94156 | E79: 68070.51501 | F79: 67942.51083 | G79: 67822.4449 | H79: 67714.94785 | I79: 67626.84271 | J79: 67545.36966 | K79: 67476.31216 | L79: 67417.94468 | M79: 67364.85094 | N79: 67318.10949 | O79: 67278.82249 | P79: 67243.27712 | Q79: 67213.34416 | R79: 67186.20289 | S79: 67163.09473 | T79: 67142.94849 | U79: 67125.19679 | V79: 67109.68163 | W79: 67096.20498 | X79: 67084.45761 | Y79: 67074.21581 | AA79: 67443.14165
B80: 1.25 | C80: 68411.85949 | D80: 68238.94156 | E80: 68070.51501 | F80: 67942.51083 | G80: 67822.4449 | H80: 67714.94785 | I80: 67626.84271 | J80: 67545.36966 | K80: 67476.31216 | L80: 67417.94468 | M80: 67364.85094 | N80: 67318.10949 | O80: 67278.82249 | P80: 67243.27712 | Q80: 67213.34416 | R80: 67186.20289 | S80: 67163.09473 | T80: 67142.94849 | U80: 67125.19679 | V80: 67109.68163 | W80: 67096.20498 | X80: 67084.45761 | Y80: 67074.21581 | AA80: 67443.14165
B81: 1.43 | C81: 68411.85949 | D81: 68238.94156 | E81: 68070.51501 | F81: 67942.51083 | G81: 67822.4449 | H81: 67714.94785 | I81: 67626.84271 | J81: 67545.36966 | K81: 67476.31216 | L81: 67417.94468 | M81: 67364.85094 | N81: 67318.10949 | O81: 67278.82249 | P81: 67243.27712 | Q81: 67213.34416 | R81: 67186.20289 | S81: 67163.09473 | T81: 67142.94849 | U81: 67125.19679 | V81: 67109.68163 | W81: 67096.20498 | X81: 67084.45761 | Y81: 67074.21581 | AA81: 67443.14165
B82: 1.63 | C82: 68411.85949 | D82: 68238.94156 | E82: 68070.51501 | F82: 67942.51083 | G82: 67822.4449 | H82: 67714.94785 | I82: 67626.84271 | J82: 67545.36966 | K82: 67476.31216 | L82: 67417.94468 | M82: 67364.85094 | N82: 67318.10949 | O82: 67278.82249 | P82: 67243.27712 | Q82: 67213.34416 | R82: 67186.20289 | S82: 67163.09473 | T82: 67142.94849 | U82: 67125.19679 | V82: 67109.68163 | W82: 67096.20498 | X82: 67084.45761 | Y82: 67074.21581 | AA82: 67443.14165
B83: 1.86 | C83: 68411.85949 | D83: 104720.5732 | E83: 68070.51501 | F83: 67942.51083 | G83: 67822.4449 | H83: 67714.94785 | I83: 104108.4743 | J83: 104027.0013 | K83: 67476.31216 | L83: 103899.5763 | M83: 103846.4826 | N83: 103799.7411 | O83: 103760.4541 | P83: 103724.9088 | Q83: 103694.9758 | R83: 103667.8345 | S83: 103644.7264 | T83: 103624.5801 | U83: 103606.8284 | V83: 103591.3133 | W83: 103577.8366 | X83: 103566.0893 | Y83: 103555.8475 | AA83: 88175.82663
B84: 2.12 | C84: 104893.4911 | D84: 104720.5732 | E84: 104552.1466 | F84: 67942.51083 | G84: 104304.0765 | H84: 104196.5795 | I84: 104108.4743 | J84: 104027.0013 | K84: 103957.9438 | L84: 103899.5763 | M84: 103846.4826 | N84: 103799.7411 | O84: 103760.4541 | P84: 103724.9088 | Q84: 103694.9758 | R84: 103667.8345 | S84: 103644.7264 | T84: 103624.5801 | U84: 103606.8284 | V84: 103591.3133 | W84: 103577.8366 | X84: 103566.0893 | Y84: 103555.8475 | AA84: 103924.7733
B85: 2.42 | C85: 104893.4911 | D85: 104720.5732 | E85: 104552.1466 | F85: 104424.1425 | G85: 104304.0765 | H85: 104196.5795 | I85: 104108.4743 | J85: 104027.0013 | K85: 103957.9438 | L85: 103899.5763 | M85: 103846.4826 | N85: 103799.7411 | O85: 103760.4541 | P85: 103724.9088 | Q85: 103694.9758 | R85: 103667.8345 | S85: 103644.7264 | T85: 103624.5801 | U85: 103606.8284 | V85: 103591.3133 | W85: 103577.8366 | X85: 103566.0893 | Y85: 103555.8475 | AA85: 103924.7733
B86: 2.76 | C86: 104893.4911 | D86: 104720.5732 | E86: 104552.1466 | F86: 104424.1425 | G86: 104304.0765 | H86: 104196.5795 | I86: 104108.4743 | J86: 104027.0013 | K86: 103957.9438 | L86: 103899.5763 | M86: 103846.4826 | N86: 103799.7411 | O86: 103760.4541 | P86: 103724.9088 | Q86: 103694.9758 | R86: 103667.8345 | S86: 103644.7264 | T86: 103624.5801 | U86: 103606.8284 | V86: 103591.3133 | W86: 103577.8366 | X86: 103566.0893 | Y86: 103555.8475 | AA86: 103924.7733
B87: 3.15 | C87: 104893.4911 | D87: 104720.5732 | E87: 104552.1466 | F87: 104424.1425 | G87: 104304.0765 | H87: 104196.5795 | I87: 104108.4743 | J87: 104027.0013 | K87: 103957.9438 | L87: 103899.5763 | M87: 103846.4826 | N87: 103799.7411 | O87: 103760.4541 | P87: 103724.9088 | Q87: 103694.9758 | R87: 103667.8345 | S87: 103644.7264 | T87: 103624.5801 | U87: 103606.8284 | V87: 103591.3133 | W87: 103577.8366 | X87: 103566.0893 | Y87: 103555.8475 | AA87: 103924.7733
B88: 3.59 | C88: 104893.4911 | D88: 104720.5732 | E88: 104552.1466 | F88: 104424.1425 | G88: 104304.0765 | H88: 104196.5795 | I88: 104108.4743 | J88: 104027.0013 | K88: 103957.9438 | L88: 103899.5763 | M88: 103846.4826 | N88: 103799.7411 | O88: 103760.4541 | P88: 103724.9088 | Q88: 103694.9758 | R88: 103667.8345 | S88: 103644.7264 | T88: 103624.5801 | U88: 103606.8284 | V88: 103591.3133 | W88: 103577.8366 | X88: 103566.0893 | Y88: 103555.8475 | AA88: 103924.7733
B89: 4.09 | C89: 104893.4911 | D89: 104720.5732 | E89: 104552.1466 | F89: 104424.1425 | G89: 104304.0765 | H89: 104196.5795 | I89: 104108.4743 | J89: 104027.0013 | K89: 103957.9438 | L89: 103899.5763 | M89: 103846.4826 | N89: 103799.7411 | O89: 103760.4541 | P89: 103724.9088 | Q89: 103694.9758 | R89: 103667.8345 | S89: 103644.7264 | T89: 103624.5801 | U89: 103606.8284 | V89: 103591.3133 | W89: 103577.8366 | X89: 103566.0893 | Y89: 103555.8475 | AA89: 103924.7733
B90: 4.67 | C90: 104893.4911 | D90: 104720.5732 | E90: 104552.1466 | F90: 172619.5 | G90: 172485.0262 | H90: 104196.5795 | I90: 104108.4743 | J90: 104027.0013 | K90: 172097.3575 | L90: 172031.986 | M90: 103846.4826 | N90: 171920.1705 | O90: 103760.4541 | P90: 103724.9088 | Q90: 103694.9758 | R90: 103667.8345 | S90: 171746.554 | T90: 103624.5801 | U90: 103606.8284 | V90: 103591.3133 | W90: 103577.8366 | X90: 103566.0893 | Y90: 103555.8475 | AA90: 172060.2066
B91: 5.32 | C91: 104893.4911 | D91: 172951.5025 | E91: 172762.8647 | F91: 172619.5 | G91: 172485.0262 | H91: 172364.6295 | I91: 172265.9517 | J91: 172174.7019 | K91: 172097.3575 | L91: 172031.986 | M91: 171972.521 | N91: 171920.1705 | O91: 171876.1691 | P91: 171836.3583 | Q91: 171802.8334 | R91: 171772.4351 | S91: 171746.554 | T91: 171723.9902 | U91: 171704.1083 | V91: 171686.7313 | W91: 171671.6375 | X91: 171658.4804 | Y91: 171647.0096 | AA91: 172060.2066
B92: 6.07 | C92: 173145.1705 | D92: 172951.5025 | E92: 172762.8647 | F92: 172619.5 | G92: 172485.0262 | H92: 172364.6295 | I92: 172265.9517 | J92: 172174.7019 | K92: 172097.3575 | L92: 172031.986 | M92: 171972.521 | N92: 171920.1705 | O92: 171876.1691 | P92: 171836.3583 | Q92: 171802.8334 | R92: 171772.4351 | S92: 171746.554 | T92: 171723.9902 | U92: 171704.1083 | V92: 171686.7313 | W92: 171671.6375 | X92: 171658.4804 | Y92: 171647.0096 | AA92: 172060.2066
B93: 6.92 | C93: 173145.1705 | D93: 172951.5025 | E93: 172762.8647 | F93: 172619.5 | G93: 172485.0262 | H93: 172364.6295 | I93: 255739.1298 | J93: 172174.7019 | K93: 172097.3575 | L93: 172031.986 | M93: 171972.521 | N93: 255374.8246 | O93: 171876.1691 | P93: 171836.3583 | Q93: 255251.2016 | R93: 171772.4351 | S93: 171746.554 | T93: 171723.9902 | U93: 171704.1083 | V93: 171686.7313 | W93: 171671.6375 | X93: 171658.4804 | Y93: 171647.0096 | AA93: 172060.2066
B94: 7.89 | C94: 173145.1705 | D94: 172951.5025 | E94: 172762.8647 | F94: 172619.5 | G94: 255969.9404 | H94: 255843.0939 | I94: 255739.1298 | J94: 255642.9916 | K94: 172097.3575 | L94: 255492.6302 | M94: 255429.9796 | N94: 255374.8246 | O94: 255328.466 | P94: 171836.3583 | Q94: 255251.2016 | R94: 255219.1749 | S94: 255191.9072 | T94: 255168.1347 | U94: 171704.1083 | V94: 255128.8798 | W94: 255112.9773 | X94: 255099.1154 | Y94: 255087.0301 | AA94: 219491.2881
B95: 9 | C95: 173145.1705 | D95: 172951.5025 | E95: 256262.6632 | F95: 256111.6182 | G95: 255969.9404 | H95: 255843.0939 | I95: 255739.1298 | J95: 255642.9916 | K95: 255561.5038 | L95: 255492.6302 | M95: 255429.9796 | N95: 255374.8246 | O95: 255328.466 | P95: 255286.5224 | Q95: 255251.2016 | R95: 255219.1749 | S95: 255191.9072 | T95: 255168.1347 | U95: 255147.1877 | V95: 255128.8798 | W95: 255112.9773 | X95: 255099.1154 | Y95: 255087.0301 | AA95: 255522.3626
B97: Installation labor cost (2011$/km) | C97: 250926.2978 | D97: 250012.303 | E97: 249122.0484 | F97: 248445.4549 | G97: 247810.8206 | H97: 247242.622 | I97: 246776.9234 | J97: 246346.2801 | K97: 245981.2619 | L97: 245672.7481 | M97: 245392.1098 | N97: 245145.0478 | O97: 244937.3879 | P97: 244749.5052 | Q97: 244591.2882 | R97: 244447.8272 | S97: 244325.6841 | T97: 244219.1968 | U97: 244125.3664 | V97: 244043.3577 | W97: 243972.124 | X97: 243910.0307 | Y97: 243855.8955 | AA97: =FORECAST($C$54,OFFSET(G97:Y97,0,MATCH($C$54,$G$72:$Y$72,1)-1,1,2), OFFSET($G$72:$Y$72,0,MATCH($C$54,$G$72:$Y$72,1)-1,1,2)) -> 245805.932 | AB97: =FORECAST($C$55,OFFSET(AA97:AA119,MATCH($C$55,$B$73:$B$95,1)-1,0,2), OFFSET($B$73:$B$95,MATCH($C$55,$B$73:$B$95,1)-1,0,2)) -> 
C98: 250926.2978 | D98: 250012.303 | E98: 249122.0484 | F98: 248445.4549 | G98: 247810.8206 | H98: 247242.622 | I98: 246776.9234 | J98: 246346.2801 | K98: 245981.2619 | L98: 245672.7481 | M98: 245392.1098 | N98: 245145.0478 | O98: 244937.3879 | P98: 244749.5052 | Q98: 244591.2882 | R98: 244447.8272 | S98: 244325.6841 | T98: 244219.1968 | U98: 244125.3664 | V98: 244043.3577 | W98: 243972.124 | X98: 243910.0307 | Y98: 243855.8955 | AA98: =FORECAST($C$54,OFFSET(G98:Y98,0,MATCH($C$54,$G$72:$Y$72,1)-1,1,2), OFFSET($G$72:$Y$72,0,MATCH($C$54,$G$72:$Y$72,1)-1,1,2)) -> 245805.932
C99: 250926.2978 | D99: 250012.303 | E99: 249122.0484 | F99: 248445.4549 | G99: 247810.8206 | H99: 247242.622 | I99: 246776.9234 | J99: 246346.2801 | K99: 245981.2619 | L99: 245672.7481 | M99: 245392.1098 | N99: 245145.0478 | O99: 244937.3879 | P99: 244749.5052 | Q99: 244591.2882 | R99: 244447.8272 | S99: 244325.6841 | T99: 244219.1968 | U99: 244125.3664 | V99: 244043.3577 | W99: 243972.124 | X99: 243910.0307 | Y99: 243855.8955 | AA99: =FORECAST($C$54,OFFSET(G99:Y99,0,MATCH($C$54,$G$72:$Y$72,1)-1,1,2), OFFSET($G$72:$Y$72,0,MATCH($C$54,$G$72:$Y$72,1)-1,1,2)) -> 245805.932
C100: 250926.2978 | D100: 250012.303 | E100: 249122.0484 | F100: 248445.4549 | G100: 247810.8206 | H100: 247242.622 | I100: 246776.9234 | J100: 246346.2801 | K100: 245981.2619 | L100: 245672.7481 | M100: 245392.1098 | N100: 245145.0478 | O100: 244937.3879 | P100: 244749.5052 | Q100: 244591.2882 | R100: 244447.8272 | S100: 244325.6841 | T100: 244219.1968 | U100: 244125.3664 | V100: 244043.3577 | W100: 243972.124 | X100: 243910.0307 | Y100: 243855.8955 | AA100: =FORECAST($C$54,OFFSET(G100:Y100,0,MATCH($C$54,$G$72:$Y$72,1)-1,1,2), OFFSET($G$72:$Y$72,0,MATCH($C$54,$G$72:$Y$72,1)-1,1,2)) -> 245805.932
C101: 250926.2978 | D101: 250012.303 | E101: 266310.4614 | F101: 265633.8679 | G101: 247810.8206 | H101: 247242.622 | I101: 246776.9234 | J101: 263534.6931 | K101: 245981.2619 | L101: 245672.7481 | M101: 262580.5227 | N101: 245145.0478 | O101: 244937.3879 | P101: 261937.9182 | Q101: 244591.2882 | R101: 244447.8272 | S101: 261514.0971 | T101: 261407.6098 | U101: 261313.7793 | V101: 244043.3577 | W101: 243972.124 | X101: 261098.4437 | Y101: 261044.3085 | AA101: =FORECAST($C$54,OFFSET(G101:Y101,0,MATCH($C$54,$G$72:$Y$72,1)-1,1,2), OFFSET($G$72:$Y$72,0,MATCH($C$54,$G$72:$Y$72,1)-1,1,2)) -> 245805.932
C102: 268114.7108 | D102: 267200.716 | E102: 266310.4614 | F102: 265633.8679 | G102: 247810.8206 | H102: 264431.0349 | I102: 263965.3364 | J102: 263534.6931 | K102: 263169.6749 | L102: 262861.1611 | M102: 262580.5227 | N102: 262333.4608 | O102: 262125.8009 | P102: 261937.9182 | Q102: 261779.7012 | R102: 261636.2402 | S102: 261514.0971 | T102: 261407.6098 | U102: 261313.7793 | V102: 261231.7707 | W102: 261160.5369 | X102: 261098.4437 | Y102: 261044.3085 | AA102: =FORECAST($C$54,OFFSET(C102:Y102,0,MATCH($C$54,$G$72:$Y$72,1)-1,1,2), OFFSET($G$72:$Y$72,0,MATCH($C$54,$G$72:$Y$72,1)-1,1,2)) -> 257256.1676
C103: 268114.7108 | D103: 267200.716 | E103: 266310.4614 | F103: 265633.8679 | G103: 264999.2336 | H103: 264431.0349 | I103: 263965.3364 | J103: 263534.6931 | K103: 263169.6749 | L103: 262861.1611 | M103: 262580.5227 | N103: 262333.4608 | O103: 262125.8009 | P103: 261937.9182 | Q103: 261779.7012 | R103: 261636.2402 | S103: 261514.0971 | T103: 261407.6098 | U103: 261313.7793 | V103: 261231.7707 | W103: 261160.5369 | X103: 261098.4437 | Y103: 261044.3085 | AA103: 264676.3236
C104: 268114.7108 | D104: 267200.716 | E104: 266310.4614 | F104: 265633.8679 | G104: 264999.2336 | H104: 264431.0349 | I104: 263965.3364 | J104: 263534.6931 | K104: 263169.6749 | L104: 262861.1611 | M104: 262580.5227 | N104: 262333.4608 | O104: 262125.8009 | P104: 261937.9182 | Q104: 261779.7012 | R104: 261636.2402 | S104: 261514.0971 | T104: 261407.6098 | U104: 261313.7793 | V104: 261231.7707 | W104: 261160.5369 | X104: 261098.4437 | Y104: 261044.3085 | AA104: 264676.3236
C105: 268114.7108 | D105: 267200.716 | E105: 266310.4614 | F105: 265633.8679 | G105: 264999.2336 | H105: 264431.0349 | I105: 263965.3364 | J105: 263534.6931 | K105: 263169.6749 | L105: 262861.1611 | M105: 262580.5227 | N105: 262333.4608 | O105: 262125.8009 | P105: 261937.9182 | Q105: 261779.7012 | R105: 261636.2402 | S105: 261514.0971 | T105: 261407.6098 | U105: 261313.7793 | V105: 261231.7707 | W105: 261160.5369 | X105: 261098.4437 | Y105: 261044.3085 | AA105: 264676.3236
C106: 268114.7108 | D106: 267200.716 | E106: 266310.4614 | F106: 265633.8679 | G106: 264999.2336 | H106: 264431.0349 | I106: 263965.3364 | J106: 263534.6931 | K106: 263169.6749 | L106: 262861.1611 | M106: 262580.5227 | N106: 262333.4608 | O106: 262125.8009 | P106: 261937.9182 | Q106: 261779.7012 | R106: 261636.2402 | S106: 261514.0971 | T106: 261407.6098 | U106: 261313.7793 | V106: 261231.7707 | W106: 261160.5369 | X106: 261098.4437 | Y106: 261044.3085 | AA106: 264676.3236
C107: 268114.7108 | D107: 311866.592 | E107: 266310.4614 | F107: 265633.8679 | G107: 264999.2336 | H107: 264431.0349 | I107: 308631.2123 | J107: 308200.5691 | K107: 263169.6749 | L107: 307527.0371 | M107: 307246.3987 | N107: 306999.3368 | O107: 306791.6769 | P107: 306603.7942 | Q107: 306445.5772 | R107: 306302.1162 | S107: 306179.973 | T107: 306073.4858 | U107: 305979.6553 | V107: 305897.6467 | W107: 305826.4129 | X107: 305764.3197 | Y107: 305710.1845 | AA107: 264676.3236
C108: 312780.5868 | D108: 311866.592 | E108: 310976.3374 | F108: 265633.8679 | G108: 309665.1096 | H108: 309096.9109 | I108: 308631.2123 | J108: 308200.5691 | K108: 307835.5509 | L108: 307527.0371 | M108: 307246.3987 | N108: 306999.3368 | O108: 306791.6769 | P108: 306603.7942 | Q108: 306445.5772 | R108: 306302.1162 | S108: 306179.973 | T108: 306073.4858 | U108: 305979.6553 | V108: 305897.6467 | W108: 305826.4129 | X108: 305764.3197 | Y108: 305710.1845 | AA108: 309342.1996
C109: 312780.5868 | D109: 311866.592 | E109: 310976.3374 | F109: 310299.7438 | G109: 309665.1096 | H109: 309096.9109 | I109: 308631.2123 | J109: 308200.5691 | K109: 307835.5509 | L109: 307527.0371 | M109: 307246.3987 | N109: 306999.3368 | O109: 306791.6769 | P109: 306603.7942 | Q109: 306445.5772 | R109: 306302.1162 | S109: 306179.973 | T109: 306073.4858 | U109: 305979.6553 | V109: 305897.6467 | W109: 305826.4129 | X109: 305764.3197 | Y109: 305710.1845 | AA109: 309342.1996
C110: 312780.5868 | D110: 311866.592 | E110: 310976.3374 | F110: 310299.7438 | G110: 309665.1096 | H110: 309096.9109 | I110: 308631.2123 | J110: 308200.5691 | K110: 307835.5509 | L110: 307527.0371 | M110: 307246.3987 | N110: 306999.3368 | O110: 306791.6769 | P110: 306603.7942 | Q110: 306445.5772 | R110: 306302.1162 | S110: 306179.973 | T110: 306073.4858 | U110: 305979.6553 | V110: 305897.6467 | W110: 305826.4129 | X110: 305764.3197 | Y110: 305710.1845 | AA110: 309342.1996
C111: 312780.5868 | D111: 311866.592 | E111: 310976.3374 | F111: 310299.7438 | G111: 309665.1096 | H111: 309096.9109 | I111: 308631.2123 | J111: 308200.5691 | K111: 307835.5509 | L111: 307527.0371 | M111: 307246.3987 | N111: 306999.3368 | O111: 306791.6769 | P111: 306603.7942 | Q111: 306445.5772 | R111: 306302.1162 | S111: 306179.973 | T111: 306073.4858 | U111: 305979.6553 | V111: 305897.6467 | W111: 305826.4129 | X111: 305764.3197 | Y111: 305710.1845 | AA111: 309342.1996
C112: 312780.5868 | D112: 311866.592 | E112: 310976.3374 | F112: 310299.7438 | G112: 309665.1096 | H112: 309096.9109 | I112: 308631.2123 | J112: 308200.5691 | K112: 307835.5509 | L112: 307527.0371 | M112: 307246.3987 | N112: 306999.3368 | O112: 306791.6769 | P112: 306603.7942 | Q112: 306445.5772 | R112: 306302.1162 | S112: 306179.973 | T112: 306073.4858 | U112: 305979.6553 | V112: 305897.6467 | W112: 305826.4129 | X112: 305764.3197 | Y112: 305710.1845 | AA112: 309342.1996
C113: 312780.5868 | D113: 311866.592 | E113: 310976.3374 | F113: 310299.7438 | G113: 309665.1096 | H113: 309096.9109 | I113: 308631.2123 | J113: 308200.5691 | K113: 307835.5509 | L113: 307527.0371 | M113: 307246.3987 | N113: 306999.3368 | O113: 306791.6769 | P113: 306603.7942 | Q113: 306445.5772 | R113: 306302.1162 | S113: 306179.973 | T113: 306073.4858 | U113: 305979.6553 | V113: 305897.6467 | W113: 305826.4129 | X113: 305764.3197 | Y113: 305710.1845 | AA113: 309342.1996
C114: 312780.5868 | D114: 311866.592 | E114: 310976.3374 | F114: 412926.4756 | G114: 412215.6852 | H114: 309096.9109 | I114: 308631.2123 | J114: 308200.5691 | K114: 410166.5794 | L114: 409821.044 | M114: 307246.3987 | N114: 409230.0196 | O114: 306791.6769 | P114: 306603.7942 | Q114: 306445.5772 | R114: 306302.1162 | S114: 408312.3323 | T114: 306073.4858 | U114: 305979.6553 | V114: 305897.6467 | W114: 305826.4129 | X114: 305764.3197 | Y114: 305710.1845 | AA114: 353612.7947
C115: 312780.5868 | D115: 414681.3455 | E115: 413684.2603 | F115: 412926.4756 | G115: 412215.6852 | H115: 411579.3027 | I115: 411057.7203 | J115: 410575.3998 | K115: 410166.5794 | L115: 409821.044 | M115: 409506.729 | N115: 409230.0196 | O115: 408997.4406 | P115: 408787.012 | Q115: 408609.8089 | R115: 408449.1325 | S115: 408312.3323 | T115: 408193.0665 | U115: 408087.9764 | V115: 407996.1267 | W115: 407916.3449 | X115: 407846.8005 | Y115: 407786.169 | AA115: 411854.026
C116: 415705.0196 | D116: 414681.3455 | E116: 413684.2603 | F116: 412926.4756 | G116: 412215.6852 | H116: 411579.3027 | I116: 411057.7203 | J116: 410575.3998 | K116: 410166.5794 | L116: 409821.044 | M116: 409506.729 | N116: 409230.0196 | O116: 408997.4406 | P116: 408787.012 | Q116: 408609.8089 | R116: 408449.1325 | S116: 408312.3323 | T116: 408193.0665 | U116: 408087.9764 | V116: 407996.1267 | W116: 407916.3449 | X116: 407846.8005 | Y116: 407786.169 | AA116: 411854.026
C117: 415705.0196 | D117: 414681.3455 | E117: 413684.2603 | F117: 412926.4756 | G117: 412215.6852 | H117: 411579.3027 | I117: 518160.6139 | J117: 410575.3998 | K117: 410166.5794 | L117: 409821.044 | M117: 409506.729 | N117: 516235.0007 | O117: 408997.4406 | P117: 408787.012 | Q117: 515581.5644 | R117: 408449.1325 | S117: 408312.3323 | T117: 408193.0665 | U117: 408087.9764 | V117: 407996.1267 | W117: 407916.3449 | X117: 407846.8005 | Y117: 407786.169 | AA117: 411854.026
C118: 415705.0196 | D118: 414681.3455 | E118: 413684.2603 | F118: 412926.4756 | G118: 519380.6127 | H118: 518710.1382 | I118: 518160.6139 | J118: 517652.4549 | K118: 410166.5794 | L118: 516857.6871 | M118: 516526.5339 | N118: 516235.0007 | O118: 515989.9621 | P118: 408787.012 | Q118: 515581.5644 | R118: 515412.2804 | S118: 515268.1515 | T118: 515142.4966 | U118: 408087.9764 | V118: 514935.0064 | W118: 514850.9506 | X118: 514777.6806 | Y118: 514713.801 | AA118: 518999.5789
C119: 415705.0196 | D119: 414681.3455 | E119: 520927.8615 | F119: 520129.4811 | G119: 519380.6127 | H119: 518710.1382 | I119: 518160.6139 | J119: 517652.4549 | K119: 517221.7334 | L119: 516857.6871 | M119: 516526.5339 | N119: 516235.0007 | O119: 515989.9621 | P119: 515768.2605 | Q119: 515581.5644 | R119: 515412.2804 | S119: 515268.1515 | T119: 515142.4966 | U119: 515031.7767 | V119: 514935.0064 | W119: 514850.9506 | X119: 514777.6806 | Y119: 514713.801 | AA119: 518999.5789
B121: Right of way (2011$/km) | C121: 27533.43196 | D121: 27407.38517 | E121: 27284.61231 | F121: 27191.30494 | G121: 27103.78408 | H121: 27025.42518 | I121: 26961.20181 | J121: 26901.81285 | K121: 26851.47408 | L121: 26808.92769 | M121: 26770.22553 | N121: 26736.15382 | O121: 26707.51595 | P121: 26681.60551 | Q121: 26659.78618 | R121: 26640.00182 | S121: 26623.15736 | T121: 26608.47196 | U121: 26595.53203 | V121: 26584.22241 | W121: 26574.39874 | X121: 26565.83561 | Y121: 26558.36996 | AA121: =FORECAST($C$54,OFFSET(C121:Y121,0,MATCH($C$54,$G$72:$Y$72,1)-1,1,2), OFFSET($G$72:$Y$72,0,MATCH($C$54,$G$72:$Y$72,1)-1,1,2)) -> 27059.25234 | AB121: =FORECAST($C$55,OFFSET(AA121:AA143,MATCH($C$55,$B$73:$B$95,1)-1,0,2), OFFSET($B$73:$B$95,MATCH($C$55,$B$73:$B$95,1)-1,0,2)) -> 
C122: 27533.43196 | D122: 27407.38517 | E122: 27284.61231 | F122: 27191.30494 | G122: 27103.78408 | H122: 27025.42518 | I122: 26961.20181 | J122: 26901.81285 | K122: 26851.47408 | L122: 26808.92769 | M122: 26770.22553 | N122: 26736.15382 | O122: 26707.51595 | P122: 26681.60551 | Q122: 26659.78618 | R122: 26640.00182 | S122: 26623.15736 | T122: 26608.47196 | U122: 26595.53203 | V122: 26584.22241 | W122: 26574.39874 | X122: 26565.83561 | Y122: 26558.36996 | AA122: 27059.25234
C123: 27533.43196 | D123: 27407.38517 | E123: 27284.61231 | F123: 27191.30494 | G123: 27103.78408 | H123: 27025.42518 | I123: 26961.20181 | J123: 26901.81285 | K123: 26851.47408 | L123: 26808.92769 | M123: 26770.22553 | N123: 26736.15382 | O123: 26707.51595 | P123: 26681.60551 | Q123: 26659.78618 | R123: 26640.00182 | S123: 26623.15736 | T123: 26608.47196 | U123: 26595.53203 | V123: 26584.22241 | W123: 26574.39874 | X123: 26565.83561 | Y123: 26558.36996 | AA123: 27059.25234
C124: 27533.43196 | D124: 27407.38517 | E124: 27284.61231 | F124: 27191.30494 | G124: 27103.78408 | H124: 27025.42518 | I124: 26961.20181 | J124: 26901.81285 | K124: 26851.47408 | L124: 26808.92769 | M124: 26770.22553 | N124: 26736.15382 | O124: 26707.51595 | P124: 26681.60551 | Q124: 26659.78618 | R124: 26640.00182 | S124: 26623.15736 | T124: 26608.47196 | U124: 26595.53203 | V124: 26584.22241 | W124: 26574.39874 | X124: 26565.83561 | Y124: 26558.36996 | AA124: 27059.25234
C125: 27533.43196 | D125: 27407.38517 | E125: 28204.58635 | F125: 28111.27898 | G125: 27103.78408 | H125: 27025.42518 | I125: 26961.20181 | J125: 27821.78689 | K125: 26851.47408 | L125: 26808.92769 | M125: 27690.19957 | N125: 26736.15382 | O125: 26707.51595 | P125: 27601.57954 | Q125: 26659.78618 | R125: 26640.00182 | S125: 27543.1314 | T125: 27528.44599 | U125: 27515.50607 | V125: 26584.22241 | W125: 26574.39874 | X125: 27485.80965 | Y125: 27478.34399 | AA125: 27059.25234
C126: 28453.406 | D126: 28327.3592 | E126: 28204.58635 | F126: 28111.27898 | G126: 27103.78408 | H126: 27945.39921 | I126: 27881.17585 | J126: 27821.78689 | K126: 27771.44812 | L126: 27728.90172 | M126: 27690.19957 | N126: 27656.12786 | O126: 27627.48999 | P126: 27601.57954 | Q126: 27579.76022 | R126: 27559.97586 | S126: 27543.1314 | T126: 27528.44599 | U126: 27515.50607 | V126: 27504.19645 | W126: 27494.37278 | X126: 27485.80965 | Y126: 27478.34399 | AA126: 27582.07797
C127: 28453.406 | D127: 28327.3592 | E127: 28204.58635 | F127: 28111.27898 | G127: 28023.75811 | H127: 27945.39921 | I127: 27881.17585 | J127: 27821.78689 | K127: 27771.44812 | L127: 27728.90172 | M127: 27690.19957 | N127: 27656.12786 | O127: 27627.48999 | P127: 27601.57954 | Q127: 27579.76022 | R127: 27559.97586 | S127: 27543.1314 | T127: 27528.44599 | U127: 27515.50607 | V127: 27504.19645 | W127: 27494.37278 | X127: 27485.80965 | Y127: 27478.34399 | AA127: 27979.22638
C128: 28453.406 | D128: 28327.3592 | E128: 28204.58635 | F128: 28111.27898 | G128: 28023.75811 | H128: 27945.39921 | I128: 27881.17585 | J128: 27821.78689 | K128: 27771.44812 | L128: 27728.90172 | M128: 27690.19957 | N128: 27656.12786 | O128: 27627.48999 | P128: 27601.57954 | Q128: 27579.76022 | R128: 27559.97586 | S128: 27543.1314 | T128: 27528.44599 | U128: 27515.50607 | V128: 27504.19645 | W128: 27494.37278 | X128: 27485.80965 | Y128: 27478.34399 | AA128: 27979.22638
C129: 28453.406 | D129: 28327.3592 | E129: 28204.58635 | F129: 28111.27898 | G129: 28023.75811 | H129: 27945.39921 | I129: 27881.17585 | J129: 27821.78689 | K129: 27771.44812 | L129: 27728.90172 | M129: 27690.19957 | N129: 27656.12786 | O129: 27627.48999 | P129: 27601.57954 | Q129: 27579.76022 | R129: 27559.97586 | S129: 27543.1314 | T129: 27528.44599 | U129: 27515.50607 | V129: 27504.19645 | W129: 27494.37278 | X129: 27485.80965 | Y129: 27478.34399 | AA129: 27979.22638
C130: 28453.406 | D130: 28327.3592 | E130: 28204.58635 | F130: 28111.27898 | G130: 28023.75811 | H130: 27945.39921 | I130: 27881.17585 | J130: 27821.78689 | K130: 27771.44812 | L130: 27728.90172 | M130: 27690.19957 | N130: 27656.12786 | O130: 27627.48999 | P130: 27601.57954 | Q130: 27579.76022 | R130: 27559.97586 | S130: 27543.1314 | T130: 27528.44599 | U130: 27515.50607 | V130: 27504.19645 | W130: 27494.37278 | X130: 27485.80965 | Y130: 27478.34399 | AA130: 27979.22638
C131: 28453.406 | D131: 30167.30728 | E131: 28204.58635 | F131: 28111.27898 | G131: 28023.75811 | H131: 27945.39921 | I131: 29721.12393 | J131: 29661.73496 | K131: 27771.44812 | L131: 29568.8498 | M131: 29530.14765 | N131: 29496.07593 | O131: 29467.43807 | P131: 29441.52762 | Q131: 29419.70829 | R131: 29399.92393 | S131: 29383.07947 | T131: 29368.39407 | U131: 29355.45414 | V131: 29344.14452 | W131: 29334.32085 | X131: 29325.75773 | Y131: 29318.29207 | AA131: 27979.22638
C132: 30293.35408 | D132: 30167.30728 | E132: 30044.53442 | F132: 28111.27898 | G132: 29863.70619 | H132: 29785.34729 | I132: 29721.12393 | J132: 29661.73496 | K132: 29611.39619 | L132: 29568.8498 | M132: 29530.14765 | N132: 29496.07593 | O132: 29467.43807 | P132: 29441.52762 | Q132: 29419.70829 | R132: 29399.92393 | S132: 29383.07947 | T132: 29368.39407 | U132: 29355.45414 | V132: 29344.14452 | W132: 29334.32085 | X132: 29325.75773 | Y132: 29318.29207 | AA132: 29819.17445
C133: 30293.35408 | D133: 30167.30728 | E133: 30044.53442 | F133: 29951.22706 | G133: 29863.70619 | H133: 29785.34729 | I133: 29721.12393 | J133: 29661.73496 | K133: 29611.39619 | L133: 29568.8498 | M133: 29530.14765 | N133: 29496.07593 | O133: 29467.43807 | P133: 29441.52762 | Q133: 29419.70829 | R133: 29399.92393 | S133: 29383.07947 | T133: 29368.39407 | U133: 29355.45414 | V133: 29344.14452 | W133: 29334.32085 | X133: 29325.75773 | Y133: 29318.29207 | AA133: 29819.17445
C134: 30293.35408 | D134: 30167.30728 | E134: 30044.53442 | F134: 29951.22706 | G134: 29863.70619 | H134: 29785.34729 | I134: 29721.12393 | J134: 29661.73496 | K134: 29611.39619 | L134: 29568.8498 | M134: 29530.14765 | N134: 29496.07593 | O134: 29467.43807 | P134: 29441.52762 | Q134: 29419.70829 | R134: 29399.92393 | S134: 29383.07947 | T134: 29368.39407 | U134: 29355.45414 | V134: 29344.14452 | W134: 29334.32085 | X134: 29325.75773 | Y134: 29318.29207 | AA134: 29819.17445
C135: 30293.35408 | D135: 30167.30728 | E135: 30044.53442 | F135: 29951.22706 | G135: 29863.70619 | H135: 29785.34729 | I135: 29721.12393 | J135: 29661.73496 | K135: 29611.39619 | L135: 29568.8498 | M135: 29530.14765 | N135: 29496.07593 | O135: 29467.43807 | P135: 29441.52762 | Q135: 29419.70829 | R135: 29399.92393 | S135: 29383.07947 | T135: 29368.39407 | U135: 29355.45414 | V135: 29344.14452 | W135: 29334.32085 | X135: 29325.75773 | Y135: 29318.29207 | AA135: 29819.17445
C136: 30293.35408 | D136: 30167.30728 | E136: 30044.53442 | F136: 29951.22706 | G136: 29863.70619 | H136: 29785.34729 | I136: 29721.12393 | J136: 29661.73496 | K136: 29611.39619 | L136: 29568.8498 | M136: 29530.14765 | N136: 29496.07593 | O136: 29467.43807 | P136: 29441.52762 | Q136: 29419.70829 | R136: 29399.92393 | S136: 29383.07947 | T136: 29368.39407 | U136: 29355.45414 | V136: 29344.14452 | W136: 29334.32085 | X136: 29325.75773 | Y136: 29318.29207 | AA136: 29819.17445
C137: 30293.35408 | D137: 30167.30728 | E137: 30044.53442 | F137: 29951.22706 | G137: 29863.70619 | H137: 29785.34729 | I137: 29721.12393 | J137: 29661.73496 | K137: 29611.39619 | L137: 29568.8498 | M137: 29530.14765 | N137: 29496.07593 | O137: 29467.43807 | P137: 29441.52762 | Q137: 29419.70829 | R137: 29399.92393 | S137: 29383.07947 | T137: 29368.39407 | U137: 29355.45414 | V137: 29344.14452 | W137: 29334.32085 | X137: 29325.75773 | Y137: 29318.29207 | AA137: 29819.17445
C138: 30293.35408 | D138: 30167.30728 | E138: 30044.53442 | F138: 31791.17513 | G138: 31703.65426 | H138: 29785.34729 | I138: 29721.12393 | J138: 29661.73496 | K138: 31451.34426 | L138: 31408.79787 | M138: 29530.14765 | N138: 31336.02401 | O138: 29467.43807 | P138: 29441.52762 | Q138: 29419.70829 | R138: 29399.92393 | S138: 31223.02754 | T138: 29368.39407 | U138: 29355.45414 | V138: 29344.14452 | W138: 29334.32085 | X138: 29325.75773 | Y138: 29318.29207 | AA138: 30613.47127
C139: 30293.35408 | D139: 32007.25535 | E139: 31884.4825 | F139: 31791.17513 | G139: 31703.65426 | H139: 31625.29536 | I139: 31561.072 | J139: 31501.68304 | K139: 31451.34426 | L139: 31408.79787 | M139: 31370.09572 | N139: 31336.02401 | O139: 31307.38614 | P139: 31281.47569 | Q139: 31259.65637 | R139: 31239.872 | S139: 31223.02754 | T139: 31208.34214 | U139: 31195.40222 | V139: 31184.0926 | W139: 31174.26893 | X139: 31165.7058 | Y139: 31158.24014 | AA139: 31659.12253
C140: 32133.30215 | D140: 32007.25535 | E140: 31884.4825 | F140: 31791.17513 | G140: 31703.65426 | H140: 31625.29536 | I140: 31561.072 | J140: 31501.68304 | K140: 31451.34426 | L140: 31408.79787 | M140: 31370.09572 | N140: 31336.02401 | O140: 31307.38614 | P140: 31281.47569 | Q140: 31259.65637 | R140: 31239.872 | S140: 31223.02754 | T140: 31208.34214 | U140: 31195.40222 | V140: 31184.0926 | W140: 31174.26893 | X140: 31165.7058 | Y140: 31158.24014 | AA140: 31659.12253
C141: 32133.30215 | D141: 32007.25535 | E141: 31884.4825 | F141: 31791.17513 | G141: 31703.65426 | H141: 31625.29536 | I141: 33401.02008 | J141: 31501.68304 | K141: 31451.34426 | L141: 31408.79787 | M141: 31370.09572 | N141: 33175.97208 | O141: 31307.38614 | P141: 31281.47569 | Q141: 33099.60444 | R141: 31239.872 | S141: 31223.02754 | T141: 31208.34214 | U141: 31195.40222 | V141: 31184.0926 | W141: 31174.26893 | X141: 31165.7058 | Y141: 31158.24014 | AA141: 31659.12253
C142: 32133.30215 | D142: 32007.25535 | E142: 31884.4825 | F142: 31791.17513 | G142: 33543.60234 | H142: 33465.24344 | I142: 33401.02008 | J142: 33341.63111 | K142: 31451.34426 | L142: 33248.74595 | M142: 33210.0438 | N142: 33175.97208 | O142: 33147.33422 | P142: 31281.47569 | Q142: 33099.60444 | R142: 33079.82008 | S142: 33062.97562 | T142: 33048.29022 | U142: 31195.40222 | V142: 33024.04067 | W142: 33014.217 | X142: 33005.65388 | Y142: 32998.18822 | AA142: 33499.0706
C143: 32133.30215 | D143: 32007.25535 | E143: 33724.43057 | F143: 33631.1232 | G143: 33543.60234 | H143: 33465.24344 | I143: 33401.02008 | J143: 33341.63111 | K143: 33291.29234 | L143: 33248.74595 | M143: 33210.0438 | N143: 33175.97208 | O143: 33147.33422 | P143: 33121.42377 | Q143: 33099.60444 | R143: 33079.82008 | S143: 33062.97562 | T143: 33048.29022 | U143: 33035.35029 | V143: 33024.04067 | W143: 33014.217 | X143: 33005.65388 | Y143: 32998.18822 | AA143: 33499.0706
B145: Booster pump (2011$/[Mt/y][km]) | C145: 0 | D145: 0 | E145: 0 | F145: 0 | G145: 0 | H145: 0 | I145: 0 | J145: 0 | K145: 0 | L145: 3441.942414 | M145: 3000.667746 | N145: 2612.188439 | O145: 2285.664885 | P145: 1990.238811 | Q145: 3482.917919 | R145: 3031.762748 | S145: 2647.648011 | T145: 3469.151445 | U145: 3026.535571 | V145: 3519.580213 | W145: 3071.549661 | X145: 3351.261228 | Y145: 3510.781263 | AA145: =FORECAST($C$54,OFFSET(C145:Y145,0,MATCH($C$54,$G$72:$Y$72,1)-1,1,2), OFFSET($G$72:$Y$72,0,MATCH($C$54,$G$72:$Y$72,1)-1,1,2)) -> 0 | AB145: =FORECAST($C$55,OFFSET(AA145:AA167,MATCH($C$55,$B$73:$B$95,1)-1,0,2), OFFSET($B$73:$B$95,MATCH($C$55,$B$73:$B$95,1)-1,0,2)) -> 
C146: 0 | D146: 0 | E146: 0 | F146: 0 | G146: 0 | H146: 0 | I146: 0 | J146: 4343.088051 | K146: 3789.271454 | L146: 3321.18498 | M146: 2895.392034 | N146: 2520.542173 | O146: 4410.948802 | P146: 3840.826168 | Q146: 3360.722897 | R146: 4388.094145 | S146: 3832.136516 | T146: 3347.439407 | U146: 3893.80308 | V146: 4245.123659 | W146: 4445.680682 | X146: 3880.422314 | Y146: 3952.210127 | AA146: 0
C147: 0 | D147: 0 | E147: 0 | F147: 0 | G147: 0 | H147: 5520.749311 | I147: 4836.762671 | J147: 4204.262937 | K147: 3668.148871 | L147: 3215.024599 | M147: 2802.841958 | N147: 4879.948052 | O147: 4269.954545 | P147: 5577.083488 | Q147: 4879.948052 | R147: 4247.830429 | S147: 4946.191691 | T147: 5400.733022 | U147: 4711.673981 | V147: 4931.315926 | W147: 5020.838941 | X147: 5008.514839 | Y147: 5465.541818 | AA147: 3137.468123
C148: 0 | D148: 0 | E148: 0 | F148: 0 | G148: 6173.433155 | H148: 5362.780316 | I148: 4698.365056 | J148: 4083.963472 | K148: 3563.189606 | L148: 6246.06178 | M148: 5445.284629 | N148: 4740.314744 | O148: 6221.663101 | P148: 5417.502564 | Q148: 6320.419658 | R148: 6877.140561 | S148: 6005.828635 | T148: 6295.437762 | U148: 6407.59786 | V148: 6386.950392 | W148: 6967.391749 | X148: 6689.653796 | Y148: 6901.898267 | AA148: 5712.735286
C149: 0 | D149: 0 | E149: 0 | F149: 0 | G149: 6003.470617 | H149: 5215.136092 | I149: 4569.013036 | J149: 0 | K149: 6930.180847 | L149: 6074.099683 | M149: 0 | N149: 6914.711693 | O149: 8067.163642 | P149: 1756.117255 | Q149: 7683.012992 | R149: 8025.364867 | S149: 1168.096093 | T149: 1020.352714 | U149: 1780.339562 | V149: 8540.275495 | W149: 8808.241667 | X149: 1774.221557 | Y149: 1548.895419 | AA149: 5555.456353
C150: 0 | D150: 0 | E150: 0 | F150: 0 | G150: 5872.457828 | H150: 0 | I150: 0 | J150: 0 | K150: 0 | L150: 0 | M150: 0 | N150: 2254.604345 | O150: 1972.778802 | P150: 1717.793787 | Q150: 1503.069563 | R150: 1308.371433 | S150: 2285.209834 | T150: 1996.171436 | U150: 1741.487494 | V150: 2278.337022 | W150: 1988.312493 | X150: 2314.004001 | Y150: 2525.156866 | AA150: 2535.11208
C151: 0 | D151: 0 | E151: 0 | F151: 0 | G151: 0 | H151: 0 | I151: 0 | J151: 0 | K151: 0 | L151: 2905.591214 | M151: 2533.07952 | N151: 2205.136189 | O151: 1929.494166 | P151: 1680.103763 | Q151: 2940.181586 | R151: 2559.329049 | S151: 2235.070165 | T151: 2928.560315 | U151: 2554.916413 | V151: 2971.130866 | W151: 2592.916044 | X151: 2829.040701 | Y151: 2963.703039 | AA151: 0
C152: 0 | D152: 0 | E152: 0 | F152: 0 | G152: 0 | H152: 0 | I152: 0 | J152: 3729.481046 | K152: 3253.909638 | L152: 2851.956094 | M152: 2486.320698 | N152: 2164.430964 | O152: 3787.754188 | P152: 3298.180517 | Q152: 2885.907953 | R152: 3768.128518 | S152: 3290.71857 | T152: 3832.668269 | U152: 3343.672662 | V152: 3645.357414 | W152: 3817.579024 | X152: 3887.546108 | Y152: 3878.660288 | AA152: 0
C153: 0 | D153: 0 | E153: 0 | F153: 0 | G153: 0 | H153: 4812.282303 | I153: 4216.070336 | J153: 3664.738061 | K153: 3197.42247 | L153: 2802.446753 | M153: 4886.317415 | N153: 4253.713821 | O153: 3721.999593 | P153: 4861.387224 | Q153: 4253.713821 | R153: 4936.952829 | S153: 4311.456543 | T153: 4707.66747 | U153: 4928.440841 | V153: 5014.904715 | W153: 5001.742236 | X153: 4911.504618 | Y153: 4764.15948 | AA153: 2734.842948
C154: 0 | D154: 0 | E154: 0 | F154: 6256.591325 | G154: 5456.329644 | H154: 4739.841913 | I154: 4152.604862 | J154: 3609.571919 | K154: 6298.581871 | L154: 5520.521758 | M154: 4812.762558 | N154: 6284.522537 | O154: 5498.95722 | P154: 6384.276863 | Q154: 5586.242255 | R154: 6078.294681 | S154: 6369.832797 | T154: 6491.52262 | U154: 6472.335854 | V154: 6350.675405 | W154: 6158.062328 | X154: 6450.09415 | Y154: 6569.420892 | AA154: 5049.146255
C155: 0 | D155: 0 | E155: 7013.691724 | F155: 6172.048717 | G155: 5382.600626 | H155: 4675.794483 | I155: 0 | J155: 0 | K155: 6213.471863 | L155: 0 | M155: 0 | N155: 0 | O155: 0 | P155: 0 | Q155: 0 | R155: 0 | S155: 1047.293334 | T155: 914.8293553 | U155: 798.1097479 | V155: 696.09572 | W155: 607.48511 | X155: 530.2447352 | Y155: 925.8073076 | AA155: 4980.919329
C156: 0 | D156: 0 | E156: 0 | F156: 6098.568083 | G156: 0 | H156: 0 | I156: 0 | J156: 0 | K156: 0 | L156: 0 | M156: 0 | N156: 0 | O156: 0 | P156: 0 | Q156: 0 | R156: 1184.954938 | S156: 1034.824901 | T156: 903.937957 | U156: 788.6079418 | V156: 687.8084304 | W156: 1200.505528 | X156: 1047.863932 | Y156: 914.7852125 | AA156: 0
C157: 0 | D157: 0 | E157: 0 | F157: 0 | G157: 0 | H157: 0 | I157: 0 | J157: 0 | K157: 0 | L157: 0 | M157: 0 | N157: 0 | O157: 0 | P157: 1539.133287 | Q157: 1346.741626 | R157: 1172.293229 | S157: 1023.76739 | T157: 894.2790245 | U157: 1560.362712 | V157: 1360.917854 | W157: 1187.677655 | X157: 1555.000641 | Y157: 1357.515559 | AA157: 0
C158: 0 | D158: 0 | E158: 0 | F158: 0 | G158: 0 | H158: 0 | I158: 0 | J158: 0 | K158: 0 | L158: 0 | M158: 0 | N158: 2001.118455 | O158: 1750.978648 | P158: 1524.66168 | Q158: 1334.07897 | R158: 1161.270813 | S158: 2028.282959 | T158: 1771.741241 | U158: 1545.691497 | V158: 2022.18286 | W158: 1764.765882 | X158: 2053.839789 | Y158: 1793.002136 | AA158: 0
C159: 0 | D159: 0 | E159: 0 | F159: 0 | G159: 0 | H159: 0 | I159: 0 | J159: 0 | K159: 0 | L159: 2614.712918 | M159: 2279.493313 | N159: 1984.380339 | O159: 1736.332797 | P159: 1511.90883 | Q159: 2645.840453 | R159: 2303.115005 | S159: 2011.317629 | T159: 2635.382585 | U159: 2299.144117 | V159: 2673.691405 | W159: 2333.339612 | X159: 2545.825865 | Y159: 2667.007176 | AA159: 0
C160: 0 | D160: 0 | E160: 0 | F160: 0 | G160: 0 | H160: 0 | I160: 0 | J160: 3394.224196 | K160: 2961.403661 | L160: 2595.583209 | M160: 2262.816131 | N160: 1969.862257 | O160: 3447.258949 | P160: 3001.694867 | Q160: 2626.483009 | R160: 3429.397504 | S160: 2994.903702 | T160: 3488.135537 | U160: 3043.097555 | V160: 3317.662748 | W160: 3474.40272 | X160: 3538.080204 | Y160: 3529.993164 | AA160: 0
C161: 0 | D161: 0 | E161: 0 | F161: 0 | G161: 0 | H161: 4428.312815 | I161: 3879.67229 | J161: 3372.330529 | K161: 2942.301804 | L161: 2578.840993 | M161: 4496.440705 | N161: 3914.312221 | O161: 3425.023193 | P161: 4473.499681 | Q161: 3914.312221 | R161: 4543.035945 | S161: 3967.447681 | T161: 4332.045146 | U161: 4535.203125 | V161: 4614.768092 | W161: 4602.65584 | X161: 4519.618234 | Y161: 4384.029687 | AA161: 2516.63126
C162: 0 | D162: 0 | E162: 0 | F162: 0 | G162: 0 | H162: 4402.676109 | I162: 3857.211812 | J162: 3352.807191 | K162: 0 | L162: 0 | M162: 4470.409588 | N162: 0 | O162: 5107.792205 | P162: 5930.135167 | Q162: 5188.868272 | R162: 5645.918845 | S162: 986.119762 | T162: 6029.752063 | U162: 6011.930135 | V162: 5898.92393 | W162: 5720.012268 | X162: 5991.270582 | Y162: 6102.109087 | AA162: 2502.061798
C163: 0 | D163: 0 | E163: 0 | F163: 0 | G163: 0 | H163: 0 | I163: 0 | J163: 0 | K163: 0 | L163: 0 | M163: 2223.990812 | N163: 1936.06343 | O163: 1694.055501 | P163: 1475.095947 | Q163: 1290.708953 | R163: 2247.037349 | S163: 1962.344834 | T163: 1714.143116 | U163: 2243.163147 | V163: 1956.443045 | W163: 2276.526028 | X163: 1987.070829 | Y163: 2168.391042 | AA163: 0
C164: 0 | D164: 0 | E164: 0 | F164: 0 | G164: 0 | H164: 0 | I164: 0 | J164: 0 | K164: 2897.563806 | L164: 2539.629454 | M164: 2214.035934 | N164: 1927.397353 | O164: 1686.472684 | P164: 2936.986443 | Q164: 2569.863138 | R164: 2236.979311 | S164: 2930.341677 | T164: 2559.705576 | U164: 2977.496601 | V164: 2596.914329 | W164: 2832.919994 | X164: 2967.264654 | Y164: 3022.15905 | AA164: 0
C165: 0 | D165: 0 | E165: 0 | F165: 0 | G165: 0 | H165: 0 | I165: 0 | J165: 3308.043508 | K165: 2886.212457 | L165: 2529.68033 | M165: 2205.362339 | N165: 0 | O165: 3359.731688 | P165: 2925.480654 | Q165: 0 | R165: 3342.323752 | S165: 3891.815892 | T165: 3399.570404 | U165: 3707.290138 | V165: 3880.111183 | W165: 3950.550646 | X165: 3940.853664 | Y165: 3870.410905 | AA165: 0
C166: 0 | D166: 0 | E166: 0 | F166: 0 | G166: 0 | H166: 0 | I166: 0 | J166: 0 | K166: 2876.246661 | L166: 0 | M166: 0 | N166: 0 | O166: 0 | P166: 4373.068903 | Q166: 1275.47843 | R166: 1110.261017 | S166: 969.5944626 | T166: 846.9580089 | U166: 4433.387095 | V166: 1288.904519 | W166: 1124.831371 | X166: 1472.717362 | Y166: 1285.682257 | AA166: 0
C167: 0 | D167: 0 | E167: 0 | F167: 0 | G167: 0 | H167: 0 | I167: 0 | J167: 0 | K167: 0 | L167: 0 | M167: 0 | N167: 1907.385006 | O167: 1668.961881 | P167: 1453.245719 | Q167: 1271.590004 | R167: 1106.876273 | S167: 1933.277111 | T167: 1688.751942 | U167: 1473.290488 | V167: 1927.462743 | W167: 1682.103313 | X167: 1957.636845 | Y167: 1709.016966 | AA167: 0
B169: Electricity use for booster pump (kWh/km-metric tonne CO₂) | C169: 0 | D169: 0 | E169: 0 | F169: 0 | G169: 0 | H169: 0 | I169: 0 | J169: 0 | K169: 0 | L169: 0.01625036271 | M169: 0.01416698288 | N169: 0.01233286456 | O169: 0.01079125649 | P169: 0.009396468235 | Q169: 0.01644381941 | R169: 0.01431379099 | S169: 0.01250027901 | T169: 0.01637882408 | U169: 0.01428911204 | V169: 0.01661691225 | W169: 0.01450163602 | X169: 0.01582223174 | Y169: 0.01657536997 | AA169: =FORECAST($C$54,OFFSET(C169:Y169,0,MATCH($C$54,$G$72:$Y$72,1)-1,1,2), OFFSET($G$72:$Y$72,0,MATCH($C$54,$G$72:$Y$72,1)-1,1,2)) -> 0 | AB169: =FORECAST($C$55,OFFSET(AA169:AA191,MATCH($C$55,$B$73:$B$95,1)-1,0,2), OFFSET($B$73:$B$95,MATCH($C$55,$B$73:$B$95,1)-1,0,2)) -> 
C170: 0 | D170: 0 | E170: 0 | F170: 0 | G170: 0 | H170: 0 | I170: 0 | J170: 0.02125047432 | K170: 0.01854068229 | L170: 0.01625036271 | M170: 0.01416698288 | N170: 0.01233286456 | O170: 0.02158251298 | P170: 0.01879293647 | Q170: 0.01644381941 | R170: 0.02147068648 | S170: 0.01875041851 | T170: 0.01637882408 | U170: 0.01905214939 | V170: 0.02077114031 | W170: 0.02175245402 | X170: 0.01898667808 | Y170: 0.01933793163 | AA170: 0
C171: 0 | D171: 0 | E171: 0 | F171: 0 | G171: 0 | H171: 0.02790466324 | I171: 0.02444744833 | J171: 0.02125047432 | K171: 0.01854068229 | L171: 0.01625036271 | M171: 0.01416698288 | N171: 0.02466572912 | O171: 0.02158251298 | P171: 0.0281894047 | Q171: 0.02466572912 | R171: 0.02147068648 | S171: 0.02500055802 | T171: 0.02729804013 | U171: 0.02381518673 | V171: 0.02492536837 | W171: 0.02537786303 | X171: 0.02531557078 | Y171: 0.02762561661 | AA171: 0.015858353
C172: 0 | D172: 0 | E172: 0 | F172: 0 | G172: 0.03212281001 | H172: 0.02790466324 | I172: 0.02444744833 | J172: 0.02125047432 | K172: 0.01854068229 | L172: 0.03250072542 | M172: 0.02833396575 | N172: 0.02466572912 | O172: 0.03237376947 | P172: 0.0281894047 | Q172: 0.03288763882 | R172: 0.03578447747 | S172: 0.03125069752 | T172: 0.03275764815 | U172: 0.03334126143 | V172: 0.03323382449 | W172: 0.03625409004 | X172: 0.03480890982 | Y172: 0.03591330159 | AA172: 0.02972561712
C173: 0 | D173: 0 | E173: 0 | F173: 0 | G173: 0.03212281001 | H173: 0.02790466324 | I173: 0.02444744833 | J173: 0 | K173: 0.03708136458 | L173: 0.03250072542 | M173: 0 | N173: 0.03699859367 | O173: 0.04316502595 | P173: 0.009396468235 | Q173: 0.04110954853 | R173: 0.04294137297 | S173: 0.006250139505 | T173: 0.005459608026 | U173: 0.009526074693 | V173: 0.04569650868 | W173: 0.04713031705 | X173: 0.009493339041 | Y173: 0.008287684983 | AA173: 0.02972561712
C174: 0 | D174: 0 | E174: 0 | F174: 0 | G174: 0.03212281001 | H174: 0 | I174: 0 | J174: 0 | K174: 0 | L174: 0 | M174: 0 | N174: 0.01233286456 | O174: 0.01079125649 | P174: 0.009396468235 | Q174: 0.008221909705 | R174: 0.007156895495 | S174: 0.01250027901 | T174: 0.01091921605 | U174: 0.009526074693 | V174: 0.01246268419 | W174: 0.01087622701 | X174: 0.01265778539 | Y174: 0.01381280831 | AA174: 0.01386726412
C175: 0 | D175: 0 | E175: 0 | F175: 0 | G175: 0 | H175: 0 | I175: 0 | J175: 0 | K175: 0 | L175: 0.01625036271 | M175: 0.01416698288 | N175: 0.01233286456 | O175: 0.01079125649 | P175: 0.009396468235 | Q175: 0.01644381941 | R175: 0.01431379099 | S175: 0.01250027901 | T175: 0.01637882408 | U175: 0.01428911204 | V175: 0.01661691225 | W175: 0.01450163602 | X175: 0.01582223174 | Y175: 0.01657536997 | AA175: 0
C176: 0 | D176: 0 | E176: 0 | F176: 0 | G176: 0 | H176: 0 | I176: 0 | J176: 0.02125047432 | K176: 0.01854068229 | L176: 0.01625036271 | M176: 0.01416698288 | N176: 0.01233286456 | O176: 0.02158251298 | P176: 0.01879293647 | Q176: 0.01644381941 | R176: 0.02147068648 | S176: 0.01875041851 | T176: 0.0218384321 | U176: 0.01905214939 | V176: 0.02077114031 | W176: 0.02175245402 | X176: 0.02215112443 | Y176: 0.02210049329 | AA176: 0
C177: 0 | D177: 0 | E177: 0 | F177: 0 | G177: 0 | H177: 0.02790466324 | I177: 0.02444744833 | J177: 0.02125047432 | K177: 0.01854068229 | L177: 0.01625036271 | M177: 0.02833396575 | N177: 0.02466572912 | O177: 0.02158251298 | P177: 0.0281894047 | Q177: 0.02466572912 | R177: 0.02862758198 | S177: 0.02500055802 | T177: 0.02729804013 | U177: 0.02857822408 | V177: 0.02907959643 | W177: 0.02900327203 | X177: 0.02848001712 | Y177: 0.02762561661 | AA177: 0.015858353
C178: 0 | D178: 0 | E178: 0 | F178: 0.03683415548 | G178: 0.03212281001 | H178: 0.02790466324 | I178: 0.02444744833 | J178: 0.02125047432 | K178: 0.03708136458 | L178: 0.03250072542 | M178: 0.02833396575 | N178: 0.03699859367 | O178: 0.03237376947 | P178: 0.03758587294 | Q178: 0.03288763882 | R178: 0.03578447747 | S178: 0.03750083703 | T178: 0.03821725618 | U178: 0.03810429877 | V178: 0.03738805256 | W178: 0.03625409004 | X178: 0.03797335617 | Y178: 0.03867586325 | AA178: 0.02972561712
C179: 0 | D179: 0 | E179: 0.04185699486 | F179: 0.03683415548 | G179: 0.03212281001 | H179: 0.02790466324 | I179: 0 | J179: 0 | K179: 0.03708136458 | L179: 0 | M179: 0 | N179: 0 | O179: 0 | P179: 0 | Q179: 0 | R179: 0 | S179: 0.006250139505 | T179: 0.005459608026 | U179: 0.004763037347 | V179: 0.004154228062 | W179: 0.003625409004 | X179: 0.003164446347 | Y179: 0.005525123322 | AA179: 0.02972561712
C180: 0 | D180: 0 | E180: 0 | F180: 0.03683415548 | G180: 0 | H180: 0 | I180: 0 | J180: 0 | K180: 0 | L180: 0 | M180: 0 | N180: 0 | O180: 0 | P180: 0 | Q180: 0 | R180: 0.007156895495 | S180: 0.006250139505 | T180: 0.005459608026 | U180: 0.004763037347 | V180: 0.004154228062 | W180: 0.007250818008 | X180: 0.006328892694 | Y180: 0.005525123322 | AA180: 0
C181: 0 | D181: 0 | E181: 0 | F181: 0 | G181: 0 | H181: 0 | I181: 0 | J181: 0 | K181: 0 | L181: 0 | M181: 0 | N181: 0 | O181: 0 | P181: 0.009396468235 | Q181: 0.008221909705 | R181: 0.007156895495 | S181: 0.006250139505 | T181: 0.005459608026 | U181: 0.009526074693 | V181: 0.008308456123 | W181: 0.007250818008 | X181: 0.009493339041 | Y181: 0.008287684983 | AA181: 0
C182: 0 | D182: 0 | E182: 0 | F182: 0 | G182: 0 | H182: 0 | I182: 0 | J182: 0 | K182: 0 | L182: 0 | M182: 0 | N182: 0.01233286456 | O182: 0.01079125649 | P182: 0.009396468235 | Q182: 0.008221909705 | R182: 0.007156895495 | S182: 0.01250027901 | T182: 0.01091921605 | U182: 0.009526074693 | V182: 0.01246268419 | W182: 0.01087622701 | X182: 0.01265778539 | Y182: 0.01105024664 | AA182: 0
C183: 0 | D183: 0 | E183: 0 | F183: 0 | G183: 0 | H183: 0 | I183: 0 | J183: 0 | K183: 0 | L183: 0.01625036271 | M183: 0.01416698288 | N183: 0.01233286456 | O183: 0.01079125649 | P183: 0.009396468235 | Q183: 0.01644381941 | R183: 0.01431379099 | S183: 0.01250027901 | T183: 0.01637882408 | U183: 0.01428911204 | V183: 0.01661691225 | W183: 0.01450163602 | X183: 0.01582223174 | Y183: 0.01657536997 | AA183: 0
C184: 0 | D184: 0 | E184: 0 | F184: 0 | G184: 0 | H184: 0 | I184: 0 | J184: 0.02125047432 | K184: 0.01854068229 | L184: 0.01625036271 | M184: 0.01416698288 | N184: 0.01233286456 | O184: 0.02158251298 | P184: 0.01879293647 | Q184: 0.01644381941 | R184: 0.02147068648 | S184: 0.01875041851 | T184: 0.0218384321 | U184: 0.01905214939 | V184: 0.02077114031 | W184: 0.02175245402 | X184: 0.02215112443 | Y184: 0.02210049329 | AA184: 0
C185: 0 | D185: 0 | E185: 0 | F185: 0 | G185: 0 | H185: 0.02790466324 | I185: 0.02444744833 | J185: 0.02125047432 | K185: 0.01854068229 | L185: 0.01625036271 | M185: 0.02833396575 | N185: 0.02466572912 | O185: 0.02158251298 | P185: 0.0281894047 | Q185: 0.02466572912 | R185: 0.02862758198 | S185: 0.02500055802 | T185: 0.02729804013 | U185: 0.02857822408 | V185: 0.02907959643 | W185: 0.02900327203 | X185: 0.02848001712 | Y185: 0.02762561661 | AA185: 0.015858353
C186: 0 | D186: 0 | E186: 0 | F186: 0 | G186: 0 | H186: 0.02790466324 | I186: 0.02444744833 | J186: 0.02125047432 | K186: 0 | L186: 0 | M186: 0.02833396575 | N186: 0 | O186: 0.03237376947 | P186: 0.03758587294 | Q186: 0.03288763882 | R186: 0.03578447747 | S186: 0.006250139505 | T186: 0.03821725618 | U186: 0.03810429877 | V186: 0.03738805256 | W186: 0.03625409004 | X186: 0.03797335617 | Y186: 0.03867586325 | AA186: 0.015858353
C187: 0 | D187: 0 | E187: 0 | F187: 0 | G187: 0 | H187: 0 | I187: 0 | J187: 0 | K187: 0 | L187: 0 | M187: 0.01416698288 | N187: 0.01233286456 | O187: 0.01079125649 | P187: 0.009396468235 | Q187: 0.008221909705 | R187: 0.01431379099 | S187: 0.01250027901 | T187: 0.01091921605 | U187: 0.01428911204 | V187: 0.01246268419 | W187: 0.01450163602 | X187: 0.01265778539 | Y187: 0.01381280831 | AA187: 0
C188: 0 | D188: 0 | E188: 0 | F188: 0 | G188: 0 | H188: 0 | I188: 0 | J188: 0 | K188: 0.01854068229 | L188: 0.01625036271 | M188: 0.01416698288 | N188: 0.01233286456 | O188: 0.01079125649 | P188: 0.01879293647 | Q188: 0.01644381941 | R188: 0.01431379099 | S188: 0.01875041851 | T188: 0.01637882408 | U188: 0.01905214939 | V188: 0.01661691225 | W188: 0.01812704502 | X188: 0.01898667808 | Y188: 0.01933793163 | AA188: 0
C189: 0 | D189: 0 | E189: 0 | F189: 0 | G189: 0 | H189: 0 | I189: 0 | J189: 0.02125047432 | K189: 0.01854068229 | L189: 0.01625036271 | M189: 0.01416698288 | N189: 0 | O189: 0.02158251298 | P189: 0.01879293647 | Q189: 0 | R189: 0.02147068648 | S189: 0.02500055802 | T189: 0.0218384321 | U189: 0.02381518673 | V189: 0.02492536837 | W189: 0.02537786303 | X189: 0.02531557078 | Y189: 0.02486305495 | AA189: 0
C190: 0 | D190: 0 | E190: 0 | F190: 0 | G190: 0 | H190: 0 | I190: 0 | J190: 0 | K190: 0.01854068229 | L190: 0 | M190: 0 | N190: 0 | O190: 0 | P190: 0.0281894047 | Q190: 0.008221909705 | R190: 0.007156895495 | S190: 0.006250139505 | T190: 0.005459608026 | U190: 0.02857822408 | V190: 0.008308456123 | W190: 0.007250818008 | X190: 0.009493339041 | Y190: 0.008287684983 | AA190: 0
C191: 0 | D191: 0 | E191: 0 | F191: 0 | G191: 0 | H191: 0 | I191: 0 | J191: 0 | K191: 0 | L191: 0 | M191: 0 | N191: 0.01233286456 | O191: 0.01079125649 | P191: 0.009396468235 | Q191: 0.008221909705 | R191: 0.007156895495 | S191: 0.01250027901 | T191: 0.01091921605 | U191: 0.009526074693 | V191: 0.01246268419 | W191: 0.01087622701 | X191: 0.01265778539 | Y191: 0.01105024664 | AA191: 0
B193: Miscellaneous (2011$/[Mt/y][km]) | C193: 118103.2929 | D193: 117374.8656 | E193: 116665.3584 | F193: 116126.1329 | G193: 115620.3478 | H193: 115167.5099 | I193: 114796.3616 | J193: 114453.1514 | K193: 114162.2425 | L193: 113916.3659 | M193: 113692.7053 | N193: 113495.804 | O193: 113330.3051 | P193: 113180.568 | Q193: 113054.4737 | R193: 112940.1394 | S193: 112842.7948 | T193: 112757.9276 | U193: 112683.1474 | V193: 112617.7889 | W193: 112561.0177 | X193: 112511.5312 | Y193: 112468.387 | AA193: =FORECAST($C$54,OFFSET(C193:Y193,0,MATCH($C$54,$G$72:$Y$72,1)-1,1,2), OFFSET($G$72:$Y$72,0,MATCH($C$54,$G$72:$Y$72,1)-1,1,2)) -> 115362.9979 | AB193: =FORECAST($C$55,OFFSET(AA193:AA215,MATCH($C$55,$B$73:$B$95,1)-1,0,2), OFFSET($B$73:$B$95,MATCH($C$55,$B$73:$B$95,1)-1,0,2)) -> 
C194: 103599.3798 | D194: 102960.4084 | E194: 102338.0337 | F194: 101865.0289 | G194: 101421.3577 | H194: 101024.1315 | I194: 100698.5628 | J194: 100397.5012 | K194: 100142.318 | L194: 99926.63674 | M194: 99730.4432 | N194: 99557.72282 | O194: 99412.54836 | P194: 99281.20004 | Q194: 99170.59093 | R194: 99070.2977 | S194: 98984.90776 | T194: 98910.46278 | U194: 98844.86617 | V194: 98787.53411 | W194: 98737.7348 | X194: 98694.32558 | Y194: 98656.47978 | AA194: 101195.6122
C195: 90848.68686 | D195: 90288.35812 | E195: 89742.58337 | F195: 89327.79456 | G195: 88938.72909 | H195: 88590.39224 | I195: 88304.89355 | J195: 88040.88569 | K195: 87817.10959 | L195: 87627.97376 | M195: 87455.92712 | N195: 87304.46463 | O195: 87177.15779 | P195: 87061.97542 | Q195: 86964.97974 | R195: 86877.03029 | S195: 86802.14988 | T195: 86736.86736 | U195: 86679.34418 | V195: 86629.06838 | W195: 86585.39821 | X195: 86547.33166 | Y195: 86514.14381 | AA195: 88740.7676
C196: 79799.52224 | D196: 79307.34159 | E196: 78827.94485 | F196: 78463.60333 | G196: 78121.85663 | H196: 77815.88507 | I196: 77565.1092 | J196: 77333.21041 | K196: 77136.65032 | L196: 76970.51749 | M196: 76819.39544 | N196: 76686.35407 | O196: 76574.5305 | P196: 76473.35679 | Q196: 76388.15788 | R196: 76310.90498 | S196: 76245.13165 | T196: 76187.7889 | U196: 76137.26178 | V196: 76093.1006 | W196: 76054.74167 | X196: 76021.30484 | Y196: 75992.15335 | AA196: 77947.97154
C197: 69472.52525 | D197: 69044.03856 | E197: 87835.42629 | F197: 87518.23485 | G197: 68011.9693 | H197: 67745.59406 | I197: 67527.27154 | J197: 86534.12807 | K197: 67154.26028 | L197: 67009.62699 | M197: 86086.8068 | N197: 66762.23766 | O197: 66664.88537 | P197: 85785.54962 | Q197: 66502.63157 | R197: 66435.3761 | S197: 85586.85951 | T197: 85536.93758 | U197: 85492.94926 | V197: 66245.75817 | W197: 66212.36334 | X197: 85391.99851 | Y197: 85366.61957 | AA197: 67860.58699
C198: 78519.8746 | D198: 78140.48535 | E198: 77770.95036 | F198: 77490.10377 | G198: 60218.93115 | H198: 76990.82095 | I198: 76797.51454 | J198: 76618.75922 | K198: 76467.24416 | L198: 76339.18343 | M198: 76222.69352 | N198: 76120.1408 | O198: 76033.94346 | P198: 75955.9554 | Q198: 75890.28124 | R198: 75830.73213 | S198: 75780.03185 | T198: 75735.83015 | U198: 75696.88216 | V198: 75662.84125 | W198: 75633.27291 | X198: 75607.49868 | Y198: 75585.02774 | AA198: 69750.47599
C199: 68526.43601 | D199: 68195.33267 | E199: 67872.82941 | F199: 67627.72693 | G199: 67397.8246 | H199: 67191.98919 | I199: 67023.28542 | J199: 66867.28078 | K199: 66735.04945 | L199: 66623.28736 | M199: 66521.62344 | N199: 66432.12288 | O199: 66356.89611 | P199: 66288.8338 | Q199: 66231.51817 | R199: 66179.54804 | S199: 66135.30053 | T199: 66096.72449 | U199: 66062.73352 | V199: 66033.02509 | W199: 66007.21999 | X199: 65984.72612 | Y199: 65965.11512 | AA199: 67280.84736
C200: 60303.26369 | D200: 60011.89275 | E200: 59728.08988 | F200: 59512.3997 | G200: 59310.08565 | H200: 59128.95049 | I200: 58980.49117 | J200: 58843.20708 | K200: 58726.84351 | L200: 58628.49288 | M200: 58539.02862 | N200: 58460.26813 | O200: 58394.06858 | P200: 58334.17374 | Q200: 58283.73599 | R200: 58238.00227 | S200: 58199.06446 | T200: 58165.11755 | U200: 58135.2055 | V200: 58109.06208 | W200: 58086.35359 | X200: 58066.55899 | Y200: 58049.3013 | AA200: 59207.14567
C201: 52712.64309 | D201: 52457.9482 | E201: 52209.86877 | F201: 52021.32841 | G201: 51844.48046 | H201: 51686.14553 | I201: 51556.3734 | J201: 51436.36983 | K201: 51334.65342 | L201: 51248.68259 | M201: 51170.47957 | N201: 51101.63298 | O201: 51043.76624 | P201: 50991.41061 | Q201: 50947.32167 | R201: 50907.34464 | S201: 50873.3081 | T201: 50843.63423 | U201: 50817.48732 | V201: 50794.63469 | W201: 50774.78461 | X201: 50757.48163 | Y201: 50742.39625 | AA201: 51754.49797
C202: 46244.83412 | D202: 46021.39014 | E202: 45803.74991 | F202: 45638.34333 | G202: 45483.19452 | H202: 45344.28718 | I202: 45230.43801 | J202: 45125.15881 | K202: 45035.92294 | L202: 44960.50067 | M202: 44891.89312 | N202: 44831.49397 | O202: 44780.72744 | P202: 44734.79582 | Q202: 44696.11656 | R202: 44661.04469 | S202: 44631.1844 | T202: 44605.1515 | U202: 44582.2128 | V202: 44562.16417 | W202: 44544.74969 | X202: 44529.56978 | Y202: 44516.33536 | AA202: 45404.25282
C203: 40526.38689 | D203: 57886.95282 | E203: 40139.84535 | F203: 39994.89227 | G203: 39858.92853 | H203: 39737.19791 | I203: 57193.8066 | J203: 57101.54579 | K203: 39466.96473 | L203: 56957.24861 | M203: 56897.12478 | N203: 56844.19434 | O203: 56799.70539 | P203: 56759.45349 | Q203: 56725.55715 | R203: 56694.82212 | S203: 56668.65424 | T203: 56645.84046 | U203: 56625.73827 | V203: 56608.16877 | W203: 56592.90769 | X203: 56579.60486 | Y203: 56568.00696 | AA203: 39789.74844
C204: 50959.40846 | D204: 50787.60955 | E204: 50620.27295 | F204: 35089.85831 | G204: 50373.8082 | H204: 50267.0068 | I204: 50179.47183 | J204: 50098.52602 | K204: 50029.91542 | L204: 49971.92566 | M204: 49919.17551 | N204: 49872.73654 | O204: 49833.70379 | P204: 49798.38844 | Q204: 49768.6492 | R204: 49741.68356 | S204: 49718.72495 | T204: 49698.70908 | U204: 49681.07226 | V204: 49665.6575 | W204: 49652.26807 | X204: 49640.59672 | Y204: 49630.4212 | AA204: 50313.11245
C205: 44642.12642 | D205: 44491.62489 | E205: 44345.0325 | F205: 44233.62229 | G205: 44129.12123 | H205: 44035.55968 | I205: 43958.87614 | J205: 43887.96494 | K205: 43827.85979 | L205: 43777.05885 | M205: 43730.84797 | N205: 43690.1659 | O205: 43655.97191 | P205: 43625.0345 | Q205: 43598.98194 | R205: 43575.35915 | S205: 43555.24665 | T205: 43537.71209 | U205: 43522.26165 | V205: 43508.75781 | W205: 43497.02822 | X205: 43486.80374 | Y205: 43477.88964 | AA205: 44075.94975
C206: 39142.73403 | D206: 39010.77255 | E206: 38882.23864 | F206: 38784.55287 | G206: 38692.92514 | H206: 38610.88928 | I206: 38543.65227 | J206: 38481.47651 | K206: 38428.77562 | L206: 38384.23276 | M206: 38343.71453 | N206: 38308.04401 | O206: 38278.06233 | P206: 38250.93605 | Q206: 38228.09286 | R206: 38207.38013 | S206: 38189.74525 | T206: 38174.37074 | U206: 38160.82362 | V206: 38148.9833 | W206: 38138.69866 | X206: 38129.73371 | Y206: 38121.91773 | AA206: 38646.30377
C207: 34296.49077 | D207: 34180.86738 | E207: 34068.24719 | F207: 33982.65585 | G207: 33902.3725 | H207: 33830.49347 | I207: 33771.58104 | J207: 33717.10323 | K207: 33670.92721 | L207: 33631.89918 | M207: 33596.39749 | N207: 33565.14332 | O207: 33538.87366 | P207: 33515.10587 | Q207: 33495.09089 | R207: 33476.94259 | S207: 33461.49108 | T207: 33448.02008 | U207: 33436.15022 | V207: 33425.77584 | W207: 33416.76454 | X207: 33408.90954 | Y207: 33402.06125 | AA207: 33861.5233
C208: 30093.02115 | D208: 29991.56887 | E208: 29892.75171 | F208: 29817.65068 | G208: 29747.20707 | H208: 29684.13772 | I208: 29632.44576 | J208: 29584.64489 | K208: 29544.12833 | L208: 29509.88368 | M208: 29478.73317 | N208: 29451.3096 | O208: 29428.25962 | P208: 29407.40487 | Q208: 29389.84298 | R208: 29373.91898 | S208: 29360.36125 | T208: 29348.5413 | U208: 29338.12623 | V208: 29329.02337 | W208: 29321.11652 | X208: 29314.22425 | Y208: 29308.2153 | AA208: 29711.36446
C209: 26414.16771 | D209: 26325.11791 | E209: 26238.38109 | F209: 26172.46111 | G209: 26110.62919 | H209: 26055.27003 | I209: 26009.89738 | J209: 25967.94014 | K209: 25932.3767 | L209: 25902.31844 | M209: 25874.97606 | N209: 25850.90501 | O209: 25830.67287 | P209: 25812.3676 | Q209: 25796.95264 | R209: 25782.97534 | S209: 25771.07503 | T209: 25760.70006 | U209: 25751.55823 | V209: 25743.56819 | W209: 25736.62795 | X209: 25730.57825 | Y209: 25725.3039 | AA209: 26079.16831
C210: 23133.60726 | D210: 23055.61718 | E210: 22979.65282 | F210: 29914.39663 | G210: 29860.24404 | H210: 22819.2836 | I210: 22779.5461 | J210: 22742.79982 | K210: 29704.12998 | L210: 29677.80486 | M210: 22661.3816 | N210: 29632.77683 | O210: 22622.58073 | P210: 22606.54893 | Q210: 22593.04846 | R210: 22580.8071 | S210: 29562.8615 | T210: 22561.29834 | U210: 22553.2919 | V210: 22546.2942 | W210: 22540.21591 | X210: 22534.91757 | Y210: 22530.29827 | AA210: 25858.8327
C211: 20307.13269 | D211: 26376.80424 | E211: 26310.12123 | F211: 26259.44215 | G211: 26211.90596 | H211: 26169.346 | I211: 26134.46364 | J211: 26102.20704 | K211: 26074.86598 | L211: 26051.75728 | M211: 26030.73654 | N211: 26012.23079 | O211: 25996.67638 | P211: 25982.60335 | Q211: 25970.75237 | R211: 25960.00667 | S211: 25950.85774 | T211: 25942.8815 | U211: 25935.85329 | V211: 25929.71057 | W211: 25924.37493 | X211: 25919.72394 | Y211: 25915.66903 | AA211: 26187.71893
C212: 23177.72854 | D212: 23117.72629 | E212: 23059.28253 | F212: 23014.86528 | G212: 22973.20258 | H212: 22935.90127 | I212: 22905.32893 | J212: 22877.0579 | K212: 22853.09506 | L212: 22832.84163 | M212: 22814.41819 | N212: 22798.19898 | O212: 22784.56645 | P212: 22772.23226 | Q212: 22761.84557 | R212: 22752.42759 | S212: 22744.40909 | T212: 22737.41838 | U212: 22731.25857 | V212: 22725.87483 | W212: 22721.19845 | X212: 22717.12213 | Y212: 22713.56825 | AA212: 22952.00407
C213: 20330.75321 | D213: 20278.12118 | E213: 20226.85621 | F213: 20187.89483 | G213: 20151.34967 | H213: 20118.63016 | I213: 24810.72441 | J213: 20067.01466 | K213: 20045.99523 | L213: 20028.22958 | M213: 20012.06913 | N213: 24716.75348 | O213: 19985.88415 | P213: 19975.065 | Q213: 24684.86545 | R213: 19957.69299 | S213: 19950.65942 | T213: 19944.52739 | U213: 19939.1242 | V213: 19934.40177 | W213: 19930.2998 | X213: 19926.72418 | Y213: 19923.60683 | AA213: 20132.75502
C214: 17831.28165 | D214: 17785.12022 | E214: 17740.15779 | F214: 17705.98634 | G214: 21812.70038 | H214: 21784.00343 | I214: 21760.48326 | J214: 21738.73356 | K214: 17581.53194 | L214: 21704.71673 | M214: 21690.54306 | N214: 21678.06516 | O214: 21667.57727 | P214: 17519.3219 | Q214: 21650.09745 | R214: 21642.85194 | S214: 21636.68308 | T214: 21631.30493 | U214: 17487.79968 | V214: 21622.42415 | W214: 21618.82648 | X214: 21615.69045 | Y214: 21612.95634 | AA214: 21796.39176
C215: 15632.09025 | D215: 15591.62206 | E215: 19180.52348 | F215: 19150.56651 | G215: 19122.46733 | H215: 19097.30967 | I215: 19076.69032 | J215: 19057.62309 | K215: 19041.46148 | L215: 19027.80167 | M215: 19015.37608 | N215: 19004.43712 | O215: 18995.24274 | P215: 18986.92401 | Q215: 18979.91877 | R215: 18973.56686 | S215: 18968.15883 | T215: 18963.44399 | U215: 18959.28953 | V215: 18955.6585 | W215: 18952.50455 | X215: 18949.7553 | Y215: 18947.3584 | AA215: 19108.17011
B217: Pipeline & pumps O&M (2011$/[km-y]) | C217: 6352.628055 | D217: 6219.343059 | E217: 6089.520011 | F217: 5990.854495 | G217: 5898.30777 | H217: 5815.449132 | I217: 5747.537764 | J217: 5684.738406 | K217: 5631.508945 | L217: 5655.358188 | M217: 5605.608084 | N217: 5561.810224 | O217: 5524.997368 | P217: 5491.690498 | Q217: 5498.471787 | R217: 5468.52821 | S217: 5443.034168 | T217: 5443.93553 | U217: 5421.400214 | V217: 5419.302038 | W217: 5399.953636 | X217: 5396.493005 | Y217: 5391.789034 | AA217: =FORECAST($C$54,OFFSET(C217:Y217,0,MATCH($C$54,$G$72:$Y$72,1)-1,1,2), OFFSET($G$72:$Y$72,0,MATCH($C$54,$G$72:$Y$72,1)-1,1,2)) -> 5851.218812 | AB217: =FORECAST($C$55,OFFSET(AA217:AA239,MATCH($C$55,$B$73:$B$95,1)-1,0,2), OFFSET($B$73:$B$95,MATCH($C$55,$B$73:$B$95,1)-1,0,2)) -> 
C218: 6352.628055 | D218: 6219.343059 | E218: 6089.520011 | F218: 5990.854495 | G218: 5898.30777 | H218: 5815.449132 | I218: 5747.537764 | J218: 5783.760813 | K218: 5717.904334 | L218: 5662.242357 | M218: 5611.609667 | N218: 5567.034817 | O218: 5579.853703 | P218: 5539.456558 | Q218: 5505.43791 | R218: 5507.941502 | S218: 5477.45392 | T218: 5450.87412 | U218: 5449.648213 | V218: 5445.699253 | W218: 5439.884162 | X218: 5417.941409 | Y218: 5411.6838 | AA218: 5851.218812
C219: 6352.628055 | D219: 6219.343059 | E219: 6089.520011 | F219: 5990.854495 | G219: 5898.30777 | H219: 5958.988615 | I219: 5873.293594 | J219: 5794.049242 | K219: 5726.880816 | L219: 5670.109979 | M219: 5618.46862 | N219: 5636.445105 | O219: 5590.302888 | P219: 5596.889892 | Q219: 5555.692078 | R219: 5518.336546 | S219: 5518.682191 | T219: 5514.97156 | U219: 5483.373026 | V219: 5477.124648 | W219: 5469.064455 | X219: 5459.689166 | Y219: 5463.677496 | AA219: 5932.792983
C220: 6352.628055 | D220: 6219.343059 | E220: 6089.520011 | F220: 5990.854495 | G220: 6081.041392 | H220: 5974.18743 | I220: 5886.60937 | J220: 5805.623724 | K220: 5736.979358 | L220: 5771.402768 | M220: 5706.775154 | N220: 5649.879772 | O220: 5663.445298 | P220: 5612.243798 | Q220: 5615.89785 | R220: 5611.456316 | S220: 5567.853735 | T220: 5560.897459 | U220: 5550.534399 | V220: 5537.964165 | W220: 5544.757438 | X220: 5527.481533 | Y220: 5525.869597 | AA220: 6020.315776
C221: 6352.628055 | D221: 6219.343059 | E221: 6089.520011 | F221: 5990.854495 | G221: 6102.425771 | H221: 5992.76376 | I221: 5902.884207 | J221: 5684.738406 | K221: 5867.135094 | L221: 5793.038729 | M221: 5545.594729 | N221: 5744.666653 | O221: 5753.567634 | P221: 5511.593708 | Q221: 5690.03587 | R221: 5680.755361 | S221: 5429.796475 | T221: 5409.244494 | U221: 5421.401048 | V221: 5639.2798 | W221: 5638.002859 | X221: 5389.791313 | Y221: 5374.235853 | AA221: 6040.104328
C222: 6352.628055 | D222: 6219.343059 | E222: 6089.520011 | F222: 5990.854495 | G222: 6123.810151 | H222: 5815.449132 | I222: 5747.537764 | J222: 5684.738406 | K222: 5631.508945 | L222: 5586.51934 | M222: 5545.594729 | N222: 5596.143262 | O222: 5555.038776 | P222: 5517.849003 | Q222: 5486.5313 | R222: 5458.134418 | S222: 5477.833265 | T222: 5451.205484 | U222: 5427.742622 | V222: 5436.398575 | W222: 5414.873842 | X222: 5418.325534 | Y222: 5418.539432 | AA222: 5948.567116
C223: 6352.628055 | D223: 6219.343059 | E223: 6089.520011 | F223: 5990.854495 | G223: 5898.30777 | H223: 5815.449132 | I223: 5747.537764 | J223: 5684.738406 | K223: 5631.508945 | L223: 5714.365353 | M223: 5657.050228 | N223: 5606.592448 | O223: 5564.181813 | P223: 5525.810287 | Q223: 5558.181418 | R223: 5520.503433 | S223: 5488.424295 | T223: 5503.409155 | U223: 5473.285825 | V223: 5479.640192 | W223: 5452.610948 | X223: 5453.945571 | Y223: 5451.976342 | AA223: 5851.218812
... 45 more rows

Sheet Results
B2: Table of Contents
B3: Specific Item Cost Calculation
B4: Energy Data
B5: Production Process Energy Efficiency
B6: Upstream Energy Usage
B7: Emissions Summary
B8: Production Process GHG Emissions Summary
B9: Production Process GHG Emissions
B10: Upstream GHG Emissions
B12: H2a Analysis Results
B14: COST RESULTS
B15: Lang Factor | C15: =total_cap/(ProcEqpCap+IF(CO2_Capture_Efficiency>0,CCSEqpCap,0)) -> 1.504448434
B17: Specific Item Cost Calculation | F17: =IF(CO2_inUse = "Carbon Sequestration","Approximate Carbon Sequestration Costs*","Carbon Sequestration is not included in this case") -> Carbon Sequestration is not included in this case
B18: Cost Component | C18: Cost Contribution ($/kg) | D18: Percentage of H2 Cost | F18: Cost Component | G18: Cost Contribution ($/ kg H2) | H18: Cost Contribution ($/ tonne CO2 Sequestered)
B19: Capital Costs | C19: ='Cash Flow Analysis'!D119 -> 0.5446703485 | D19: ='Cash Flow Analysis'!C119 -> 0.1096072926 | F19: Capital Costs | G19: =IF(CO2_inUse = "Carbon Sequestration",ROUND((Det_CO2_seq)*CO2_cap_charge_rate/output_kgyear,2),"") ->  | H19: =IF(CO2_inUse = "Carbon Sequestration",CO2_capptonneCO2,"") -> 
B20: Decommissioning Costs | C20: ='Cash Flow Analysis'!D120 -> 0.01317537334 | D20: ='Cash Flow Analysis'!C120 -> 0.002651359681 | F20: O&M Cost | G20: =IF(CO2_inUse = "Carbon Sequestration",ROUND(Det_CO2_OandMcost/output_kgyear,2),"") ->  | H20: =IF(CO2_inUse = "Carbon Sequestration",CO2_OandMptonneCO2,"") -> 
B21: Fixed O&M | C21: ='Cash Flow Analysis'!D121 -> 0.3443639681 | D21: ='Cash Flow Analysis'!C121 -> 0.06929843402 | F21: Energy Cost | G21: =IF(CO2_inUse = "Carbon Sequestration",ROUND(CO2_eCostpY/output_kgyear,2),"") ->  | H21: =IF(CO2_inUse = "Carbon Sequestration",CO2_energyptonneCO2,"") -> 
B22: Feedstock Costs | C22: ='Cash Flow Analysis'!D122 -> 4.054719241 | D22: ='Cash Flow Analysis'!C122 -> 0.8159555582 | F22: Total | G22: =SUM(G19:G21) -> 0 | H22: =SUM(H19:H21) -> 0
B23: Other Raw Material Costs | C23: ='Cash Flow Analysis'!D123 -> 0 | D23: ='Cash Flow Analysis'!C123 -> 0 | F23: *Carbon sequestration costs presented in this table do not include carbon capture capital and operating costs.
B24: Byproduct Credits | C24: ='Cash Flow Analysis'!D124 -> 0 | D24: ='Cash Flow Analysis'!C124 -> 0
B25: Other Variable Costs (including utilities) | C25: ='Cash Flow Analysis'!D125 -> 0.01236038905 | D25: ='Cash Flow Analysis'!C125 -> 0.002487355487
B26: Total | C26: =SUM(C19:C25) -> 4.96928932
B28: ENERGY
B30: Energy Data
B31: Feedstock | C31: Energy Input (GJ/kg H2) | D31: Energy Input (kWh/kg H2) | E31: LHV (GJ/usage unit) | F31: Usage (/kg H2) | G31: Unit | H31: Unit System Conversion Factor | I31: Real levelized cost
B32: =IF('Cash Flow Analysis'!$B$131=0,"",'Cash Flow Analysis'!$B$131) -> Industrial Electricity | C32: =IF($B$32="","",$E$32*$F$32*$H$32) -> 0.20088 | D32: =IF($B32="","",$C32*1000*MJ_to_kWh) -> 55.8 | E32: =IF($B$32<>"",VLOOKUP($B$32,MASTER_PROPERTY_TABLE,MATCH("H2A LHV (GJ/ H2A usage input unit)",key_MPTable,0),FALSE),"") -> 0.0036 | F32: =IF('Cash Flow Analysis'!$B$133="","",'Cash Flow Analysis'!$B$133) -> 55.8 | G32: =IF($B$32<>"",VLOOKUP($B$32,MASTER_PROPERTY_TABLE,MATCH("H2A Usage Input Unit/ kg H2",key_MPTable,0),FALSE),"") -> kWh | H32: =IF($B32="","",IF(VLOOKUP($B32,MASTER_PROPERTY_TABLE,MATCH("Unit System",key_MPTable,0),FALSE)="English",mmBTU_to_GJ,1)) -> 1 | I32: =+'Cash Flow Analysis'!$B$233 -> 0.07404585854
B33: =IF('Cash Flow Analysis'!$C$131=0,"",'Cash Flow Analysis'!$C$131) ->  | C33: =IF($B$33="","",$E$33*$F$33*$H$33) ->  | D33: =IF($B33="","",$C33*1000*MJ_to_kWh) ->  | E33: =IF($B$33<>"",VLOOKUP($B$33,MASTER_PROPERTY_TABLE,MATCH("H2A LHV (GJ/ H2A usage input unit)",key_MPTable,0),FALSE),"") ->  | F33: =IF('Cash Flow Analysis'!$C$133="","",'Cash Flow Analysis'!$C$133) ->  | G33: =IF($B$33<>"",VLOOKUP($B$33,MASTER_PROPERTY_TABLE,MATCH("H2A Usage Input Unit/ kg H2",key_MPTable,0),FALSE),"") ->  | H33: =IF($B$33="","",IF(VLOOKUP($B$33,MASTER_PROPERTY_TABLE,MATCH("Unit System",key_MPTable,0),FALSE)="English",mmBTU_to_GJ,1)) ->  | I33: =+'Cash Flow Analysis'!$C$233 -> 
B34: =IF('Cash Flow Analysis'!$D$131=0,"",'Cash Flow Analysis'!$D$131) ->  | C34: =IF($B$34="","",$E$34*$F$34*$H$34) ->  | D34: =IF($B34="","",$C34*1000*MJ_to_kWh) ->  | E34: =IF($B$34<>"",VLOOKUP($B$34,MASTER_PROPERTY_TABLE,MATCH("H2A LHV (GJ/ H2A usage input unit)",key_MPTable,0),FALSE),"") ->  | F34: =IF('Cash Flow Analysis'!$D$133="","",'Cash Flow Analysis'!$D$133) ->  | G34: =IF($B$34<>"",VLOOKUP($B$34,MASTER_PROPERTY_TABLE,MATCH("H2A Usage Input Unit/ kg H2",key_MPTable,0),FALSE),"") ->  | H34: =IF($B$34="","",IF(VLOOKUP($B$34,MASTER_PROPERTY_TABLE,MATCH("Unit System",key_MPTable,0),FALSE)="English",mmBTU_to_GJ,1)) ->  | I34: =+'Cash Flow Analysis'!$D$233 -> 
B35: =IF('Cash Flow Analysis'!$E$131=0,"",'Cash Flow Analysis'!$E$131) ->  | C35: =IF($B$35="","",$E$35*$F$35*$H$35) ->  | D35: =IF($B35="","",$C35*1000*MJ_to_kWh) ->  | E35: =IF($B$35<>"",VLOOKUP($B$35,MASTER_PROPERTY_TABLE,MATCH("H2A LHV (GJ/ H2A usage input unit)",key_MPTable,0),FALSE),"") ->  | F35: =IF('Cash Flow Analysis'!$E$133="","",'Cash Flow Analysis'!$E$133) ->  | G35: =IF($B$35<>"",VLOOKUP($B$35,MASTER_PROPERTY_TABLE,MATCH("H2A Usage Input Unit/ kg H2",key_MPTable,0),FALSE),"") ->  | H35: =IF($B$35="","",IF(VLOOKUP($B$35,MASTER_PROPERTY_TABLE,MATCH("Unit System",key_MPTable,0),FALSE)="English",mmBTU_to_GJ,1)) ->  | I35: =+'Cash Flow Analysis'!$E$233 -> 
B36: Utility
B37: =IF('Cash Flow Analysis'!$F$131=0,"",'Cash Flow Analysis'!$F$131) ->  | C37: =IF($B$37="","",$E$37*$F$37*$H$37) ->  | D37: =IF($B37="","",$C37*1000*MJ_to_kWh) ->  | E37: =IF($B37<>"",VLOOKUP($B37,MASTER_PROPERTY_TABLE,MATCH("H2A LHV (GJ/ H2A usage input unit)",key_MPTable,0),FALSE),"") ->  | F37: =IF('Cash Flow Analysis'!$F$133="","",'Cash Flow Analysis'!$F$133) ->  | G37: =IF($B$37<>"",VLOOKUP($B$37,MASTER_PROPERTY_TABLE,MATCH("H2A Usage Input Unit/ kg H2",key_MPTable,0),FALSE),"") ->  | H37: =IF($B$37="","",IF(VLOOKUP($B$37,MASTER_PROPERTY_TABLE,MATCH("Unit System",key_MPTable,0),FALSE)="English",mmBTU_to_GJ,1)) ->  | I37: =+'Cash Flow Analysis'!$F$233 -> 
B38: =IF('Cash Flow Analysis'!$G$131=0,"",'Cash Flow Analysis'!$G$131) ->  | C38: =IF($B$38="","",$E$38*$F$38*$H$38) ->  | D38: =IF($B38="","",$C38*1000*MJ_to_kWh) ->  | E38: =IF($B38<>"",VLOOKUP($B38,MASTER_PROPERTY_TABLE,MATCH("H2A LHV (GJ/ H2A usage input unit)",key_MPTable,0),FALSE),"") ->  | F38: =IF('Cash Flow Analysis'!$G$133="","",'Cash Flow Analysis'!$G$133) ->  | G38: =IF($B$38<>"",VLOOKUP($B$38,MASTER_PROPERTY_TABLE,MATCH("H2A Usage Input Unit/ kg H2",key_MPTable,0),FALSE),"") ->  | H38: =IF($B$38="","",IF(VLOOKUP($B$38,MASTER_PROPERTY_TABLE,MATCH("Unit System",key_MPTable,0),FALSE)="English",mmBTU_to_GJ,1)) ->  | I38: =+'Cash Flow Analysis'!$G$233 -> 
B39: =IF('Cash Flow Analysis'!$H$131=0,"",'Cash Flow Analysis'!$H$131) ->  | C39: =IF($B$39="","",$E$39*$F$39*$H$39) ->  | D39: =IF($B39="","",$C39*1000*MJ_to_kWh) ->  | E39: =IF($B39<>"",VLOOKUP($B39,MASTER_PROPERTY_TABLE,MATCH("H2A LHV (GJ/ H2A usage input unit)",key_MPTable,0),FALSE),"") ->  | F39: =IF('Cash Flow Analysis'!$H$133="","",'Cash Flow Analysis'!$H$133) ->  | G39: =IF($B$39<>"",VLOOKUP($B$39,MASTER_PROPERTY_TABLE,MATCH("H2A Usage Input Unit/ kg H2",key_MPTable,0),FALSE),"") ->  | H39: =IF($B$39="","",IF(VLOOKUP($B$39,MASTER_PROPERTY_TABLE,MATCH("Unit System",key_MPTable,0),FALSE)="English",mmBTU_to_GJ,1)) ->  | I39: =+'Cash Flow Analysis'!$H$233 -> 
B40: =IF('Cash Flow Analysis'!$I$131=0,"",'Cash Flow Analysis'!$I$131) ->  | C40: =IF($B$40="","",$E$40*$F$40*$H$40) ->  | D40: =IF($B40="","",$C40*1000*MJ_to_kWh) ->  | E40: =IF($B40<>"",VLOOKUP($B40,MASTER_PROPERTY_TABLE,MATCH("H2A LHV (GJ/ H2A usage input unit)",key_MPTable,0),FALSE),"") ->  | F40: =IF('Cash Flow Analysis'!$I$133="","",'Cash Flow Analysis'!$I$133) ->  | G40: =IF($B$40<>"",VLOOKUP($B$40,MASTER_PROPERTY_TABLE,MATCH("H2A Usage Input Unit/ kg H2",key_MPTable,0),FALSE),"") ->  | H40: =IF($B$40="","",IF(VLOOKUP($B$40,MASTER_PROPERTY_TABLE,MATCH("Unit System",key_MPTable,0),FALSE)="English",mmBTU_to_GJ,1)) ->  | I40: =+'Cash Flow Analysis'!$I$233 -> 
B41: Carbon Sequestration
B42: =IF('Cash Flow Analysis'!$J$131=0,"",'Cash Flow Analysis'!$J$131) ->  | C42: =IF($B$42="","",$E$42*$F$42*$H$42) ->  | D42: =IF($B42="","",$C42*1000*MJ_to_kWh) ->  | E42: =IF($B42<>"",VLOOKUP($B42,MASTER_PROPERTY_TABLE,MATCH("H2A LHV (GJ/ H2A usage input unit)",key_MPTable,0),FALSE),"") ->  | F42: =CO2_CashFlow_eUse -> 0 | G42: =IF($B$42<>"",VLOOKUP($B$42,MASTER_PROPERTY_TABLE,MATCH("H2A Usage Input Unit/ kg H2",key_MPTable,0),FALSE),"") ->  | H42: =IF($B42="","",IF(VLOOKUP($B42,MASTER_PROPERTY_TABLE,MATCH("Unit System",key_MPTable,0),FALSE)="English",mmBTU_to_GJ,1)) -> 
C43: Energy Output (GJ/kg H2) | D43: Energy Output (kWh/kg H2) | E43: LHV (GJ/usage unit) | F43: Production (/kg H2) | G43: Unit | H43: Unit System Conversion Factor
B44: Hydrogen (1 kg) | C44: =kgH2_to_GJ -> 0.1202116383 | D44: =IF($B44="","",$C44*1000*MJ_to_kWh) -> 33.39212175 | E44: =kgH2_to_GJ -> 0.1202116383 | F44: 1 | G44: kg | H44: 1
B46: Byproducts
B47: =IF('Cash Flow Analysis'!$K$131=0,"",'Cash Flow Analysis'!$K$131) ->  | C47: =IF($B$47="","",$E$47*$F$47*$H$47) ->  | D47: =IF($B47="","",$C47*1000*MJ_to_kWh) ->  | E47: =IF($B47<>"",VLOOKUP($B47,MASTER_PROPERTY_TABLE,MATCH("H2A LHV (GJ/ H2A usage input unit)",key_MPTable,0),FALSE),"") ->  | F47: =IF('Cash Flow Analysis'!$K$133="","",'Cash Flow Analysis'!$K$133) ->  | G47: =IF($B$47<>"",VLOOKUP($B$47,MASTER_PROPERTY_TABLE,MATCH("H2A Usage Input Unit/ kg H2",key_MPTable,0),FALSE),"") ->  | H47: =IF($B$47="","",IF(VLOOKUP($B$47,MASTER_PROPERTY_TABLE,MATCH("Unit System",key_MPTable,0),FALSE)="English",mmBTU_to_GJ,1)) ->  | I47: =+'Cash Flow Analysis'!$K$233 -> 
B48: =IF('Cash Flow Analysis'!$L$131=0,"",'Cash Flow Analysis'!$L$131) ->  | C48: =IF($B$48="","",$E$48*$F$48*$H$48) ->  | D48: =IF($B48="","",$C48*1000*MJ_to_kWh) ->  | E48: =IF($B48<>"",VLOOKUP($B48,MASTER_PROPERTY_TABLE,MATCH("H2A LHV (GJ/ H2A usage input unit)",key_MPTable,0),FALSE),"") ->  | F48: =IF('Cash Flow Analysis'!$L$133="","",'Cash Flow Analysis'!$L$133) ->  | G48: =IF($B$48<>"",VLOOKUP($B$48,MASTER_PROPERTY_TABLE,MATCH("H2A Usage Input Unit/ kg H2",key_MPTable,0),FALSE),"") ->  | H48: =IF($B$48="","",IF(VLOOKUP($B$48,MASTER_PROPERTY_TABLE,MATCH("Unit System",key_MPTable,0),FALSE)="English",mmBTU_to_GJ,1)) ->  | I48: =+'Cash Flow Analysis'!$L$233 -> 
B49: =IF('Cash Flow Analysis'!$M$131=0,"",'Cash Flow Analysis'!$M$131) ->  | C49: =IF($B$49="","",$E$49*$F$49*$H$49) ->  | D49: =IF($B49="","",$C49*1000*MJ_to_kWh) ->  | E49: =IF($B49<>"",VLOOKUP($B49,MASTER_PROPERTY_TABLE,MATCH("H2A LHV (GJ/ H2A usage input unit)",key_MPTable,0),FALSE),"") ->  | F49: =IF('Cash Flow Analysis'!$M$133="","",'Cash Flow Analysis'!$M$133) ->  | G49: =IF($B$49<>"",VLOOKUP($B$49,MASTER_PROPERTY_TABLE,MATCH("H2A Usage Input Unit/ kg H2",key_MPTable,0),FALSE),"") ->  | H49: =IF($B$49="","",IF(VLOOKUP($B$49,MASTER_PROPERTY_TABLE,MATCH("Unit System",key_MPTable,0),FALSE)="English",mmBTU_to_GJ,1)) ->  | I49: =+'Cash Flow Analysis'!$M$233 -> 
B50: =IF('Cash Flow Analysis'!$N$131=0,"",'Cash Flow Analysis'!$N$131) ->  | C50: =IF($B$50="","",$E$50*$F$50*$H$50) ->  | D50: =IF($B50="","",$C50*1000*MJ_to_kWh) ->  | E50: =IF($B50<>"",VLOOKUP($B50,MASTER_PROPERTY_TABLE,MATCH("H2A LHV (GJ/ H2A usage input unit)",key_MPTable,0),FALSE),"") ->  | F50: =IF('Cash Flow Analysis'!$N$133="","",'Cash Flow Analysis'!$N$133) ->  | G50: =IF($B$50<>"",VLOOKUP($B$50,MASTER_PROPERTY_TABLE,MATCH("H2A Usage Input Unit/ kg H2",key_MPTable,0),FALSE),"") ->  | H50: =IF($B$50="","",IF(VLOOKUP($B$50,MASTER_PROPERTY_TABLE,MATCH("Unit System",key_MPTable,0),FALSE)="English",mmBTU_to_GJ,1)) ->  | I50: =+'Cash Flow Analysis'!$N$233 -> 
B52: Production Process Energy Efficiency | D52: =(C56+C57)/(C53+C54+C55) -> 0.5984251209
B53: Feedstock energy input (GJ)/kg H2 | C53: =SUM(C32:C35) -> 0.20088
B54: Utility energy input (GJ/kg H2) | C54: =SUM(C37:C40) -> 0
B55: Carbon sequestration energy input (GJ/kg H2) | C55: =IF(C42="",0,C42) -> 0
B56: Hydrogen energy output (GJ/kg) | C56: =C44 -> 0.1202116383
B57: Byproduct energy output (GJ/kg H2) | C57: =SUM(C47:C50) -> 0
B59: Upstream Energy Usage (GJ/kg H2)
B60: Feedstock | C60: Total Energy | D60: Fossil Fuels | E60: Petroleum
B61: =B32 -> Industrial Electricity | C61: =IF($B61="","",$C32/1000000*VLOOKUP($B61,Tbl_Emissions,3,FALSE)) -> 0.36901656 | D61: =IF($B61="","",$C32/1000000*VLOOKUP($B61,Tbl_Emissions,4,FALSE)) -> 0.287338752 | E61: =IF($B61="","",$C32/1000000*VLOOKUP($B61,Tbl_Emissions,5,FALSE)) -> 0.0051043608
B62: =B33 ->  | C62: =IF($B62="","",$C33/1000000*VLOOKUP($B62,Tbl_Emissions,3,FALSE)) ->  | D62: =IF($B62="","",$C33/1000000*VLOOKUP($B62,Tbl_Emissions,4,FALSE)) ->  | E62: =IF($B62="","",$C33/1000000*VLOOKUP($B62,Tbl_Emissions,5,FALSE)) -> 
B63: =B34 ->  | C63: =IF($B63="","",$C34/1000000*VLOOKUP($B63,Tbl_Emissions,3,FALSE)) ->  | D63: =IF($B63="","",$C34/1000000*VLOOKUP($B63,Tbl_Emissions,4,FALSE)) ->  | E63: =IF($B63="","",$C34/1000000*VLOOKUP($B63,Tbl_Emissions,5,FALSE)) -> 
B64: =B35 ->  | C64: =IF($B64="","",$C35/1000000*VLOOKUP($B64,Tbl_Emissions,3,FALSE)) ->  | D64: =IF($B64="","",$C35/1000000*VLOOKUP($B64,Tbl_Emissions,4,FALSE)) ->  | E64: =IF($B64="","",$C35/1000000*VLOOKUP($B64,Tbl_Emissions,5,FALSE)) -> 
B65: Utility
B66: =B37 ->  | C66: =IF($B66="","",$C37/1000000*VLOOKUP($B66,Tbl_Emissions,3,FALSE)) ->  | D66: =IF($B66="","",$C37/1000000*VLOOKUP($B66,Tbl_Emissions,4,FALSE)) ->  | E66: =IF($B66="","",$C37/1000000*VLOOKUP($B66,Tbl_Emissions,5,FALSE)) -> 
B67: =B38 ->  | C67: =IF($B67="","",$C38/1000000*VLOOKUP($B67,Tbl_Emissions,3,FALSE)) ->  | D67: =IF($B67="","",$C38/1000000*VLOOKUP($B67,Tbl_Emissions,4,FALSE)) ->  | E67: =IF($B67="","",$C38/1000000*VLOOKUP($B67,Tbl_Emissions,5,FALSE)) -> 
B68: =B39 ->  | C68: =IF($B68="","",$C39/1000000*VLOOKUP($B68,Tbl_Emissions,3,FALSE)) ->  | D68: =IF($B68="","",$C39/1000000*VLOOKUP($B68,Tbl_Emissions,4,FALSE)) ->  | E68: =IF($B68="","",$C39/1000000*VLOOKUP($B68,Tbl_Emissions,5,FALSE)) -> 
B69: =B40 ->  | C69: =IF($B69="","",$C40/1000000*VLOOKUP($B69,Tbl_Emissions,3,FALSE)) ->  | D69: =IF($B69="","",$C40/1000000*VLOOKUP($B69,Tbl_Emissions,4,FALSE)) ->  | E69: =IF($B69="","",$C40/1000000*VLOOKUP($B69,Tbl_Emissions,5,FALSE)) -> 
B70: Carbon Sequestration
B71: =B42 ->  | C71: =IF($B71="","",$C42/1000000*VLOOKUP($B71,Tbl_Emissions,3,FALSE)) ->  | D71: =IF($B71="","",$C42/1000000*VLOOKUP($B71,Tbl_Emissions,4,FALSE)) ->  | E71: =IF($B71="","",$C42/1000000*VLOOKUP($B71,Tbl_Emissions,5,FALSE)) -> 
B74: EMISSIONS
B76: Emissions Summary | D76: CO2 | E76: CH4 | F76: N2O | G76: Total GHG (CO2 eq)
B77: Total upstream emissions (kg/kg H2) | D77: =C121 -> 30.3288624 | E77: =D121 -> 0.04403036491 | F77: =E121 -> 0.000450051552 | G77: =F121 -> 31.56373689
B78: Total process emissions (kg/kg H2) | D78: =D89 -> 0 | E78: =E89 -> 0 | F78: =F89 -> 0 | G78: =G89 -> 0
B80: Total well to pump emissions (kg/kg H2) | D80: =SUM(D77:D79) -> 30.3288624 | E80: =SUM(E77:E79) -> 0.04403036491 | F80: =SUM(F77:F79) -> 0.000450051552 | G80: =SUM(G77:G79) -> 31.56373689
B82: Production Process GHG Emissions Summary | D82: CO2 | E82: CH4 | F82: N2O | G82: Total GHG (CO2 eq)
B83: Total Process Pollutants Produced (kg /kg H2) | D83: =SUM(C95:C105) -> 0 | E83: =SUM(D95:D105) -> 0 | F83: =SUM(E95:E105) -> 0 | G83: =SUM(F95:F105) -> 0
B84: Total Process Pollutants Produced (metric tons/year) | D84: =ROUND(D83*output_kgyear/1000,-2) -> 0 | E84: =ROUND(E83*output_kgyear/1000,-2) -> 0 | F84: =ROUND(F83*output_kgyear/1000,-2) -> 0 | G84: =ROUND(G83*output_kgyear/1000,-2) -> 0
B85: Total Feedstock Pollutants Produced (kg /kg H2) | D85: =SUM(C95:C98) -> 0 | E85: =SUM(D95:D98) -> 0 | F85: =SUM(E95:E98) -> 0 | G85: =SUM(F95:F98) -> 0
B86: Total Feedstock Pollutants Produced (metric tons /year) | D86: =ROUND(D85*output_kgyear/1000,-2) -> 0 | E86: =ROUND(E85*output_kgyear/1000,-2) -> 0 | F86: =ROUND(F85*output_kgyear/1000,-2) -> 0 | G86: =ROUND(G85*output_kgyear/1000,-2) -> 0
B87: CO2 Captured (kg/kg H2)* | D87: =IF(CO2_CashFlow_eUse>0,D85*CO2_Capture_Efficiency,0) -> 0
B88: CO2 Captured (metric tons/year)* | D88: =ROUND(D87*output_kgyear/1000,-2) -> 0
B89: Total Process Emissions (kg/kg H2) | D89: =D83-D87 -> 0 | E89: =E83-E87 -> 0 | F89: =F83-F87 -> 0 | G89: =D89*GHG_CO2_factor + E89*GHG_CH4_factor + F89*GHG_N2O_factor -> 0
B90: Total Process Emissions (metric tons/year) | D90: =ROUND(D89*output_kgyear/1000,-2) -> 0 | E90: =ROUND(E89*output_kgyear/1000,-2) -> 0 | F90: =ROUND(F89*output_kgyear/1000,-2) -> 0 | G90: =ROUND(G89*output_kgyear/1000,-2) -> 0
B91: *Carbon sequestration values are only calculated if the detailed Carbon Sequestration sheet is used.
B93: Production Process GHG Emissions (/kg H2)
B94: Feedstock | C94: CO2 | D94: CH4 | E94: N2O | F94: Total GHG (CO2 eq)
B95: =B32 -> Industrial Electricity | C95: =IF($B95="","",VLOOKUP($B95,MASTER_PROPERTY_TABLE,MATCH("CO2 Emissions Factor (kg CO2 produced/GJ feed)",key_MPTable,0),FALSE)*$E32*$F32) -> 0 | D95: =IF($B95="","",VLOOKUP($B95,MASTER_PROPERTY_TABLE,MATCH("CH4 Emissions Factor (kg CH4 produced/GJ or mmBtu feed)",key_MPTable,0),FALSE)*$E32*$F32) -> 0 | E95: =IF($B95="","",VLOOKUP($B95,MASTER_PROPERTY_TABLE,MATCH("N2O Emissions Factor (kg N2O produced/GJ or mmBtu feed)",key_MPTable,0),FALSE)*$E32*$F32) -> 0 | F95: =IF($B95="","",$C95*GHG_CO2_factor+$D95*GHG_CH4_factor+$E95*GHG_N2O_factor) -> 0
B96: =B33 ->  | C96: =IF($B96="","",VLOOKUP($B96,MASTER_PROPERTY_TABLE,MATCH("CO2 Emissions Factor (kg CO2 produced/GJ feed)",key_MPTable,0),FALSE)*$E33*$F33) ->  | D96: =IF($B96="","",VLOOKUP($B96,MASTER_PROPERTY_TABLE,MATCH("CH4 Emissions Factor (kg CH4 produced/GJ or mmBtu feed)",key_MPTable,0),FALSE)*$E33*$F33) ->  | E96: =IF($B96="","",VLOOKUP($B96,MASTER_PROPERTY_TABLE,MATCH("N2O Emissions Factor (kg N2O produced/GJ or mmBtu feed)",key_MPTable,0),FALSE)*$E33*$F33) ->  | F96: =IF($B96="","",$C96*GHG_CO2_factor+$D96*GHG_CH4_factor+$E96*GHG_N2O_factor) -> 
B97: =B34 ->  | C97: =IF($B97="","",VLOOKUP($B97,MASTER_PROPERTY_TABLE,MATCH("CO2 Emissions Factor (kg CO2 produced/GJ feed)",key_MPTable,0),FALSE)*$E34*$F34) ->  | D97: =IF($B97="","",VLOOKUP($B97,MASTER_PROPERTY_TABLE,MATCH("CH4 Emissions Factor (kg CH4 produced/GJ or mmBtu feed)",key_MPTable,0),FALSE)*$E34*$F34) ->  | E97: =IF($B97="","",VLOOKUP($B97,MASTER_PROPERTY_TABLE,MATCH("N2O Emissions Factor (kg N2O produced/GJ or mmBtu feed)",key_MPTable,0),FALSE)*$E34*$F34) ->  | F97: =IF($B97="","",$C97*GHG_CO2_factor+$D97*GHG_CH4_factor+$E97*GHG_N2O_factor) -> 
B98: =B35 ->  | C98: =IF($B98="","",VLOOKUP($B98,MASTER_PROPERTY_TABLE,MATCH("CO2 Emissions Factor (kg CO2 produced/GJ feed)",key_MPTable,0),FALSE)*$E35*$F35) ->  | D98: =IF($B98="","",VLOOKUP($B98,MASTER_PROPERTY_TABLE,MATCH("CH4 Emissions Factor (kg CH4 produced/GJ or mmBtu feed)",key_MPTable,0),FALSE)*$E35*$F35) ->  | E98: =IF($B98="","",VLOOKUP($B98,MASTER_PROPERTY_TABLE,MATCH("N2O Emissions Factor (kg N2O produced/GJ or mmBtu feed)",key_MPTable,0),FALSE)*$E35*$F35) ->  | F98: =IF($B98="","",$C98*GHG_CO2_factor+$D98*GHG_CH4_factor+$E98*GHG_N2O_factor) -> 
B99: Utility
B100: =B37 ->  | C100: =IF($B100="","",VLOOKUP($B100,MASTER_PROPERTY_TABLE,MATCH("CO2 Emissions Factor (kg CO2 produced/GJ feed)",key_MPTable,0),FALSE)*$E37*$F37) ->  | D100: =IF($B100="","",VLOOKUP($B100,MASTER_PROPERTY_TABLE,MATCH("CH4 Emissions Factor (kg CH4 produced/GJ or mmBtu feed)",key_MPTable,0),FALSE)*$E37*$F37) ->  | E100: =IF($B100="","",VLOOKUP($B100,MASTER_PROPERTY_TABLE,MATCH("N2O Emissions Factor (kg N2O produced/GJ or mmBtu feed)",key_MPTable,0),FALSE)*$E37*$F37) ->  | F100: =IF($B100="","",$C100*GHG_CO2_factor+$D100*GHG_CH4_factor+$E100*GHG_N2O_factor) -> 
B101: =B38 ->  | C101: =IF($B101="","",VLOOKUP($B101,MASTER_PROPERTY_TABLE,MATCH("CO2 Emissions Factor (kg CO2 produced/GJ feed)",key_MPTable,0),FALSE)*$E38*$F38) ->  | D101: =IF($B101="","",VLOOKUP($B101,MASTER_PROPERTY_TABLE,MATCH("CH4 Emissions Factor (kg CH4 produced/GJ or mmBtu feed)",key_MPTable,0),FALSE)*$E38*$F38) ->  | E101: =IF($B101="","",VLOOKUP($B101,MASTER_PROPERTY_TABLE,MATCH("N2O Emissions Factor (kg N2O produced/GJ or mmBtu feed)",key_MPTable,0),FALSE)*$E38*$F38) ->  | F101: =IF($B101="","",$C101*GHG_CO2_factor+$D101*GHG_CH4_factor+$E101*GHG_N2O_factor) -> 
B102: =B39 ->  | C102: =IF($B102="","",VLOOKUP($B102,MASTER_PROPERTY_TABLE,MATCH("CO2 Emissions Factor (kg CO2 produced/GJ feed)",key_MPTable,0),FALSE)*$E39*$F39) ->  | D102: =IF($B102="","",VLOOKUP($B102,MASTER_PROPERTY_TABLE,MATCH("CH4 Emissions Factor (kg CH4 produced/GJ or mmBtu feed)",key_MPTable,0),FALSE)*$E39*$F39) ->  | E102: =IF($B102="","",VLOOKUP($B102,MASTER_PROPERTY_TABLE,MATCH("N2O Emissions Factor (kg N2O produced/GJ or mmBtu feed)",key_MPTable,0),FALSE)*$E39*$F39) ->  | F102: =IF($B102="","",$C102*GHG_CO2_factor+$D102*GHG_CH4_factor+$E102*GHG_N2O_factor) -> 
B103: =B40 ->  | C103: =IF($B103="","",VLOOKUP($B103,MASTER_PROPERTY_TABLE,MATCH("CO2 Emissions Factor (kg CO2 produced/GJ feed)",key_MPTable,0),FALSE)*$E40*$F40) ->  | D103: =IF($B103="","",VLOOKUP($B103,MASTER_PROPERTY_TABLE,MATCH("CH4 Emissions Factor (kg CH4 produced/GJ or mmBtu feed)",key_MPTable,0),FALSE)*$E40*$F40) ->  | E103: =IF($B103="","",VLOOKUP($B103,MASTER_PROPERTY_TABLE,MATCH("N2O Emissions Factor (kg N2O produced/GJ or mmBtu feed)",key_MPTable,0),FALSE)*$E40*$F40) ->  | F103: =IF($B103="","",$C103*GHG_CO2_factor+$D103*GHG_CH4_factor+$E103*GHG_N2O_factor) -> 
B104: Carbon Sequestration
B105: =B42 ->  | C105: =IF($B105="","",VLOOKUP($B105,MASTER_PROPERTY_TABLE,MATCH("CO2 Emissions Factor (kg CO2 produced/GJ feed)",key_MPTable,0),FALSE)*$E42*$F42) ->  | D105: =IF($B105="","",VLOOKUP($B105,MASTER_PROPERTY_TABLE,MATCH("CH4 Emissions Factor (kg CH4 produced/GJ or mmBtu feed)",key_MPTable,0),FALSE)*$E42*$F42) ->  | E105: =IF($B105="","",VLOOKUP($B105,MASTER_PROPERTY_TABLE,MATCH("N2O Emissions Factor (kg N2O produced/GJ or mmBtu feed)",key_MPTable,0),FALSE)*$E42*$F42) ->  | F105: =IF($B105="","",$C105*GHG_CO2_factor+$D105*GHG_CH4_factor+$E105*GHG_N2O_factor) -> 
B108: Upstream GHG Emissions (kg/kg H2) based on GREET.NET 2017
B109: Feedstock | C109: CO2 | D109: CH4 | E109: N2O | F109: Total GHG (CO2 eq)
B110: =B32 -> Industrial Electricity | C110: =IF($B110="","",$C32*VLOOKUP($B110,Tbl_Emissions,6,FALSE)) -> 30.3288624 | D110: =IF($B110="","",$C32*VLOOKUP($B110,Tbl_Emissions,7,FALSE)) -> 0.04403036491 | E110: =IF($B110="","",$C32*VLOOKUP($B110,Tbl_Emissions,8,FALSE)) -> 0.000450051552 | F110: =IF($B110="","",$C110*GHG_CO2_factor+$D110*GHG_CH4_factor+$E110*GHG_N2O_factor) -> 31.56373689
B111: =B33 ->  | C111: =IF($B111="","",$C33*VLOOKUP($B111,Tbl_Emissions,6,FALSE)) ->  | D111: =IF($B111="","",$C33*VLOOKUP($B111,Tbl_Emissions,7,FALSE)) ->  | E111: =IF($B111="","",$C33*VLOOKUP($B111,Tbl_Emissions,8,FALSE)) ->  | F111: =IF($B111="","",$C111*GHG_CO2_factor+$D111*GHG_CH4_factor+$E111*GHG_N2O_factor) -> 
B112: =B34 ->  | C112: =IF($B112="","",$C34*VLOOKUP($B112,Tbl_Emissions,6,FALSE)) ->  | D112: =IF($B112="","",$C34*VLOOKUP($B112,Tbl_Emissions,7,FALSE)) ->  | E112: =IF($B112="","",$C34*VLOOKUP($B112,Tbl_Emissions,8,FALSE)) ->  | F112: =IF($B112="","",$C112*GHG_CO2_factor+$D112*GHG_CH4_factor+$E112*GHG_N2O_factor) -> 
B113: =B35 ->  | C113: =IF($B113="","",$C35*VLOOKUP($B113,Tbl_Emissions,6,FALSE)) ->  | D113: =IF($B113="","",$C35*VLOOKUP($B113,Tbl_Emissions,7,FALSE)) ->  | E113: =IF($B113="","",$C35*VLOOKUP($B113,Tbl_Emissions,8,FALSE)) ->  | F113: =IF($B113="","",$C113*GHG_CO2_factor+$D113*GHG_CH4_factor+$E113*GHG_N2O_factor) -> 
B114: Utility
B115: =B37 ->  | C115: =IF($B115="","",$C37*VLOOKUP($B115,Tbl_Emissions,6,FALSE)) ->  | D115: =IF($B115="","",$C37*VLOOKUP($B115,Tbl_Emissions,7,FALSE)) ->  | E115: =IF($B115="","",$C37*VLOOKUP($B115,Tbl_Emissions,8,FALSE)) ->  | F115: =IF($B115="","",$C115*GHG_CO2_factor+$D115*GHG_CH4_factor+$E115*GHG_N2O_factor) -> 
B116: =B38 ->  | C116: =IF($B116="","",$C38*VLOOKUP($B116,Tbl_Emissions,6,FALSE)) ->  | D116: =IF($B116="","",$C38*VLOOKUP($B116,Tbl_Emissions,7,FALSE)) ->  | E116: =IF($B116="","",$C38*VLOOKUP($B116,Tbl_Emissions,8,FALSE)) ->  | F116: =IF($B116="","",$C116*GHG_CO2_factor+$D116*GHG_CH4_factor+$E116*GHG_N2O_factor) -> 
B117: =B39 ->  | C117: =IF($B117="","",$C39*VLOOKUP($B117,Tbl_Emissions,6,FALSE)) ->  | D117: =IF($B117="","",$C39*VLOOKUP($B117,Tbl_Emissions,7,FALSE)) ->  | E117: =IF($B117="","",$C39*VLOOKUP($B117,Tbl_Emissions,8,FALSE)) ->  | F117: =IF($B117="","",$C117*GHG_CO2_factor+$D117*GHG_CH4_factor+$E117*GHG_N2O_factor) -> 
B118: =B40 ->  | C118: =IF($B118="","",$C40*VLOOKUP($B118,Tbl_Emissions,6,FALSE)) ->  | D118: =IF($B118="","",$C40*VLOOKUP($B118,Tbl_Emissions,7,FALSE)) ->  | E118: =IF($B118="","",$C40*VLOOKUP($B118,Tbl_Emissions,8,FALSE)) ->  | F118: =IF($B118="","",$C118*GHG_CO2_factor+$D118*GHG_CH4_factor+$E118*GHG_N2O_factor) -> 
B119: Carbon Sequestration
B120: =B42 ->  | C120: =IF($B120="","",$C42*VLOOKUP($B120,Tbl_Emissions,6,FALSE)) ->  | D120: =IF($B120="","",$C42*VLOOKUP($B120,Tbl_Emissions,7,FALSE)) ->  | E120: =IF($B120="","",$C42*VLOOKUP($B120,Tbl_Emissions,8,FALSE)) ->  | F120: =IF($B120="","",$C120*GHG_CO2_factor+$D120*GHG_CH4_factor+$E120*GHG_N2O_factor) -> 
B121: TOTAL | C121: =SUM(C110:C120) -> 30.3288624 | D121: =SUM(D110:D120) -> 0.04403036491 | E121: =SUM(E110:E120) -> 0.000450051552 | F121: =SUM(F110:F120) -> 31.56373689

Sheet Tornado Charts & Risk Analysis
B2: Parameter | C2: Nominal | D2: Enter deviation % for lowering H2 cost | E2: Enter deviation % for increasing H2 cost | F2: Price-decreasing factor | G2: Price-increasing factor | H2: Price-decreasing value | I2: Price-increasing value
B3: Operating Capacity Factor | C3: =+cap_factor -> 0.86 | D3: 0.05 | E3: 0.05 | F3: =1+D3 -> 1.05 | G3: =1-E3 -> 0.95 | H3: =+C3*F3 -> 0.903 | I3: =+C3*G3 -> 0.817
B4: =+Input_Sheet_Template!B26 -> Plant Design Capacity (kg of H2/day) | C4: =+design_cap -> 1695 | D4: 0.05 | E4: 0.05 | F4: =1+D4 -> 1.05 | G4: =1-E4 -> 0.95 | H4: 1779.75 | I4: 1610.25
B5: After-tax Real IRR | C5: =+real_irr -> 0.08 | D5: 0.05 | E5: 0.05 | F5: =1-D5 -> 0.95 | G5: =1+E5 -> 1.05 | H5: 0.076 | I5: 0.084
B6: Feedstock Consumption (% of baseline) | C6: 1 | D6: 0.05 | E6: 0.05 | F6: =1-D6 -> 0.95 | G6: =1+E6 -> 1.05 | H6: 0.95 | I6: 1.05
B7: Utilities Consumption (% of baseline) | C7: 1 | D7: 0.05 | E7: 0.05 | F7: =1-D7 -> 0.95 | G7: 1.05 | H7: 0.95 | I7: 1.05
B8: Total Capital Investment | C8: =+total_cap -> 3132323.811 | D8: 0.05 | E8: 0.05 | F8: =1-D8 -> 0.95 | G8: 1.05 | H8: 2975707.621 | I8: 3288940.002
B9: Total Fixed Operating Cost | C9: =+fixed -> 181036.7904 | D9: 0.05 | E9: 0.05 | F9: =1-D9 -> 0.95 | G9: 1.05 | H9: 171984.9509 | I9: 190088.6299
B11: Run Risk Analysis (note: Risk analysis could take ~5 min to run)? | D11: Yes | E11: =IF(RunRiskAnalysis="Yes"," Please click Update Charts and Risk Analysis button before using results below","") -> Please click Update Charts and Risk Analysis button before using results below
P12: Risk variable to plot | R12: Cost of hydrogen ($/kg)
V13: Percentile | W13: Value
V14: 0 | W14: =+MIN(OFFSET($B$251:$B$2250,0,$C$194))*$C$198 -> 4.385042914
V15: 0.05 | W15: =+PERCENTILE(OFFSET($B$251:$B$2250,0,$C$194),V15)*$C$198 -> 4.452377752
V16: =+V15+0.05 -> 0.1 | W16: 4.478969602
V17: 0.15 | W17: 4.499133834
V18: 0.2 | W18: 4.5152063
V19: 0.25 | W19: 4.530574287
V20: 0.3 | W20: 4.544760703
V21: 0.35 | W21: 4.558339672
V22: 0.4 | W22: 4.567930098
V23: 0.45 | W23: 4.577884048
V24: 0.5 | W24: 4.590175099
V25: 0.55 | W25: 4.600348749
V26: 0.6 | W26: 4.613474691
V27: 0.65 | W27: 4.623019841
V28: 0.7 | W28: 4.635214463
V29: 0.75 | W29: 4.651476528
V30: 0.8 | W30: 4.666458369
V31: 0.85 | W31: 4.682846118
V32: 0.9 | W32: 4.707231992
V33: 0.95 | W33: 4.735078201
V34: 1 | W34: =+MAX(OFFSET($B$251:$B$2250,0,$C$194))*$C$198 -> 4.806906994
B45: No user interactions below this row
B47: Displayed case
B48: 1 | C48: =+OFFSET(C50,$B$48,0) -> 1 | D48: 1 | E48: 1 | F48: =+OFFSET(F50,$B$48,0) -> 1 | G48: =+OFFSET(G50,$B$48,0) -> 1 | H48: =+OFFSET(H50,$B$48,0) -> 1 | I48: =+OFFSET(I50,$B$48,0) -> 1 | K48: =+'Cash Flow Analysis'!F118 -> 4.96928932 | L48: =+'Cash Flow Analysis'!Q118 -> 0 | M48: =+'Cash Flow Analysis'!L118 -> 0.01317537334 | N48: =+'Cash Flow Analysis'!H117 -> 0.2456394021 | O48: =+'Cash Flow Analysis'!I117 -> 0.09210837483 | P48: =+'Cash Flow Analysis'!J117 -> 0.05901121241 | Q48: =+'Cash Flow Analysis'!K117 -> 0 | R48: =+'Cash Flow Analysis'!M117 -> 0.01317537334 | S48: =+'Cash Flow Analysis'!N117 -> 0.3443639681 | T48: =+'Cash Flow Analysis'!O117 -> 4.054719241 | U48: =+'Cash Flow Analysis'!P117 -> 0 | V48: =+'Cash Flow Analysis'!R117 -> 0.01236038905 | W48: =+'Cash Flow Analysis'!S117 -> 0.1292875297 | X48: =+'Cash Flow Analysis'!X117 -> -0.02245463947 | Y48: =+'Cash Flow Analysis'!Z117 -> 0.05425384231
B50: Case | C50: Operating capacity factor | D50: Plant design capacity (kg of H2/day) | E50: After-tax real IRR (%) | F50: Feedstock consumption (% of most likely value) | G50: Utilities consumption (% of most likely value) | H50: Total capital investment ($) | I50: Total fixed operating cost ($/year) | K50: Cost of hydrogen ($/kg) | L50: Revenue from byproduct sales ($/kg) | M50: Salvage value ($/kg) | N50: Initial equity depreciable capital ($/kg) | O50: Yearly replacement costs ($/kg) | P50: Cash from working capital reserve ($/kg) | Q50: Other non-depreciable capital costs ($/kg) | R50: Decommissioning costs ($/kg) | S50: Fixed operating cost ($/kg) | T50: Feedstock cost ($/kg) | U50: Other raw material cost ($/kg) | V50: Other variable operating costs ($/kg) | W50: Debt interest ($/kg) | X50: Taxes ($/kg) | Y50: Principal payment ($/kg)
B51: 1 | C51: 1 | D51: 1 | E51: 1 | F51: 1 | G51: 1 | H51: 1 | I51: 1 | K51: 4.589300283 | L51: 0 | M51: 0.007597388072 | N51: 0.1416444008 | O51: 0.03498737861 | P51: 0.05698272753 | Q51: 0 | R51: 0.007597388072 | S51: 0.1995887721 | T51: 4.044334858 | U51: 0 | V51: 0.01220882277 | W51: 0.07455178007 | X51: -0.006283148528 | Y51: 0.0312846918
B52: =+B51+1 -> 2 | C52: =+F3 -> 1.05 | D52: 1 | E52: 1 | F52: 1 | G52: 1 | H52: 1 | I52: 1 | K52: 4.567256795 | L52: 0 | M52: 0.007235607688 | N52: 0.1348994294 | O52: 0.03332131296 | P52: 0.05685333037 | Q52: 0 | R52: 0.007235607688 | S52: 0.1900845449 | T52: 4.044334858 | U52: 0 | V52: 0.01205494145 | W52: 0.0710016953 | X52: -0.005088262042 | Y52: 0.02979494457
B53: =+B52+1 -> 3 | C53: =+G3 -> 0.95 | D53: 1 | E53: 1 | F53: 1 | G53: 1 | H53: 1 | I53: 1 | K53: 4.613664139 | L53: 0 | M53: 0.007997250602 | N53: 0.1490993693 | O53: 0.03682881959 | P53: 0.05712574543 | Q53: 0 | R53: 0.007997250602 | S53: 0.2100934444 | T53: 4.044334858 | U53: 0 | V53: 0.01237890212 | W53: 0.07847555796 | X53: -0.007603812539 | Y53: 0.03293125452
B54: 4 | C54: 1 | D54: =+F4 -> 1.05 | E54: 1 | F54: 1 | G54: 1 | H54: 1 | I54: 1 | K54: 4.583695256 | L54: 0 | M54: 0.007441463155 | N54: 0.1387373634 | O54: 0.03429038037 | P54: 0.05697792806 | Q54: 0 | R54: 0.007441463155 | S54: 0.1992305449 | T54: 4.044334858 | U54: 0 | V54: 0.01220882277 | W54: 0.07302171736 | X54: -0.005748980113 | Y54: 0.03064262074
B55: 5 | C55: 1 | D55: =+G4 -> 0.95 | E55: 1 | F55: 1 | G55: 1 | H55: 1 | I55: 1 | K55: 4.59537121 | L55: 0 | M55: 0.007765127516 | N55: 0.1447717063 | O55: 0.035736097 | P55: 0.05698844829 | Q55: 0 | R55: 0.007765127516 | S55: 0.200015764 | T55: 4.044334858 | U55: 0 | V55: 0.01220882277 | W55: 0.07619777656 | X55: -0.006857676354 | Y55: 0.03197541297
B56: 6 | C56: 1 | D56: 1 | E56: =+F5 -> 0.95 | F56: 1 | G56: 1 | H56: 1 | I56: 1 | K56: 4.584710808 | L56: 0 | M56: 0.007935629046 | N56: 0.1373683799 | O56: 0.03509043608 | P56: 0.05483082685 | Q56: 0 | R56: 0.007935629046 | S56: 0.19952548 | T56: 4.045343028 | U56: 0 | V56: 0.01220882277 | W56: 0.07413795623 | X56: -0.006471630309 | Y56: 0.03267750792
B57: 7 | C57: 1 | D57: 1 | E57: =+G5 -> 1.05 | F57: 1 | G57: 1 | H57: 1 | I57: 1 | K57: 4.594031652 | L57: 0 | M57: 0.007271833872 | N57: 0.145978731 | O57: 0.03487858284 | P57: 0.05912034413 | Q57: 0 | R57: 0.007271833872 | S57: 0.1996525737 | T57: 4.043337575 | U57: 0 | V57: 0.01220882277 | W57: 0.07496754315 | X57: -0.006056637748 | Y57: 0.02994411755
B58: 8 | C58: 1 | D58: 1 | E58: 1 | F58: =+F6 -> 0.95 | G58: 1 | H58: 1 | I58: 1 | K58: 4.383437894 | L58: 0 | M58: 0.007597388072 | N58: 0.1416444008 | O58: 0.03498737861 | P58: 0.05427547035 | Q58: 0 | R58: 0.007597388072 | S58: 0.1995887721 | T58: 3.842118115 | U58: 0 | V58: 0.01220882277 | W58: 0.07455178007 | X58: -0.007221537968 | Y58: 0.0312846918
B59: 9 | C59: 1 | D59: 1 | E59: 1 | F59: =+G6 -> 1.05 | G59: 1 | H59: 1 | I59: 1 | K59: 4.795162673 | L59: 0 | M59: 0.007597388072 | N59: 0.1416444008 | O59: 0.03498737861 | P59: 0.05968998471 | Q59: 0 | R59: 0.007597388072 | S59: 0.1995887721 | T59: 4.246551601 | U59: 0 | V59: 0.01220882277 | W59: 0.07455178007 | X59: -0.005344759088 | Y59: 0.0312846918
B60: 10 | C60: 1 | D60: 1 | E60: 1 | F60: 1 | G60: =+F7 -> 0.95 | H60: 1 | I60: 1 | K60: 4.589300283 | L60: 0 | M60: 0.007597388072 | N60: 0.1416444008 | O60: 0.03498737861 | P60: 0.05698272753 | Q60: 0 | R60: 0.007597388072 | S60: 0.1995887721 | T60: 4.044334858 | U60: 0 | V60: 0.01220882277 | W60: 0.07455178007 | X60: -0.006283148528 | Y60: 0.0312846918
B61: 11 | C61: 1 | D61: 1 | E61: 1 | F61: 1 | G61: =+G6 -> 1.05 | H61: 1 | I61: 1 | K61: 4.589300283 | L61: 0 | M61: 0.007597388072 | N61: 0.1416444008 | O61: 0.03498737861 | P61: 0.05698272753 | Q61: 0 | R61: 0.007597388072 | S61: 0.1995887721 | T61: 4.044334858 | U61: 0 | V61: 0.01220882277 | W61: 0.07455178007 | X61: -0.006283148528 | Y61: 0.0312846918
B62: 12 | C62: 1 | D62: 1 | E62: 1 | F62: 1 | G62: 1 | H62: =+F8 -> 0.95 | I62: 1 | K62: 4.574852327 | L62: 0 | M62: 0.007217518669 | N62: 0.1345621808 | O62: 0.03498737861 | P62: 0.05693669621 | Q62: 0 | R62: 0.007217518669 | S62: 0.1961530432 | T62: 4.044334858 | U62: 0 | V62: 0.01220882277 | W62: 0.07082419106 | X62: -0.004875301198 | Y62: 0.02972045721
B63: 13 | C63: 1 | D63: 1 | E63: 1 | F63: 1 | G63: 1 | H63: =+G8 -> 1.05 | I63: 1 | K63: 4.60374824 | L63: 0 | M63: 0.007977257476 | N63: 0.1487266209 | O63: 0.03498737861 | P63: 0.05702875884 | Q63: 0 | R63: 0.007977257476 | S63: 0.2030245011 | T63: 4.044334858 | U63: 0 | V63: 0.01220882277 | W63: 0.07827936907 | X63: -0.007690995858 | Y63: 0.03284892639
B64: 14 | C64: 1 | D64: 1 | E64: 1 | F64: 1 | G64: 1 | H64: 1 | I64: =+F9 -> 0.95 | K64: 4.579140798 | L64: 0 | M64: 0.007597388072 | N64: 0.1416444008 | O64: 0.03498737861 | P64: 0.05684902469 | Q64: 0 | R64: 0.007597388072 | S64: 0.1896093335 | T64: 4.044334858 | U64: 0 | V64: 0.01220882277 | W64: 0.07455178007 | X64: -0.006329492605 | Y64: 0.0312846918
B65: 15 | C65: 1 | D65: 1 | E65: 1 | F65: 1 | G65: 1 | H65: 1 | I65: =+G9 -> 1.05 | K65: 4.599459769 | L65: 0 | M65: 0.007597388072 | N65: 0.1416444008 | O65: 0.03498737861 | P65: 0.05711643037 | Q65: 0 | R65: 0.007597388072 | S65: 0.2095682108 | T65: 4.044334858 | U65: 0 | V65: 0.01220882277 | W65: 0.07455178007 | X65: -0.006236804452 | Y65: 0.0312846918
B66: 16 | C66: =(C$72=1)*$F$3 +(C$72=2) +(C$72=3) +(C$72=4) +(C$72=5) -> 1 | D66: 1 | E66: 1 | F66: =(F$72=1)*$F$6 +(F$72=2) +(F$72=3) +(F$72=4) +(F$72=5) -> 0.95 | G66: =(G$72=1)*$F$7 +(G$72=2) +(G$72=3) +(G$72=4) +(G$72=5) -> 1 | H66: =(H$72=1)*$F$8 +(H$72=2) +(H$72=3) +(H$72=4) +(H$72=5) -> 1 | I66: =(I$72=1)*$F$9 +(I$72=2) +(I$72=3) +(I$72=4) +(I$72=5) -> 1 | K66: 4.383437894 | L66: 0 | M66: 0.007597388072 | N66: 0.1416444008 | O66: 0.03498737861 | P66: 0.05427547035 | Q66: 0 | R66: 0.007597388072 | S66: 0.1995887721 | T66: 3.842118115 | U66: 0 | V66: 0.01220882277 | W66: 0.07455178007 | X66: -0.007221537968 | Y66: 0.0312846918
B67: 17 | C67: =(C$72=1)*$F$3 +(C$72=2)*$F$3 +(C$72=3) +(C$72=4) +(C$72=5) -> 1.05 | D67: 1 | E67: 1 | F67: =(F$72=1)*$F$6 +(F$72=2)*$F$6 +(F$72=3) +(F$72=4) +(F$72=5) -> 0.95 | G67: =(G$72=1)*$F$7 +(G$72=2)*$F$7 +(G$72=3) +(G$72=4) +(G$72=5) -> 1 | H67: =(H$72=1)*$F$8 +(H$72=2)*$F$8 +(H$72=3) +(H$72=4) +(H$72=5) -> 1 | I67: =(I$72=1)*$F$9 +(I$72=2)*$F$9 +(I$72=3) +(I$72=4) +(I$72=5) -> 1 | K67: 4.361394405 | L67: 0 | M67: 0.007235607688 | N67: 0.1348994294 | O67: 0.03332131296 | P67: 0.05414607319 | Q67: 0 | R67: 0.007235607688 | S67: 0.1900845449 | T67: 3.842118115 | U67: 0 | V67: 0.01205494145 | W67: 0.0710016953 | X67: -0.006026651482 | Y67: 0.02979494457
B68: 18 | C68: =(C$72=1)*$F$3 +(C$72=2)*$F$3 +(C$72=3)*$F$3 +(C$72=4) +(C$72=5) -> 1.05 | D68: 1 | E68: 1 | F68: =(F$72=1)*$F$6 +(F$72=2)*$F$6 +(F$72=3)*$F$6 +(F$72=4) +(F$72=5) -> 0.95 | G68: =(G$72=1)*$F$7 +(G$72=2)*$F$7 +(G$72=3)*$F$7 +(G$72=4) +(G$72=5) -> 1 | H68: =(H$72=1)*$F$8 +(H$72=2)*$F$8 +(H$72=3)*$F$8 +(H$72=4) +(H$72=5) -> 0.95 | I68: =(I$72=1)*$F$9 +(I$72=2)*$F$9 +(I$72=3)*$F$9 +(I$72=4) +(I$72=5) -> 1 | K68: 4.347634447 | L68: 0 | M68: 0.006873827303 | N68: 0.1281544579 | O68: 0.03332131296 | P68: 0.05410223384 | Q68: 0 | R68: 0.006873827303 | S68: 0.1868124221 | T68: 3.842118115 | U68: 0 | V68: 0.01205494145 | W68: 0.06745161054 | X68: -0.004685844501 | Y68: 0.02830519734
B69: 19 | C69: =(C$72=1)*$F$3 +(C$72=2)*$F$3 +(C$72=3)*$F$3 +(C$72=4)*$F$3 +(C$72=5) -> 1.05 | D69: 1 | E69: 1 | F69: =(F$72=1)*$F$6 +(F$72=2)*$F$6 +(F$72=3)*$F$6 +(F$72=4)*$F$6 +(F$72=5) -> 0.95 | G69: =(G$72=1)*$F$7 +(G$72=2)*$F$7 +(G$72=3)*$F$7 +(G$72=4)*$F$7 +(G$72=5) -> 1 | H69: =(H$72=1)*$F$8 +(H$72=2)*$F$8 +(H$72=3)*$F$8 +(H$72=4)*$F$8 +(H$72=5) -> 0.95 | I69: =(I$72=1)*$F$9 +(I$72=2)*$F$9 +(I$72=3)*$F$9 +(I$72=4)*$F$9 +(I$72=5) -> 0.95 | K69: 4.338125304 | L69: 0 | M69: 0.006873827303 | N69: 0.1281544579 | O69: 0.03332131296 | P69: 0.05397708977 | Q69: 0 | R69: 0.006873827303 | S69: 0.177471801 | T69: 3.842118115 | U69: 0 | V69: 0.01205494145 | W69: 0.06745161054 | X69: -0.004729221937 | Y69: 0.02830519734
B70: 20 | C70: =(C$72=1)*$F$3 +(C$72=2)*$F$3 +(C$72=3)*$F$3 +(C$72=4)*$F$3 +(C$72=5)*$F$3 -> 1.05 | D70: 1 | E70: 1 | F70: =(F$72=1)*$F$6 +(F$72=2)*$F$6 +(F$72=3)*$F$6 +(F$72=4)*$F$6 +(F$72=5)*$F$6 -> 0.95 | G70: =(G$72=1)*$F$7 +(G$72=2)*$F$7 +(G$72=3)*$F$7 +(G$72=4)*$F$7 +(G$72=5)*$F$7 -> 0.95 | H70: =(H$72=1)*$F$8 +(H$72=2)*$F$8 +(H$72=3)*$F$8 +(H$72=4)*$F$8 +(H$72=5)*$F$8 -> 0.95 | I70: =(I$72=1)*$F$9 +(I$72=2)*$F$9 +(I$72=3)*$F$9 +(I$72=4)*$F$9 +(I$72=5)*$F$9 -> 0.95 | K70: 4.338125304 | L70: 0 | M70: 0.006873827303 | N70: 0.1281544579 | O70: 0.03332131296 | P70: 0.05397708977 | Q70: 0 | R70: 0.006873827303 | S70: 0.177471801 | T70: 3.842118115 | U70: 0 | V70: 0.01205494145 | W70: 0.06745161054 | X70: -0.004729221937 | Y70: 0.02830519734
B72: Waterfall Chart Priority | C72: =6-RANK($N$101,($N$101,$N$104:$N$107)) -> 2 | F72: =6-RANK($N$104,($N$101,$N$104:$N$107)) -> 1 | G72: =6-RANK($N$105,($N$101,$N$104:$N$107)) -> 5 | H72: =6-RANK($N$106,($N$101,$N$104:$N$107)) -> 3 | I72: =6-RANK($N$107,($N$101,$N$104:$N$107)) -> 4
B74: Visualization data formatting
B76: parameter | C76: level | D76: Chart titles | E76: Revenue from Hydrogen Sales | F76: Revenue from Byproduct Sales | G76: Salvage Value | H76: Initial Equity Depreciable Capital | I76: Yearly Replacement Costs | J76: Cash for Working Capital Reserve | K76: Other Non-Depreciable Capital Costs | L76: Decommissioning Costs | M76: Fixed Operating Cost | N76: Feedstock Cost | O76: Other Raw Material Cost | P76: Other Variable Operating Costs | Q76: Debt Interest | R76: Taxes | S76: Principal Payment
B77: =+$B$3 -> Operating Capacity Factor | C77: =+H3 -> 0.903 | D77: =+B77&" = "&C77*100&"%" -> Operating Capacity Factor = 90.3% | E77: =+K52 -> 4.567256795 | F77: 0 | G77: 0.007235607688 | H77: 0.1348994294 | I77: 0.03332131296 | J77: 0.05685333037 | K77: 0 | L77: 0.007235607688 | M77: 0.1900845449 | N77: 4.044334858 | O77: 0 | P77: 0.01205494145 | Q77: 0.0710016953 | R77: -0.005088262042 | S77: 0.02979494457
B78: =+$B$3 -> Operating Capacity Factor | C78: =+C3 -> 0.86 | D78: =+B78&" = "&C78*100&"%" -> Operating Capacity Factor = 86% | E78: =+K$51 -> 4.589300283 | F78: 0 | G78: 0.007597388072 | H78: 0.1416444008 | I78: 0.03498737861 | J78: 0.05698272753 | K78: 0 | L78: 0.007597388072 | M78: 0.1995887721 | N78: 4.044334858 | O78: 0 | P78: 0.01220882277 | Q78: 0.07455178007 | R78: -0.006283148528 | S78: 0.0312846918
B79: Operating Capacity Factor | C79: =+I3 -> 0.817 | D79: Operating Capacity Factor = 81.7% | E79: =+K53 -> 4.613664139 | F79: 0 | G79: 0.007997250602 | H79: 0.1490993693 | I79: 0.03682881959 | J79: 0.05712574543 | K79: 0 | L79: 0.007997250602 | M79: 0.2100934444 | N79: 4.044334858 | O79: 0 | P79: 0.01237890212 | Q79: 0.07847555796 | R79: -0.007603812539 | S79: 0.03293125452
B80: =+$B$4 -> Plant Design Capacity (kg of H2/day) | C80: =ROUND(H4,0) -> 1780 | D80: =+B80&" = "&TEXT(C80,"0,000") -> Plant Design Capacity (kg of H2/day) = 1,780 | E80: 4.583695256 | F80: 0 | G80: 0.007441463155 | H80: 0.1387373634 | I80: 0.03429038037 | J80: 0.05697792806 | K80: 0 | L80: 0.007441463155 | M80: 0.1992305449 | N80: 4.044334858 | O80: 0 | P80: 0.01220882277 | Q80: 0.07302171736 | R80: -0.005748980113 | S80: 0.03064262074
B81: =+$B$4 -> Plant Design Capacity (kg of H2/day) | C81: =+ROUND(C4,0) -> 1695 | D81: =+B81&" = "&TEXT(C81,"0,000") -> Plant Design Capacity (kg of H2/day) = 1,695 | E81: =+K$51 -> 4.589300283 | F81: 0 | G81: 0.007597388072 | H81: 0.1416444008 | I81: 0.03498737861 | J81: 0.05698272753 | K81: 0 | L81: 0.007597388072 | M81: 0.1995887721 | N81: 4.044334858 | O81: 0 | P81: 0.01220882277 | Q81: 0.07455178007 | R81: -0.006283148528 | S81: 0.0312846918
B82: Plant Design Capacity (kg of H2/day) | C82: =ROUND(I4,0) -> 1610 | D82: Plant Design Capacity (kg of H2/day) = 1,610 | E82: =+K55 -> 4.59537121 | F82: 0 | G82: 0.007765127516 | H82: 0.1447717063 | I82: 0.035736097 | J82: 0.05698844829 | K82: 0 | L82: 0.007765127516 | M82: 0.200015764 | N82: 4.044334858 | O82: 0 | P82: 0.01220882277 | Q82: 0.07619777656 | R82: -0.006857676354 | S82: 0.03197541297
B83: =+$B$5 -> After-tax Real IRR | C83: =+ROUND(H5,2) -> 0.08 | D83: =+B83&" = "&C83*100&"%" -> After-tax Real IRR = 8% | E83: 4.584710808 | F83: 0 | G83: 0.007935629046 | H83: 0.1373683799 | I83: 0.03509043608 | J83: 0.05483082685 | K83: 0 | L83: 0.007935629046 | M83: 0.19952548 | N83: 4.045343028 | O83: 0 | P83: 0.01220882277 | Q83: 0.07413795623 | R83: -0.006471630309 | S83: 0.03267750792
B84: =+$B$5 -> After-tax Real IRR | C84: =ROUND(C5,2) -> 0.08 | D84: After-tax Real IRR = 8% | E84: =+K$51 -> 4.589300283 | F84: 0 | G84: 0.007597388072 | H84: 0.1416444008 | I84: 0.03498737861 | J84: 0.05698272753 | K84: 0 | L84: 0.007597388072 | M84: 0.1995887721 | N84: 4.044334858 | O84: 0 | P84: 0.01220882277 | Q84: 0.07455178007 | R84: -0.006283148528 | S84: 0.0312846918
B85: After-tax Real IRR | C85: =ROUND(I5,2) -> 0.08 | D85: After-tax Real IRR = 8% | E85: =+K57 -> 4.594031652 | F85: 0 | G85: 0.007271833872 | H85: 0.145978731 | I85: 0.03487858284 | J85: 0.05912034413 | K85: 0 | L85: 0.007271833872 | M85: 0.1996525737 | N85: 4.043337575 | O85: 0 | P85: 0.01220882277 | Q85: 0.07496754315 | R85: -0.006056637748 | S85: 0.02994411755
B86: =+$B$6 -> Feedstock Consumption (% of baseline) | C86: =+ROUND(H6,3) -> 0.95 | D86: =+B86&" = "&C86*100&"%" -> Feedstock Consumption (% of baseline) = 95% | E86: 4.383437894 | F86: 0 | G86: 0.007597388072 | H86: 0.1416444008 | I86: 0.03498737861 | J86: 0.05427547035 | K86: 0 | L86: 0.007597388072 | M86: 0.1995887721 | N86: 3.842118115 | O86: 0 | P86: 0.01220882277 | Q86: 0.07455178007 | R86: -0.007221537968 | S86: 0.0312846918
B87: =+$B$6 -> Feedstock Consumption (% of baseline) | C87: =+ROUND(C6,3) -> 1 | D87: =+B87&" = "&C87*100&"%" -> Feedstock Consumption (% of baseline) = 100% | E87: =+K$51 -> 4.589300283 | F87: 0 | G87: 0.007597388072 | H87: 0.1416444008 | I87: 0.03498737861 | J87: 0.05698272753 | K87: 0 | L87: 0.007597388072 | M87: 0.1995887721 | N87: 4.044334858 | O87: 0 | P87: 0.01220882277 | Q87: 0.07455178007 | R87: -0.006283148528 | S87: 0.0312846918
B88: Feedstock Consumption (% of baseline) | C88: =+ROUND(I6,3) -> 1.05 | D88: =+B88&" = "&C88*100&"%" -> Feedstock Consumption (% of baseline) = 105% | E88: =+K59 -> 4.795162673 | F88: 0 | G88: 0.007597388072 | H88: 0.1416444008 | I88: 0.03498737861 | J88: 0.05968998471 | K88: 0 | L88: 0.007597388072 | M88: 0.1995887721 | N88: 4.246551601 | O88: 0 | P88: 0.01220882277 | Q88: 0.07455178007 | R88: -0.005344759088 | S88: 0.0312846918
B89: =+$B$7 -> Utilities Consumption (% of baseline) | C89: =+ROUND(H7,3) -> 0.95 | D89: =+B89&" = "&C89*100&"%" -> Utilities Consumption (% of baseline) = 95% | E89: 4.589300283 | F89: 0 | G89: 0.007597388072 | H89: 0.1416444008 | I89: 0.03498737861 | J89: 0.05698272753 | K89: 0 | L89: 0.007597388072 | M89: 0.1995887721 | N89: 4.044334858 | O89: 0 | P89: 0.01220882277 | Q89: 0.07455178007 | R89: -0.006283148528 | S89: 0.0312846918
B90: =+$B$7 -> Utilities Consumption (% of baseline) | C90: =+ROUND(C7,3) -> 1 | D90: Utilities Consumption (% of baseline) = 100% | E90: =+K$51 -> 4.589300283 | F90: =+L$51 -> 0 | G90: 0.007597388072 | H90: 0.1416444008 | I90: 0.03498737861 | J90: 0.05698272753 | K90: 0 | L90: 0.007597388072 | M90: 0.1995887721 | N90: 4.044334858 | O90: 0 | P90: 0.01220882277 | Q90: 0.07455178007 | R90: -0.006283148528 | S90: 0.0312846918
B91: Utilities Consumption (% of baseline) | C91: =+ROUND(I7,3) -> 1.05 | D91: Utilities Consumption (% of baseline) = 105% | E91: =+K61 -> 4.589300283 | F91: 0 | G91: 0.007597388072 | H91: 0.1416444008 | I91: 0.03498737861 | J91: 0.05698272753 | K91: 0 | L91: 0.007597388072 | M91: 0.1995887721 | N91: 4.044334858 | O91: 0 | P91: 0.01220882277 | Q91: 0.07455178007 | R91: -0.006283148528 | S91: 0.0312846918
B92: =+$B$8 -> Total Capital Investment | C92: =+ROUND(H8,0) -> 2975708 | D92: =+B92&" = "&TEXT(C92/1000,"$0,000K") -> Total Capital Investment = $2,976K | E92: 4.574852327 | F92: 0 | G92: 0.007217518669 | H92: 0.1345621808 | I92: 0.03498737861 | J92: 0.05693669621 | K92: 0 | L92: 0.007217518669 | M92: 0.1961530432 | N92: 4.044334858 | O92: 0 | P92: 0.01220882277 | Q92: 0.07082419106 | R92: -0.004875301198 | S92: 0.02972045721
B93: =+$B$8 -> Total Capital Investment | C93: =+ROUND(C8,0) -> 3132324 | D93: Total Capital Investment = $3,132K | E93: =+K$51 -> 4.589300283 | F93: 0 | G93: 0.007597388072 | H93: 0.1416444008 | I93: 0.03498737861 | J93: 0.05698272753 | K93: 0 | L93: 0.007597388072 | M93: 0.1995887721 | N93: 4.044334858 | O93: 0 | P93: 0.01220882277 | Q93: 0.07455178007 | R93: -0.006283148528 | S93: 0.0312846918
B94: Total Capital Investment | C94: =+ROUND(I8,0) -> 3288940 | D94: Total Capital Investment = $3,289K | E94: =+K63 -> 4.60374824 | F94: 0 | G94: 0.007977257476 | H94: 0.1487266209 | I94: 0.03498737861 | J94: 0.05702875884 | K94: 0 | L94: 0.007977257476 | M94: 0.2030245011 | N94: 4.044334858 | O94: 0 | P94: 0.01220882277 | Q94: 0.07827936907 | R94: -0.007690995858 | S94: 0.03284892639
B95: =+$B$9 -> Total Fixed Operating Cost | C95: =+ROUND(H9,0) -> 171985 | D95: Total Fixed Operating Cost = $0,172K | E95: 4.579140798 | F95: 0 | G95: 0.007597388072 | H95: 0.1416444008 | I95: 0.03498737861 | J95: 0.05684902469 | K95: 0 | L95: 0.007597388072 | M95: 0.1896093335 | N95: 4.044334858 | O95: 0 | P95: 0.01220882277 | Q95: 0.07455178007 | R95: -0.006329492605 | S95: 0.0312846918
B96: =+$B$9 -> Total Fixed Operating Cost | C96: =+ROUND(C9,0) -> 181037 | D96: Total Fixed Operating Cost = $0,181K | E96: =+K$51 -> 4.589300283 | F96: 0 | G96: 0.007597388072 | H96: 0.1416444008 | I96: 0.03498737861 | J96: 0.05698272753 | K96: 0 | L96: 0.007597388072 | M96: 0.1995887721 | N96: 4.044334858 | O96: 0 | P96: 0.01220882277 | Q96: 0.07455178007 | R96: -0.006283148528 | S96: 0.0312846918
B97: Total Fixed Operating Cost | C97: =+ROUND(I9,0) -> 190089 | D97: Total Fixed Operating Cost = $0,190K | E97: =+K65 -> 4.599459769 | F97: 0 | G97: 0.007597388072 | H97: 0.1416444008 | I97: 0.03498737861 | J97: 0.05711643037 | K97: 0 | L97: 0.007597388072 | M97: 0.2095682108 | N97: 4.044334858 | O97: 0 | P97: 0.01220882277 | Q97: 0.07455178007 | R97: -0.006236804452 | S97: 0.0312846918
B100: Standard Toranado | C100: Rank | D100: Titles | E100: Low cost price | F100: Default price | G100: High price | H100: dL0 | I100: dL1 | J100: dL2 | L100: Unsorted titles | M100: Results spread ($/kg) | N100: Importance ranking
C101: 1 | D101: =OFFSET(L$100,MATCH($C101,$N$101:$N$107,0),0) -> Feedstock Consumption (% of baseline) (95%, 100%, 105%) | E101: =OFFSET(E$76,MATCH($C101,$N$101:$N$107,0)*3-2,0) -> 4.383437894 | F101: =+$K$51 -> 4.589300283 | G101: =OFFSET(E$76,MATCH($C101,$N$101:$N$107,0)*3,0) -> 4.795162673 | H101: =+E101 -> 4.383437894 | I101: =+F101-E101 -> 0.2058623895 | J101: =+G101-F101 -> 0.2058623895 | L101: =+B3&" ("&TEXT(H3,"0%, ")&TEXT(C3,"0%, ")&TEXT(I3,"0%)") -> Operating Capacity Factor (90%, 86%, 82%) | M101: =ABS(K52-K53)+0.000000001 -> 0.04640734487 | N101: =+RANK(M101,$M$101:$M$107) -> 2
C102: 2 | D102: Operating Capacity Factor (90%, 86%, 82%) | E102: 4.567256795 | F102: 4.589300283 | G102: 4.613664139 | H102: =+E102 -> 4.567256795 | I102: =+F102-E102 -> 0.02204348834 | J102: =+G102-F102 -> 0.02436385553 | L102: =+B4&" ("&TEXT(H4,"0,000")&", "&TEXT(C4,"0,000")&", "&TEXT(I4,"0,000")&") " -> Plant Design Capacity (kg of H2/day) (1,780, 1,695, 1,610) | M102: =+ABS(K54-K55)+0.000000002 -> 0.01167595609 | N102: 5
C103: 3 | D103: Total Capital Investment ($2,976K, $3,132K, $3,289K) | E103: 4.574852327 | F103: 4.589300283 | G103: 4.60374824 | H103: 4.574852327 | I103: 0.01444795657 | J103: 0.01444795657 | L103: =+B5&" ("&TEXT(H5,"0%, ")&TEXT(C5,"0%, ")&TEXT(I5,"0%)") -> After-tax Real IRR (8%, 8%, 8%) | M103: =+ABS(K56-K57)+0.000000003 -> 0.009320847438 | N103: 6
C104: 4 | D104: Total Fixed Operating Cost ($0,172K, $0,181K, $0,190K) | E104: 4.579140798 | F104: 4.589300283 | G104: 4.599459769 | H104: 4.579140798 | I104: 0.01015948552 | J104: 0.01015948552 | L104: =+B6&" ("&TEXT(H6,"0%, ")&TEXT(C6,"0%, ")&TEXT(I6,"0%)") -> Feedstock Consumption (% of baseline) (95%, 100%, 105%) | M104: =+ABS(K58-K59)+0.000000004 -> 0.4117247831 | N104: 1
C105: 5 | D105: Plant Design Capacity (kg of H2/day) (1,780, 1,695, 1,610) | E105: 4.583695256 | F105: 4.589300283 | G105: 4.59537121 | H105: =+E105 -> 4.583695256 | I105: =+F105-E105 -> 0.005605027769 | J105: =+G105-F105 -> 0.006070926319 | L105: =+B7&" ("&TEXT(H7,"0%, ")&TEXT(C7,"0%, ")&TEXT(I7,"0%)") -> Utilities Consumption (% of baseline) (95%, 100%, 105%) | M105: =+ABS(K60-K61)+0.000000004 -> 4e-09 | N105: 7
C106: 6 | D106: After-tax Real IRR (8%, 8%, 8%) | E106: 4.584710808 | F106: 4.589300283 | G106: 4.594031652 | H106: 4.584710808 | I106: 0.004589475454 | J106: 0.004731368984 | L106: =+B8&" ("&TEXT(H8/1000,"$0,000K")&", "&TEXT(C8/1000,"$0,000K")&", "&TEXT(I8/1000,"$0,000K")&") " -> Total Capital Investment ($2,976K, $3,132K, $3,289K) | M106: =+ABS(K62-K63)+0.000000006 -> 0.02889591914 | N106: 3
C107: 7 | D107: Utilities Consumption (% of baseline) (95%, 100%, 105%) | E107: 4.589300283 | F107: 4.589300283 | G107: 4.589300283 | H107: 4.589300283 | I107: 0 | J107: 0 | L107: =+B9&" ("&TEXT(H9/1000,"$0,000K")&", "&TEXT(C9/1000,"$0,000K")&", "&TEXT(I9/1000,"$0,000K")&") " -> Total Fixed Operating Cost ($0,172K, $0,181K, $0,190K) | M107: =+ABS(K64-K65)+0.00000007 -> 0.02031904105 | N107: 4
B110: Simple bar chart | C110: Rank | D110: =+D76 -> Chart titles | E110: Hydrogen Sales | F110: Byproduct Sales | G110: Salvage Value | H110: =+H76 -> Initial Equity Depreciable Capital | I110: Yearly Replacement Costs | J110: Cash for Working Capital Reserve | K110: Other Non-Depreciable Capital Costs | L110: Decommissioning Costs | M110: Fixed Operating Cost | N110: Feedstock Cost | O110: Other Raw Material Cost | P110: Other Variable Operating Costs | Q110: Debt Interest | R110: Taxes | S110: Principal Payment
C111: 1 | D111: Base case | E111: =OFFSET(E$76,MATCH($C111,$N$101:$N$107,0)*3-1,0) -> 4.589300283 | F111: =OFFSET(F$76,MATCH($C111,$N$101:$N$107,0)*3-1,0) -> 0 | G111: =OFFSET(G$76,MATCH($C111,$N$101:$N$107,0)*3-1,0) -> 0.007597388072
H112: =OFFSET(H$76,MATCH($C111,$N$101:$N$107,0)*3-1,0) -> 0.1416444008 | I112: 0.03498737861 | J112: 0.05698272753 | K112: 0 | L112: 0.007597388072 | M112: 0.1995887721 | N112: 4.044334858 | O112: 0 | P112: 0.01220882277 | Q112: 0.07455178007 | R112: -0.006283148528 | S112: 0.0312846918
C115: 1 | D115: =OFFSET(D$76,MATCH($C115,$N$101:$N$107,0)*3-2,0) -> Feedstock Consumption (% of baseline) = 95% | E115: 4.383437894 | F115: 0 | G115: 0.007597388072
H116: =OFFSET(H$76,MATCH($C115,$N$101:$N$107,0)*3-2,0) -> 0.1416444008 | I116: 0.03498737861 | J116: 0.05427547035 | K116: 0 | L116: 0.007597388072 | M116: 0.1995887721 | N116: 3.842118115 | O116: 0 | P116: 0.01220882277 | Q116: 0.07455178007 | R116: -0.007221537968 | S116: 0.0312846918
C117: 1 | D117: =OFFSET(D$76,MATCH($C117,$N$101:$N$107,0)*3,0) -> Feedstock Consumption (% of baseline) = 105% | E117: 4.795162673 | F117: 0 | G117: 0.007597388072
H118: =OFFSET(H$76,MATCH($C117,$N$101:$N$107,0)*3,0) -> 0.1416444008 | I118: 0.03498737861 | J118: 0.05968998471 | K118: 0 | L118: 0.007597388072 | M118: 0.1995887721 | N118: 4.246551601 | O118: 0 | P118: 0.01220882277 | Q118: 0.07455178007 | R118: -0.005344759088 | S118: 0.0312846918
C120: 2 | D120: =OFFSET(D$76,MATCH($C120,$N$101:$N$107,0)*3-2,0) -> Operating Capacity Factor = 90.3% | E120: 4.567256795 | F120: 0 | G120: 0.007235607688
H121: =OFFSET(H$76,MATCH($C120,$N$101:$N$107,0)*3-2,0) -> 0.1348994294 | I121: 0.03332131296 | J121: 0.05685333037 | K121: 0 | L121: 0.007235607688 | M121: 0.1900845449 | N121: 4.044334858 | O121: 0 | P121: 0.01205494145 | Q121: 0.0710016953 | R121: -0.005088262042 | S121: 0.02979494457
C122: 2 | D122: =OFFSET(D$76,MATCH($C122,$N$101:$N$107,0)*3,0) -> Operating Capacity Factor = 81.7% | E122: 4.613664139 | F122: 0 | G122: 0.007997250602
H123: =OFFSET(H$76,MATCH($C122,$N$101:$N$107,0)*3,0) -> 0.1490993693 | I123: 0.03682881959 | J123: 0.05712574543 | K123: 0 | L123: 0.007997250602 | M123: 0.2100934444 | N123: 4.044334858 | O123: 0 | P123: 0.01237890212 | Q123: 0.07847555796 | R123: -0.007603812539 | S123: 0.03293125452
C125: 3 | D125: =OFFSET(D$76,MATCH($C125,$N$101:$N$107,0)*3-2,0) -> Total Capital Investment = $2,976K | E125: 4.574852327 | F125: 0 | G125: 0.007217518669
H126: =OFFSET(H$76,MATCH($C125,$N$101:$N$107,0)*3-2,0) -> 0.1345621808 | I126: 0.03498737861 | J126: 0.05693669621 | K126: 0 | L126: 0.007217518669 | M126: 0.1961530432 | N126: 4.044334858 | O126: 0 | P126: 0.01220882277 | Q126: 0.07082419106 | R126: -0.004875301198 | S126: 0.02972045721
C127: 3 | D127: =OFFSET(D$76,MATCH($C127,$N$101:$N$107,0)*3,0) -> Total Capital Investment = $3,289K | E127: 4.60374824 | F127: 0 | G127: 0.007977257476
H128: =OFFSET(H$76,MATCH($C127,$N$101:$N$107,0)*3,0) -> 0.1487266209 | I128: 0.03498737861 | J128: 0.05702875884 | K128: 0 | L128: 0.007977257476 | M128: 0.2030245011 | N128: 4.044334858 | O128: 0 | P128: 0.01220882277 | Q128: 0.07827936907 | R128: -0.007690995858 | S128: 0.03284892639
C130: 4 | D130: =OFFSET(D$76,MATCH($C130,$N$101:$N$107,0)*3-2,0) -> Total Fixed Operating Cost = $0,172K | E130: 4.579140798 | F130: 0 | G130: 0.007597388072
H131: =OFFSET(H$76,MATCH($C130,$N$101:$N$107,0)*3-2,0) -> 0.1416444008 | I131: 0.03498737861 | J131: 0.05684902469 | K131: 0 | L131: 0.007597388072 | M131: 0.1896093335 | N131: 4.044334858 | O131: 0 | P131: 0.01220882277 | Q131: 0.07455178007 | R131: -0.006329492605 | S131: 0.0312846918
C132: 4 | D132: =OFFSET(D$76,MATCH($C132,$N$101:$N$107,0)*3,0) -> Total Fixed Operating Cost = $0,190K | E132: 4.599459769 | F132: 0 | G132: 0.007597388072
H133: =OFFSET(H$76,MATCH($C132,$N$101:$N$107,0)*3,0) -> 0.1416444008 | I133: 0.03498737861 | J133: 0.05711643037 | K133: 0 | L133: 0.007597388072 | M133: 0.2095682108 | N133: 4.044334858 | O133: 0 | P133: 0.01220882277 | Q133: 0.07455178007 | R133: -0.006236804452 | S133: 0.0312846918
C135: 5 | D135: =OFFSET(D$76,MATCH($C135,$N$101:$N$107,0)*3-2,0) -> Plant Design Capacity (kg of H2/day) = 1,780 | E135: 4.583695256 | F135: 0 | G135: 0.007441463155
H136: =OFFSET(H$76,MATCH($C135,$N$101:$N$107,0)*3-2,0) -> 0.1387373634 | I136: 0.03429038037 | J136: 0.05697792806 | K136: 0 | L136: 0.007441463155 | M136: 0.1992305449 | N136: 4.044334858 | O136: 0 | P136: 0.01220882277 | Q136: 0.07302171736 | R136: -0.005748980113 | S136: 0.03064262074
C137: 5 | D137: =OFFSET(D$76,MATCH($C137,$N$101:$N$107,0)*3,0) -> Plant Design Capacity (kg of H2/day) = 1,610 | E137: 4.59537121 | F137: 0 | G137: 0.007765127516
H138: =OFFSET(H$76,MATCH($C137,$N$101:$N$107,0)*3,0) -> 0.1447717063 | I138: 0.035736097 | J138: 0.05698844829 | K138: 0 | L138: 0.007765127516 | M138: 0.200015764 | N138: 4.044334858 | O138: 0 | P138: 0.01220882277 | Q138: 0.07619777656 | R138: -0.006857676354 | S138: 0.03197541297
C140: 6 | D140: =OFFSET(D$76,MATCH($C140,$N$101:$N$107,0)*3-2,0) -> After-tax Real IRR = 8% | E140: 4.584710808 | F140: 0 | G140: 0.007935629046
H141: =OFFSET(H$76,MATCH($C140,$N$101:$N$107,0)*3-2,0) -> 0.1373683799 | I141: 0.03509043608 | J141: 0.05483082685 | K141: 0 | L141: 0.007935629046 | M141: 0.19952548 | N141: 4.045343028 | O141: 0 | P141: 0.01220882277 | Q141: 0.07413795623 | R141: -0.006471630309 | S141: 0.03267750792
C142: 6 | D142: =OFFSET(D$76,MATCH($C142,$N$101:$N$107,0)*3,0) -> After-tax Real IRR = 8% | E142: 4.594031652 | F142: 0 | G142: 0.007271833872
H143: =OFFSET(H$76,MATCH($C142,$N$101:$N$107,0)*3,0) -> 0.145978731 | I143: 0.03487858284 | J143: 0.05912034413 | K143: 0 | L143: 0.007271833872 | M143: 0.1996525737 | N143: 4.043337575 | O143: 0 | P143: 0.01220882277 | Q143: 0.07496754315 | R143: -0.006056637748 | S143: 0.02994411755
C145: 7 | D145: =OFFSET(D$76,MATCH($C145,$N$101:$N$107,0)*3-2,0) -> Utilities Consumption (% of baseline) = 95% | E145: 4.589300283 | F145: 0 | G145: 0.007597388072
H146: =OFFSET(H$76,MATCH($C145,$N$101:$N$107,0)*3-2,0) -> 0.1416444008 | I146: 0.03498737861 | J146: 0.05698272753 | K146: 0 | L146: 0.007597388072 | M146: 0.1995887721 | N146: 4.044334858 | O146: 0 | P146: 0.01220882277 | Q146: 0.07455178007 | R146: -0.006283148528 | S146: 0.0312846918
C147: 7 | D147: =OFFSET(D$76,MATCH($C147,$N$101:$N$107,0)*3,0) -> Utilities Consumption (% of baseline) = 105% | E147: 4.589300283 | F147: 0 | G147: 0.007597388072
H148: =OFFSET(H$76,MATCH($C147,$N$101:$N$107,0)*3,0) -> 0.1416444008 | I148: 0.03498737861 | J148: 0.05698272753 | K148: 0 | L148: 0.007597388072 | M148: 0.1995887721 | N148: 4.044334858 | O148: 0 | P148: 0.01220882277 | Q148: 0.07455178007 | R148: -0.006283148528 | S148: 0.0312846918
B152: Parado chart
D153: Unsorted
D154: Title | E154: Unsorted values | F154: Unsorted Ranking | G154: Sorted ranking | H154: Sorted titles | I154: Sorted values | K154: Grayed Titles | L154: Revenues $/kg H2 | M154: Expenses $/kg H2 | N154: Colored titles
B155: Revenues | C155: 1 | D155: Cost of Hydrogen | E155: =+K48+C155/10000000000 -> 4.96928932 | F155: =+RANK(E155,$E$155:$E$157) -> 1 | G155: 1 | H155: =OFFSET($D$154,MATCH($G155,$F$155:$F$157,0),0) -> Cost of Hydrogen | I155: =OFFSET($E$154,MATCH($G155,$F$155:$F$157,0),0)-OFFSET($C$154,MATCH($G155,$F$155:$F$157,0),0)/10000000000 -> 4.96928932 | K155: =+H155 -> Cost of Hydrogen | L155: =+I155 -> 4.96928932 | N155: =+IF(L155>0,K155,"") -> Cost of Hydrogen
C156: 2 | D156: =+F110 -> Byproduct Sales | E156: =+L48+C156/10000000000 -> 2e-10 | F156: =+RANK(E156,$E$155:$E$157) -> 3 | G156: 2 | H156: =OFFSET($D$154,MATCH($G156,$F$155:$F$157,0),0) -> Salvage Value | I156: =OFFSET($E$154,MATCH($G156,$F$155:$F$157,0),0)-OFFSET($C$154,MATCH($G156,$F$155:$F$157,0),0)/10000000000 -> 0.01317537334 | K156: =+H156 -> Salvage Value | L156: =+I156 -> 0.01317537334 | N156: =+IF(L156>0,K156,"") -> Salvage Value
C157: 3 | D157: =+G110 -> Salvage Value | E157: =+M48+C157/10000000000 -> 0.01317537364 | F157: =+RANK(E157,$E$155:$E$157) -> 2 | G157: 3 | H157: =OFFSET($D$154,MATCH($G157,$F$155:$F$157,0),0) -> Byproduct Sales | I157: =OFFSET($E$154,MATCH($G157,$F$155:$F$157,0),0)-OFFSET($C$154,MATCH($G157,$F$155:$F$157,0),0)/10000000000 -> 0 | K157: Byproduct Sales | L157: 0
N158: =+IF(L158>0.01,K158,"") -> 
B159: Expenses | C159: 1 | D159: =+H110 -> Initial Equity Depreciable Capital | E159: =+N48+C159/10000000000 -> 0.2456394022 | F159: =+RANK(E159,$E$159:$E$170) -> 3 | G159: 1 | H159: =OFFSET($D$158,MATCH($G159,$F$159:$F$170,0),0) -> Feedstock Cost | I159: =OFFSET($E$158,MATCH($G159,$F$159:$F$170,0),0)-OFFSET($C$158,MATCH($G159,$F$159:$F$170,0),0)/10000000000 -> 4.054719241 | K159: Feedstock Cost | M159: =+I159 -> 4.054719241 | N159: =+IF(M159>0,K159,"") -> Feedstock Cost
C160: =+C159+1 -> 2 | D160: =+I110 -> Yearly Replacement Costs | E160: =+O48+C160/10000000000 -> 0.09210837503 | F160: 5 | G160: 2 | H160: Fixed Operating Cost | I160: 0.3443639681 | K160: Fixed Operating Cost | M160: =+I160 -> 0.3443639681 | N160: =+IF(M160>0,K160,"") -> Fixed Operating Cost
C161: =+C160+1 -> 3 | D161: =+J110 -> Cash for Working Capital Reserve | E161: =+P48+C161/10000000000 -> 0.05901121271 | F161: 6 | G161: 3 | H161: Initial Equity Depreciable Capital | I161: 0.2456394021 | K161: Initial Equity Depreciable Capital | M161: 0.2456394021 | N161: Initial Equity Depreciable Capital
C162: 4 | D162: =+K110 -> Other Non-Depreciable Capital Costs | E162: =+Q48+C162/10000000000 -> 4e-10 | F162: 11 | G162: 4 | H162: Debt Interest | I162: 0.1292875297 | K162: Debt Interest | M162: 0.1292875297 | N162: Debt Interest
C163: 5 | D163: =+L110 -> Decommissioning Costs | E163: =+R48+C163/10000000000 -> 0.01317537384 | F163: 8 | G163: 5 | H163: Yearly Replacement Costs | I163: 0.09210837483 | K163: Yearly Replacement Costs | M163: 0.09210837483 | N163: Yearly Replacement Costs
C164: 6 | D164: =+M110 -> Fixed Operating Cost | E164: =+S48+C164/10000000000 -> 0.3443639687 | F164: 2 | G164: 6 | H164: Cash for Working Capital Reserve | I164: 0.05901121241 | K164: Cash for Working Capital Reserve | M164: 0.05901121241 | N164: Cash for Working Capital Reserve
C165: 7 | D165: =+N110 -> Feedstock Cost | E165: =+T48+C165/10000000000 -> 4.054719242 | F165: 1 | G165: 7 | H165: Principal Payment | I165: 0.05425384231 | K165: Principal Payment | M165: 0.05425384231 | N165: Principal Payment
C166: 8 | D166: =+O110 -> Other Raw Material Cost | E166: =+U48+C166/10000000000 -> 8e-10 | F166: 10 | G166: 8 | H166: Decommissioning Costs | I166: 0.01317537334 | K166: Decommissioning Costs | M166: 0.01317537334 | N166: Decommissioning Costs
C167: 9 | D167: =+P110 -> Other Variable Operating Costs | E167: =+V48+C167/10000000000 -> 0.01236038995 | F167: 9 | G167: 9 | H167: Other Variable Operating Costs | I167: 0.01236038905 | K167: Other Variable Operating Costs | M167: 0.01236038905 | N167: Other Variable Operating Costs
C168: 10 | D168: =+Q110 -> Debt Interest | E168: =+W48+C168/10000000000 -> 0.1292875307 | F168: 4 | G168: 10 | H168: Other Raw Material Cost | I168: 0 | K168: Other Raw Material Cost | M168: 0
C169: 11 | D169: =+R110 -> Taxes | E169: =+X48+C169/10000000000 -> -0.02245463837 | F169: 12 | G169: 11 | H169: Other Non-Depreciable Capital Costs | I169: 0 | K169: Other Non-Depreciable Capital Costs | M169: 0
C170: 12 | D170: =+S110 -> Principal Payment | E170: =+Y48+C170/10000000000 -> 0.05425384351 | F170: 7 | G170: 12 | H170: Taxes | I170: -0.02245463947 | K170: Taxes | M170: -0.02245463947
K171: Total | L171: =+SUM(L155:L170) -> 4.982464693 | M171: =+SUM(M155:M170) -> 4.982464693 | N171: =+IF(M171<0.01,K171,"") -> 
B174: Waterfall Chart | D174: Values | E174: Base | F174: Decrease | G174: Increase
B175: 0 | C175: Baseline | D175: =+K51 -> 4.589300283 | E175: =+D175 -> 4.589300283
B176: 1 | C176: =OFFSET($B$50,0,MATCH($B176,$C$72:$I$72,0))& IF(OFFSET($F$2,MATCH($B176,$C$72:$I$72,0),0)<1, " = "&OFFSET($F$2,MATCH($B176,$C$72:$I$72,0),0)*100-100, " = +"&OFFSET($F$2,MATCH($B176,$C$72:$I$72,0),0)*100-100) &"%" -> Feedstock consumption (% of most likely value) = -5% | D176: =+K66 -> 4.383437894 | E176: =+E175+G175-F176 -> 4.383437894 | F176: =+MAX(D175-D176,0) -> 0.2058623895 | G176: =+MAX(D176-D175,0) -> 0
B177: 2 | C177: =OFFSET($B$50,0,MATCH($B177,$C$72:$I$72,0))& IF(OFFSET($F$2,MATCH($B177,$C$72:$I$72,0),0)<1, " = "&OFFSET($F$2,MATCH($B177,$C$72:$I$72,0),0)*100-100, " = +"&OFFSET($F$2,MATCH($B177,$C$72:$I$72,0),0)*100-100) &"%" -> Operating capacity factor = +5% | D177: =+K67 -> 4.361394405 | E177: 4.361394405 | F177: =+MAX(D176-D177,0) -> 0.02204348834 | G177: =+MAX(D177-D176,0) -> 0
B178: 3 | C178: =OFFSET($B$50,0,MATCH($B178,$C$72:$I$72,0))& IF(OFFSET($F$2,MATCH($B178,$C$72:$I$72,0),0)<1, " = "&OFFSET($F$2,MATCH($B178,$C$72:$I$72,0),0)*100-100, " = +"&OFFSET($F$2,MATCH($B178,$C$72:$I$72,0),0)*100-100) &"%" -> Total capital investment ($) = -5% | D178: =+K68 -> 4.347634447 | E178: 4.347634447 | F178: =+MAX(D177-D178,0) -> 0.01375995864 | G178: =+MAX(D178-D177,0) -> 0
B179: 4 | C179: =OFFSET($B$50,0,MATCH($B179,$C$72:$I$72,0))& IF(OFFSET($F$2,MATCH($B179,$C$72:$I$72,0),0)<1, " = "&OFFSET($F$2,MATCH($B179,$C$72:$I$72,0),0)*100-100, " = +"&OFFSET($F$2,MATCH($B179,$C$72:$I$72,0),0)*100-100) &"%" -> Total fixed operating cost ($/year) = -5% | D179: =+K69 -> 4.338125304 | E179: 4.338125304 | F179: =+MAX(D178-D179,0) -> 0.009509142611 | G179: =+MAX(D179-D178,0) -> 0
B180: 5 | C180: =OFFSET($B$50,0,MATCH($B180,$C$72:$I$72,0))& IF(OFFSET($F$2,MATCH($B180,$C$72:$I$72,0),0)<1, " = "&OFFSET($F$2,MATCH($B180,$C$72:$I$72,0),0)*100-100, " = +"&OFFSET($F$2,MATCH($B180,$C$72:$I$72,0),0)*100-100) &"%" -> Utilities consumption (% of most likely value) = -5% | D180: =+K70 -> 4.338125304 | E180: 4.338125304 | F180: =+MAX(D179-D180,0) -> 0 | G180: =+MAX(D180-D179,0) -> 0
B181: 6 | C181: Adjusted | D181: =+K70 -> 4.338125304 | E181: 4.338125304
B189: Min factor | C189: =+MIN(F3:G3) -> 0.95 | D189: =+MIN(F4:G4) -> 0.95 | E189: =+MIN(F5:G5) -> 0.95 | F189: =+MIN(F6:G6) -> 0.95 | G189: =+MIN(F7:G7) -> 0.95 | H189: =+MIN(F8:G8) -> 0.95 | I189: =+MIN(F9:G9) -> 0.95
B190: Nominal factor | C190: 1 | D190: 1 | E190: 1 | F190: 1 | G190: 1 | H190: 1 | I190: 1
B191: Max factor | C191: =+MAX(F3:G3) -> 1.05 | D191: =+MAX(F4:G4) -> 1.05 | E191: =+MAX(F5:G5) -> 1.05 | F191: =+MAX(F6:G6) -> 1.05 | G191: =+MAX(F7:G7) -> 1.05 | H191: =+MAX(F8:G8) -> 1.05 | I191: =+MAX(F9:G9) -> 1.05
B194: Variable | C194: =+MATCH(R12,C50:Y50,0) -> 9
B195: Min | C195: =+MIN(OFFSET($B$251:$B$2250,0,C194)) -> 4.385042914
B196: max | C196: =+MAX(OFFSET($B$251:$B$2250,0,C194)) -> 4.806906994
B197: max-min | C197: =+C196-C195 -> 0.4218640801
B198: gain | C198: =+OFFSET(B199,0,C194) -> 1
B199: gain | C199: =+C3 -> 0.86 | D199: =+C4 -> 1695 | E199: =+C5 -> 0.08 | F199: =+C6 -> 1 | G199: =+C7 -> 1 | H199: =+C8 -> 3132323.811 | I199: =+C9 -> 181036.7904 | K199: 1 | L199: 1 | M199: 1 | N199: 1 | O199: 1 | P199: 1 | Q199: 1 | R199: 1 | S199: 1 | T199: 1 | U199: 1 | V199: 1 | W199: 1 | X199: 1
B200: Range to plot
B201: Min | C201: Max | E201: Min*gain | F201: Max*gain | G201: Average | H201: Probability | I201: Cumulative probability
B202: =+C195 -> 4.385042914 | C202: =+B202+($C$197/20) -> 4.406136118 | D202: =+COUNTIFS(OFFSET(B$251:B$2250,0,$C$194),">="&$B202, OFFSET(B$251:B$2250,0,$C$194),"<="&$C202) -> 15 | E202: =+B202*$C$198 -> 4.385042914 | F202: =+C202*$C$198 -> 4.406136118 | G202: =+AVERAGE(E202:F202) -> 4.395589516 | H202: =+D202/$D$223 -> 0.0075 | I202: =+H202 -> 0.0075
B203: =+C202 -> 4.406136118 | C203: =+B203+($C$197/20) -> 4.427229322 | D203: 30 | E203: =+B203*$C$198 -> 4.406136118 | F203: =+C203*$C$198 -> 4.427229322 | G203: =+AVERAGE(E203:F203) -> 4.41668272 | H203: =+D203/$D$223 -> 0.015 | I203: =+I202+H203 -> 0.0225
B204: =+C203 -> 4.427229322 | C204: 4.448322526 | D204: 45 | E204: 4.427229322 | F204: 4.448322526 | G204: 4.437775924 | H204: 0.0225 | I204: =+I203+H204 -> 0.045
B205: 4.448322526 | C205: 4.46941573 | D205: 65 | E205: 4.448322526 | F205: 4.46941573 | G205: 4.458869128 | H205: 0.0325 | I205: 0.0775
B206: 4.46941573 | C206: 4.490508934 | D206: 104 | E206: 4.46941573 | F206: 4.490508934 | G206: 4.479962332 | H206: 0.052 | I206: 0.1295
B207: 4.490508934 | C207: 4.511602138 | D207: 115 | E207: 4.490508934 | F207: 4.511602138 | G207: 4.501055536 | H207: 0.0575 | I207: 0.187
B208: 4.511602138 | C208: 4.532695342 | D208: 133 | E208: 4.511602138 | F208: 4.532695342 | G208: 4.52214874 | H208: 0.0665 | I208: 0.2535
B209: 4.532695342 | C209: 4.553788546 | D209: 157 | E209: 4.532695342 | F209: 4.553788546 | G209: 4.543241944 | H209: 0.0785 | I209: 0.332
B210: 4.553788546 | C210: 4.57488175 | D210: 203 | E210: 4.553788546 | F210: 4.57488175 | G210: 4.564335148 | H210: 0.1015 | I210: 0.4335
B211: 4.57488175 | C211: 4.595974954 | D211: 185 | E211: 4.57488175 | F211: 4.595974954 | G211: 4.585428352 | H211: 0.0925 | I211: 0.526
B212: 4.595974954 | C212: 4.617068158 | D212: 184 | E212: 4.595974954 | F212: 4.617068158 | G212: 4.606521556 | H212: 0.092 | I212: 0.618
B213: 4.617068158 | C213: 4.638161362 | D213: 185 | E213: 4.617068158 | F213: 4.638161362 | G213: 4.62761476 | H213: 0.0925 | I213: 0.7105
B214: 4.638161362 | C214: 4.659254566 | D214: 131 | E214: 4.638161362 | F214: 4.659254566 | G214: 4.648707964 | H214: 0.0655 | I214: 0.776
B215: 4.659254566 | C215: 4.68034777 | D215: 127 | E215: 4.659254566 | F215: 4.68034777 | G215: 4.669801168 | H215: 0.0635 | I215: 0.8395
B216: 4.68034777 | C216: 4.701440974 | D216: 98 | E216: 4.68034777 | F216: 4.701440974 | G216: 4.690894372 | H216: 0.049 | I216: 0.8885
B217: 4.701440974 | C217: 4.722534178 | D217: 82 | E217: 4.701440974 | F217: 4.722534178 | G217: 4.711987576 | H217: 0.041 | I217: 0.9295
B218: 4.722534178 | C218: 4.743627382 | D218: 72 | E218: 4.722534178 | F218: 4.743627382 | G218: 4.73308078 | H218: 0.036 | I218: 0.9655
B219: 4.743627382 | C219: 4.764720586 | D219: 39 | E219: 4.743627382 | F219: 4.764720586 | G219: 4.754173984 | H219: 0.0195 | I219: 0.985
B220: 4.764720586 | C220: 4.78581379 | D220: 23 | E220: 4.764720586 | F220: 4.78581379 | G220: 4.775267188 | H220: 0.0115 | I220: 0.9965
B221: 4.78581379 | C221: =+B221+($C$197/20)+0.000001 -> 4.806907994 | D221: 7 | E221: 4.78581379 | F221: 4.806907994 | G221: 4.796360892 | H221: 0.0035 | I221: 1
F222: 0 | G222: 0
B223: Variable to plot | D223: =+SUM(D202:D221) -> 2000
B224: =+TRANSPOSE(Sensitivity_output) -> Cost of hydrogen ($/kg)
B225: Revenue from byproduct sales ($/kg)
B226: Salvage value ($/kg)
B227: Initial equity depreciable capital ($/kg)
B228: Yearly replacement costs ($/kg)
B229: Cash from working capital reserve ($/kg)
B230: Other non-depreciable capital costs ($/kg)
B231: Decommissioning costs ($/kg)
B232: Fixed operating cost ($/kg)
B233: Feedstock cost ($/kg)
B234: Other raw material cost ($/kg)
B235: Other variable operating costs ($/kg)
B236: Debt interest ($/kg)
B237: Taxes ($/kg)
B238: Principal payment ($/kg)
B239: =+TRANSPOSE(C50:I50) -> Operating capacity factor
B240: Plant design capacity (kg of H2/day)
B241: After-tax real IRR (%)
B242: Feedstock consumption (% of most likely value)
B243: Utilities consumption (% of most likely value)
... 2004 more rows

Sheet Cash Flow Analysis
A2: TABLE OF CONTENTS
A3: DCF Calculations
A4: Yearly Cash Flow Calculations
A5: Specific Item Cost Calculation
A6: Feedstock, Utility, and Byproduct Cost Information
A15: DCF CALCULATION INPUTS: | D15: DCF CALCULATION OUTPUTS:
A16: Process | D16: ="Hydrogen Cost (Year "&TEXT(ref_year,"0")&" Real $/kg)" -> Hydrogen Cost (Year 2016 Real $/kg) | E16: =H2_price_nominal/INFLATION_FACTOR -> 4.96928932
A17: Actual Hydrogen Produced (kg/yr) | B17: =output_kgyear -> 532060.5 | D17: Hydrogen Cost (Start-up Year Nominal $/kg) | E17: =+SUM(X57:AB57)/AC57*(1+inflation_rate)^construct -> 4.876633287
A18: Actual Hydrogen Energy Produced (MMBtu(LHV)/yr) | B18: =B17*H2_LHV_MJ_p_kg/1000/mmBTU_to_GJ -> 60625.46386 | D18: After Tax Real IRR | E18: =((E20+1)/(1+B30))-1 -> 0.08
A19: Actual Hydrogen Energy Produced (MJ(LHV)/yr) | B19: =B17*H2_LHV_MJ_p_kg -> 63959864.38 | D19: Pre Tax Real IRR | E19: =((E21+1)/(1+B30))-1 -> 0.05435493644
A20: Design Capacity (kg/day) | B20: =design_cap -> 1695 | D20: After Tax Nominal IRR | E20: =IRR(AA65:AA113) -> 0.10052
A21: Design Capacity (kg/yr) | B21: =B20*365 -> 618675 | D21: Pre Tax Nominal IRR | E21: =IRR(AC65:AC113) -> 0.07438768023
A22: Capacity Factor | B22: =cap_factor -> 0.86 | D22: After Tax Real Capital Recovery Factor | E22: =(real_irr*(1+real_irr)^anal_period)/(((1+real_irr)^anal_period)-1) -> 0.1018522088
D23: After Tax Nominal Capital Recovery Factor | E23: =(nominal_irr*(1+nominal_irr)^anal_period)/(((1+nominal_irr)^anal_period)-1) -> 0.1178767948
A24: Financial | D24: Total Real Fixed Charge Rate | E24: =(E22*(1-total_tax_rate*INDEX(Depreciation!B12:H37,MATCH("NPV - Real IRR",Depreciation!B12:B37,0),MATCH(depr_length,recovery_period,0))))/(1-total_tax_rate) -> 0.1101093766
A25: Start-up Year | B25: =startup_year -> 2015 | D25: Total Nominal Fixed Charge Rate | E25: =(E23*(1-total_tax_rate*INDEX(Depreciation!B12:H37,MATCH("NPV - Nominal IRR",Depreciation!B12:B37,0),MATCH(depr_length,recovery_period,0))))/(1-total_tax_rate) -> 0.1293030043
A26: After-Tax Real IRR | B26: =real_irr -> 0.08 | D26: NPV | E26: =NPV(nominal_irr,AA65:AA113) -> 5.923797861e-09
A27: After-Tax Nominal IRR | B27: =((1+B26)*(1+B30))-1 -> 0.10052
A28: Analysis Period (yrs) | B28: =anal_period -> 20
A29: Plant Life (yrs) | B29: =plant_life -> 20
A30: Inflation Rate | B30: =inflation_rate -> 0.019
A31: Debt Financing | B31: =100%-equity -> 0.6
A32: Equity Financing | B32: =equity -> 0.4
A33: Total Tax Rate | B33: =total_tax_rate -> 0.2574
A35: Cost of Debt Financing
A36: Debt Financing Period (yrs) | B36: =debt_period -> 0
A37: Interest Rate on Debt | B37: =debt_interest -> 0.037
A39: Construction/Start Up Information
A40: Construction Period (yrs) | B40: =construct -> 1
A41: Start-up Period (yrs) | B41: =start_time -> 0.5
A42: % Revenue During Start-up | B42: =percnt_revs -> 0.5
A43: % Variable Costs During Start-up | B43: =percnt_var -> 0.5
A44: % Fixed Costs During Start-up | B44: =percnt_fixed -> 0.75
A46: Depreciation Parameters
A47: Depreciation Type | B47: =depr_type -> MACRS
A48: Depreciation Period (yrs) | B48: =depr_length -> 7
A50: Plant Costs (Inflated to Start-up Year $)
A51: Total Depreciable Capital Costs | B51: =(total_cap-non_dep_cap)*INFLATION_FACTOR -> 3073919.344
A52: Total Non-Depreciable Capital Costs | B52: =non_dep_cap*INFLATION_FACTOR -> 0
A53: Total Capital Investment | B53: =SUM(B51:B52) -> 3073919.344 | W53: Closed form formulas for calculating price of hydrogen.
A54: Decommissioning | B54: =decom_percent*depr_cap_infl -> 307391.9344 | X54: Capital Costs | Y54: Depr | Z54: Principal | AA54: Op costs | AB54: Tax incentives | AC54: H2 sales (kg)
A55: Salvage Value | B55: =salvage_perct*B53 -> 307391.9344 | W55: Discounted values | X55: =-SUM(H116:K116) -> 1948978.368 | Y55: =-U116 -> 2533710.527 | Z55: =-Z116 -> 266508.3033 | AA55: =-SUM(L116:S116) -> 22305195.3 | AB55: =+AF116 -> 0 | AC55: =+AE116 -> 5100686.266
A56: Fixed Operating Costs ($/year) | B56: =fixed*INFLATION_FACTOR -> 177661.2271 | W56: Tax coefficient | X56: 1 | Y56: =-total_tax_rate -> -0.2574 | Z56: 1 | AA56: =1-total_tax_rate -> 0.7426 | AB56: -1 | AC56: =1-total_tax_rate -> 0.7426
A57: Other Raw Material ($/year) | B57: =total_other_raw*INFLATION_FACTOR -> 0 | W57: LCOE cost contribution factors | X57: =+X55*X56 -> 1948978.368 | Y57: -652177.0895 | Z57: 266508.3033 | AA57: =+AA55*AA56 -> 16563838.03 | AB57: =+AB55*AB56 -> 0 | AC57: =+AC55*AC56 -> 3787769.621
A58: Other Variable O&M Costs (not including tax credits and incentives) | B58: =(var_misc+royalties+operator_profit+CO2_OandMcost+waste_treat+solidwaste_treat)*INFLATION_FACTOR -> 1766.437684
W59: Target after-tax nominal IRR | X59: =+(1+real_irr)*(1+inflation_rate)-1 -> 0.10052
W60: =+D16 -> Hydrogen Cost (Year 2016 Real $/kg) | X60: =+SUM(X57:AB57)/AC57*(1+inflation_rate)^construct/INFLATION_FACTOR -> 4.96928932
A63: CASH FLOW ANALYSIS
A64: Actual Year (beginning of year) | B64: Analysis Year | C64: Operation Year | D64: Plant Life | E64: Inflation Price Increase Factor | F64: Revenue from Hydrogen Sales | G64: Portion of Initial Depreciable Capital Investment Financed with Debt (value ONLY used in debt financing calculations) | H64: Initial Equity Depreciable Capital | I64: Yearly Replacement Costs | J64: Cash from Working Capital Reserve | K64: Other Non-Depreciable Capital Costs | L64: Salvage Value | M64: Decommissioning Costs | N64: Fixed Operating Cost | O64: Feedstock Cost | P64: Other Raw Material Cost | Q64: Revenue from Byproduct Sales | R64: Other Variable Operating Costs | S64: Debt Interest | T64: Pre-Depreciation Income | U64: Depreciation Charge | V64: Taxable Income | W64: Tax Rate | X64: Total Taxes | Y64: After-Tax Income | Z64: Principal Payment | AA64: After-Tax Post-Depreciation Cash Flow | AB64: Cumulative Cash Flow | AC64: Pre-Tax Cash Flow | AE64: H2 sales (kg/year) | AF64: Tax Credit
A65: =startup_year-construct -> 2014 | B65: 1 | C65: =IF(construct=0,1,-construct) -> -1 | D65: =IF(C65="","",IF(C65<=plant_life,C65,IF(D64=plant_life,1,D64+1))) -> -1 | E65: =IF(C65="","",(1+inflation_rate)^(A65-$B$25)) -> 0.9813542689 | F65: =IF(C65="","",IF(C65<0,0,IF(AND(C65=1,start_time<1),E65*(H2_price_nominal*output_kgyear*start_time*percnt_revs+H2_price_nominal*output_kgyear*(1-start_time)),IF(C65<=start_time,H2_price_nominal*E65*output_kgyear*percnt_revs,H2_price_nominal*output_kgyear*E65)))) -> 0 | G65: =-$B$31*depr_cap_infl*E65 -> -1809962.322 | H65: =IF(C65<0,-E65*equity*depr_cap_infl*percent_cap1,IF(C65=1,-E65*equity*depr_cap_infl,0)) -> -1206641.548 | I65: =IF(OR(C65<0,C65=""),"",-E65*INDEX('Replacement Costs'!$A$16:$H$57,MATCH(C65,'Replacement Costs'!$C$16:$C$57,0),MATCH("Total Yearly Replacement Costs",'Replacement Costs'!$A$16:$H$16,0))) ->  | J65: =IF(AND(C65>=1,C65<anal_period),WorkingCap*SUM(N65:R65)-WorkingCap*SUM(N64:R64),0) -> 0 | K65: =IF(C65=-construct,-E65*non_dep_infl,"") -> 0 | L65: =IF(C65=anal_period,salvage*E65,"") ->  | M65: =IF(D65=plant_life,-E65*decom,"") ->  | N65: =IF(C65="","",IF(C65<0,0,IF(AND(C65=1,start_time<1),-(inflated_fixed*percnt_fixed*start_time+(inflated_fixed*(1-start_time))),IF(C65<=start_time,-inflated_fixed*percnt_fixed*E65,-inflated_fixed*E65)))) -> 0 | O65: =IF(C65="","",IF(C65<0,0,IF(AND(C65=1,start_time<1),-(SUM(B139:E139)*output_kgyear*E65*percnt_var*start_time+SUM(B139:E139)*output_kgyear*E65*(1-start_time)),IF(C65<=start_time,-SUM(B139:E139)*output_kgyear*E65*percnt_var,-SUM(B139:E139)*output_kgyear*E65)))) -> 0 | P65: =IF(C65="","",IF(C65<0,0,IF(AND(C65=1,start_time<1),-(inflated_otherraw*E65*percnt_var*start_time+inflated_otherraw*E65*(1-start_time)),IF(C65<=start_time,-inflated_otherraw*E65*percnt_var,-(inflated_otherraw*E65))))) -> 0 | Q65: =IF(C65="","",IF(C65<0,0,IF(AND(C65=1,start_time<1),SUM(K139:N139,T139:V139)*output_kgyear*E65*percnt_revs*start_time+SUM(K139:N139,T139:V139)*output_kgyear*E65*(1-start_time),IF(C65<=start_time,SUM(K139:N139,T139:V139)*output_kgyear*E65*percnt_revs,SUM(K139:N139,T139:V139)*output_kgyear*E65)))) -> 0 | R65: =IF(C65="","",IF(C65<0,0,IF(AND(C65=1,start_time<1),-((SUM(F139:J139,P139:R139)*output_kgyear+inflated_othervar)*E65*percnt_var*start_time+(SUM(F139:J139,P139:R139)*output_kgyear+inflated_othervar)*E65*(1-start_time)),IF(C65<=start_time,-(SUM(F139:J139,P139:R139)*output_kgyear+inflated_othervar)*E65*percnt_var,-E65*(SUM(F139:J139,P139:R139)*output_kgyear+inflated_othervar))))) -> 0 | S65: =IF(B65="","",IF($B$31=0,"",-'Debt Financing Calculations'!E14)) -> -66968.60592 | T65: =IF(C65="","",F65+SUM(L65:S65)) -> -66968.60592 | U65: =IF(C65="","",IF(C65<-1,0,IF(C65=anal_period,-LOOKUP(C65,depr_yr,depr_cost)-Depreciation!$C$141-Depreciation!$B$166,-LOOKUP(C65,depr_yr,depr_cost)))) -> 0 | V65: =IF(C65="","",SUM(T65:U65)) -> -66968.60592 | W65: =IF(C65="","",$B$33) -> 0.2574 | X65: =IF(C65="","",tax_credit-(V65*W65 +Upstream_CO2_taxpYear + Proc_CO2_taxpYear)) -> 17237.71916 | Y65: =IF(C65="","",SUM(T65,X65)) -> -49730.88675 | Z65: =IF(C65="","",IF($B$31=0,"",-'Debt Financing Calculations'!F14)) -> 0 | AA65: =IF(C65="","",SUM(H65,I65,J65,K65,T65,X65,Z65)) -> -1256372.435 | AB65: =AA65 -> -1256372.435 | AC65: =IF(C65="","",SUM(H65,I65,J65,K65,T65,Z65)) -> -1273610.154 | AE65: =IF(C65="","",IF(C65<0,0,IF(AND(C65=1,start_time<1),(output_kgyear*start_time*percnt_revs+output_kgyear*(1-start_time)),IF(C65<=start_time,output_kgyear*percnt_revs,output_kgyear)))) -> 0 | AF65: =IF(C65="","",tax_credit) -> 0
A66: =IF(B66<>"",A65+1,"") -> 2015 | B66: =IF(MAX($B$65:B65)<(construct+anal_period),B65+1,"") -> 2 | C66: =IF(B66="","",IF(C65=-1,1,C65+1)) -> 1 | D66: 1 | E66: 1 | F66: 1945997.959 | H66: =IF(C66<0,-E66*equity*depr_cap_infl*percent_cap2,0) -> 0 | I66: =IF(OR(C66<0,C66=""),"",-E66*INDEX('Replacement Costs'!$A$16:$H$57,MATCH(C66,'Replacement Costs'!$C$16:$C$57,0),MATCH("Total Yearly Replacement Costs",'Replacement Costs'!$A$16:$H$16,0))) -> -15369.59672 | J66: =IF(AND(C66>=1,C66<anal_period),WorkingCap*SUM(N66:R66)-WorkingCap*SUM(N65:R65),IF(C66<0,0,IF(B66="","",-SUM(J$65:J65)))) -> -253421.8437 | N66: -155453.5737 | O66: -1529184.996 | P66: 0 | Q66: 0 | R66: -4840.3887 | S66: =IF(B66="","",IF($B$31=0,"",-'Debt Financing Calculations'!E15)) -> -66968.60592 | T66: 189550.3947 | U66: =IF(C66="","",IF(C66<-1,0,IF(C66=anal_period,-LOOKUP(C66,depr_yr,depr_cost)-Depreciation!$C$141-Depreciation!$B$166,-LOOKUP(C66,depr_yr,depr_cost)))) -> -433269.0084 | V66: -243718.6137 | W66: 0.2574 | X66: 62733.17117 | Y66: 252283.5659 | Z66: =IF(C66="","",IF($B$31=0,"",-'Debt Financing Calculations'!F15)) -> 0 | AA66: -16507.87461 | AB66: =IF(C66="","",AB65+AA66) -> -1272880.309 | AC66: -79241.04578 | AE66: 399045.375 | AF66: 0
A67: 2016 | B67: =IF(MAX($B$65:B66)<(construct+anal_period),B66+1,"") -> 3 | C67: 2 | D67: 2 | E67: 1.019 | F67: 2643962.56 | H67: =IF(C67<0,-E67*equity*depr_cap_infl*percent_cap3,0) -> 0 | I67: =IF(OR(C67<0,C67=""),"",-E67*INDEX('Replacement Costs'!$A$16:$H$57,MATCH(C67,'Replacement Costs'!$C$16:$C$57,0),MATCH("Total Yearly Replacement Costs",'Replacement Costs'!$A$16:$H$16,0))) -> -15661.61906 | J67: =IF(AND(C67>=1,C67<anal_period),WorkingCap*SUM(N67:R67)-WorkingCap*SUM(N66:R66),IF(C67<0,0,IF(B67="","",-SUM(J$65:J66)))) -> -75766.27737 | N67: -181036.7904 | O67: -2006974.209 | P67: 0 | Q67: 0 | R67: -6576.474781 | S67: =IF(B67="","",IF($B$31=0,"",-'Debt Financing Calculations'!E16)) -> -66968.60592 | T67: 382406.4802 | U67: =IF(C67="","",IF(C67<-1,0,IF(C67=anal_period,-LOOKUP(C67,depr_yr,depr_cost)-Depreciation!$C$141-Depreciation!$B$166,-LOOKUP(C67,depr_yr,depr_cost)))) -> -744768.3474 | V67: -362361.8672 | W67: 0.2574 | X67: 93271.94462 | Y67: 475678.4248 | Z67: =IF(C67="","",IF($B$31=0,"",-'Debt Financing Calculations'!F16)) -> 0 | AA67: 384250.5284 | AB67: -888629.781 | AC67: 290978.5837 | AE67: 532060.5 | AF67: 0
A68: 2017 | B68: =IF(MAX($B$65:B67)<(construct+anal_period),B67+1,"") -> 4 | C68: 3 | D68: 3 | E68: 1.038361 | F68: 2694197.849 | H68: =IF(C68<0,-E68*equity*depr_cap_infl*percent_cap4,0) -> 0 | I68: =IF(OR(C68<0,C68=""),"",-E68*INDEX('Replacement Costs'!$A$16:$H$57,MATCH(C68,'Replacement Costs'!$C$16:$C$57,0),MATCH("Total Yearly Replacement Costs",'Replacement Costs'!$A$16:$H$16,0))) -> -15959.18982 | J68: =IF(AND(C68>=1,C68<anal_period),WorkingCap*SUM(N68:R68)-WorkingCap*SUM(N67:R67),IF(C68<0,0,IF(B68="","",-SUM(J$65:J67)))) -> -18665.87851 | N68: -184476.4894 | O68: -2127848.747 | P68: 0 | Q68: 0 | R68: -6701.427801 | S68: =IF(B68="","",IF($B$31=0,"",-'Debt Financing Calculations'!E17)) -> -66968.60592 | T68: 308202.5788 | U68: =IF(C68="","",IF(C68<-1,0,IF(C68=anal_period,-LOOKUP(C68,depr_yr,depr_cost)-Depreciation!$C$141-Depreciation!$B$166,-LOOKUP(C68,depr_yr,depr_cost)))) -> -536408.2581 | V68: -228205.6793 | W68: 0.2574 | X68: 58740.14186 | Y68: =IF(C68="","",SUM(T68,X68)) -> 366942.7206 | Z68: =IF(C68="","",IF($B$31=0,"",-'Debt Financing Calculations'!F17)) -> 0 | AA68: 332317.6523 | AB68: -556312.1287 | AC68: 273577.5104 | AE68: 532060.5 | AF68: 0
A69: 2018 | B69: =IF(MAX($B$65:B68)<(construct+anal_period),B68+1,"") -> 5 | C69: 4 | D69: 4 | E69: 1.058089859 | F69: 2745387.608 | H69: =IF(C69="","",0) -> 0 | I69: =IF(OR(C69<0,C69=""),"",-E69*INDEX('Replacement Costs'!$A$16:$H$57,MATCH(C69,'Replacement Costs'!$C$16:$C$57,0),MATCH("Total Yearly Replacement Costs",'Replacement Costs'!$A$16:$H$16,0))) -> -16262.41442 | J69: =IF(AND(C69>=1,C69<anal_period),WorkingCap*SUM(N69:R69)-WorkingCap*SUM(N68:R68),IF(C69<0,0,IF(B69="","",-SUM(J$65:J68)))) -> 762.1708815 | N69: -187981.5427 | O69: -2119135.227 | P69: 0 | Q69: 0 | R69: -6828.75493 | S69: =IF(B69="","",IF($B$31=0,"",-'Debt Financing Calculations'!E18)) -> -66968.60592 | T69: 364473.4771 | U69: =IF(C69="","",IF(C69<-1,0,IF(C69=anal_period,-LOOKUP(C69,depr_yr,depr_cost)-Depreciation!$C$141-Depreciation!$B$166,-LOOKUP(C69,depr_yr,depr_cost)))) -> -387665.0078 | V69: -23191.53069 | W69: 0.2574 | X69: 5969.500001 | Y69: 370442.9771 | Z69: =IF(C69="","",IF($B$31=0,"",-'Debt Financing Calculations'!F18)) -> 0 | AA69: 354942.7335 | AB69: -201369.3952 | AC69: 348973.2335 | AE69: 532060.5 | AF69: 0
A70: 2019 | B70: =IF(MAX($B$65:B69)<(construct+anal_period),B69+1,"") -> 6 | C70: 5 | D70: 5 | E70: 1.078193566 | F70: 2797549.972 | H70: 0 | I70: =IF(OR(C70<0,C70=""),"",-E70*INDEX('Replacement Costs'!$A$16:$H$57,MATCH(C70,'Replacement Costs'!$C$16:$C$57,0),MATCH("Total Yearly Replacement Costs",'Replacement Costs'!$A$16:$H$16,0))) -> -16571.4003 | J70: =IF(AND(C70>=1,C70<anal_period),WorkingCap*SUM(N70:R70)-WorkingCap*SUM(N69:R69),IF(C70<0,0,IF(B70="","",-SUM(J$65:J69)))) -> -10770.97933 | N70: -191553.1921 | O70: -2187240.36 | P70: 0 | Q70: 0 | R70: -6958.501273 | S70: =IF(B70="","",IF($B$31=0,"",-'Debt Financing Calculations'!E19)) -> -66968.60592 | T70: 344829.3128 | U70: =IF(C70="","",IF(C70<-1,0,IF(C70=anal_period,-LOOKUP(C70,depr_yr,depr_cost)-Depreciation!$C$141-Depreciation!$B$166,-LOOKUP(C70,depr_yr,depr_cost)))) -> -281853.3475 | V70: 62975.96526 | W70: 0.2574 | X70: -16210.01346 | Y70: 328619.2993 | Z70: =IF(C70="","",IF($B$31=0,"",-'Debt Financing Calculations'!F19)) -> 0 | AA70: 301276.9197 | AB70: 99907.52447 | AC70: 317486.9331 | AE70: 532060.5 | AF70: 0
A71: 2020 | B71: =IF(MAX($B$65:B70)<(construct+anal_period),B70+1,"") -> 7 | C71: 6 | D71: 6 | E71: 1.098679244 | F71: 2850703.422 | H71: 0 | I71: =IF(OR(C71<0,C71=""),"",-E71*INDEX('Replacement Costs'!$A$16:$H$57,MATCH(C71,'Replacement Costs'!$C$16:$C$57,0),MATCH("Total Yearly Replacement Costs",'Replacement Costs'!$A$16:$H$16,0))) -> -16886.2569 | J71: =IF(AND(C71>=1,C71<anal_period),WorkingCap*SUM(N71:R71)-WorkingCap*SUM(N70:R70),IF(C71<0,0,IF(B71="","",-SUM(J$65:J70)))) -> -13019.57055 | N71: -195192.7027 | O71: -2270265.775 | P71: 0 | Q71: 0 | R71: -7090.712797 | S71: =IF(B71="","",IF($B$31=0,"",-'Debt Financing Calculations'!E20)) -> -66968.60592 | T71: 311185.6252 | U71: =IF(C71="","",IF(C71<-1,0,IF(C71=anal_period,-LOOKUP(C71,depr_yr,depr_cost)-Depreciation!$C$141-Depreciation!$B$166,-LOOKUP(C71,depr_yr,depr_cost)))) -> -283159.597 | V71: 28026.02826 | W71: 0.2574 | X71: -7213.899675 | Y71: 303971.7255 | Z71: =IF(C71="","",IF($B$31=0,"",-'Debt Financing Calculations'!F20)) -> 0 | AA71: 274065.8981 | AB71: 373973.4226 | AC71: 281279.7978 | AE71: 532060.5 | AF71: 0
A72: 2021 | B72: =IF(MAX($B$65:B71)<(construct+anal_period),B71+1,"") -> 8 | C72: 7 | D72: 7 | E72: 1.11955415 | F72: 2904866.787 | H72: 0 | I72: =IF(OR(C72<0,C72=""),"",-E72*INDEX('Replacement Costs'!$A$16:$H$57,MATCH(C72,'Replacement Costs'!$C$16:$C$57,0),MATCH("Total Yearly Replacement Costs",'Replacement Costs'!$A$16:$H$16,0))) -> -393022.5184 | J72: =IF(AND(C72>=1,C72<anal_period),WorkingCap*SUM(N72:R72)-WorkingCap*SUM(N71:R71),IF(C72<0,0,IF(B72="","",-SUM(J$65:J71)))) -> -8957.98313 | N72: -198901.3641 | O72: -2326142.278 | P72: 0 | Q72: 0 | R72: -7225.436341 | S72: =IF(B72="","",IF($B$31=0,"",-'Debt Financing Calculations'!E21)) -> -66968.60592 | T72: 305629.1027 | U72: =IF(C72="","",IF(C72<-1,0,IF(C72=anal_period,-LOOKUP(C72,depr_yr,depr_cost)-Depreciation!$C$141-Depreciation!$B$166,-LOOKUP(C72,depr_yr,depr_cost)))) -> -338805.2783 | V72: -33176.17563 | W72: 0.2574 | X72: 8539.547607 | Y72: 314168.6503 | Z72: =IF(C72="","",IF($B$31=0,"",-'Debt Financing Calculations'!F21)) -> 0 | AA72: -87811.85126 | AB72: 286161.5713 | AC72: -96351.39886 | AE72: 532060.5 | AF72: 0
A73: 2022 | B73: =IF(MAX($B$65:B72)<(construct+anal_period),B72+1,"") -> 9 | C73: 8 | D73: 8 | E73: 1.140825679 | F73: 2960059.256 | H73: 0 | I73: =IF(OR(C73<0,C73=""),"",-E73*INDEX('Replacement Costs'!$A$16:$H$57,MATCH(C73,'Replacement Costs'!$C$16:$C$57,0),MATCH("Total Yearly Replacement Costs",'Replacement Costs'!$A$16:$H$16,0))) -> -17534.03061 | J73: =IF(AND(C73>=1,C73<anal_period),WorkingCap*SUM(N73:R73)-WorkingCap*SUM(N72:R72),IF(C73<0,0,IF(B73="","",-SUM(J$65:J72)))) -> -18693.3295 | N73: -202680.49 | O73: -2446848.065 | P73: 0 | Q73: 0 | R73: -7362.719631 | S73: =IF(B73="","",IF($B$31=0,"",-'Debt Financing Calculations'!E22)) -> -66968.60592 | T73: 236199.375 | U73: =IF(C73="","",IF(C73<-1,0,IF(C73=anal_period,-LOOKUP(C73,depr_yr,depr_cost)-Depreciation!$C$141-Depreciation!$B$166,-LOOKUP(C73,depr_yr,depr_cost)))) -> -243280.3945 | V73: -7081.019521 | W73: 0.2574 | X73: 1822.654425 | Y73: 238022.0294 | Z73: =IF(C73="","",IF($B$31=0,"",-'Debt Financing Calculations'!F22)) -> 0 | AA73: 201794.6693 | AB73: 487956.2406 | AC73: 199972.0149 | AE73: 532060.5 | AF73: 0
A74: 2023 | B74: =IF(MAX($B$65:B73)<(construct+anal_period),B73+1,"") -> 10 | C74: 9 | D74: 9 | E74: 1.162501366 | F74: 3016300.382 | H74: 0 | I74: =IF(OR(C74<0,C74=""),"",-E74*INDEX('Replacement Costs'!$A$16:$H$57,MATCH(C74,'Replacement Costs'!$C$16:$C$57,0),MATCH("Total Yearly Replacement Costs",'Replacement Costs'!$A$16:$H$16,0))) -> -17867.17719 | J74: =IF(AND(C74>=1,C74<anal_period),WorkingCap*SUM(N74:R74)-WorkingCap*SUM(N73:R73),IF(C74<0,0,IF(B74="","",-SUM(J$65:J73)))) -> -8757.497075 | N74: -206531.4193 | O74: -2501240.558 | P74: 0 | Q74: 0 | R74: -7502.611304 | S74: =IF(B74="","",IF($B$31=0,"",-'Debt Financing Calculations'!E23)) -> -66968.60592 | T74: 234057.187 | U74: =IF(C74="","",IF(C74<-1,0,IF(C74=anal_period,-LOOKUP(C74,depr_yr,depr_cost)-Depreciation!$C$141-Depreciation!$B$166,-LOOKUP(C74,depr_yr,depr_cost)))) -> -82750.13295 | V74: 151307.0541 | W74: 0.2574 | X74: -38946.43572 | Y74: 195110.7513 | Z74: =IF(C74="","",IF($B$31=0,"",-'Debt Financing Calculations'!F23)) -> 0 | AA74: 168486.077 | AB74: 656442.3176 | AC74: 207432.5128 | AE74: 532060.5 | AF74: 0
A75: 2024 | B75: =IF(MAX($B$65:B74)<(construct+anal_period),B74+1,"") -> 11 | C75: 10 | D75: 10 | E75: 1.184588892 | F75: 3073610.089 | H75: 0 | I75: =IF(OR(C75<0,C75=""),"",-E75*INDEX('Replacement Costs'!$A$16:$H$57,MATCH(C75,'Replacement Costs'!$C$16:$C$57,0),MATCH("Total Yearly Replacement Costs",'Replacement Costs'!$A$16:$H$16,0))) -> -18206.65355 | J75: =IF(AND(C75>=1,C75<anal_period),WorkingCap*SUM(N75:R75)-WorkingCap*SUM(N74:R74),IF(C75<0,0,IF(B75="","",-SUM(J$65:J74)))) -> -6730.689227 | N75: -210455.5162 | O75: -2542045.173 | P75: 0 | Q75: 0 | R75: -7645.160919 | S75: =IF(B75="","",IF($B$31=0,"",-'Debt Financing Calculations'!E24)) -> -66968.60592 | T75: 246495.6328 | U75: =IF(C75="","",IF(C75<-1,0,IF(C75=anal_period,-LOOKUP(C75,depr_yr,depr_cost)-Depreciation!$C$141-Depreciation!$B$166,-LOOKUP(C75,depr_yr,depr_cost)))) -> -64282.74211 | V75: 182212.8906 | W75: 0.2574 | X75: -46901.59805 | Y75: 199594.0347 | Z75: =IF(C75="","",IF($B$31=0,"",-'Debt Financing Calculations'!F24)) -> 0 | AA75: 174656.6919 | AB75: 831099.0096 | AC75: 221558.29 | AE75: 532060.5 | AF75: 0
A76: 2025 | B76: =IF(MAX($B$65:B75)<(construct+anal_period),B75+1,"") -> 12 | C76: 11 | D76: 11 | E76: 1.207096081 | F76: 3132008.681 | H76: 0 | I76: =IF(OR(C76<0,C76=""),"",-E76*INDEX('Replacement Costs'!$A$16:$H$57,MATCH(C76,'Replacement Costs'!$C$16:$C$57,0),MATCH("Total Yearly Replacement Costs",'Replacement Costs'!$A$16:$H$16,0))) -> -18552.57997 | J76: =IF(AND(C76>=1,C76<anal_period),WorkingCap*SUM(N76:R76)-WorkingCap*SUM(N75:R75),IF(C76<0,0,IF(B76="","",-SUM(J$65:J75)))) -> -17196.14477 | N76: -214454.1711 | O76: -2652542.225 | P76: 0 | Q76: 0 | R76: -7790.418976 | S76: =IF(B76="","",IF($B$31=0,"",-'Debt Financing Calculations'!E25)) -> -66968.60592 | T76: 190253.2593 | U76: =IF(C76="","",IF(C76<-1,0,IF(C76=anal_period,-LOOKUP(C76,depr_yr,depr_cost)-Depreciation!$C$141-Depreciation!$B$166,-LOOKUP(C76,depr_yr,depr_cost)))) -> -51233.23759 | V76: 139020.0217 | W76: 0.2574 | X76: -35783.75359 | Y76: 154469.5057 | Z76: =IF(C76="","",IF($B$31=0,"",-'Debt Financing Calculations'!F25)) -> 0 | AA76: 118720.781 | AB76: 949819.7905 | AC76: 154504.5346 | AE76: 532060.5 | AF76: 0
A77: 2026 | B77: =IF(MAX($B$65:B76)<(construct+anal_period),B76+1,"") -> 13 | C77: 12 | D77: 12 | E77: 1.230030907 | F77: 3191516.846 | H77: 0 | I77: =IF(OR(C77<0,C77=""),"",-E77*INDEX('Replacement Costs'!$A$16:$H$57,MATCH(C77,'Replacement Costs'!$C$16:$C$57,0),MATCH("Total Yearly Replacement Costs",'Replacement Costs'!$A$16:$H$16,0))) -> -18905.07899 | J77: =IF(AND(C77>=1,C77<anal_period),WorkingCap*SUM(N77:R77)-WorkingCap*SUM(N76:R76),IF(C77<0,0,IF(B77="","",-SUM(J$65:J76)))) -> -12310.5629 | N77: -218528.8003 | O77: -2730389.998 | P77: 0 | Q77: 0 | R77: -7938.436937 | S77: =IF(B77="","",IF($B$31=0,"",-'Debt Financing Calculations'!E26)) -> -66968.60592 | T77: 167691.0049 | U77: =IF(C77="","",IF(C77<-1,0,IF(C77=anal_period,-LOOKUP(C77,depr_yr,depr_cost)-Depreciation!$C$141-Depreciation!$B$166,-LOOKUP(C77,depr_yr,depr_cost)))) -> -51531.44153 | V77: 116159.5633 | W77: 0.2574 | X77: -29899.4716 | Y77: 137791.5333 | Z77: =IF(C77="","",IF($B$31=0,"",-'Debt Financing Calculations'!F26)) -> 0 | AA77: 106575.8914 | AB77: 1056395.682 | AC77: 136475.363 | AE77: 532060.5 | AF77: 0
A78: 2027 | B78: =IF(MAX($B$65:B77)<(construct+anal_period),B77+1,"") -> 14 | C78: 13 | D78: 13 | E78: 1.253401494 | F78: 3252155.666 | H78: 0 | I78: =IF(OR(C78<0,C78=""),"",-E78*INDEX('Replacement Costs'!$A$16:$H$57,MATCH(C78,'Replacement Costs'!$C$16:$C$57,0),MATCH("Total Yearly Replacement Costs",'Replacement Costs'!$A$16:$H$16,0))) -> -19264.27549 | J78: =IF(AND(C78>=1,C78<anal_period),WorkingCap*SUM(N78:R78)-WorkingCap*SUM(N77:R77),IF(C78<0,0,IF(B78="","",-SUM(J$65:J77)))) -> -10831.64208 | N78: -222680.8475 | O78: -2798298.067 | P78: 0 | Q78: 0 | R78: -8089.267239 | S78: =IF(B78="","",IF($B$31=0,"",-'Debt Financing Calculations'!E27)) -> -66968.60592 | T78: 156118.8777 | U78: =IF(C78="","",IF(C78<-1,0,IF(C78=anal_period,-LOOKUP(C78,depr_yr,depr_cost)-Depreciation!$C$141-Depreciation!$B$166,-LOOKUP(C78,depr_yr,depr_cost)))) -> -51911.18848 | V78: 104207.6892 | W78: 0.2574 | X78: -26823.05921 | Y78: 129295.8185 | Z78: =IF(C78="","",IF($B$31=0,"",-'Debt Financing Calculations'!F27)) -> 0 | AA78: 99199.90093 | AB78: 1155595.583 | AC78: 126022.9601 | AE78: 532060.5 | AF78: 0
A79: 2028 | B79: =IF(MAX($B$65:B78)<(construct+anal_period),B78+1,"") -> 15 | C79: 14 | D79: 14 | E79: 1.277216123 | F79: 3313946.623 | H79: 0 | I79: =IF(OR(C79<0,C79=""),"",-E79*INDEX('Replacement Costs'!$A$16:$H$57,MATCH(C79,'Replacement Costs'!$C$16:$C$57,0),MATCH("Total Yearly Replacement Costs",'Replacement Costs'!$A$16:$H$16,0))) -> -448370.1813 | J79: =IF(AND(C79>=1,C79<anal_period),WorkingCap*SUM(N79:R79)-WorkingCap*SUM(N78:R78),IF(C79<0,0,IF(B79="","",-SUM(J$65:J78)))) -> -11411.95977 | N79: -226911.7836 | O79: -2869993.167 | P79: 0 | Q79: 0 | R79: -8242.963316 | S79: =IF(B79="","",IF($B$31=0,"",-'Debt Financing Calculations'!E28)) -> -66968.60592 | T79: 141830.1035 | U79: =IF(C79="","",IF(C79<-1,0,IF(C79=anal_period,-LOOKUP(C79,depr_yr,depr_cost)-Depreciation!$C$141-Depreciation!$B$166,-LOOKUP(C79,depr_yr,depr_cost)))) -> -96727.83515 | V79: 45102.26839 | W79: 0.2574 | X79: -11609.32388 | Y79: 130220.7797 | Z79: =IF(C79="","",IF($B$31=0,"",-'Debt Financing Calculations'!F28)) -> 0 | AA79: -329561.3614 | AB79: 826034.2214 | AC79: -317952.0375 | AE79: 532060.5 | AF79: 0
A80: 2029 | B80: =IF(MAX($B$65:B79)<(construct+anal_period),B79+1,"") -> 16 | C80: 15 | D80: 15 | E80: 1.301483229 | F80: 3376911.609 | H80: 0 | I80: =IF(OR(C80<0,C80=""),"",-E80*INDEX('Replacement Costs'!$A$16:$H$57,MATCH(C80,'Replacement Costs'!$C$16:$C$57,0),MATCH("Total Yearly Replacement Costs",'Replacement Costs'!$A$16:$H$16,0))) -> -20003.27236 | J80: =IF(AND(C80>=1,C80<anal_period),WorkingCap*SUM(N80:R80)-WorkingCap*SUM(N79:R79),IF(C80<0,0,IF(B80="","",-SUM(J$65:J79)))) -> -11074.60909 | N80: -231223.1075 | O80: -2939355.954 | P80: 0 | Q80: 0 | R80: -8399.579619 | S80: =IF(B80="","",IF($B$31=0,"",-'Debt Financing Calculations'!E29)) -> -66968.60592 | T80: 130964.3621 | U80: =IF(C80="","",IF(C80<-1,0,IF(C80=anal_period,-LOOKUP(C80,depr_yr,depr_cost)-Depreciation!$C$141-Depreciation!$B$166,-LOOKUP(C80,depr_yr,depr_cost)))) -> -124053.2267 | V80: 6911.135362 | W80: 0.2574 | X80: -1778.926242 | Y80: 129185.4359 | Z80: =IF(C80="","",IF($B$31=0,"",-'Debt Financing Calculations'!F29)) -> 0 | AA80: 98107.55441 | AB80: 924141.7758 | AC80: 99886.48065 | AE80: 532060.5 | AF80: 0
A81: 2030 | B81: =IF(MAX($B$65:B80)<(construct+anal_period),B80+1,"") -> 17 | C81: 16 | D81: 16 | E81: 1.32621141 | F81: 3441072.93 | H81: 0 | I81: =IF(OR(C81<0,C81=""),"",-E81*INDEX('Replacement Costs'!$A$16:$H$57,MATCH(C81,'Replacement Costs'!$C$16:$C$57,0),MATCH("Total Yearly Replacement Costs",'Replacement Costs'!$A$16:$H$16,0))) -> -20383.33454 | J81: =IF(AND(C81>=1,C81<anal_period),WorkingCap*SUM(N81:R81)-WorkingCap*SUM(N80:R80),IF(C81<0,0,IF(B81="","",-SUM(J$65:J80)))) -> -10635.19793 | N81: -235616.3465 | O81: -3005704.443 | P81: 0 | Q81: 0 | R81: -8559.171632 | S81: =IF(B81="","",IF($B$31=0,"",-'Debt Financing Calculations'!E30)) -> -66968.60592 | T81: 124224.3632 | U81: =IF(C81="","",IF(C81<-1,0,IF(C81=anal_period,-LOOKUP(C81,depr_yr,depr_cost)-Depreciation!$C$141-Depreciation!$B$166,-LOOKUP(C81,depr_yr,depr_cost)))) -> -94403.47657 | V81: 29820.88658 | W81: 0.2574 | X81: -7675.896207 | Y81: 116548.467 | Z81: =IF(C81="","",IF($B$31=0,"",-'Debt Financing Calculations'!F30)) -> 0 | AA81: 85529.93449 | AB81: 1009671.71 | AC81: 93205.83069 | AE81: 532060.5 | AF81: 0
A82: 2031 | B82: =IF(MAX($B$65:B81)<(construct+anal_period),B81+1,"") -> 18 | C82: 17 | D82: 17 | E82: 1.351409427 | F82: 3506453.315 | H82: 0 | I82: =IF(OR(C82<0,C82=""),"",-E82*INDEX('Replacement Costs'!$A$16:$H$57,MATCH(C82,'Replacement Costs'!$C$16:$C$57,0),MATCH("Total Yearly Replacement Costs",'Replacement Costs'!$A$16:$H$16,0))) -> -20770.61789 | J82: =IF(AND(C82>=1,C82<anal_period),WorkingCap*SUM(N82:R82)-WorkingCap*SUM(N81:R81),IF(C82<0,0,IF(B82="","",-SUM(J$65:J81)))) -> -9844.178616 | N82: -240093.0571 | O82: -3066692.965 | P82: 0 | Q82: 0 | R82: -8721.795893 | S82: =IF(B82="","",IF($B$31=0,"",-'Debt Financing Calculations'!E31)) -> -66968.60592 | T82: 123976.8914 | U82: =IF(C82="","",IF(C82<-1,0,IF(C82=anal_period,-LOOKUP(C82,depr_yr,depr_cost)-Depreciation!$C$141-Depreciation!$B$166,-LOOKUP(C82,depr_yr,depr_cost)))) -> -73335.40289 | V82: 50641.48849 | W82: 0.2574 | X82: -13035.11914 | Y82: 110941.7722 | Z82: =IF(C82="","",IF($B$31=0,"",-'Debt Financing Calculations'!F31)) -> 0 | AA82: 80326.97573 | AB82: 1089998.686 | AC82: 93362.09487 | AE82: 532060.5 | AF82: 0
A83: 2032 | B83: =IF(MAX($B$65:B82)<(construct+anal_period),B82+1,"") -> 19 | C83: 18 | D83: 18 | E83: 1.377086206 | F83: 3573075.928 | H83: 0 | I83: =IF(OR(C83<0,C83=""),"",-E83*INDEX('Replacement Costs'!$A$16:$H$57,MATCH(C83,'Replacement Costs'!$C$16:$C$57,0),MATCH("Total Yearly Replacement Costs",'Replacement Costs'!$A$16:$H$16,0))) -> -21165.25963 | J83: =IF(AND(C83>=1,C83<anal_period),WorkingCap*SUM(N83:R83)-WorkingCap*SUM(N82:R82),IF(C83<0,0,IF(B83="","",-SUM(J$65:J82)))) -> -8379.76151 | N83: -244654.8252 | O83: -3117830.56 | P83: 0 | Q83: 0 | R83: -8887.510015 | S83: =IF(B83="","",IF($B$31=0,"",-'Debt Financing Calculations'!E32)) -> -66968.60592 | T83: 134734.4276 | U83: =IF(C83="","",IF(C83<-1,0,IF(C83=anal_period,-LOOKUP(C83,depr_yr,depr_cost)-Depreciation!$C$141-Depreciation!$B$166,-LOOKUP(C83,depr_yr,depr_cost)))) -> -58448.19304 | V83: 76286.23461 | W83: 0.2574 | X83: -19636.07679 | Y83: 115098.3509 | Z83: =IF(C83="","",IF($B$31=0,"",-'Debt Financing Calculations'!F32)) -> 0 | AA83: 85553.32971 | AB83: 1175552.016 | AC83: 105189.4065 | AE83: 532060.5 | AF83: 0
A84: 2033 | B84: =IF(MAX($B$65:B83)<(construct+anal_period),B83+1,"") -> 20 | C84: 19 | D84: 19 | E84: 1.403250844 | F84: 3640964.371 | H84: 0 | I84: =IF(OR(C84<0,C84=""),"",-E84*INDEX('Replacement Costs'!$A$16:$H$57,MATCH(C84,'Replacement Costs'!$C$16:$C$57,0),MATCH("Total Yearly Replacement Costs",'Replacement Costs'!$A$16:$H$16,0))) -> -21567.39957 | J84: =IF(AND(C84>=1,C84<anal_period),WorkingCap*SUM(N84:R84)-WorkingCap*SUM(N83:R83),IF(C84<0,0,IF(B84="","",-SUM(J$65:J83)))) -> -7904.998253 | N84: -249303.2669 | O84: -3165713.244 | P84: 0 | Q84: 0 | R84: -9056.372705 | S84: =IF(B84="","",IF($B$31=0,"",-'Debt Financing Calculations'!E33)) -> -66968.60592 | T84: 149922.8819 | U84: =IF(C84="","",IF(C84<-1,0,IF(C84=anal_period,-LOOKUP(C84,depr_yr,depr_cost)-Depreciation!$C$141-Depreciation!$B$166,-LOOKUP(C84,depr_yr,depr_cost)))) -> -58788.39175 | V84: 91134.49018 | W84: 0.2574 | X84: -23458.01777 | Y84: 126464.8642 | Z84: =IF(C84="","",IF($B$31=0,"",-'Debt Financing Calculations'!F33)) -> 0 | AA84: 96992.46634 | AB84: 1272544.482 | AC84: 120450.4841 | AE84: 532060.5 | AF84: 0
A85: 2034 | B85: =IF(MAX($B$65:B84)<(construct+anal_period),B84+1,"") -> 21 | C85: 20 | D85: 20 | E85: 1.42991261 | F85: 3710142.694 | H85: 0 | I85: =IF(OR(C85<0,C85=""),"",-E85*INDEX('Replacement Costs'!$A$16:$H$57,MATCH(C85,'Replacement Costs'!$C$16:$C$57,0),MATCH("Total Yearly Replacement Costs",'Replacement Costs'!$A$16:$H$16,0))) -> -21977.18016 | J85: =IF(AND(C85>=1,C85<anal_period),WorkingCap*SUM(N85:R85)-WorkingCap*SUM(N84:R84),IF(C85<0,0,IF(B85="","",-SUM(J$65:J84)))) -> 513610.9325 | L85: 439543.6032 | M85: -439543.6032 | N85: -254040.029 | O85: -3216486.489 | P85: 0 | Q85: 0 | R85: -9228.443787 | S85: =IF(B85="","",IF($B$31=0,"",-'Debt Financing Calculations'!E34)) -> -66968.60592 | T85: 163419.127 | U85: =IF(C85="","",IF(C85<-1,0,IF(C85=anal_period,-LOOKUP(C85,depr_yr,depr_cost)-Depreciation!$C$141-Depreciation!$B$166,-LOOKUP(C85,depr_yr,depr_cost)))) -> -134229.3992 | V85: 29189.72778 | W85: 0.2574 | X85: -7513.435931 | Y85: 155905.6911 | Z85: =IF(C85="","",IF($B$31=0,"",-'Debt Financing Calculations'!F34)) -> -1809962.322 | AA85: -1162422.879 | AB85: 110121.6035 | AC85: -1154909.443 | AE85: 532060.5 | AF85: 0
B86: =IF(MAX($B$65:B85)<(construct+anal_period),B85+1,"") ->  | I86: =IF(OR(C86<0,C86=""),"",-E86*INDEX('Replacement Costs'!$A$16:$H$57,MATCH(C86,'Replacement Costs'!$C$16:$C$57,0),MATCH("Total Yearly Replacement Costs",'Replacement Costs'!$A$16:$H$16,0))) ->  | J86: =IF(AND(C86>=1,C86<anal_period),WorkingCap*SUM(N86:R86)-WorkingCap*SUM(N85:R85),IF(C86<0,0,IF(B86="","",-SUM(J$65:J85)))) ->  | S86: =IF(B86="","",IF($B$31=0,"",-'Debt Financing Calculations'!E35)) ->  | U86: =IF(C86="","",IF(C86<-1,0,IF(C86=anal_period,-LOOKUP(C86,depr_yr,depr_cost)-Depreciation!$C$141-Depreciation!$B$166,-LOOKUP(C86,depr_yr,depr_cost)))) ->  | Z86: =IF(C86="","",IF($B$31=0,"",-'Debt Financing Calculations'!F35)) -> 
B87: =IF(MAX($B$65:B86)<(construct+anal_period),B86+1,"") ->  | I87: =IF(OR(C87<0,C87=""),"",-E87*INDEX('Replacement Costs'!$A$16:$H$57,MATCH(C87,'Replacement Costs'!$C$16:$C$57,0),MATCH("Total Yearly Replacement Costs",'Replacement Costs'!$A$16:$H$16,0))) ->  | J87: =IF(AND(C87>=1,C87<anal_period),WorkingCap*SUM(N87:R87)-WorkingCap*SUM(N86:R86),IF(C87<0,0,IF(B87="","",-SUM(J$65:J86)))) ->  | S87: =IF(B87="","",IF($B$31=0,"",-'Debt Financing Calculations'!E36)) ->  | U87: =IF(C87="","",IF(C87<-1,0,IF(C87=anal_period,-LOOKUP(C87,depr_yr,depr_cost)-Depreciation!$C$141-Depreciation!$B$166,-LOOKUP(C87,depr_yr,depr_cost)))) ->  | Z87: =IF(C87="","",IF($B$31=0,"",-'Debt Financing Calculations'!F36)) -> 
B88: =IF(MAX($B$65:B87)<(construct+anal_period),B87+1,"") ->  | I88: =IF(OR(C88<0,C88=""),"",-E88*INDEX('Replacement Costs'!$A$16:$H$57,MATCH(C88,'Replacement Costs'!$C$16:$C$57,0),MATCH("Total Yearly Replacement Costs",'Replacement Costs'!$A$16:$H$16,0))) ->  | J88: =IF(AND(C88>=1,C88<anal_period),WorkingCap*SUM(N88:R88)-WorkingCap*SUM(N87:R87),IF(C88<0,0,IF(B88="","",-SUM(J$65:J87)))) ->  | S88: =IF(B88="","",IF($B$31=0,"",-'Debt Financing Calculations'!E37)) ->  | U88: =IF(C88="","",IF(C88<-1,0,IF(C88=anal_period,-LOOKUP(C88,depr_yr,depr_cost)-Depreciation!$C$141-Depreciation!$B$166,-LOOKUP(C88,depr_yr,depr_cost)))) ->  | Z88: =IF(C88="","",IF($B$31=0,"",-'Debt Financing Calculations'!F37)) -> 
B89: =IF(MAX($B$65:B88)<(construct+anal_period),B88+1,"") ->  | I89: =IF(OR(C89<0,C89=""),"",-E89*INDEX('Replacement Costs'!$A$16:$H$57,MATCH(C89,'Replacement Costs'!$C$16:$C$57,0),MATCH("Total Yearly Replacement Costs",'Replacement Costs'!$A$16:$H$16,0))) ->  | J89: =IF(AND(C89>=1,C89<anal_period),WorkingCap*SUM(N89:R89)-WorkingCap*SUM(N88:R88),IF(C89<0,0,IF(B89="","",-SUM(J$65:J88)))) ->  | S89: =IF(B89="","",IF($B$31=0,"",-'Debt Financing Calculations'!E38)) ->  | U89: =IF(C89="","",IF(C89<-1,0,IF(C89=anal_period,-LOOKUP(C89,depr_yr,depr_cost)-Depreciation!$C$141-Depreciation!$B$166,-LOOKUP(C89,depr_yr,depr_cost)))) ->  | Z89: =IF(C89="","",IF($B$31=0,"",-'Debt Financing Calculations'!F38)) -> 
B90: =IF(MAX($B$65:B89)<(construct+anal_period),B89+1,"") ->  | I90: =IF(OR(C90<0,C90=""),"",-E90*INDEX('Replacement Costs'!$A$16:$H$57,MATCH(C90,'Replacement Costs'!$C$16:$C$57,0),MATCH("Total Yearly Replacement Costs",'Replacement Costs'!$A$16:$H$16,0))) ->  | J90: =IF(AND(C90>=1,C90<anal_period),WorkingCap*SUM(N90:R90)-WorkingCap*SUM(N89:R89),IF(C90<0,0,IF(B90="","",-SUM(J$65:J89)))) ->  | S90: =IF(B90="","",IF($B$31=0,"",-'Debt Financing Calculations'!E39)) ->  | U90: =IF(C90="","",IF(C90<-1,0,IF(C90=anal_period,-LOOKUP(C90,depr_yr,depr_cost)-Depreciation!$C$141-Depreciation!$B$166,-LOOKUP(C90,depr_yr,depr_cost)))) ->  | Z90: =IF(C90="","",IF($B$31=0,"",-'Debt Financing Calculations'!F39)) -> 
B91: =IF(MAX($B$65:B90)<(construct+anal_period),B90+1,"") ->  | I91: =IF(OR(C91<0,C91=""),"",-E91*INDEX('Replacement Costs'!$A$16:$H$57,MATCH(C91,'Replacement Costs'!$C$16:$C$57,0),MATCH("Total Yearly Replacement Costs",'Replacement Costs'!$A$16:$H$16,0))) ->  | J91: =IF(AND(C91>=1,C91<anal_period),WorkingCap*SUM(N91:R91)-WorkingCap*SUM(N90:R90),IF(C91<0,0,IF(B91="","",-SUM(J$65:J90)))) ->  | S91: =IF(B91="","",IF($B$31=0,"",-'Debt Financing Calculations'!E40)) ->  | U91: =IF(C91="","",IF(C91<-1,0,IF(C91=anal_period,-LOOKUP(C91,depr_yr,depr_cost)-Depreciation!$C$141-Depreciation!$B$166,-LOOKUP(C91,depr_yr,depr_cost)))) ->  | Z91: =IF(C91="","",IF($B$31=0,"",-'Debt Financing Calculations'!F40)) -> 
B92: =IF(MAX($B$65:B91)<(construct+anal_period),B91+1,"") ->  | I92: =IF(OR(C92<0,C92=""),"",-E92*INDEX('Replacement Costs'!$A$16:$H$57,MATCH(C92,'Replacement Costs'!$C$16:$C$57,0),MATCH("Total Yearly Replacement Costs",'Replacement Costs'!$A$16:$H$16,0))) ->  | J92: =IF(AND(C92>=1,C92<anal_period),WorkingCap*SUM(N92:R92)-WorkingCap*SUM(N91:R91),IF(C92<0,0,IF(B92="","",-SUM(J$65:J91)))) ->  | S92: =IF(B92="","",IF($B$31=0,"",-'Debt Financing Calculations'!E41)) ->  | U92: =IF(C92="","",IF(C92<-1,0,IF(C92=anal_period,-LOOKUP(C92,depr_yr,depr_cost)-Depreciation!$C$141-Depreciation!$B$166,-LOOKUP(C92,depr_yr,depr_cost)))) ->  | Z92: =IF(C92="","",IF($B$31=0,"",-'Debt Financing Calculations'!F41)) -> 
B93: =IF(MAX($B$65:B92)<(construct+anal_period),B92+1,"") ->  | I93: =IF(OR(C93<0,C93=""),"",-E93*INDEX('Replacement Costs'!$A$16:$H$57,MATCH(C93,'Replacement Costs'!$C$16:$C$57,0),MATCH("Total Yearly Replacement Costs",'Replacement Costs'!$A$16:$H$16,0))) ->  | J93: =IF(AND(C93>=1,C93<anal_period),WorkingCap*SUM(N93:R93)-WorkingCap*SUM(N92:R92),IF(C93<0,0,IF(B93="","",-SUM(J$65:J92)))) ->  | S93: =IF(B93="","",IF($B$31=0,"",-'Debt Financing Calculations'!E42)) ->  | U93: =IF(C93="","",IF(C93<-1,0,IF(C93=anal_period,-LOOKUP(C93,depr_yr,depr_cost)-Depreciation!$C$141-Depreciation!$B$166,-LOOKUP(C93,depr_yr,depr_cost)))) ->  | Z93: =IF(C93="","",IF($B$31=0,"",-'Debt Financing Calculations'!F42)) -> 
B94: =IF(MAX($B$65:B93)<(construct+anal_period),B93+1,"") ->  | I94: =IF(OR(C94<0,C94=""),"",-E94*INDEX('Replacement Costs'!$A$16:$H$57,MATCH(C94,'Replacement Costs'!$C$16:$C$57,0),MATCH("Total Yearly Replacement Costs",'Replacement Costs'!$A$16:$H$16,0))) ->  | J94: =IF(AND(C94>=1,C94<anal_period),WorkingCap*SUM(N94:R94)-WorkingCap*SUM(N93:R93),IF(C94<0,0,IF(B94="","",-SUM(J$65:J93)))) ->  | S94: =IF(B94="","",IF($B$31=0,"",-'Debt Financing Calculations'!E43)) ->  | U94: =IF(C94="","",IF(C94<-1,0,IF(C94=anal_period,-LOOKUP(C94,depr_yr,depr_cost)-Depreciation!$C$141-Depreciation!$B$166,-LOOKUP(C94,depr_yr,depr_cost)))) ->  | Z94: =IF(C94="","",IF($B$31=0,"",-'Debt Financing Calculations'!F43)) -> 
B95: =IF(MAX($B$65:B94)<(construct+anal_period),B94+1,"") ->  | I95: =IF(OR(C95<0,C95=""),"",-E95*INDEX('Replacement Costs'!$A$16:$H$57,MATCH(C95,'Replacement Costs'!$C$16:$C$57,0),MATCH("Total Yearly Replacement Costs",'Replacement Costs'!$A$16:$H$16,0))) ->  | J95: =IF(AND(C95>=1,C95<anal_period),WorkingCap*SUM(N95:R95)-WorkingCap*SUM(N94:R94),IF(C95<0,0,IF(B95="","",-SUM(J$65:J94)))) ->  | S95: =IF(B95="","",IF($B$31=0,"",-'Debt Financing Calculations'!E44)) ->  | U95: =IF(C95="","",IF(C95<-1,0,IF(C95=anal_period,-LOOKUP(C95,depr_yr,depr_cost)-Depreciation!$C$141-Depreciation!$B$166,-LOOKUP(C95,depr_yr,depr_cost)))) ->  | Z95: =IF(C95="","",IF($B$31=0,"",-'Debt Financing Calculations'!F44)) -> 
B96: =IF(MAX($B$65:B95)<(construct+anal_period),B95+1,"") ->  | I96: =IF(OR(C96<0,C96=""),"",-E96*INDEX('Replacement Costs'!$A$16:$H$57,MATCH(C96,'Replacement Costs'!$C$16:$C$57,0),MATCH("Total Yearly Replacement Costs",'Replacement Costs'!$A$16:$H$16,0))) ->  | J96: =IF(AND(C96>=1,C96<anal_period),WorkingCap*SUM(N96:R96)-WorkingCap*SUM(N95:R95),IF(C96<0,0,IF(B96="","",-SUM(J$65:J95)))) ->  | S96: =IF(B96="","",IF($B$31=0,"",-'Debt Financing Calculations'!E45)) ->  | U96: =IF(C96="","",IF(C96<-1,0,IF(C96=anal_period,-LOOKUP(C96,depr_yr,depr_cost)-Depreciation!$C$141-Depreciation!$B$166,-LOOKUP(C96,depr_yr,depr_cost)))) ->  | Z96: =IF(C96="","",IF($B$31=0,"",-'Debt Financing Calculations'!F45)) -> 
B97: =IF(MAX($B$65:B96)<(construct+anal_period),B96+1,"") ->  | D97: =IF(C97="","",IF(C97<=plant_life,C97,IF(D96=plant_life,1,D96+1))) ->  | E97: =IF(C97="","",(1+inflation_rate)^(A97-$B$25)) ->  | F97: =IF(C97="","",IF(C97<0,0,IF(AND(C97=1,start_time<1),E97*(H2_price_nominal*output_kgyear*start_time*percnt_revs+H2_price_nominal*output_kgyear*(1-start_time)),IF(C97<=start_time,H2_price_nominal*E97*output_kgyear*percnt_revs,H2_price_nominal*output_kgyear*E97)))) ->  | I97: =IF(OR(C97<0,C97=""),"",-E97*INDEX('Replacement Costs'!$A$16:$H$57,MATCH(C97,'Replacement Costs'!$C$16:$C$57,0),MATCH("Total Yearly Replacement Costs",'Replacement Costs'!$A$16:$H$16,0))) ->  | J97: =IF(AND(C97>=1,C97<anal_period),WorkingCap*SUM(N97:R97)-WorkingCap*SUM(N96:R96),IF(C97<0,0,IF(B97="","",-SUM(J$65:J96)))) ->  | K97: =IF(C97=-construct,-E97*non_dep_infl,"") ->  | L97: =IF(C97=anal_period,salvage*E97,"") ->  | M97: =IF(D97=plant_life,-E97*decom,"") ->  | N97: =IF(C97="","",IF(C97<0,0,IF(AND(C97=1,start_time<1),-(inflated_fixed*percnt_fixed*start_time+(inflated_fixed*(1-start_time))),IF(C97<=start_time,-inflated_fixed*percnt_fixed*E97,-inflated_fixed*E97)))) ->  | O97: =IF(C97="","",IF(C97<0,0,IF(AND(C97=1,start_time<1),-(SUM(B171:E171)*output_kgyear*E97*percnt_var*start_time+SUM(B171:E171)*output_kgyear*E97*(1-start_time)),IF(C97<=start_time,-SUM(B171:E171)*output_kgyear*E97*percnt_var,-SUM(B171:E171)*output_kgyear*E97)))) ->  | P97: =IF(C97="","",IF(C97<0,0,IF(AND(C97=1,start_time<1),-(inflated_otherraw*E97*percnt_var*start_time+inflated_otherraw*E97*(1-start_time)),IF(C97<=start_time,-inflated_otherraw*E97*percnt_var,-(inflated_otherraw*E97))))) ->  | R97: =IF(C97="","",IF(C97<0,0,IF(AND(C97=1,start_time<1),-((SUM(F171:J171,P171:R171)*output_kgyear+inflated_othervar)*E97*percnt_var*start_time+(SUM(F171:J171,P171:R171)*output_kgyear+inflated_othervar)*E97*(1-start_time)),IF(C97<=start_time,-(SUM(F171:J171,P171:R171)*output_kgyear+inflated_othervar)*E97*percnt_var,-E97*(SUM(F171:J171,P171:R171)*output_kgyear+inflated_othervar))))) ->  | S97: =IF(B97="","",IF($B$31=0,"",-'Debt Financing Calculations'!E46)) ->  | T97: =IF(C97="","",F97+SUM(L97:S97)) ->  | U97: =IF(C97="","",IF(C97<-1,0,IF(C97=anal_period,-LOOKUP(C97,depr_yr,depr_cost)-Depreciation!$C$141-Depreciation!$B$166,-LOOKUP(C97,depr_yr,depr_cost)))) ->  | V97: =IF(C97="","",SUM(T97:U97)) ->  | W97: =IF(C97="","",$B$33) ->  | X97: =IF(C97="","",tax_credit-(V97*W97 +Upstream_CO2_taxpYear + Proc_CO2_taxpYear)) ->  | Y97: =IF(C97="","",SUM(T97,X97)) ->  | Z97: =IF(C97="","",IF($B$31=0,"",-'Debt Financing Calculations'!F46)) ->  | AA97: =IF(C97="","",SUM(H97,I97,J97,K97,T97,X97,Z97)) ->  | AC97: =IF(C97="","",SUM(H97,I97,J97,K97,T97,Z97)) ->  | AE97: =IF(C97="","",IF(C97<0,0,IF(AND(C97=1,start_time<1),(output_kgyear*start_time*percnt_revs+output_kgyear*(1-start_time)),IF(C97<=start_time,output_kgyear*percnt_revs,output_kgyear)))) ->  | AF97: =IF(C97="","",tax_credit) -> 
B98: =IF(MAX($B$65:B97)<(construct+anal_period),B97+1,"") ->  | I98: =IF(OR(C98<0,C98=""),"",-E98*INDEX('Replacement Costs'!$A$16:$H$57,MATCH(C98,'Replacement Costs'!$C$16:$C$57,0),MATCH("Total Yearly Replacement Costs",'Replacement Costs'!$A$16:$H$16,0))) ->  | J98: =IF(AND(C98>=1,C98<anal_period),WorkingCap*SUM(N98:R98)-WorkingCap*SUM(N97:R97),IF(C98<0,0,IF(B98="","",-SUM(J$65:J97)))) ->  | S98: =IF(B98="","",IF($B$31=0,"",-'Debt Financing Calculations'!E47)) ->  | U98: =IF(C98="","",IF(C98<-1,0,IF(C98=anal_period,-LOOKUP(C98,depr_yr,depr_cost)-Depreciation!$C$141-Depreciation!$B$166,-LOOKUP(C98,depr_yr,depr_cost)))) ->  | Z98: =IF(C98="","",IF($B$31=0,"",-'Debt Financing Calculations'!F47)) -> 
B99: =IF(MAX($B$65:B98)<(construct+anal_period),B98+1,"") ->  | I99: =IF(OR(C99<0,C99=""),"",-E99*INDEX('Replacement Costs'!$A$16:$H$57,MATCH(C99,'Replacement Costs'!$C$16:$C$57,0),MATCH("Total Yearly Replacement Costs",'Replacement Costs'!$A$16:$H$16,0))) ->  | J99: =IF(AND(C99>=1,C99<anal_period),WorkingCap*SUM(N99:R99)-WorkingCap*SUM(N98:R98),IF(C99<0,0,IF(B99="","",-SUM(J$65:J98)))) ->  | S99: =IF(B99="","",IF($B$31=0,"",-'Debt Financing Calculations'!E48)) ->  | U99: =IF(C99="","",IF(C99<-1,0,IF(C99=anal_period,-LOOKUP(C99,depr_yr,depr_cost)-Depreciation!$C$141-Depreciation!$B$166,-LOOKUP(C99,depr_yr,depr_cost)))) ->  | Z99: =IF(C99="","",IF($B$31=0,"",-'Debt Financing Calculations'!F48)) -> 
B100: =IF(MAX($B$65:B99)<(construct+anal_period),B99+1,"") ->  | I100: =IF(OR(C100<0,C100=""),"",-E100*INDEX('Replacement Costs'!$A$16:$H$57,MATCH(C100,'Replacement Costs'!$C$16:$C$57,0),MATCH("Total Yearly Replacement Costs",'Replacement Costs'!$A$16:$H$16,0))) ->  | J100: =IF(AND(C100>=1,C100<anal_period),WorkingCap*SUM(N100:R100)-WorkingCap*SUM(N99:R99),IF(C100<0,0,IF(B100="","",-SUM(J$65:J99)))) ->  | S100: =IF(B100="","",IF($B$31=0,"",-'Debt Financing Calculations'!E49)) ->  | U100: =IF(C100="","",IF(C100<-1,0,IF(C100=anal_period,-LOOKUP(C100,depr_yr,depr_cost)-Depreciation!$C$141-Depreciation!$B$166,-LOOKUP(C100,depr_yr,depr_cost)))) ->  | Z100: =IF(C100="","",IF($B$31=0,"",-'Debt Financing Calculations'!F49)) -> 
B101: =IF(MAX($B$65:B100)<(construct+anal_period),B100+1,"") ->  | I101: =IF(OR(C101<0,C101=""),"",-E101*INDEX('Replacement Costs'!$A$16:$H$57,MATCH(C101,'Replacement Costs'!$C$16:$C$57,0),MATCH("Total Yearly Replacement Costs",'Replacement Costs'!$A$16:$H$16,0))) ->  | J101: =IF(AND(C101>=1,C101<anal_period),WorkingCap*SUM(N101:R101)-WorkingCap*SUM(N100:R100),IF(C101<0,0,IF(B101="","",-SUM(J$65:J100)))) ->  | S101: =IF(B101="","",IF($B$31=0,"",-'Debt Financing Calculations'!E50)) ->  | U101: =IF(C101="","",IF(C101<-1,0,IF(C101=anal_period,-LOOKUP(C101,depr_yr,depr_cost)-Depreciation!$C$141-Depreciation!$B$166,-LOOKUP(C101,depr_yr,depr_cost)))) ->  | Z101: =IF(C101="","",IF($B$31=0,"",-'Debt Financing Calculations'!F50)) -> 
B102: =IF(MAX($B$65:B101)<(construct+anal_period),B101+1,"") ->  | I102: =IF(OR(C102<0,C102=""),"",-E102*INDEX('Replacement Costs'!$A$16:$H$57,MATCH(C102,'Replacement Costs'!$C$16:$C$57,0),MATCH("Total Yearly Replacement Costs",'Replacement Costs'!$A$16:$H$16,0))) ->  | J102: =IF(AND(C102>=1,C102<anal_period),WorkingCap*SUM(N102:R102)-WorkingCap*SUM(N101:R101),IF(C102<0,0,IF(B102="","",-SUM(J$65:J101)))) ->  | S102: =IF(B102="","",IF($B$31=0,"",-'Debt Financing Calculations'!E51)) ->  | U102: =IF(C102="","",IF(C102<-1,0,IF(C102=anal_period,-LOOKUP(C102,depr_yr,depr_cost)-Depreciation!$C$141-Depreciation!$B$166,-LOOKUP(C102,depr_yr,depr_cost)))) ->  | Z102: =IF(C102="","",IF($B$31=0,"",-'Debt Financing Calculations'!F51)) -> 
B103: =IF(MAX($B$65:B102)<(construct+anal_period),B102+1,"") ->  | I103: =IF(OR(C103<0,C103=""),"",-E103*INDEX('Replacement Costs'!$A$16:$H$57,MATCH(C103,'Replacement Costs'!$C$16:$C$57,0),MATCH("Total Yearly Replacement Costs",'Replacement Costs'!$A$16:$H$16,0))) ->  | J103: =IF(AND(C103>=1,C103<anal_period),WorkingCap*SUM(N103:R103)-WorkingCap*SUM(N102:R102),IF(C103<0,0,IF(B103="","",-SUM(J$65:J102)))) ->  | S103: =IF(B103="","",IF($B$31=0,"",-'Debt Financing Calculations'!E52)) ->  | U103: =IF(C103="","",IF(C103<-1,0,IF(C103=anal_period,-LOOKUP(C103,depr_yr,depr_cost)-Depreciation!$C$141-Depreciation!$B$166,-LOOKUP(C103,depr_yr,depr_cost)))) ->  | Z103: =IF(C103="","",IF($B$31=0,"",-'Debt Financing Calculations'!F52)) -> 
B104: =IF(MAX($B$65:B103)<(construct+anal_period),B103+1,"") ->  | I104: =IF(OR(C104<0,C104=""),"",-E104*INDEX('Replacement Costs'!$A$16:$H$57,MATCH(C104,'Replacement Costs'!$C$16:$C$57,0),MATCH("Total Yearly Replacement Costs",'Replacement Costs'!$A$16:$H$16,0))) ->  | J104: =IF(AND(C104>=1,C104<anal_period),WorkingCap*SUM(N104:R104)-WorkingCap*SUM(N103:R103),IF(C104<0,0,IF(B104="","",-SUM(J$65:J103)))) ->  | S104: =IF(B104="","",IF($B$31=0,"",-'Debt Financing Calculations'!E53)) ->  | U104: =IF(C104="","",IF(C104<-1,0,IF(C104=anal_period,-LOOKUP(C104,depr_yr,depr_cost)-Depreciation!$C$141-Depreciation!$B$166,-LOOKUP(C104,depr_yr,depr_cost)))) ->  | Z104: =IF(C104="","",IF($B$31=0,"",-'Debt Financing Calculations'!F53)) -> 
B105: =IF(MAX($B$65:B104)<(construct+anal_period),B104+1,"") ->  | I105: =IF(OR(C105<0,C105=""),"",-E105*INDEX('Replacement Costs'!$A$16:$H$57,MATCH(C105,'Replacement Costs'!$C$16:$C$57,0),MATCH("Total Yearly Replacement Costs",'Replacement Costs'!$A$16:$H$16,0))) ->  | J105: =IF(AND(C105>=1,C105<anal_period),WorkingCap*SUM(N105:R105)-WorkingCap*SUM(N104:R104),IF(C105<0,0,IF(B105="","",-SUM(J$65:J104)))) ->  | S105: =IF(B105="","",IF($B$31=0,"",-'Debt Financing Calculations'!E54)) ->  | U105: =IF(C105="","",IF(C105<-1,0,IF(C105=anal_period,-LOOKUP(C105,depr_yr,depr_cost)-Depreciation!$C$141-Depreciation!$B$166,-LOOKUP(C105,depr_yr,depr_cost)))) ->  | Z105: =IF(C105="","",IF($B$31=0,"",-'Debt Financing Calculations'!F54)) -> 
B106: =IF(MAX($B$65:B105)<(construct+anal_period),B105+1,"") ->  | I106: =IF(OR(C106<0,C106=""),"",-E106*INDEX('Replacement Costs'!$A$16:$H$57,MATCH(C106,'Replacement Costs'!$C$16:$C$57,0),MATCH("Total Yearly Replacement Costs",'Replacement Costs'!$A$16:$H$16,0))) ->  | J106: =IF(AND(C106>=1,C106<anal_period),WorkingCap*SUM(N106:R106)-WorkingCap*SUM(N105:R105),IF(C106<0,0,IF(B106="","",-SUM(J$65:J105)))) ->  | S106: =IF(B106="","",IF($B$31=0,"",-'Debt Financing Calculations'!E55)) ->  | T106: =IF(C106="","",F106+SUM(L106:S106)) ->  | U106: =IF(C106="","",IF(C106<-1,0,IF(C106=anal_period,-LOOKUP(C106,depr_yr,depr_cost)-Depreciation!$C$141-Depreciation!$B$166,-LOOKUP(C106,depr_yr,depr_cost)))) ->  | Z106: =IF(C106="","",IF($B$31=0,"",-'Debt Financing Calculations'!F55)) ->  | AC106: =IF(C106="","",SUM(H106,I106,J106,K106,T106,Z106)) -> 
B107: =IF(MAX($B$65:B106)<(construct+anal_period),B106+1,"") ->  | I107: =IF(OR(C107<0,C107=""),"",-E107*INDEX('Replacement Costs'!$A$16:$H$57,MATCH(C107,'Replacement Costs'!$C$16:$C$57,0),MATCH("Total Yearly Replacement Costs",'Replacement Costs'!$A$16:$H$16,0))) ->  | J107: =IF(AND(C107>=1,C107<anal_period),WorkingCap*SUM(N107:R107)-WorkingCap*SUM(N106:R106),IF(C107<0,0,IF(B107="","",-SUM(J$65:J106)))) ->  | S107: =IF(B107="","",IF($B$31=0,"",-'Debt Financing Calculations'!E56)) ->  | U107: =IF(C107="","",IF(C107<-1,0,IF(C107=anal_period,-LOOKUP(C107,depr_yr,depr_cost)-Depreciation!$C$141-Depreciation!$B$166,-LOOKUP(C107,depr_yr,depr_cost)))) ->  | Z107: =IF(C107="","",IF($B$31=0,"",-'Debt Financing Calculations'!F56)) -> 
B108: =IF(MAX($B$65:B107)<(construct+anal_period),B107+1,"") ->  | I108: =IF(OR(C108<0,C108=""),"",-E108*INDEX('Replacement Costs'!$A$16:$H$57,MATCH(C108,'Replacement Costs'!$C$16:$C$57,0),MATCH("Total Yearly Replacement Costs",'Replacement Costs'!$A$16:$H$16,0))) ->  | J108: =IF(AND(C108>=1,C108<anal_period),WorkingCap*SUM(N108:R108)-WorkingCap*SUM(N107:R107),IF(C108<0,0,IF(B108="","",-SUM(J$65:J107)))) ->  | S108: =IF(B108="","",IF($B$31=0,"",-'Debt Financing Calculations'!E57)) ->  | U108: =IF(C108="","",IF(C108<-1,0,IF(C108=anal_period,-LOOKUP(C108,depr_yr,depr_cost)-Depreciation!$C$141-Depreciation!$B$166,-LOOKUP(C108,depr_yr,depr_cost)))) ->  | Z108: =IF(C108="","",IF($B$31=0,"",-'Debt Financing Calculations'!F57)) -> 
B109: =IF(MAX($B$65:B108)<(construct+anal_period),B108+1,"") ->  | I109: =IF(OR(C109<0,C109=""),"",-E109*INDEX('Replacement Costs'!$A$16:$H$57,MATCH(C109,'Replacement Costs'!$C$16:$C$57,0),MATCH("Total Yearly Replacement Costs",'Replacement Costs'!$A$16:$H$16,0))) ->  | J109: =IF(AND(C109>=1,C109<anal_period),WorkingCap*SUM(N109:R109)-WorkingCap*SUM(N108:R108),IF(C109<0,0,IF(B109="","",-SUM(J$65:J108)))) ->  | S109: =IF(B109="","",IF($B$31=0,"",-'Debt Financing Calculations'!E58)) ->  | U109: =IF(C109="","",IF(C109<-1,0,IF(C109=anal_period,-LOOKUP(C109,depr_yr,depr_cost)-Depreciation!$C$141-Depreciation!$B$166,-LOOKUP(C109,depr_yr,depr_cost)))) ->  | Z109: =IF(C109="","",IF($B$31=0,"",-'Debt Financing Calculations'!F58)) -> 
B110: =IF(MAX($B$65:B109)<(construct+anal_period),B109+1,"") ->  | I110: =IF(OR(C110<0,C110=""),"",-E110*INDEX('Replacement Costs'!$A$16:$H$57,MATCH(C110,'Replacement Costs'!$C$16:$C$57,0),MATCH("Total Yearly Replacement Costs",'Replacement Costs'!$A$16:$H$16,0))) ->  | J110: =IF(AND(C110>=1,C110<anal_period),WorkingCap*SUM(N110:R110)-WorkingCap*SUM(N109:R109),IF(C110<0,0,IF(B110="","",-SUM(J$65:J109)))) ->  | O110: =IF(C110="","",IF(C110<0,0,IF(AND(C110=1,start_time<1),-(SUM(B185:E185)*output_kgyear*E110*percnt_var*start_time+SUM(B185:E185)*output_kgyear*E110*(1-start_time)),IF(C110<=start_time,-SUM(B185:E185)*output_kgyear*E110*percnt_var,-SUM(B185:E185)*output_kgyear*E110)))) ->  | Q110: =IF(C110="","",IF(C110<0,0,IF(AND(C110=1,start_time<1),SUM(K185:N185,T185:V185)*output_kgyear*E110*percnt_revs*start_time+SUM(K185:N185,T185:V185)*output_kgyear*E110*(1-start_time),IF(C110<=start_time,SUM(K185:N185,T185:V185)*output_kgyear*E110*percnt_revs,SUM(K185:N185,T185:V185)*output_kgyear*E110)))) ->  | R110: =IF(C110="","",IF(C110<0,0,IF(AND(C110=1,start_time<1),-((SUM(F185:J185,P185:R185)*output_kgyear+inflated_othervar)*E110*percnt_var*start_time+(SUM(F185:J185,P185:R185)*output_kgyear+inflated_othervar)*E110*(1-start_time)),IF(C110<=start_time,-(SUM(F185:J185,P185:R185)*output_kgyear+inflated_othervar)*E110*percnt_var,-E110*(SUM(F185:J185,P185:R185)*output_kgyear+inflated_othervar))))) ->  | S110: =IF(B110="","",IF($B$31=0,"",-'Debt Financing Calculations'!E59)) ->  | U110: =IF(C110="","",IF(C110<-1,0,IF(C110=anal_period,-LOOKUP(C110,depr_yr,depr_cost)-Depreciation!$C$141-Depreciation!$B$166,-LOOKUP(C110,depr_yr,depr_cost)))) ->  | Z110: =IF(C110="","",IF($B$31=0,"",-'Debt Financing Calculations'!F59)) -> 
B111: =IF(MAX($B$65:B110)<(construct+anal_period),B110+1,"") ->  | I111: =IF(OR(C111<0,C111=""),"",-E111*INDEX('Replacement Costs'!$A$16:$H$57,MATCH(C111,'Replacement Costs'!$C$16:$C$57,0),MATCH("Total Yearly Replacement Costs",'Replacement Costs'!$A$16:$H$16,0))) ->  | J111: =IF(AND(C111>=1,C111<anal_period),WorkingCap*SUM(N111:R111)-WorkingCap*SUM(N110:R110),IF(C111<0,0,IF(B111="","",-SUM(J$65:J110)))) ->  | O111: =IF(C111="","",IF(C111<0,0,IF(AND(C111=1,start_time<1),-(SUM(B278:E278)*output_kgyear*E111*percnt_var*start_time+SUM(B278:E278)*output_kgyear*E111*(1-start_time)),IF(C111<=start_time,-SUM(B278:E278)*output_kgyear*E111*percnt_var,-SUM(B278:E278)*output_kgyear*E111)))) ->  | Q111: =IF(C111="","",IF(C111<0,0,IF(AND(C111=1,start_time<1),SUM(K278:N278,T278:V278)*output_kgyear*E111*percnt_revs*start_time+SUM(K278:N278,T278:V278)*output_kgyear*E111*(1-start_time),IF(C111<=start_time,SUM(K278:N278,T278:V278)*output_kgyear*E111*percnt_revs,SUM(K278:N278,T278:V278)*output_kgyear*E111)))) ->  | R111: =IF(C111="","",IF(C111<0,0,IF(AND(C111=1,start_time<1),-((SUM(F278:J278,P278:R278)*output_kgyear+inflated_othervar)*E111*percnt_var*start_time+(SUM(F278:J278,P278:R278)*output_kgyear+inflated_othervar)*E111*(1-start_time)),IF(C111<=start_time,-(SUM(F278:J278,P278:R278)*output_kgyear+inflated_othervar)*E111*percnt_var,-E111*(SUM(F278:J278,P278:R278)*output_kgyear+inflated_othervar))))) ->  | S111: =IF(B111="","",IF($B$31=0,"",-'Debt Financing Calculations'!E60)) ->  | U111: =IF(C111="","",IF(C111<-1,0,IF(C111=anal_period,-LOOKUP(C111,depr_yr,depr_cost)-Depreciation!$C$141-Depreciation!$B$166,-LOOKUP(C111,depr_yr,depr_cost)))) ->  | Z111: =IF(C111="","",IF($B$31=0,"",-'Debt Financing Calculations'!F60)) -> 
B112: =IF(MAX($B$65:B111)<(construct+anal_period),B111+1,"") ->  | I112: =IF(OR(C112<0,C112=""),"",-E112*INDEX('Replacement Costs'!$A$16:$H$57,MATCH(C112,'Replacement Costs'!$C$16:$C$57,0),MATCH("Total Yearly Replacement Costs",'Replacement Costs'!$A$16:$H$16,0))) ->  | J112: =IF(AND(C112>=1,C112<anal_period),WorkingCap*SUM(N112:R112)-WorkingCap*SUM(N111:R111),IF(C112<0,0,IF(B112="","",-SUM(J$65:J111)))) ->  | O112: =IF(C112="","",IF(C112<0,0,IF(AND(C112=1,start_time<1),-(SUM(B279:E279)*output_kgyear*E112*percnt_var*start_time+SUM(B279:E279)*output_kgyear*E112*(1-start_time)),IF(C112<=start_time,-SUM(B279:E279)*output_kgyear*E112*percnt_var,-SUM(B279:E279)*output_kgyear*E112)))) ->  | Q112: =IF(C112="","",IF(C112<0,0,IF(AND(C112=1,start_time<1),SUM(K279:N279,T279:V279)*output_kgyear*E112*percnt_revs*start_time+SUM(K279:N279,T279:V279)*output_kgyear*E112*(1-start_time),IF(C112<=start_time,SUM(K279:N279,T279:V279)*output_kgyear*E112*percnt_revs,SUM(K279:N279,T279:V279)*output_kgyear*E112)))) ->  | R112: =IF(C112="","",IF(C112<0,0,IF(AND(C112=1,start_time<1),-((SUM(F279:J279,P279:R279)*output_kgyear+inflated_othervar)*E112*percnt_var*start_time+(SUM(F279:J279,P279:R279)*output_kgyear+inflated_othervar)*E112*(1-start_time)),IF(C112<=start_time,-(SUM(F279:J279,P279:R279)*output_kgyear+inflated_othervar)*E112*percnt_var,-E112*(SUM(F279:J279,P279:R279)*output_kgyear+inflated_othervar))))) ->  | S112: =IF(B112="","",IF($B$31=0,"",-'Debt Financing Calculations'!E61)) ->  | U112: =IF(C112="","",IF(C112<-1,0,IF(C112=anal_period,-LOOKUP(C112,depr_yr,depr_cost)-Depreciation!$C$141-Depreciation!$B$166,-LOOKUP(C112,depr_yr,depr_cost)))) ->  | Z112: =IF(C112="","",IF($B$31=0,"",-'Debt Financing Calculations'!F61)) -> 
B113: =IF(MAX($B$65:B112)<(construct+anal_period),B112+1,"") ->  | I113: =IF(OR(C113<0,C113=""),"",-E113*INDEX('Replacement Costs'!$A$16:$H$57,MATCH(C113,'Replacement Costs'!$C$16:$C$57,0),MATCH("Total Yearly Replacement Costs",'Replacement Costs'!$A$16:$H$16,0))) ->  | J113: =IF(AND(C113>=1,C113<anal_period),WorkingCap*SUM(N113:R113)-WorkingCap*SUM(N112:R112),IF(C113<0,0,IF(B113="","",-SUM(J$65:J112)))) ->  | O113: =IF(C113="","",IF(C113<0,0,IF(AND(C113=1,start_time<1),-(SUM(B280:E280)*output_kgyear*E113*percnt_var*start_time+SUM(B280:E280)*output_kgyear*E113*(1-start_time)),IF(C113<=start_time,-SUM(B280:E280)*output_kgyear*E113*percnt_var,-SUM(B280:E280)*output_kgyear*E113)))) ->  | Q113: =IF(C113="","",IF(C113<0,0,IF(AND(C113=1,start_time<1),SUM(K280:N280,T280:V280)*output_kgyear*E113*percnt_revs*start_time+SUM(K280:N280,T280:V280)*output_kgyear*E113*(1-start_time),IF(C113<=start_time,SUM(K280:N280,T280:V280)*output_kgyear*E113*percnt_revs,SUM(K280:N280,T280:V280)*output_kgyear*E113)))) ->  | R113: =IF(C113="","",IF(C113<0,0,IF(AND(C113=1,start_time<1),-((SUM(F280:J280,P280:R280)*output_kgyear+inflated_othervar)*E113*percnt_var*start_time+(SUM(F280:J280,P280:R280)*output_kgyear+inflated_othervar)*E113*(1-start_time)),IF(C113<=start_time,-(SUM(F280:J280,P280:R280)*output_kgyear+inflated_othervar)*E113*percnt_var,-E113*(SUM(F280:J280,P280:R280)*output_kgyear+inflated_othervar))))) ->  | S113: =IF(B113="","",IF($B$31=0,"",-'Debt Financing Calculations'!E62)) ->  | U113: =IF(C113="","",IF(C113<-1,0,IF(C113=anal_period,-LOOKUP(C113,depr_yr,depr_cost)-Depreciation!$C$141-Depreciation!$B$166,-LOOKUP(C113,depr_yr,depr_cost)))) ->  | Z113: =IF(C113="","",IF($B$31=0,"",-'Debt Financing Calculations'!F62)) -> 
E114: Cumulative Total | F114: =SUM(F65:F113) -> 61770884.55 | G114: -1809962.322 | H114: -1206641.548 | I114: -1174300.037 | J114: 0 | K114: 0 | L114: 439543.6032 | M114: -439543.6032 | N114: -4251769.315 | O114: -51619932.5 | P114: 0 | Q114: 0 | R114: -153646.1486 | S114: -1406340.724 | T114: 4339195.859 | U114: -4190903.907 | V114: 148291.9519 | W114: 5.4054 | X114: -38170.34841 | Y114: 4301025.51 | Z114: -1809962.322 | AA114: 110121.6035 | AB114: 8129851.587 | AC114: 148291.9519
E115: PV of Cash Flow | F115: =NPV(nominal_irr,F65:F113) -> 22180768.39 | G115: -1644642.825 | H115: -1096428.55 | I115: -411132.1352 | J115: -263400.6496 | K115: 0 | L115: 58809.195 | M115: -58809.195 | N115: -1537092.515 | O115: -18098521.25 | P115: 0 | Q115: 0 | R115: -55171.45595 | S115: -577083.878 | T115: 1912899.288 | U115: -2302284.853 | V115: -389385.5653 | W115: 2.218074994 | X115: 100227.8445 | Y115: 2013127.132 | Z115: -242165.7973 | AA115: 5.923797861e-09 | AB115: -146576.1523 | AC115: -100227.8445
E116: Discounted Values | F116: =+F65+NPV($X$59,F66:F113) -> 24410379.23 | G116: -1809962.322 | H116: =+H65+NPV($X$59,H66:H113) -> -1206641.548 | I116: -452459.1375 | J116: -289877.6829 | K116: 0 | L116: 64720.69528 | M116: -64720.69528 | N116: -1691601.054 | O116: -19917784.61 | P116: 0 | Q116: 0 | R116: -60717.2907 | S116: -635092.3494 | T116: 2105183.924 | U116: -2533710.527 | V116: -428526.6023 | W116: 2.441035893 | X116: 110302.7474 | Y116: 2215486.672 | Z116: -266508.3033 | AA116: 6.519258022e-09 | AB116: -161309.9872 | AC116: -110302.7474 | AE116: =+AE65+NPV(real_irr,AE66:AE113) -> 5100686.266 | AF116: =+AF65+NPV($X$59,AF66:AF113) -> 0
A117: Specific Item Cost Calculation | E117: Expenses $/kg H2 | H117: =-H116/$AE$116*(1+inflation_rate)^construct/INFLATION_FACTOR -> 0.2456394021 | I117: =-I116/$AE$116*(1+inflation_rate)^construct/INFLATION_FACTOR -> 0.09210837483 | J117: =-J116/$AE$116*(1+inflation_rate)^construct/INFLATION_FACTOR -> 0.05901121241 | K117: =-K116/$AE$116*(1+inflation_rate)^construct/INFLATION_FACTOR -> 0 | M117: =-M116/$AE$116*(1+inflation_rate)^construct/INFLATION_FACTOR -> 0.01317537334 | N117: =-N116/$AE$116*(1+inflation_rate)^construct/INFLATION_FACTOR -> 0.3443639681 | O117: =-O116/$AE$116*(1+inflation_rate)^construct/INFLATION_FACTOR -> 4.054719241 | P117: =-P116/$AE$116*(1+inflation_rate)^construct/INFLATION_FACTOR -> 0 | R117: =-R116/$AE$116*(1+inflation_rate)^construct/INFLATION_FACTOR -> 0.01236038905 | S117: =-S116/$AE$116*(1+inflation_rate)^construct/INFLATION_FACTOR -> 0.1292875297 | X117: =-X116/$AE$116*(1+inflation_rate)^construct/INFLATION_FACTOR -> -0.02245463947 | Z117: =-Z116/$AE$116*(1+inflation_rate)^construct/INFLATION_FACTOR -> 0.05425384231 | AG117: =+SUM(F117:AC117) -> 4.982464693
A118: Cost Component | B118: After Tax Present Value | C118: % of Total | D118: $/kg of H2 | E118: Revenues $/kg H2 | F118: =F116/$AE$116*(1+inflation_rate)^construct/INFLATION_FACTOR -> 4.96928932 | L118: =L116/$AE$116*(1+inflation_rate)^construct/INFLATION_FACTOR -> 0.01317537334 | Q118: =Q116/$AE$116*(1+inflation_rate)^construct/INFLATION_FACTOR -> 0 | AG118: =+SUM(F118:AC118) -> 4.982464693
A119: Capital-Related Costs | B119: =(SUM(H115:K115)+L115*(1-total_tax_rate)+S115*(1-total_tax_rate)+U115*(-total_tax_rate)+Z115)/(1-total_tax_rate) -> -2431173.971 | C119: =B119/SUM($B$118:$B$125) -> 0.1096072926 | D119: =H2_price_real*C119 -> 0.5446703485
A120: Decommissioning Costs | B120: =M115 -> -58809.195 | C120: 0.002651359681 | D120: 0.01317537334
A121: Fixed O&M | B121: =N115 -> -1537092.515 | C121: 0.06929843402 | D121: 0.3443639681
A122: Feedstock Costs | B122: =O115 -> -18098521.25 | C122: 0.8159555582 | D122: 4.054719241
A123: Other Raw Material Costs | B123: =P115 -> 0 | C123: 0 | D123: 0
A124: Byproduct Credits | B124: =Q115 -> 0 | C124: 0 | D124: 0
A125: Other Variable Costs (including utilities) | B125: =R115 -> -55171.45595 | C125: 0.002487355487 | D125: 0.01236038905
A128: INFLATION FACTOR (1 + inflation rate)^(startup year - reference year) = | B128: =(1+inflation_rate)^(startup_year-ref_year) -> 0.9813542689
A129: Feedstock, Utility and Byproduct Cost Information (Start-Up Year $)
B130: Energy Feedstocks | F130: Energy Utilities | J130: Carbon Sequestration Electricity Usage | K130: Energy Byproducts | O130: Other Material Inputs | S130: Other Material Byproducts
A131: Feedstock Name | B131: =Input_Sheet_Template!$B$75 -> Industrial Electricity | J131: =IF(CO2_CashFlow_eUse>0,'HyARC Physical Property Data'!A77,"") ->  | O131: Type | P131: =Input_Sheet_Template!$B$136 -> Process Water | S131: Type
A132: LHV (GJ or mmBtu/usage unit) | B132: =Input_Sheet_Template!$C$75 -> 0.0036 | J132: =IF(J131="",0,VLOOKUP(J131,MASTER_PROPERTY_TABLE,9,FALSE)) -> 0 | O132: Usage (/kg H2) | P132: =Input_Sheet_Template!$D$136 -> 3.78 | S132: Usage (/kg H2)
A133: Usage (/kg H2) | B133: =feedstockIndustrial_Electricity_Usage -> 55.8 | O133: Cost (/usage unit) | P133: =Input_Sheet_Template!$C$136 -> 0.002374951095 | S133: Price (/usage unit)
A134: Price ($/ usage unit) | B134: =feedstockIndustrial_Electricity_Price -> 0.07759697608 | J134: =IF(J131="",0,CO2_eCost) -> 0 | O134: Lookup Price? | P134: =Input_Sheet_Template!$F$136 -> Yes | S134: Lookup Price?
A135: Lookup Price? | B135: =Input_Sheet_Template!$G$75 -> yes | J135: =IF(J131="","","yes") -> 
A136: CO2 Emissions (kg CO2/kg H2) | B136: =IF(B131="",0,VLOOKUP(B131,MASTER_PROPERTY_TABLE,11,FALSE)*B132*B133) -> 0 | C136: =IF(C131="",0,VLOOKUP(C131,MASTER_PROPERTY_TABLE,11,FALSE)*C132*C133) -> 0 | D136: =IF(D131="",0,VLOOKUP(D131,MASTER_PROPERTY_TABLE,11,FALSE)*D132*D133) -> 0 | E136: =IF(E131="",0,VLOOKUP(E131,MASTER_PROPERTY_TABLE,11,FALSE)*E132*E133) -> 0 | F136: =IF(F131="",,VLOOKUP(F131,MASTER_PROPERTY_TABLE,11,FALSE)*F132*F133) -> 0 | G136: =IF(G131="",,VLOOKUP(G131,MASTER_PROPERTY_TABLE,11,FALSE)*G132*G133) -> 0 | H136: =IF(H131="",,VLOOKUP(H131,MASTER_PROPERTY_TABLE,11,FALSE)*H132*H133) -> 0 | I136: =IF(I131="",,VLOOKUP(I131,MASTER_PROPERTY_TABLE,11,FALSE)*I132*I133) -> 0 | J136: =IF($J$131="",0,VLOOKUP($J$131,MASTER_PROPERTY_TABLE,12,FALSE)*$J$132*$J$133) -> 0
A137: Unit System Conversion Factor | B137: =IF(B131="",0,IF(VLOOKUP(B131,MASTER_PROPERTY_TABLE,12,FALSE)="English",mmBTU_to_GJ,1)) -> 1 | C137: =IF(C131="",0,IF(VLOOKUP(C131,MASTER_PROPERTY_TABLE,12,FALSE)="English",mmBTU_to_GJ,1)) -> 0 | D137: =IF(D131="",0,IF(VLOOKUP(D131,MASTER_PROPERTY_TABLE,12,FALSE)="English",mmBTU_to_GJ,1)) -> 0 | E137: =IF(E131="",,IF(VLOOKUP(E131,MASTER_PROPERTY_TABLE,12,FALSE)="English",mmBTU_to_GJ,1)) -> 0 | F137: =IF(F131="",,IF(VLOOKUP(F131,MASTER_PROPERTY_TABLE,12,FALSE)="English",mmBTU_to_GJ,1)) -> 0 | G137: =IF(G131="",,IF(VLOOKUP(G131,MASTER_PROPERTY_TABLE,12,FALSE)="English",mmBTU_to_GJ,1)) -> 0 | H137: =IF(H131="",,IF(VLOOKUP(H131,MASTER_PROPERTY_TABLE,12,FALSE)="English",mmBTU_to_GJ,1)) -> 0 | I137: =IF(I131="",,IF(VLOOKUP(I131,MASTER_PROPERTY_TABLE,12,FALSE)="English",mmBTU_to_GJ,1)) -> 0 | J137: =IF($J$131="",0,IF(VLOOKUP($J$131,MASTER_PROPERTY_TABLE,12,FALSE)="English",mmBTU_to_GJ,1)) -> 0 | K137: =IF(K131="",,IF(VLOOKUP(K131,MASTER_PROPERTY_TABLE,12,FALSE)="English",mmBTU_to_GJ,1)) -> 0 | L137: =IF(L131="",,IF(VLOOKUP(L131,MASTER_PROPERTY_TABLE,12,FALSE)="English",mmBTU_to_GJ,1)) -> 0 | M137: =IF(M131="",,IF(VLOOKUP(M131,MASTER_PROPERTY_TABLE,12,FALSE)="English",mmBTU_to_GJ,1)) -> 0 | N137: =IF(N131="",,IF(VLOOKUP(N131,MASTER_PROPERTY_TABLE,12,FALSE)="English",mmBTU_to_GJ,1)) -> 0
A138: Actual Year | B138: =IF(B$131="","",B$131&" ($/kg of H2)") -> Industrial Electricity ($/kg of H2) | P138: =IF(P$131="","",P$131&" ($/kg of H2)") -> Process Water ($/kg of H2) | Q138: =IF(Q$131="","",Q$131&" ($/kg of H2)") ->  | R138: =IF(R$131="","",R$131&" ($/kg of H2)") ->  | T138: =IF(T$131="","",T$131&" ($/kg of H2)") ->  | U138: =IF(U$131="","",U$131&" ($/kg of H2)") ->  | V138: =IF(V$131="","",V$131&" ($/kg of H2)") -> 
A139: =IF(A65="","",A65) -> 2014 | B139: =IF($A139="","",IF($B$131="","",IF($B$135="no",INFLATION_FACTOR*$B$133*$B$134,INFLATION_FACTOR*$B$133*$B$132*INDEX(FEEDPRICETABLE,MATCH($B$131,List_Energy_Feedstocks,0),MATCH($A139,Feedstock_Year,0))))) -> 3.980279367 | C139: =IF($A139="","",IF($C$131="","",IF($C$135="no",INFLATION_FACTOR*$C$133*$C$134,INFLATION_FACTOR*$C$133*$C$132*INDEX(FEEDPRICETABLE,MATCH($C$131,List_Energy_Feedstocks,0),MATCH($A139,Feedstock_Year,0))))) ->  | D139: =IF($A139="","",IF($D$131="","",IF($D$135="no",INFLATION_FACTOR*$D$133*$D$134,INFLATION_FACTOR*$D$133*$D$132*INDEX(FEEDPRICETABLE,MATCH($D$131,List_Energy_Feedstocks,0),MATCH($A139,Feedstock_Year,0))))) ->  | E139: =IF($A139="","",IF($E$131="","",IF($E$135="no",INFLATION_FACTOR*$E$133*$E$134,INFLATION_FACTOR*$E$133*$E$132*INDEX(FEEDPRICETABLE,MATCH($E$131,List_Energy_Feedstocks,0),MATCH($A139,Feedstock_Year,0))))) ->  | F139: =IF($A139="","",IF($F$131="","",IF($F$135="no",INFLATION_FACTOR*$F$133*$F$134,INFLATION_FACTOR*$F$133*$F$132*INDEX(FEEDPRICETABLE,MATCH($F$131,List_Energy_Feedstocks,0),MATCH($A139,Feedstock_Year,0))))) ->  | G139: =IF($A139="","",IF($G$131="","",IF($G$135="no",INFLATION_FACTOR*$G$133*$G$134,INFLATION_FACTOR*$G$133*$G$132*INDEX(FEEDPRICETABLE,MATCH($G$131,List_Energy_Feedstocks,0),MATCH($A139,Feedstock_Year,0))))) ->  | H139: =IF($A139="","",IF($H$131="","",IF($H$135="no",INFLATION_FACTOR*$H$133*$H$134,INFLATION_FACTOR*$H$133*$H$132*INDEX(FEEDPRICETABLE,MATCH(H$131,List_Energy_Feedstocks,0),MATCH($A139,Feedstock_Year,0))))) ->  | I139: =IF($A139="","",IF($I$131="","",IF($I$135="no",INFLATION_FACTOR*$I$133*$I$134,INFLATION_FACTOR*$I$133*$I$132*INDEX(FEEDPRICETABLE,MATCH($I$131,List_Energy_Feedstocks,0),MATCH($A139,Feedstock_Year,0))))) ->  | J139: =IF($A139="","",IF($J$131="","",IF($J$135="no",INFLATION_FACTOR*$J$133*$J$134,INFLATION_FACTOR*$J$133*$J$132*INDEX(FEEDPRICETABLE,MATCH($J$131,List_Energy_Feedstocks,0),MATCH($A139,Feedstock_Year,0))))) ->  | K139: =IF($A139="","",IF($K$131="","",IF($K$135="no",INFLATION_FACTOR*$K$133*$K$134,INFLATION_FACTOR*$K$133*$K$132*INDEX(FEEDPRICETABLE,MATCH($K$131,List_Energy_Feedstocks,0),MATCH($A139,Feedstock_Year,0))))) ->  | L139: =IF($A139="","",IF($L$131="","",IF($L$135="no",INFLATION_FACTOR*$L$133*$L$134,INFLATION_FACTOR*$L$133*$L$132*INDEX(FEEDPRICETABLE,MATCH($L$131,List_Energy_Feedstocks,0),MATCH($A139,Feedstock_Year,0))))) ->  | M139: =IF($A139="","",IF(M$131="","",IF($M$135="no",INFLATION_FACTOR*$M$133*$M$134,INFLATION_FACTOR*$M$133*$M$132*INDEX(FEEDPRICETABLE,MATCH($M$131,List_Energy_Feedstocks,0),MATCH($A139,Feedstock_Year,0))))) ->  | N139: =IF($A139="","",IF($N$131="","",IF($N$135="no",INFLATION_FACTOR*$N$133*$N$134,INFLATION_FACTOR*$N$133*$N$132*INDEX(FEEDPRICETABLE,MATCH($N$131,List_Energy_Feedstocks,0),MATCH($A139,Feedstock_Year,0))))) ->  | P139: =IF(OR($A139="",$P$131=""),"",IF($P$134="No",INFLATION_FACTOR*$P$132*$P$133,INFLATION_FACTOR*$P$132*INDEX(Tbl_Other_Inputs_and_Byproducts,MATCH($P$131,Other_Inputs_List,0),MATCH($A139,Other_Inputs_years,0)))) -> 0.008809926533 | Q139: =IF(OR($A139="",$Q$131=""),"",IF($Q$134="No",INFLATION_FACTOR*$Q$132*$Q$133,INFLATION_FACTOR*$Q$132*INDEX(Tbl_Other_Inputs_and_Byproducts,MATCH($Q$131,Other_Inputs_List,0),MATCH($A139,Other_Inputs_years,0)))) ->  | R139: =IF(OR($A139="",$R$131=""),"",IF($R$134="No",INFLATION_FACTOR*$R$132*$R$133,INFLATION_FACTOR*$R$132*INDEX(Tbl_Other_Inputs_and_Byproducts,MATCH($R$131,Other_Inputs_List,0),MATCH($A139,Other_Inputs_years,0)))) ->  | T139: =IF(OR($A139="",$T$131=""),"",IF($T$134="No",INFLATION_FACTOR*$T$132*$T$133,INFLATION_FACTOR*$T$132*INDEX(Tbl_Other_Inputs_and_Byproducts,MATCH($T$131,Other_Inputs_List,0),MATCH($A139,Other_Inputs_years,0)))) ->  | U139: =IF(OR($A139="",$U$131=""),"",IF($U$134="No",INFLATION_FACTOR*$U$132*$U$133,INFLATION_FACTOR*$U$132*INDEX(Tbl_Other_Inputs_and_Byproducts,MATCH($U$131,Other_Inputs_List,0),MATCH($A139,Other_Inputs_years,0)))) ->  | V139: =IF(OR($A139="",$V$131=""),"",IF($V$134="No",INFLATION_FACTOR*$V$132*$V$133,INFLATION_FACTOR*$V$132*INDEX(Tbl_Other_Inputs_and_Byproducts,MATCH($V$131,Other_Inputs_List,0),MATCH($A139,Other_Inputs_years,0)))) -> 
A140: 2015 | B140: =IF($A140="","",IF($B$131="","",IF($B$135="no",INFLATION_FACTOR*$B$133*$B$134,INFLATION_FACTOR*$B$133*$B$132*INDEX(FEEDPRICETABLE,MATCH($B$131,List_Energy_Feedstocks,0),MATCH($A140,Feedstock_Year,0))))) -> 3.832108055 | F140: =IF($A140="","",IF($F$131="","",IF($F$135="no",INFLATION_FACTOR*$F$133*$F$134,INFLATION_FACTOR*$F$133*$F$132*INDEX(FEEDPRICETABLE,MATCH($F$131,List_Energy_Feedstocks,0),MATCH($A140,Feedstock_Year,0))))) ->  | P140: =IF(OR($A140="",$P$131=""),"",IF($P$134="No",INFLATION_FACTOR*$P$132*$P$133,INFLATION_FACTOR*$P$132*INDEX(Tbl_Other_Inputs_and_Byproducts,MATCH($P$131,Other_Inputs_List,0),MATCH($A140,Other_Inputs_years,0)))) -> 0.008809926533 | Q140: =IF(OR($A140="",$Q$131=""),"",IF($Q$134="No",INFLATION_FACTOR*$Q$132*$Q$133,INFLATION_FACTOR*$Q$132*INDEX(Tbl_Other_Inputs_and_Byproducts,MATCH($Q$131,Other_Inputs_List,0),MATCH($A140,Other_Inputs_years,0)))) -> 
A141: 2016 | B141: 3.701745774 | P141: 0.008809926533
A142: 2017 | B142: 3.851512996 | P142: 0.008809926533
A143: 2018 | B143: 3.764220892 | P143: 0.008809926533
A144: 2019 | B144: 3.81275375 | P144: 0.008809926533
A145: 2020 | B145: 3.883691852 | P145: 0.008809926533
A146: 2021 | B146: 3.905081952 | P146: 0.008809926533
A147: 2022 | B147: 4.031129006 | P147: 0.008809926533
A148: 2023 | B148: 4.043905256 | P148: 0.008809926533
A149: 2024 | B149: 4.033244865 | P149: 0.008809926533
A150: 2025 | B150: 4.130089355 | P150: 0.008809926533
A151: 2026 | B151: 4.172032107 | P151: 0.008809926533
A152: 2027 | B152: 4.196070209 | P152: 0.008809926533
A153: 2028 | B153: 4.223334231 | P153: 0.008809926533
A154: 2029 | B154: 4.244754601 | P154: 0.008809926533
A155: 2030 | B155: 4.25963606 | P155: 0.008809926533
A156: 2031 | B156: 4.265032399 | P156: 0.008809926533
A157: 2032 | B157: 4.255301761 | P157: 0.008809926533
A158: 2033 | B158: 4.240091638 | P158: 0.008809926533
A159: 2034 | B159: 4.227768679 | P159: 0.008809926533
A184: Tables to calculate equivalent price in startup year
A185: Actual Year | B185: =IF(B$131="","",B$131&" ($/year)") -> Industrial Electricity ($/year) | C185: =IF(C$131="","",C$131&" ($/year)") -> 
A186: =+A139 -> 2014 | B186: =IF($C65="","",IF($C65<0,0,IF(AND($C65=1,start_time<1),-(SUM(B139)*output_kgyear*$E65*percnt_var*start_time+SUM(B139)*output_kgyear*$E65*(1-start_time)),IF($C65<=start_time,-SUM(B139)*output_kgyear*$E65*percnt_var,-SUM(B139)*output_kgyear*$E65)))) -> 0 | C186: =IF($C65="","",IF($C65<0,0,IF(AND($C65=1,start_time<1),-(SUM(C139)*output_kgyear*$E65*percnt_var*start_time+SUM(C139)*output_kgyear*$E65*(1-start_time)),IF($C65<=start_time,-SUM(C139)*output_kgyear*$E65*percnt_var,-SUM(C139)*output_kgyear*$E65)))) -> 0 | D186: 0 | E186: 0 | F186: 0 | G186: 0 | H186: 0 | I186: 0 | J186: 0 | K186: 0 | L186: 0 | M186: 0 | N186: 0
A187: =+A140 -> 2015 | B187: =IF($C66="","",IF($C66<0,0,IF(AND($C66=1,start_time<1),-(SUM(B140)*output_kgyear*$E66*percnt_var*start_time+SUM(B140)*output_kgyear*$E66*(1-start_time)),IF($C66<=start_time,-SUM(B140)*output_kgyear*$E66*percnt_var,-SUM(B140)*output_kgyear*$E66)))) -> -1529184.996 | C187: 0 | D187: 0 | E187: 0 | F187: 0 | G187: 0 | H187: 0 | I187: 0 | J187: 0 | K187: 0 | L187: 0 | M187: 0 | N187: 0
A188: 2016 | B188: =IF($C67="","",IF($C67<0,0,IF(AND($C67=1,start_time<1),-(SUM(B141)*output_kgyear*$E67*percnt_var*start_time+SUM(B141)*output_kgyear*$E67*(1-start_time)),IF($C67<=start_time,-SUM(B141)*output_kgyear*$E67*percnt_var,-SUM(B141)*output_kgyear*$E67)))) -> -2006974.209 | C188: 0 | D188: 0 | E188: 0 | F188: 0 | G188: 0 | H188: 0 | I188: 0 | J188: 0 | K188: 0 | L188: 0 | M188: 0 | N188: 0
A189: 2017 | B189: =IF($C68="","",IF($C68<0,0,IF(AND($C68=1,start_time<1),-(SUM(B142)*output_kgyear*$E68*percnt_var*start_time+SUM(B142)*output_kgyear*$E68*(1-start_time)),IF($C68<=start_time,-SUM(B142)*output_kgyear*$E68*percnt_var,-SUM(B142)*output_kgyear*$E68)))) -> -2127848.747 | C189: 0 | D189: 0 | E189: 0 | F189: =IF($C68="","",IF($C68<0,0,IF(AND($C68=1,start_time<1),-(SUM(F142)*output_kgyear*$E68*percnt_var*start_time+SUM(F142)*output_kgyear*$E68*(1-start_time)),IF($C68<=start_time,-SUM(F142)*output_kgyear*$E68*percnt_var,-SUM(F142)*output_kgyear*$E68)))) -> 0 | G189: 0 | H189: 0 | I189: 0 | J189: 0 | K189: 0 | L189: 0 | M189: 0 | N189: 0
A190: 2018 | B190: =IF($C69="","",IF($C69<0,0,IF(AND($C69=1,start_time<1),-(SUM(B143)*output_kgyear*$E69*percnt_var*start_time+SUM(B143)*output_kgyear*$E69*(1-start_time)),IF($C69<=start_time,-SUM(B143)*output_kgyear*$E69*percnt_var,-SUM(B143)*output_kgyear*$E69)))) -> -2119135.227 | C190: 0 | D190: 0 | E190: 0 | F190: 0 | G190: 0 | H190: 0 | I190: 0 | J190: 0 | K190: 0 | L190: 0 | M190: 0 | N190: 0
A191: 2019 | B191: =IF($C70="","",IF($C70<0,0,IF(AND($C70=1,start_time<1),-(SUM(B144)*output_kgyear*$E70*percnt_var*start_time+SUM(B144)*output_kgyear*$E70*(1-start_time)),IF($C70<=start_time,-SUM(B144)*output_kgyear*$E70*percnt_var,-SUM(B144)*output_kgyear*$E70)))) -> -2187240.36 | C191: 0 | D191: 0 | E191: 0 | F191: 0 | G191: 0 | H191: 0 | I191: 0 | J191: 0 | K191: 0 | L191: 0 | M191: 0 | N191: 0
A192: 2020 | B192: =IF($C71="","",IF($C71<0,0,IF(AND($C71=1,start_time<1),-(SUM(B145)*output_kgyear*$E71*percnt_var*start_time+SUM(B145)*output_kgyear*$E71*(1-start_time)),IF($C71<=start_time,-SUM(B145)*output_kgyear*$E71*percnt_var,-SUM(B145)*output_kgyear*$E71)))) -> -2270265.775 | C192: 0 | D192: 0 | E192: 0 | F192: 0 | G192: 0 | H192: 0 | I192: 0 | J192: 0 | K192: 0 | L192: 0 | M192: 0 | N192: 0
A193: 2021 | B193: =IF($C72="","",IF($C72<0,0,IF(AND($C72=1,start_time<1),-(SUM(B146)*output_kgyear*$E72*percnt_var*start_time+SUM(B146)*output_kgyear*$E72*(1-start_time)),IF($C72<=start_time,-SUM(B146)*output_kgyear*$E72*percnt_var,-SUM(B146)*output_kgyear*$E72)))) -> -2326142.278 | C193: 0 | D193: 0 | E193: 0 | F193: 0 | G193: 0 | H193: 0 | I193: 0 | J193: 0 | K193: 0 | L193: 0 | M193: 0 | N193: 0
A194: 2022 | B194: =IF($C73="","",IF($C73<0,0,IF(AND($C73=1,start_time<1),-(SUM(B147)*output_kgyear*$E73*percnt_var*start_time+SUM(B147)*output_kgyear*$E73*(1-start_time)),IF($C73<=start_time,-SUM(B147)*output_kgyear*$E73*percnt_var,-SUM(B147)*output_kgyear*$E73)))) -> -2446848.065 | C194: 0 | D194: 0 | E194: 0 | F194: 0 | G194: 0 | H194: 0 | I194: 0 | J194: 0 | K194: 0 | L194: 0 | M194: 0 | N194: 0
A195: 2023 | B195: =IF($C74="","",IF($C74<0,0,IF(AND($C74=1,start_time<1),-(SUM(B148)*output_kgyear*$E74*percnt_var*start_time+SUM(B148)*output_kgyear*$E74*(1-start_time)),IF($C74<=start_time,-SUM(B148)*output_kgyear*$E74*percnt_var,-SUM(B148)*output_kgyear*$E74)))) -> -2501240.558 | C195: 0 | D195: 0 | E195: 0 | F195: 0 | G195: 0 | H195: 0 | I195: 0 | J195: 0 | K195: 0 | L195: 0 | M195: 0 | N195: 0
A196: 2024 | B196: =IF($C75="","",IF($C75<0,0,IF(AND($C75=1,start_time<1),-(SUM(B149)*output_kgyear*$E75*percnt_var*start_time+SUM(B149)*output_kgyear*$E75*(1-start_time)),IF($C75<=start_time,-SUM(B149)*output_kgyear*$E75*percnt_var,-SUM(B149)*output_kgyear*$E75)))) -> -2542045.173 | C196: 0 | D196: 0 | E196: 0 | F196: 0 | G196: 0 | H196: 0 | I196: 0 | J196: 0 | K196: 0 | L196: 0 | M196: 0 | N196: 0
A197: 2025 | B197: =IF($C76="","",IF($C76<0,0,IF(AND($C76=1,start_time<1),-(SUM(B150)*output_kgyear*$E76*percnt_var*start_time+SUM(B150)*output_kgyear*$E76*(1-start_time)),IF($C76<=start_time,-SUM(B150)*output_kgyear*$E76*percnt_var,-SUM(B150)*output_kgyear*$E76)))) -> -2652542.225 | C197: 0 | D197: 0 | E197: 0 | F197: 0 | G197: 0 | H197: 0 | I197: 0 | J197: 0 | K197: 0 | L197: 0 | M197: 0 | N197: 0
A198: 2026 | B198: =IF($C77="","",IF($C77<0,0,IF(AND($C77=1,start_time<1),-(SUM(B151)*output_kgyear*$E77*percnt_var*start_time+SUM(B151)*output_kgyear*$E77*(1-start_time)),IF($C77<=start_time,-SUM(B151)*output_kgyear*$E77*percnt_var,-SUM(B151)*output_kgyear*$E77)))) -> -2730389.998 | C198: 0 | D198: 0 | E198: 0 | F198: 0 | G198: 0 | H198: 0 | I198: 0 | J198: 0 | K198: 0 | L198: 0 | M198: 0 | N198: 0
A199: 2027 | B199: =IF($C78="","",IF($C78<0,0,IF(AND($C78=1,start_time<1),-(SUM(B152)*output_kgyear*$E78*percnt_var*start_time+SUM(B152)*output_kgyear*$E78*(1-start_time)),IF($C78<=start_time,-SUM(B152)*output_kgyear*$E78*percnt_var,-SUM(B152)*output_kgyear*$E78)))) -> -2798298.067 | C199: 0 | D199: 0 | E199: 0 | F199: 0 | G199: 0 | H199: 0 | I199: 0 | J199: 0 | K199: 0 | L199: 0 | M199: 0 | N199: 0
A200: 2028 | B200: =IF($C79="","",IF($C79<0,0,IF(AND($C79=1,start_time<1),-(SUM(B153)*output_kgyear*$E79*percnt_var*start_time+SUM(B153)*output_kgyear*$E79*(1-start_time)),IF($C79<=start_time,-SUM(B153)*output_kgyear*$E79*percnt_var,-SUM(B153)*output_kgyear*$E79)))) -> -2869993.167 | C200: 0 | D200: 0 | E200: 0 | F200: 0 | G200: 0 | H200: 0 | I200: 0 | J200: 0 | K200: 0 | L200: 0 | M200: 0 | N200: 0
A201: 2029 | B201: =IF($C80="","",IF($C80<0,0,IF(AND($C80=1,start_time<1),-(SUM(B154)*output_kgyear*$E80*percnt_var*start_time+SUM(B154)*output_kgyear*$E80*(1-start_time)),IF($C80<=start_time,-SUM(B154)*output_kgyear*$E80*percnt_var,-SUM(B154)*output_kgyear*$E80)))) -> -2939355.954 | C201: 0 | D201: 0 | E201: 0 | F201: 0 | G201: 0 | H201: 0 | I201: 0 | J201: 0 | K201: 0 | L201: 0 | M201: 0 | N201: 0
A202: 2030 | B202: =IF($C81="","",IF($C81<0,0,IF(AND($C81=1,start_time<1),-(SUM(B155)*output_kgyear*$E81*percnt_var*start_time+SUM(B155)*output_kgyear*$E81*(1-start_time)),IF($C81<=start_time,-SUM(B155)*output_kgyear*$E81*percnt_var,-SUM(B155)*output_kgyear*$E81)))) -> -3005704.443 | C202: 0 | D202: 0 | E202: 0 | F202: 0 | G202: 0 | H202: 0 | I202: 0 | J202: 0 | K202: 0 | L202: 0 | M202: 0 | N202: 0
A203: 2031 | B203: =IF($C82="","",IF($C82<0,0,IF(AND($C82=1,start_time<1),-(SUM(B156)*output_kgyear*$E82*percnt_var*start_time+SUM(B156)*output_kgyear*$E82*(1-start_time)),IF($C82<=start_time,-SUM(B156)*output_kgyear*$E82*percnt_var,-SUM(B156)*output_kgyear*$E82)))) -> -3066692.965 | C203: 0 | D203: 0 | E203: 0 | F203: 0 | G203: 0 | H203: 0 | I203: 0 | J203: 0 | K203: 0 | L203: 0 | M203: 0 | N203: 0
A204: 2032 | B204: =IF($C83="","",IF($C83<0,0,IF(AND($C83=1,start_time<1),-(SUM(B157)*output_kgyear*$E83*percnt_var*start_time+SUM(B157)*output_kgyear*$E83*(1-start_time)),IF($C83<=start_time,-SUM(B157)*output_kgyear*$E83*percnt_var,-SUM(B157)*output_kgyear*$E83)))) -> -3117830.56 | C204: 0 | D204: 0 | E204: 0 | F204: 0 | G204: 0 | H204: 0 | I204: 0 | J204: 0 | K204: 0 | L204: 0 | M204: 0 | N204: 0
A205: 2033 | B205: =IF($C84="","",IF($C84<0,0,IF(AND($C84=1,start_time<1),-(SUM(B158)*output_kgyear*$E84*percnt_var*start_time+SUM(B158)*output_kgyear*$E84*(1-start_time)),IF($C84<=start_time,-SUM(B158)*output_kgyear*$E84*percnt_var,-SUM(B158)*output_kgyear*$E84)))) -> -3165713.244 | C205: 0 | D205: 0 | E205: 0 | F205: 0 | G205: 0 | H205: 0 | I205: 0 | J205: 0 | K205: 0 | L205: 0 | M205: 0 | N205: 0
A206: 2034 | B206: =IF($C85="","",IF($C85<0,0,IF(AND($C85=1,start_time<1),-(SUM(B159)*output_kgyear*$E85*percnt_var*start_time+SUM(B159)*output_kgyear*$E85*(1-start_time)),IF($C85<=start_time,-SUM(B159)*output_kgyear*$E85*percnt_var,-SUM(B159)*output_kgyear*$E85)))) -> -3216486.489 | C206: 0 | D206: 0 | E206: 0 | F206: 0 | G206: 0 | H206: 0 | I206: 0 | J206: 0 | K206: 0 | L206: 0 | M206: 0 | N206: 0
B207: =IF($C86="","",IF($C86<0,0,IF(AND($C86=1,start_time<1),-(SUM(B160)*output_kgyear*$E86*percnt_var*start_time+SUM(B160)*output_kgyear*$E86*(1-start_time)),IF($C86<=start_time,-SUM(B160)*output_kgyear*$E86*percnt_var,-SUM(B160)*output_kgyear*$E86)))) -> 
B208: =IF($C87="","",IF($C87<0,0,IF(AND($C87=1,start_time<1),-(SUM(B161)*output_kgyear*$E87*percnt_var*start_time+SUM(B161)*output_kgyear*$E87*(1-start_time)),IF($C87<=start_time,-SUM(B161)*output_kgyear*$E87*percnt_var,-SUM(B161)*output_kgyear*$E87)))) -> 
B209: =IF($C88="","",IF($C88<0,0,IF(AND($C88=1,start_time<1),-(SUM(B162)*output_kgyear*$E88*percnt_var*start_time+SUM(B162)*output_kgyear*$E88*(1-start_time)),IF($C88<=start_time,-SUM(B162)*output_kgyear*$E88*percnt_var,-SUM(B162)*output_kgyear*$E88)))) -> 
B210: =IF($C89="","",IF($C89<0,0,IF(AND($C89=1,start_time<1),-(SUM(B163)*output_kgyear*$E89*percnt_var*start_time+SUM(B163)*output_kgyear*$E89*(1-start_time)),IF($C89<=start_time,-SUM(B163)*output_kgyear*$E89*percnt_var,-SUM(B163)*output_kgyear*$E89)))) -> 
B211: =IF($C90="","",IF($C90<0,0,IF(AND($C90=1,start_time<1),-(SUM(B164)*output_kgyear*$E90*percnt_var*start_time+SUM(B164)*output_kgyear*$E90*(1-start_time)),IF($C90<=start_time,-SUM(B164)*output_kgyear*$E90*percnt_var,-SUM(B164)*output_kgyear*$E90)))) -> 
B212: =IF($C91="","",IF($C91<0,0,IF(AND($C91=1,start_time<1),-(SUM(B165)*output_kgyear*$E91*percnt_var*start_time+SUM(B165)*output_kgyear*$E91*(1-start_time)),IF($C91<=start_time,-SUM(B165)*output_kgyear*$E91*percnt_var,-SUM(B165)*output_kgyear*$E91)))) -> 
B213: =IF($C92="","",IF($C92<0,0,IF(AND($C92=1,start_time<1),-(SUM(B166)*output_kgyear*$E92*percnt_var*start_time+SUM(B166)*output_kgyear*$E92*(1-start_time)),IF($C92<=start_time,-SUM(B166)*output_kgyear*$E92*percnt_var,-SUM(B166)*output_kgyear*$E92)))) -> 
B214: =IF($C93="","",IF($C93<0,0,IF(AND($C93=1,start_time<1),-(SUM(B167)*output_kgyear*$E93*percnt_var*start_time+SUM(B167)*output_kgyear*$E93*(1-start_time)),IF($C93<=start_time,-SUM(B167)*output_kgyear*$E93*percnt_var,-SUM(B167)*output_kgyear*$E93)))) -> 
B215: =IF($C94="","",IF($C94<0,0,IF(AND($C94=1,start_time<1),-(SUM(B168)*output_kgyear*$E94*percnt_var*start_time+SUM(B168)*output_kgyear*$E94*(1-start_time)),IF($C94<=start_time,-SUM(B168)*output_kgyear*$E94*percnt_var,-SUM(B168)*output_kgyear*$E94)))) -> 
B216: =IF($C95="","",IF($C95<0,0,IF(AND($C95=1,start_time<1),-(SUM(B169)*output_kgyear*$E95*percnt_var*start_time+SUM(B169)*output_kgyear*$E95*(1-start_time)),IF($C95<=start_time,-SUM(B169)*output_kgyear*$E95*percnt_var,-SUM(B169)*output_kgyear*$E95)))) -> 
B217: =IF($C96="","",IF($C96<0,0,IF(AND($C96=1,start_time<1),-(SUM(B170)*output_kgyear*$E96*percnt_var*start_time+SUM(B170)*output_kgyear*$E96*(1-start_time)),IF($C96<=start_time,-SUM(B170)*output_kgyear*$E96*percnt_var,-SUM(B170)*output_kgyear*$E96)))) -> 
B218: =IF($C97="","",IF($C97<0,0,IF(AND($C97=1,start_time<1),-(SUM(B171)*output_kgyear*$E97*percnt_var*start_time+SUM(B171)*output_kgyear*$E97*(1-start_time)),IF($C97<=start_time,-SUM(B171)*output_kgyear*$E97*percnt_var,-SUM(B171)*output_kgyear*$E97)))) -> 
B219: =IF($C98="","",IF($C98<0,0,IF(AND($C98=1,start_time<1),-(SUM(B172)*output_kgyear*$E98*percnt_var*start_time+SUM(B172)*output_kgyear*$E98*(1-start_time)),IF($C98<=start_time,-SUM(B172)*output_kgyear*$E98*percnt_var,-SUM(B172)*output_kgyear*$E98)))) -> 
B220: =IF($C99="","",IF($C99<0,0,IF(AND($C99=1,start_time<1),-(SUM(B173)*output_kgyear*$E99*percnt_var*start_time+SUM(B173)*output_kgyear*$E99*(1-start_time)),IF($C99<=start_time,-SUM(B173)*output_kgyear*$E99*percnt_var,-SUM(B173)*output_kgyear*$E99)))) -> 
B221: =IF($C100="","",IF($C100<0,0,IF(AND($C100=1,start_time<1),-(SUM(B174)*output_kgyear*$E100*percnt_var*start_time+SUM(B174)*output_kgyear*$E100*(1-start_time)),IF($C100<=start_time,-SUM(B174)*output_kgyear*$E100*percnt_var,-SUM(B174)*output_kgyear*$E100)))) -> 
B222: =IF($C101="","",IF($C101<0,0,IF(AND($C101=1,start_time<1),-(SUM(B175)*output_kgyear*$E101*percnt_var*start_time+SUM(B175)*output_kgyear*$E101*(1-start_time)),IF($C101<=start_time,-SUM(B175)*output_kgyear*$E101*percnt_var,-SUM(B175)*output_kgyear*$E101)))) -> 
B223: =IF($C102="","",IF($C102<0,0,IF(AND($C102=1,start_time<1),-(SUM(B176)*output_kgyear*$E102*percnt_var*start_time+SUM(B176)*output_kgyear*$E102*(1-start_time)),IF($C102<=start_time,-SUM(B176)*output_kgyear*$E102*percnt_var,-SUM(B176)*output_kgyear*$E102)))) -> 
B224: =IF($C103="","",IF($C103<0,0,IF(AND($C103=1,start_time<1),-(SUM(B177)*output_kgyear*$E103*percnt_var*start_time+SUM(B177)*output_kgyear*$E103*(1-start_time)),IF($C103<=start_time,-SUM(B177)*output_kgyear*$E103*percnt_var,-SUM(B177)*output_kgyear*$E103)))) -> 
B225: =IF($C104="","",IF($C104<0,0,IF(AND($C104=1,start_time<1),-(SUM(B178)*output_kgyear*$E104*percnt_var*start_time+SUM(B178)*output_kgyear*$E104*(1-start_time)),IF($C104<=start_time,-SUM(B178)*output_kgyear*$E104*percnt_var,-SUM(B178)*output_kgyear*$E104)))) -> 
B226: =IF($C105="","",IF($C105<0,0,IF(AND($C105=1,start_time<1),-(SUM(B179)*output_kgyear*$E105*percnt_var*start_time+SUM(B179)*output_kgyear*$E105*(1-start_time)),IF($C105<=start_time,-SUM(B179)*output_kgyear*$E105*percnt_var,-SUM(B179)*output_kgyear*$E105)))) -> 
B227: =IF($C106="","",IF($C106<0,0,IF(AND($C106=1,start_time<1),-(SUM(B180)*output_kgyear*$E106*percnt_var*start_time+SUM(B180)*output_kgyear*$E106*(1-start_time)),IF($C106<=start_time,-SUM(B180)*output_kgyear*$E106*percnt_var,-SUM(B180)*output_kgyear*$E106)))) -> 
B228: =IF($C107="","",IF($C107<0,0,IF(AND($C107=1,start_time<1),-(SUM(B181)*output_kgyear*$E107*percnt_var*start_time+SUM(B181)*output_kgyear*$E107*(1-start_time)),IF($C107<=start_time,-SUM(B181)*output_kgyear*$E107*percnt_var,-SUM(B181)*output_kgyear*$E107)))) -> 
B229: =IF($C108="","",IF($C108<0,0,IF(AND($C108=1,start_time<1),-(SUM(B182)*output_kgyear*$E108*percnt_var*start_time+SUM(B182)*output_kgyear*$E108*(1-start_time)),IF($C108<=start_time,-SUM(B182)*output_kgyear*$E108*percnt_var,-SUM(B182)*output_kgyear*$E108)))) -> 
A231: Discounted value | B231: =+B186+NPV($X$59,B187:B228) -> -19917784.61 | C231: =+C186+NPV($X$59,C187:C228) -> 0 | D231: 0 | E231: 0 | F231: 0 | G231: 0 | H231: 0 | I231: 0 | J231: 0 | K231: 0 | L231: 0 | M231: 0 | N231: 0
A232: Cost per kg H2 | B232: =-B231/$AE$116*(1+inflation_rate)^construct/INFLATION_FACTOR -> 4.054719241 | C232: =-C231/$AE$116*(1+inflation_rate)^construct/INFLATION_FACTOR -> 0 | D232: 0 | E232: 0 | F232: =-F231/$AE$116*(1+inflation_rate)^construct/INFLATION_FACTOR -> 0 | G232: 0 | H232: 0 | I232: 0 | J232: 0 | K232: 0 | L232: 0 | M232: 0 | N232: 0
A233: Levelized and escalated cost in startup year | B233: =IF(B132>0,B232/B133*(1+inflation_rate)^construct,"") -> 0.07404585854 | C233: =IF(C132>0,C232/C133*(1+inflation_rate)^construct,"") -> 
A279: Lookup Electricity Prices in Startup Year
A280: Feed | B280: LHV | C280: Price Table Start Year Column (relative) | D280: Raw Price ($/GJ) | E280: Price in Usage Units
A281: ='HyARC Physical Property Data'!A76 -> Commercial Electricity | B281: =VLOOKUP(A281,MASTER_PROPERTY_TABLE,9,FALSE) -> 0.0036 | C281: =MATCH(startup_year,Feedstock_Year,0) -> 19 | D281: =VLOOKUP(A281,FEEDPRICETABLE,C281,FALSE) -> 29.93221192 | E281: =B281*D281 -> 0.1077559629
A282: ='HyARC Physical Property Data'!A77 -> Industrial Electricity | B282: =VLOOKUP(A282,MASTER_PROPERTY_TABLE,9,FALSE) -> 0.0036 | C282: =MATCH(startup_year,Feedstock_Year,0)+2 -> 21 | D282: =VLOOKUP(A282,FEEDPRICETABLE,C282,FALSE) -> 19.53749374 | E282: =B282*D282 -> 0.07033497748

Sheet Energy Feed & Utility Prices
BW3: Further extrapolated to allow 2040 comission year using GCAM
A4: AEO_2009_Reference_Case | B4: ="Prices are in $(" & ref_year&")/GJ LHV" -> Prices are in $(2016)/GJ LHV | AH4: Except as noted,values are extrapolated based on PNNL mini-CAM model (see AEO Data tab)
A5: Year | B5: Source Data Year | C5: Reference year Conversion | D5: Display Units | E5: Use Category | F5: LHV (MJ/kg) | G5: HHV (MJ/kg) | H5: 2004 | I5: 2005 | J5: 2006 | K5: 2007 | L5: 2008 | M5: 2009 | N5: 2010 | O5: 2011 | P5: 2012 | Q5: 2013 | R5: 2014 | S5: 2015 | T5: 2016 | U5: 2017 | V5: 2018 | W5: 2019 | X5: 2020 | Y5: 2021 | Z5: 2022 | AA5: 2023 | AB5: 2024 | AC5: 2025 | AD5: 2026 | AE5: 2027 | AF5: 2028 | AG5: 2029 | AH5: 2030 | AI5: 2031 | AJ5: 2032 | AK5: 2033 | AL5: 2034 | AM5: 2035 | AN5: 2036 | AO5: 2037 | AP5: 2038 | AQ5: 2039 | AR5: 2040 | AS5: 2041 | AT5: 2042 | AU5: 2043 | AV5: 2044 | AW5: 2045 | AX5: 2046 | AY5: 2047 | AZ5: 2048 | BA5: 2049 | BB5: 2050 | BC5: 2051 | BD5: 2052 | BE5: 2053 | BF5: 2054 | BG5: 2055 | BH5: 2056 | BI5: 2057 | BJ5: 2058 | BK5: 2059 | BL5: 2060 | BM5: 2061 | BN5: 2062 | BO5: 2063 | BP5: 2064 | BQ5: 2065 | BR5: 2066 | BS5: 2067 | BT5: 2068 | BU5: 2069 | BV5: 2070 | BW5: =+BV5+1 -> 2071 | BX5: =+BW5+1 -> 2072 | BY5: =+BX5+1 -> 2073 | BZ5: =+BY5+1 -> 2074 | CA5: =+BZ5+1 -> 2075 | CB5: =+CA5+1 -> 2076 | CC5: =+CB5+1 -> 2077 | CD5: =+CC5+1 -> 2078 | CE5: =+CD5+1 -> 2079 | CF5: =+CE5+1 -> 2080 | CG5: =+CF5+1 -> 2081 | CH5: =+CG5+1 -> 2082 | CI5: =+CH5+1 -> 2083 | CJ5: =+CI5+1 -> 2084 | CK5: =+CJ5+1 -> 2085 | CL5: =+CK5+1 -> 2086 | CM5: =+CL5+1 -> 2087 | CN5: =+CM5+1 -> 2088 | CO5: =+CN5+1 -> 2089 | CP5: =+CO5+1 -> 2090 | CQ5: =+CP5+1 -> 2091 | CR5: =+CQ5+1 -> 2092 | CS5: =+CR5+1 -> 2093 | CT5: =+CS5+1 -> 2094 | CU5: =+CT5+1 -> 2095 | CV5: =+CU5+1 -> 2096 | CW5: =+CV5+1 -> 2097 | CX5: =+CW5+1 -> 2098 | CY5: =+CX5+1 -> 2099 | CZ5: =+CY5+1 -> 2100
A6: Feedstock Type
A7: ='HyARC Physical Property Data'!A73 -> Residential Natural Gas | B7: 2007 | C7: =VLOOKUP(ref_year,DeflatorTable,2,FALSE)/VLOOKUP(B7,DeflatorTable,2,FALSE) -> 1.141397159 | D7: ='HyARC Physical Property Data'!H73 -> mmBtu | E7: Feed Utility | F7: ='HyARC Physical Property Data'!$E$6 -> 47.14126905 | G7: ='HyARC Physical Property Data'!$I$6 -> 52.22466124 | H7: =((13.7000589370728/(mmBTU_to_GJ))*($C$7))*($G$7/$F$7) -> 16.42030142 | I7: =((13.7000589370728/(mmBTU_to_GJ))*($C$7))*($G$7/$F$7) -> 16.42030142 | J7: =((13.7000589370728/(mmBTU_to_GJ))*($C$7))*($G$7/$F$7) -> 16.42030142 | K7: =((12.6911582946777/(mmBTU_to_GJ))*($C$7))*($G$7/$F$7) -> 15.2110765 | L7: =((12.9778490066528/(mmBTU_to_GJ))*($C$7))*($G$7/$F$7) -> 15.55469166 | M7: =((10.7176141738892/(mmBTU_to_GJ))*($C$7))*($G$7/$F$7) -> 12.8456714 | N7: =((11.192774772644/(mmBTU_to_GJ))*($C$7))*($G$7/$F$7) -> 13.41517845 | O7: =((11.4872808456421/(mmBTU_to_GJ))*($C$7))*($G$7/$F$7) -> 13.76816077 | P7: =((11.3991556167603/(mmBTU_to_GJ))*($C$7))*($G$7/$F$7) -> 13.66253766 | Q7: =((11.3077983856201/(mmBTU_to_GJ))*($C$7))*($G$7/$F$7) -> 13.55304081 | R7: =((11.2896461486816/(mmBTU_to_GJ))*($C$7))*($G$7/$F$7) -> 13.53128432 | S7: =((11.3454151153564/(mmBTU_to_GJ))*($C$7))*($G$7/$F$7) -> 13.5981266 | T7: =((11.5382986068726/(mmBTU_to_GJ))*($C$7))*($G$7/$F$7) -> 13.82930846 | U7: =((11.7583208084106/(mmBTU_to_GJ))*($C$7))*($G$7/$F$7) -> 14.09301761 | V7: =((11.9751005172729/(mmBTU_to_GJ))*($C$7))*($G$7/$F$7) -> 14.35284044 | W7: =((12.23952293396/(mmBTU_to_GJ))*($C$7))*($G$7/$F$7) -> 14.66976578 | X7: =((12.557071685791/(mmBTU_to_GJ))*($C$7))*($G$7/$F$7) -> 15.05036606 | Y7: =((12.7957820892334/(mmBTU_to_GJ))*($C$7))*($G$7/$F$7) -> 15.33647408 | Z7: =((12.8716516494751/(mmBTU_to_GJ))*($C$7))*($G$7/$F$7) -> 15.42740807 | AA7: =((12.6602811813354/(mmBTU_to_GJ))*($C$7))*($G$7/$F$7) -> 15.17406852 | AB7: =((12.6240320205688/(mmBTU_to_GJ))*($C$7))*($G$7/$F$7) -> 15.13062183 | AC7: =((12.5992183685303/(mmBTU_to_GJ))*($C$7))*($G$7/$F$7) -> 15.10088126 | AD7: =((12.7868556976318/(mmBTU_to_GJ))*($C$7))*($G$7/$F$7) -> 15.32577529 | AE7: =((13.07555103302/(mmBTU_to_GJ))*($C$7))*($G$7/$F$7) -> 15.6717931 | AF7: =((13.407883644104/(mmBTU_to_GJ))*($C$7))*($G$7/$F$7) -> 16.07011268 | AG7: =((13.6725673675537/(mmBTU_to_GJ))*($C$7))*($G$7/$F$7) -> 16.3873512 | AH7: =((13.9620389938354/(mmBTU_to_GJ))*($C$7))*($G$7/$F$7) -> 16.73429945 | AI7: =($BB7-$AH7)/20+AH7 -> 16.87636443 | AJ7: =($BB7-$AH7)/20+AI7 -> 17.01842941 | AK7: 17.16049439 | AL7: 17.30255937 | AM7: 17.44462435 | AN7: 17.58668933 | AO7: 17.72875431 | AP7: 17.87081929 | AQ7: 18.01288427 | AR7: 18.15494925 | AS7: 18.29701423 | AT7: 18.43907921 | AU7: 18.58114419 | AV7: 18.72320917 | AW7: 18.86527415 | AX7: 19.00733913 | AY7: 19.14940411 | AZ7: =($BB7-$AH7)/20+AY7 -> 19.29146909 | BA7: 19.43353407 | BB7: =1.16978897829057*AH7 -> 19.57559905 | BC7: =($BQ7-$BB7)/15+BB7 -> 19.7694318 | BD7: =($BQ7-$BB7)/15+BC7 -> 19.96326456 | BE7: 20.15709731 | BF7: 20.35093006 | BG7: 20.54476281 | BH7: 20.73859556 | BI7: 20.93242832 | BJ7: 21.12626107 | BK7: 21.32009382 | BL7: 21.51392657 | BM7: 21.70775932 | BN7: 21.90159208 | BO7: 22.09542483 | BP7: 22.28925758 | BQ7: =1.14852629914794*BB7 -> 22.48309033 | BR7: =($BV7-$BQ7)/5+BQ7 -> 22.70571235 | BS7: =($BV7-$BQ7)/5+BR7 -> 22.92833436 | BT7: =($BV7-$BQ7)/5+BS7 -> 23.15095637 | BU7: =($BV7-$BQ7)/5+BT7 -> 23.37357839 | BV7: =1.04950876638265*BQ7 -> 23.5962004 | BW7: =+BV7*BW$133/BV$133 -> 23.67454672 | BX7: =+BW7*BX$133/BW$133 -> 23.75315318 | BY7: 23.83202063 | BZ7: 23.91114995 | CA7: 23.990542 | CB7: 24.04173609 | CC7: 24.09303943 | CD7: 24.14445225 | CE7: 24.19597478 | CF7: 24.24760725 | CG7: 24.26437199 | CH7: 24.28114832 | CI7: 24.29793624 | CJ7: 24.31473578 | CK7: 24.33154693 | CL7: 24.33724516 | CM7: 24.34294473 | CN7: 24.34864563 | CO7: 24.35434787 | CP7: 24.36005144 | CQ7: 24.36869575 | CR7: 24.37734313 | CS7: 24.38599358 | CT7: 24.3946471 | CU7: 24.40330369 | CV7: 24.41662622 | CW7: 24.42995602 | CX7: 24.4432931 | CY7: 24.45663745 | CZ7: 24.4699891
A8: ='HyARC Physical Property Data'!A71 -> Commercial Natural Gas | B8: 2007 | C8: =VLOOKUP(ref_year,DeflatorTable,2,FALSE)/VLOOKUP(B8,DeflatorTable,2,FALSE) -> 1.141397159 | D8: ='HyARC Physical Property Data'!H71 -> mmBtu | E8: Feed Utility | F8: ='HyARC Physical Property Data'!$E$6 -> 47.14126905 | G8: ='HyARC Physical Property Data'!$I$6 -> 52.22466124 | H8: =((11.8960943222046/(mmBTU_to_GJ))*($C$8))*($G$8/$F$8) -> 14.25814702 | I8: =((11.8960943222046/(mmBTU_to_GJ))*($C$8))*($G$8/$F$8) -> 14.25814702 | J8: =((11.8960943222046/(mmBTU_to_GJ))*($C$8))*($G$8/$F$8) -> 14.25814702 | K8: =((10.9898433685303/(mmBTU_to_GJ))*($C$8))*($G$8/$F$8) -> 13.1719536 | L8: =((11.3387994766235/(mmBTU_to_GJ))*($C$8))*($G$8/$F$8) -> 13.59019738 | M8: =((8.90759468078613/(mmBTU_to_GJ))*($C$8))*($G$8/$F$8) -> 10.67625988 | N8: =((9.46560573577881/(mmBTU_to_GJ))*($C$8))*($G$8/$F$8) -> 11.34506793 | O8: =((9.74632167816162/(mmBTU_to_GJ))*($C$8))*($G$8/$F$8) -> 11.68152198 | P8: =((9.72109222412109/(mmBTU_to_GJ))*($C$8))*($G$8/$F$8) -> 11.65128305 | Q8: =((9.67193412780762/(mmBTU_to_GJ))*($C$8))*($G$8/$F$8) -> 11.59236427 | R8: =((9.71388721466064/(mmBTU_to_GJ))*($C$8))*($G$8/$F$8) -> 11.64264743 | S8: =((9.83065605163574/(mmBTU_to_GJ))*($C$8))*($G$8/$F$8) -> 11.78260154 | T8: =((10.0382099151611/(mmBTU_to_GJ))*($C$8))*($G$8/$F$8) -> 12.03136667 | U8: =((10.2545003890991/(mmBTU_to_GJ))*($C$8))*($G$8/$F$8) -> 12.29060313 | V8: =((10.476261138916/(mmBTU_to_GJ))*($C$8))*($G$8/$F$8) -> 12.55639603 | W8: =((10.746561050415/(mmBTU_to_GJ))*($C$8))*($G$8/$F$8) -> 12.88036588 | X8: =((11.0803880691528/(mmBTU_to_GJ))*($C$8))*($G$8/$F$8) -> 13.28047658 | Y8: =((11.3143692016602/(mmBTU_to_GJ))*($C$8))*($G$8/$F$8) -> 13.56091631 | Z8: =((11.4017143249512/(mmBTU_to_GJ))*($C$8))*($G$8/$F$8) -> 13.66560441 | AA8: =((11.2125005722046/(mmBTU_to_GJ))*($C$8))*($G$8/$F$8) -> 13.43882095 | AB8: =((11.1975994110107/(mmBTU_to_GJ))*($C$8))*($G$8/$F$8) -> 13.42096106 | AC8: =((11.159740447998/(mmBTU_to_GJ))*($C$8))*($G$8/$F$8) -> 13.37558493 | AD8: =((11.3503875732422/(mmBTU_to_GJ))*($C$8))*($G$8/$F$8) -> 13.60408638 | AE8: =((11.6409521102905/(mmBTU_to_GJ))*($C$8))*($G$8/$F$8) -> 13.95234453 | AF8: =((11.9785671234131/(mmBTU_to_GJ))*($C$8))*($G$8/$F$8) -> 14.35699537 | AG8: =((12.2332496643066/(mmBTU_to_GJ))*($C$8))*($G$8/$F$8) -> 14.66224691 | AH8: =((12.5188312530518/(mmBTU_to_GJ))*($C$8))*($G$8/$F$8) -> 15.00453272 | AI8: =($BB8-$AH8)/20+AH8 -> 15.13191293 | AJ8: 15.25929315 | AK8: 15.38667336 | AL8: 15.51405357 | AM8: 15.64143379 | AN8: 15.768814 | AO8: 15.89619422 | AP8: 16.02357443 | AQ8: 16.15095464 | AR8: 16.27833486 | AS8: 16.40571507 | AT8: 16.53309529 | AU8: 16.6604755 | AV8: 16.78785571 | AW8: 16.91523593 | AX8: 17.04261614 | AY8: 17.16999636 | AZ8: 17.29737657 | BA8: 17.42475678 | BB8: =1.16978897829057*AH8 -> 17.552137 | BC8: =($BQ8-$BB8)/15+BB8 -> 17.72593393 | BD8: 17.89973086 | BE8: 18.07352779 | BF8: 18.24732472 | BG8: 18.42112165 | BH8: 18.59491858 | BI8: 18.76871551 | BJ8: 18.94251244 | BK8: 19.11630937 | BL8: 19.2901063 | BM8: 19.46390323 | BN8: 19.63770016 | BO8: 19.81149709 | BP8: 19.98529402 | BQ8: =1.14852629914794*BB8 -> 20.15909095 | BR8: =($BV8-$BQ8)/5+BQ8 -> 20.35870129 | BS8: 20.55831164 | BT8: 20.75792198 | BU8: 20.95753233 | BV8: =1.04950876638265*BQ8 -> 21.15714267 | BW8: =+BV8*BW$134/BV$134 -> 21.22739061 | BX8: =+BW8*BX$134/BW$134 -> 21.29787179 | BY8: 21.36858698 | BZ8: 21.43953698 | CA8: 21.51072254 | CB8: 21.55662488 | CC8: 21.60262517 | CD8: 21.64872362 | CE8: 21.69492045 | CF8: 21.74121585 | CG8: 21.75624767 | CH8: 21.77128989 | CI8: 21.78634251 | CJ8: 21.80140553 | CK8: 21.81647897 | CL8: 21.8215882 | CM8: 21.82669862 | CN8: 21.83181024 | CO8: 21.83692306 | CP8: 21.84203707 | CQ8: 21.84978785 | CR8: 21.85754138 | CS8: 21.86529766 | CT8: 21.8730567 | CU8: 21.88081849 | CV8: 21.89276391 | CW8: 21.90471585 | CX8: 21.91667432 | CY8: 21.92863932 | CZ8: 21.94061085
A9: ='HyARC Physical Property Data'!A72 -> Industrial Natural Gas | B9: 2007 | C9: =VLOOKUP(ref_year,DeflatorTable,2,FALSE)/VLOOKUP(B9,DeflatorTable,2,FALSE) -> 1.141397159 | D9: ='HyARC Physical Property Data'!H72 -> mmBtu | E9: Feed Utility | F9: ='HyARC Physical Property Data'!$E$6 -> 47.14126905 | G9: ='HyARC Physical Property Data'!$I$6 -> 52.22466124 | H9: =((7.95407009124756/(mmBTU_to_GJ))*($C$9))*($G$9/$F$9) -> 9.533406316 | I9: =((7.95407009124756/(mmBTU_to_GJ))*($C$9))*($G$9/$F$9) -> 9.533406316 | J9: =((7.95407009124756/(mmBTU_to_GJ))*($C$9))*($G$9/$F$9) -> 9.533406316 | K9: =((7.51525163650513/(mmBTU_to_GJ))*($C$9))*($G$9/$F$9) -> 9.007457389 | L9: =((8.80127239227294/(mmBTU_to_GJ))*($C$9))*($G$9/$F$9) -> 10.54882656 | M9: =((4.84856796264648/(mmBTU_to_GJ))*($C$9))*($G$9/$F$9) -> 5.811285028 | N9: =((5.49891996383666/(mmBTU_to_GJ))*($C$9))*($G$9/$F$9) -> 6.590768966 | O9: =((5.82616424560547/(mmBTU_to_GJ))*($C$9))*($G$9/$F$9) -> 6.982989888 | P9: =((5.87778615951538/(mmBTU_to_GJ))*($C$9))*($G$9/$F$9) -> 7.044861694 | Q9: =((5.95383930206299/(mmBTU_to_GJ))*($C$9))*($G$9/$F$9) -> 7.136015719 | R9: =((6.10985708236694/(mmBTU_to_GJ))*($C$9))*($G$9/$F$9) -> 7.323011921 | S9: =((6.32948446273804/(mmBTU_to_GJ))*($C$9))*($G$9/$F$9) -> 7.586247853 | T9: =((6.51258134841919/(mmBTU_to_GJ))*($C$9))*($G$9/$F$9) -> 7.805699905 | U9: =((6.70273017883301/(mmBTU_to_GJ))*($C$9))*($G$9/$F$9) -> 8.033604115 | V9: =((6.89887094497681/(mmBTU_to_GJ))*($C$9))*($G$9/$F$9) -> 8.268690002 | W9: =((7.15282821655273/(mmBTU_to_GJ))*($C$9))*($G$9/$F$9) -> 8.573072265 | X9: =((7.46860218048096/(mmBTU_to_GJ))*($C$9))*($G$9/$F$9) -> 8.951545357 | Y9: =((7.67867755889893/(mmBTU_to_GJ))*($C$9))*($G$9/$F$9) -> 9.203332671 | Z9: =((7.75380706787109/(mmBTU_to_GJ))*($C$9))*($G$9/$F$9) -> 9.293379669 | AA9: =((7.55847835540771/(mmBTU_to_GJ))*($C$9))*($G$9/$F$9) -> 9.059267075 | AB9: =((7.54617786407471/(mmBTU_to_GJ))*($C$9))*($G$9/$F$9) -> 9.044524235 | AC9: =((7.45927095413208/(mmBTU_to_GJ))*($C$9))*($G$9/$F$9) -> 8.940361351 | AD9: =((7.60022306442261/(mmBTU_to_GJ))*($C$9))*($G$9/$F$9) -> 9.109300488 | AE9: =((7.85960483551025/(mmBTU_to_GJ))*($C$9))*($G$9/$F$9) -> 9.420184323 | AF9: =((8.19417572021484/(mmBTU_to_GJ))*($C$9))*($G$9/$F$9) -> 9.821186596 | AG9: =((8.42161273956299/(mmBTU_to_GJ))*($C$9))*($G$9/$F$9) -> 10.09378283 | AH9: =((8.69355010986328/(mmBTU_to_GJ))*($C$9))*($G$9/$F$9) -> 10.41971526 | AI9: =($BB9-$AH9)/20+AH9 -> 10.5081729 | AJ9: 10.59663054 | AK9: 10.68508818 | AL9: 10.77354582 | AM9: 10.86200346 | AN9: 10.9504611 | AO9: 11.03891874 | AP9: 11.12737638 | AQ9: 11.21583403 | AR9: 11.30429167 | AS9: 11.39274931 | AT9: 11.48120695 | AU9: 11.56966459 | AV9: 11.65812223 | AW9: 11.74657987 | AX9: 11.83503751 | AY9: 11.92349515 | AZ9: 12.01195279 | BA9: 12.10041043 | BB9: =1.16978897829057*AH9 -> 12.18886807 | BC9: 12.30955923 | BD9: 12.4302504 | BE9: 12.55094156 | BF9: 12.67163273 | BG9: 12.79232389 | BH9: 12.91301506 | BI9: 13.03370622 | BJ9: 13.15439738 | BK9: 13.27508855 | BL9: 13.39577971 | BM9: 13.51647088 | BN9: 13.63716204 | BO9: 13.75785321 | BP9: 13.87854437 | BQ9: =1.14852629914794*BB9 -> 13.99923554 | BR9: 14.13785251 | BS9: 14.27646949 | BT9: 14.41508646 | BU9: 14.55370344 | BV9: =1.04950876638265*BQ9 -> 14.69232042 | BW9: =+BV9*BW$135/BV$135 -> 14.74110324 | BX9: =+BW9*BX$135/BW$135 -> 14.79004804 | BY9: 14.83915535 | BZ9: 14.88842571 | CA9: 14.93785966 | CB9: 14.96973598 | CC9: 15.00168032 | CD9: 15.03369283 | CE9: 15.06577365 | CF9: 15.09792293 | CG9: 15.1083616 | CH9: 15.11880748 | CI9: 15.12926059 | CJ9: 15.13972092 | CK9: 15.15018849 | CL9: 15.15373653 | CM9: 15.1572854 | CN9: 15.1608351 | CO9: 15.16438564 | CP9: 15.167937 | CQ9: 15.17331944 | CR9: 15.17870378 | CS9: 15.18409004 | CT9: 15.1894782 | CU9: 15.19486828 | CV9: 15.20316364 | CW9: 15.21146352 | CX9: 15.21976793 | CY9: 15.22807688 | CZ9: 15.23639037
A10: ='HyARC Physical Property Data'!A74 -> Electric Utility Natural Gas | B10: 2007 | C10: 1.141397159 | D10: ='HyARC Physical Property Data'!H74 -> mmBtu | E10: Feed Utility | F10: ='HyARC Physical Property Data'!$E$6 -> 47.14126905 | G10: ='HyARC Physical Property Data'!$I$6 -> 52.22466124 | H10: =((7.05463790893555/(mmBTU_to_GJ))*($C$10))*($G$10/$F$10) -> 8.455385585 | I10: =((7.05463790893555/(mmBTU_to_GJ))*($C$10))*($G$10/$F$10) -> 8.455385585 | J10: =((7.05463790893555/(mmBTU_to_GJ))*($C$10))*($G$10/$F$10) -> 8.455385585 | K10: =((7.01915979385375/(mmBTU_to_GJ))*($C$10))*($G$10/$F$10) -> 8.412863043 | L10: =((8.87161254882813/(mmBTU_to_GJ))*($C$10))*($G$10/$F$10) -> 10.63313324 | M10: =((4.55562210083008/(mmBTU_to_GJ))*($C$10))*($G$10/$F$10) -> 5.460172718 | N10: =((5.12931346893311/(mmBTU_to_GJ))*($C$10))*($G$10/$F$10) -> 6.147774518 | O10: =((5.45354604721069/(mmBTU_to_GJ))*($C$10))*($G$10/$F$10) -> 6.536385741 | P10: =((5.51876354217529/(mmBTU_to_GJ))*($C$10))*($G$10/$F$10) -> 6.614552626 | Q10: =((5.53977298736572/(mmBTU_to_GJ))*($C$10))*($G$10/$F$10) -> 6.639733643 | R10: =((5.68350362777709/(mmBTU_to_GJ))*($C$10))*($G$10/$F$10) -> 6.812003007 | S10: =((5.8920464515686/(mmBTU_to_GJ))*($C$10))*($G$10/$F$10) -> 7.061953466 | T10: =((6.08193254470825/(mmBTU_to_GJ))*($C$10))*($G$10/$F$10) -> 7.289542771 | U10: =((6.26939964294434/(mmBTU_to_GJ))*($C$10))*($G$10/$F$10) -> 7.514232772 | V10: =((6.47751331329346/(mmBTU_to_GJ))*($C$10))*($G$10/$F$10) -> 7.763668867 | W10: =((6.73541975021362/(mmBTU_to_GJ))*($C$10))*($G$10/$F$10) -> 8.07278443 | X10: =((7.02784395217896/(mmBTU_to_GJ))*($C$10))*($G$10/$F$10) -> 8.423271501 | Y10: =((7.25390911102295/(mmBTU_to_GJ))*($C$10))*($G$10/$F$10) -> 8.694223478 | Z10: =((7.3283839225769/(mmBTU_to_GJ))*($C$10))*($G$10/$F$10) -> 8.783485784 | AA10: =((7.15062761306763/(mmBTU_to_GJ))*($C$10))*($G$10/$F$10) -> 8.570434716 | AB10: =((7.19241189956665/(mmBTU_to_GJ))*($C$10))*($G$10/$F$10) -> 8.620515565 | AC10: =((7.13988399505615/(mmBTU_to_GJ))*($C$10))*($G$10/$F$10) -> 8.557557878 | AD10: =((7.28062534332275/(mmBTU_to_GJ))*($C$10))*($G$10/$F$10) -> 8.726244405 | AE10: =((7.5354790687561/(mmBTU_to_GJ))*($C$10))*($G$10/$F$10) -> 9.031701119 | AF10: =((7.86007928848267/(mmBTU_to_GJ))*($C$10))*($G$10/$F$10) -> 9.420752982 | AG10: =((8.07421207427979/(mmBTU_to_GJ))*($C$10))*($G$10/$F$10) -> 9.677403329 | AH10: =((8.33951759338379/(mmBTU_to_GJ))*($C$10))*($G$10/$F$10) -> 9.995387114 | AI10: =($BB10-$AH10)/20+AH10 -> 10.08024244 | AJ10: 10.16509777 | AK10: 10.2499531 | AL10: 10.33480843 | AM10: 10.41966376 | AN10: 10.50451908 | AO10: 10.58937441 | AP10: 10.67422974 | AQ10: 10.75908507 | AR10: 10.8439404 | AS10: 10.92879573 | AT10: 11.01365105 | AU10: 11.09850638 | AV10: 11.18336171 | AW10: 11.26821704 | AX10: 11.35307237 | AY10: 11.43792769 | AZ10: 11.52278302 | BA10: 11.60763835 | BB10: =1.16978897829057*AH10 -> 11.69249368 | BC10: 11.80826987 | BD10: 11.92404605 | BE10: 12.03982224 | BF10: 12.15559843 | BG10: 12.27137462 | BH10: 12.38715081 | BI10: 12.50292699 | BJ10: 12.61870318 | BK10: 12.73447937 | BL10: 12.85025556 | BM10: 12.96603174 | BN10: 13.08180793 | BO10: 13.19758412 | BP10: 13.31336031 | BQ10: =1.14852629914794*BB10 -> 13.42913649 | BR10: 13.56210849 | BS10: 13.69508049 | BT10: 13.82805248 | BU10: 13.96102448 | BV10: =1.04950876638265*BQ10 -> 14.09399648 | BW10: =+BV10*BW$136/BV$136 -> 14.14079269 | BX10: =+BW10*BX$136/BW$136 -> 14.18774428 | BY10: 14.23485176 | BZ10: 14.28211565 | CA10: 14.32953648 | CB10: 14.36011468 | CC10: 14.39075813 | CD10: 14.42146698 | CE10: 14.45224135 | CF10: 14.4830814 | CG10: 14.49309497 | CH10: 14.50311546 | CI10: 14.51314288 | CJ10: 14.52317723 | CK10: 14.53321852 | CL10: 14.53662207 | CM10: 14.54002642 | CN10: 14.54343156 | CO10: 14.54683751 | CP10: 14.55024425 | CQ10: 14.55540749 | CR10: 14.56057257 | CS10: 14.56573947 | CT10: 14.57090822 | CU10: 14.57607879 | CV10: 14.58403633 | CW10: 14.59199821 | CX10: 14.59996444 | CY10: 14.60793502 | CZ10: 14.61590995
A11: ='HyARC Physical Property Data'!A75 -> Bio Methane | B11: 2007 | C11: 1.141397159 | D11: ='HyARC Physical Property Data'!H75 -> mmBtu | E11: Feed Utility | F11: ='HyARC Physical Property Data'!$E$6 -> 47.14126905 | G11: ='HyARC Physical Property Data'!$I$6 -> 52.22466124 | H11: =13.11*($C$11/mmBTU_to_GJ) -> 14.18361777 | I11: 14.18361777 | J11: 14.18361777 | K11: 14.18361777 | L11: 14.18361777 | M11: 14.18361777 | N11: 14.18361777 | O11: 14.18361777 | P11: 14.18361777 | Q11: 14.18361777 | R11: 14.18361777 | S11: 14.18361777 | T11: 14.18361777 | U11: 14.18361777 | V11: 14.18361777 | W11: 14.18361777 | X11: 14.18361777 | Y11: 14.18361777 | Z11: 14.18361777 | AA11: 14.18361777 | AB11: 14.18361777 | AC11: 14.18361777 | AD11: 14.18361777 | AE11: 14.18361777 | AF11: 14.18361777 | AG11: 14.18361777 | AH11: 14.18361777 | AI11: 14.18361777 | AJ11: 14.18361777 | AK11: 14.18361777 | AL11: 14.18361777 | AM11: 14.18361777 | AN11: =13.11*($C$11/mmBTU_to_GJ) -> 14.18361777 | AO11: 14.18361777 | AP11: 14.18361777 | AQ11: 14.18361777 | AR11: 14.18361777 | AS11: 14.18361777 | AT11: 14.18361777 | AU11: 14.18361777 | AV11: 14.18361777 | AW11: 14.18361777 | AX11: 14.18361777 | AY11: 14.18361777 | AZ11: 14.18361777 | BA11: 14.18361777 | BB11: 14.18361777 | BC11: 14.18361777 | BD11: 14.18361777 | BE11: 14.18361777 | BF11: 14.18361777 | BG11: 14.18361777 | BH11: 14.18361777 | BI11: 14.18361777 | BJ11: 14.18361777 | BK11: 14.18361777 | BL11: 14.18361777 | BM11: 14.18361777 | BN11: 14.18361777 | BO11: 14.18361777 | BP11: 14.18361777 | BQ11: 14.18361777 | BR11: 14.18361777 | BS11: 14.18361777 | BT11: 14.18361777 | BU11: 14.18361777 | BV11: 14.18361777 | BW11: =+BV11*BW$136/BV$136 -> 14.23071156 | BX11: =+BW11*BX$136/BW$136 -> 14.2779617 | BY11: 14.32536873 | BZ11: 14.37293317 | CA11: 14.42065553 | CB11: 14.45142818 | CC11: 14.48226649 | CD11: 14.51317061 | CE11: 14.54414067 | CF11: 14.57517682 | CG11: 14.58525407 | CH11: 14.59533828 | CI11: 14.60542946 | CJ11: 14.61552762 | CK11: 14.62563276 | CL11: 14.62905795 | CM11: 14.63248395 | CN11: 14.63591074 | CO11: 14.63933835 | CP11: 14.64276675 | CQ11: 14.64796282 | CR11: 14.65316074 | CS11: 14.65836051 | CT11: 14.66356211 | CU11: 14.66876557 | CV11: 14.67677371 | CW11: 14.68478622 | CX11: 14.6928031 | CY11: 14.70082436 | CZ11: 14.70885
A12: ='HyARC Physical Property Data'!A85 -> Woody Biomass | B12: 2005 | C12: =VLOOKUP(ref_year,DeflatorTable,2,FALSE)/VLOOKUP(B12,DeflatorTable,2,FALSE) -> 1.208440716 | D12: =+'HyARC Physical Property Data'!$H$85 -> kg | E12: Feed | F12: ='HyARC Physical Property Data'!$E$45 -> 19.55106924 | G12: ='HyARC Physical Property Data'!$I$45 -> 20.58865638 | H12: =1.27*($C$12) -> 1.534719709 | I12: 1.534719709 | J12: 1.534719709 | K12: 1.534719709 | L12: 1.534719709 | M12: 1.534719709 | N12: 1.534719709 | O12: 1.534719709 | P12: =1.28*($C$12) -> 1.546804117 | Q12: =1.32*($C$12) -> 1.595141745 | R12: =1.32*($C$12) -> 1.595141745 | S12: =1.34*($C$12) -> 1.61931056 | T12: =1.34*($C$12) -> 1.61931056 | U12: =1.36*($C$12) -> 1.643479374 | V12: =1.36*($C$12) -> 1.643479374 | W12: =1.38*($C$12) -> 1.667648188 | X12: =1.4*($C$12) -> 1.691817003 | Y12: =1.46*($C$12) -> 1.764323446 | Z12: =1.48*($C$12) -> 1.78849226 | AA12: =1.48*($C$12) -> 1.78849226 | AB12: =1.51*($C$12) -> 1.824745481 | AC12: =1.52*($C$12) -> 1.836829889 | AD12: =1.62*($C$12) -> 1.95767396 | AE12: =1.72*($C$12) -> 2.078518032 | AF12: =1.82*($C$12) -> 2.199362103 | AG12: =1.91*($C$12) -> 2.308121768 | AH12: =2.01*($C$12) -> 2.428965839 | AI12: =2.11*($C$12) -> 2.549809911 | AJ12: =2.2*($C$12) -> 2.658569575 | AK12: =2.3*($C$12) -> 2.779413647 | AL12: =2.4*($C$12) -> 2.900257719 | AM12: =2.5*($C$12) -> 3.02110179 | AN12: =2.57*($C$12) -> 3.10569264 | AO12: =2.64*($C$12) -> 3.190283491 | AP12: =2.71*($C$12) -> 3.274874341 | AQ12: =2.78*($C$12) -> 3.359465191 | AR12: =2.85*($C$12) -> 3.444056041 | AS12: =2.92*($C$12) -> 3.528646891 | AT12: =2.99*($C$12) -> 3.613237741 | AU12: =3.07*($C$12) -> 3.709912999 | AV12: =3.14*($C$12) -> 3.794503849 | AW12: =3.21*($C$12) -> 3.879094699 | AX12: =3.28*($C$12) -> 3.963685549 | AY12: =3.35*($C$12) -> 4.048276399 | AZ12: =3.42*($C$12) -> 4.132867249 | BA12: =3.49*($C$12) -> 4.217458099 | BB12: =3.56*($C$12) -> 4.302048949 | BC12: =3.64*($C$12) -> 4.398724207 | BD12: =3.71*($C$12) -> 4.483315057 | BE12: =3.78*($C$12) -> 4.567905907 | BF12: =3.85*($C$12) -> 4.652496757 | BG12: =3.92*($C$12) -> 4.737087607 | BH12: =3.99*($C$12) -> 4.821678457 | BI12: =4.06*($C$12) -> 4.906269307 | BJ12: =4.14*($C$12) -> 5.002944565 | BK12: =4.21*($C$12) -> 5.087535415 | BL12: =4.28*($C$12) -> 5.172126265 | BM12: =4.35*($C$12) -> 5.256717115 | BN12: =4.42*($C$12) -> 5.341307965 | BO12: =4.49*($C$12) -> 5.425898815 | BP12: =4.56*($C$12) -> 5.510489666 | BQ12: =4.63*($C$12) -> 5.595080516 | BR12: =4.71*($C$12) -> 5.691755773 | BS12: =4.78*($C$12) -> 5.776346623 | BT12: =4.85*($C$12) -> 5.860937473 | BU12: =4.92*($C$12) -> 5.945528323 | BV12: =4.99*($C$12) -> 6.030119173 | BW12: =+BV12*BW$138/BV$138 -> 6.044613208 | BX12: =+BW12*BX$138/BW$138 -> 6.05914208 | BY12: 6.073705874 | BZ12: 6.088304673 | CA12: 6.102938562 | CB12: 6.115748568 | CC12: 6.128585462 | CD12: 6.1414493 | CE12: 6.15434014 | CF12: 6.167258037 | CG12: 6.183149548 | CH12: 6.199082008 | CI12: 6.215055522 | CJ12: 6.231070196 | CK12: 6.247126135 | CL12: 6.2604976 | CM12: 6.273897685 | CN12: 6.287326452 | CO12: 6.300783962 | CP12: 6.314270276 | CQ12: 6.326614173 | CR12: 6.3389822 | CS12: 6.351374406 | CT12: 6.363790838 | CU12: 6.376231543 | CV12: 6.390919363 | CW12: 6.405641018 | CX12: 6.420396584 | CY12: 6.43518614 | CZ12: 6.450009764
A13: ='HyARC Physical Property Data'!A86 -> Woody Biomass B2A | B13: 2007 | C13: =VLOOKUP(ref_year,DeflatorTable,2,FALSE)/VLOOKUP(B13,DeflatorTable,2,FALSE) -> 1.141397159 | D13: =+'HyARC Physical Property Data'!$H$86 -> kg | E13: Feed | F13: ='HyARC Physical Property Data'!$E$45 -> 19.55106924 | G13: ='HyARC Physical Property Data'!$I$45 -> 20.58865638 | H13: =3.80872262322035*($C$13) -> 4.347265181 | I13: =3.80872262322035*($C$13) -> 4.347265181 | J13: =3.80872262322035*($C$13) -> 4.347265181 | K13: =3.80872262322035*($C$13) -> 4.347265181 | L13: =3.58036841709093*($C$13) -> 4.086622339 | M13: =3.28153451771169*($C$13) -> 3.745534175 | N13: =3.05599949931226*($C$13) -> 3.488109146 | O13: =2.9206784882726*($C$13) -> 3.333654128 | P13: =2.85865635821276*($C$13) -> 3.262862245 | Q13: 3.262862245 | R13: 3.262862245 | S13: 3.262862245 | T13: 3.262862245 | U13: 3.262862245 | V13: 3.262862245 | W13: 3.262862245 | X13: 3.262862245 | Y13: 3.262862245 | Z13: 3.262862245 | AA13: 3.262862245 | AB13: 3.262862245 | AC13: 3.262862245 | AD13: 3.262862245 | AE13: 3.262862245 | AF13: 3.262862245 | AG13: 3.262862245 | AH13: 3.262862245 | AI13: 3.262862245 | AJ13: 3.262862245 | AK13: 3.262862245 | AL13: 3.262862245 | AM13: 3.262862245 | AN13: 3.262862245 | AO13: 3.262862245 | AP13: 3.262862245 | AQ13: 3.262862245 | AR13: 3.262862245 | AS13: 3.262862245 | AT13: 3.262862245 | AU13: 3.262862245 | AV13: 3.262862245 | AW13: 3.262862245 | AX13: 3.262862245 | AY13: 3.262862245 | AZ13: 3.262862245 | BA13: 3.262862245 | BB13: 3.262862245 | BC13: 3.262862245 | BD13: 3.262862245 | BE13: 3.262862245 | BF13: 3.262862245 | BG13: 3.262862245 | BH13: 3.262862245 | BI13: 3.262862245 | BJ13: 3.262862245 | BK13: 3.262862245 | BL13: 3.262862245 | BM13: 3.262862245 | BN13: 3.262862245 | BO13: 3.262862245 | BP13: 3.262862245 | BQ13: 3.262862245 | BR13: 3.262862245 | BS13: 3.262862245 | BT13: 3.262862245 | BU13: 3.262862245 | BV13: 3.262862245 | BW13: =+BV13*BW$138/BV$138 -> 3.270704883 | BX13: =+BW13*BX$138/BW$138 -> 3.27856637 | BY13: 3.286446754 | BZ13: 3.294346079 | CA13: 3.302264391 | CB13: 3.30919581 | CC13: 3.316141779 | CD13: 3.323102326 | CE13: 3.330077484 | CF13: 3.337067283 | CG13: 3.345666087 | CH13: 3.354287048 | CI13: 3.362930223 | CJ13: 3.371595669 | CK13: 3.380283444 | CL13: 3.387518665 | CM13: 3.394769373 | CN13: 3.4020356 | CO13: 3.40931738 | CP13: 3.416614747 | CQ13: 3.423293957 | CR13: 3.429986224 | CS13: 3.436691574 | CT13: 3.443410033 | CU13: 3.450141626 | CV13: 3.45808912 | CW13: 3.466054921 | CX13: 3.474039071 | CY13: 3.482041614 | CZ13: 3.49006259
